Workbook

Sheet CALCULADORA
B1: Exclusión de responsabilidad | H1: Valor nominal negociado
H2: TIPS N13 A
H3: TIPS N14 A
H4: TIPS N15 A
H5: TIPS N16 A
H6: TIPS N17 A
B7: Calculadora Emisiones TIPS en Pesos | H7: TIPS N18 A 2034
H8: TIPS N19 A 2034
B9: Emisión | C9: TIPS N21 A | E9: Seleccionar la Emisión a Calcular | H9: TIPS N20 A 2034
H10: TIPS N21 A
B11: Características | H11: TIPS N22 A
B12: Identificación titulo (Nemotécnico) | C12: =+HLOOKUP(C9,Características!B1:K7,2,FALSE) -> INST13240634 | F12: 99.999
B13: Fecha de Emisión | C13: =+HLOOKUP(C9,Características!B1:K7,4,FALSE) -> 2021-06-24
B14: Fecha de Vencimiento Contractual | C14: =+HLOOKUP(C9,Características!B1:K7,5,FALSE) -> 2034-06-24
B15: Fecha estimada para el pago del 100% del título | C15: =+VLOOKUP(0,Flujos!D2:J182,6,FALSE) -> 2032-02-24
B16: Tasa Facial Efectiva Anual | C16: =+HLOOKUP(C9,Características!B1:K7,6,FALSE) -> 0.0606
B17: Tasa Facial Nominal Anual | C17: =+ROUND(((1+C16)^(1/12)-1)*12,6) -> 0.058979
B18: Duración Macaulay | C18: =+SUMPRODUCT(Flujos!B2:B182,Flujos!H2:H182)/Flujos!H183/365 -> 2.421451475
B19: Nominal Inicial (Nominal del título al momento de la emisión) | C19: =Flujos!L2 -> 2.905e+11
B22: Datos de Compra | D22: Fecha de Compra y Valor de Compra son datos opcionales deben incluirse solo para calcular la TIR de Tenencia
B23: Fecha de Compra | C23: 2024-03-07
B24: Valor de Compra (COP) | C24: 1000000000
B26: Datos de Venta
B27: Fecha de Venta | C27: 2024-04-01 | E27: Incluir los datos de las celdas grises
B28: Valor nominal a negociar (COP) | C28: 150723400555
B29: Tasa de negociación / tasa de valoración | C29: 0.109
B30: Precio Limpio (sin incluir intereses causados)
B31: Precio sucio (incluyendo intereses causados) | C31: 100.028
A32: =+Flujos!C183*100 -> 51.884131 | B32: Porcentaje del nominal inicial que falta por pagar del capital | C32: =+Flujos!C183*100/100 -> 0.51884131
B33: Valor de Giro (COP) | C33: =+Características!B32 -> 135135586470
B35: TIR de Tenencia en COP* | C35: =+'TIR de Tenencia'!K2 -> 
B37: Oficina de Atención a Inversionistas al 601 618 3030 ext 258 - 239, o al correo smoreno@titularizadora.com - josorio@titularizadora.com
C43: 1

Sheet Características (hidden)
A1: Serie | B1: TIPS N13 A | C1: TIPS N14 A | D1: TIPS N15 A | E1: TIPS N16 A | F1: TIPS N17 A | G1: TIPS N18 A 2034 | H1: TIPS N19 A 2034 | I1: TIPS N20 A 2034 | J1: TIPS N21 A | K1: TIPS N22 A
A2: Nemo MEC | B2: INST10011226 | C2: INST10080327 | D2: INST10270627 | E2: INST10061227 | F2: INST10150328 | G2: INST15040434 | H2: INST15230534 | I2: INST15041034 | J2: INST13240634 | K2: INST070339A
A3: ISIN
A4: Emisión | B4: 2016-12-01 | C4: 2017-03-08 | D4: 2017-06-27 | E4: 2017-12-06 | F4: 2018-03-15 | G4: 2021-02-04 | H4: 2021-07-23 | I4: 2021-04-04 | J4: 2021-06-24 | K4: 2024-03-07
A5: Vencimiento contractual | B5: 2026-12-01 | C5: 2027-03-08 | D5: 2042-03-08 | E5: 2027-12-06 | F5: 2033-03-15 | G5: 2034-04-04 | H5: 2034-05-23 | I5: 2034-10-04 | J5: 2034-06-24 | K5: 2039-03-07
A6: Cupón EA | B6: 0.0837 | C6: 0.0775 | D6: 0.069 | E6: 0.0638 | F6: 0.0657 | G6: 0.0683 | H6: 0.0689 | I6: 0.0604 | J6: 0.0606 | K6: 0.109
A7: Moneda | B7: COP | C7: COP | D7: COP | E7: COP | F7: COP | G7: COP | H7: COP | I7: COP | J7: COP | K7: COP
A9: Cálculo de tasa y precio sucio a partir del limpio
A10: Fecha de liquidación | B10: =+CALCULADORA!C27 -> 2024-04-01
A11: Fecha último pago cupón | B11: =+VLOOKUP(B10,Flujos!$A$2:$A$182,1) -> 2024-03-24
A12: Valor Par | B12: =+VLOOKUP(B11,Flujos!$A$2:$D$182,4) -> 51.884131
A13: Próximo pago de interés | B13: =+VLOOKUP(EDATE(B10,1),Flujos!$A$2:$F$182,6) -> 0.255011
A14: Días corridos | B14: =+DAYS360(B11,B10,TRUE) -> 7
A15: Días entre flujos | B15: 30
A16: Cupón corrido | B16: =ROUND(B13/B12*B14/B15*100,4) -> 0.1147
A17: Precio limpio | B17: =+TRUNC(Flujos!H183/VLOOKUP(CALCULADORA!C27,Flujos!A:D,4)*100,3) -> 89.544
A18: Nominal | B18: =+CALCULADORA!C28 -> 150723400555
A19: Moneda | B19: 1
A20: Contravalor | B20: =ROUND(B18*B19*(B17+B16)/100,0) -> 135136641533
A21: Precio unitario | B21: =TRUNC(B20/B18,5) -> 0.89658
A22: Precio sucio MEC | B22: =TRUNC(B21/B19*100,3) -> 89.658
A23: Precio sucio modelo | B23: =+B22 -> 89.658
A24: Diferencia | B24: =+B22-B23 -> 0
A25: Tasa de descuento equivalente | B25: =TRUNC(CALCULADORA!C29,5) -> 0.109
A27: Cálculo de precio limpio y sucio a partir de tasa
A28: Tasa de descuento | B28: =TRUNC(CALCULADORA!C29,5) -> 0.109
A29: Precio sucio modelo | B29: =+B23 -> 89.658
A30: Moneda | B30: =+CALCULADORA!$C$43 -> 1
A31: Nominal | B31: =+CALCULADORA!C28 -> 150723400555
A32: Contravalor | B32: =+ROUND(B29/100*B31*B30,0) -> 135135586470
A33: Valor Par | B33: =+VLOOKUP(B11,Flujos!$A$2:$D$182,4) -> 51.884131
A34: Próximo pago de interés | B34: =+VLOOKUP(EDATE(B10,1),Flujos!$A$2:$F$182,6) -> 0.255011
A35: Días corridos | B35: =+DAYS360(B11,B10,TRUE) -> 7
A36: Días entre flujos | B36: 30
A37: Precio unitario | B37: =TRUNC(B32/(B30*B31),5) -> 0.89658
A38: Cupón corrido | B38: =ROUND(B34/B33*B35/B36,6)*100 -> 0.1147
A39: Precio limpio | B39: =ROUND((B37-(B38/100))*100,3) -> 89.543

Sheet Flujos
A1: Fecha | B1: Días 365 / Days 365 | C1: Amortización / Amortization | D1: Factor Saldo | E1: Factor Capital | F1: Factor Intereses | G1: Factor Total | H1: VPN | I1: Control | J1: Mes inicial | K1: Días iniciales | L1: Saldo / Balance | M1: Pago de Capital | N1: Pago de Intereses | O1: Pago Total
A2: =+CALCULADORA!C13 -> 2021-06-24 | B2: =IF(DIAS365(CALCULADORA!$C$27,A2)<0,0,DIAS365(CALCULADORA!$C$27,A2)) -> 0 | C2: 0 | D2: =+CALCULADORA!A32/Flujos!C183 -> 100 | E2: 0 | F2: 0 | G2: =F2+E2 -> 0 | H2: =IF($B2<0,0,G2/POWER(1+CALCULADORA!$C$29,Flujos!$B2/365)) -> 0 | I2: =+A2 -> 2021-06-24 | J2: 0 | K2: 0 | L2: =+Características!B18/Flujos!C183 -> 2.905e+11 | M2: 0 | N2: 0 | O2: =+N2+M2 -> 0
A3: =EDATE(A2,1) -> 2021-07-24 | B3: =IF(DIAS365(CALCULADORA!$C$27,A3)<0,0,DIAS365(CALCULADORA!$C$27,A3)) -> 0 | C3: =+HLOOKUP(CALCULADORA!$C$9,Tablas!B:B,Flujos!J3+1,FALSE) -> 0.01952549 | D3: =+ROUND(D2-E3,6) -> 98.047451 | E3: =ROUND(C3*$D$2,6) -> 1.952549 | F3: =ROUND(D2*ROUND(((1+CALCULADORA!$C$16)^(1/12)-1),6),6) -> 0.4915 | G3: =F3+E3 -> 2.444049 | H3: =IF($B3=0,0,G3/POWER(1+CALCULADORA!$C$29,Flujos!$B3/365)) -> 0 | I3: =+A3 -> 2021-07-24 | J3: 1 | K3: =+DIAS365($A$2,A3) -> 30 | L3: =+L2-M3 -> 2.848278452e+11 | M3: =+$L$2*C3 -> 5672154845 | N3: =+L2*$F$3% -> 1427807500 | O3: =+N3+M3 -> 7099962345
A4: =EDATE(A3,1) -> 2021-08-24 | B4: =IF(DIAS365(CALCULADORA!$C$27,A4)<0,0,DIAS365(CALCULADORA!$C$27,A4)) -> 0 | C4: =+HLOOKUP(CALCULADORA!$C$9,Tablas!B:B,Flujos!J4+1,FALSE) -> 0.02834999 | D4: =+ROUND(D3-E4,6) -> 95.212452 | E4: =ROUND(C4*$D$2,6) -> 2.834999 | F4: =ROUND(D3*ROUND(((1+CALCULADORA!$C$16)^(1/12)-1),6),6) -> 0.481903 | G4: =F4+E4 -> 3.316902 | H4: =IF($B4=0,0,G4/POWER(1+CALCULADORA!$C$29,Flujos!$B4/365)) -> 0 | I4: 2021-08-24 | J4: 2 | K4: =+DIAS365($A$2,A4) -> 61 | L4: =+L3-M4 -> 2.765921731e+11 | M4: =+$L$2*C4 -> 8235672095 | N4: =+L3*$F$3% -> 1399928859 | O4: =+N4+M4 -> 9635600954
A5: 2021-09-24 | B5: =IF(DIAS365(CALCULADORA!$C$27,A5)<0,0,DIAS365(CALCULADORA!$C$27,A5)) -> 0 | C5: =+HLOOKUP(CALCULADORA!$C$9,Tablas!B:B,Flujos!J5+1,FALSE) -> 0.02654497 | D5: =+ROUND(D4-E5,6) -> 92.557955 | E5: 2.654497 | F5: =ROUND(D4*ROUND(((1+CALCULADORA!$C$16)^(1/12)-1),6),6) -> 0.467969 | G5: 3.122466 | H5: =IF($B5=0,0,G5/POWER(1+CALCULADORA!$C$29,Flujos!$B5/365)) -> 0 | I5: 2021-09-24 | J5: 3 | K5: =+DIAS365($A$2,A5) -> 92 | L5: 2.688808593e+11 | M5: 7711313785 | N5: 1359450531 | O5: 9070764316
A6: 2021-10-24 | B6: =IF(DIAS365(CALCULADORA!$C$27,A6)<0,0,DIAS365(CALCULADORA!$C$27,A6)) -> 0 | C6: =+HLOOKUP(CALCULADORA!$C$9,Tablas!B:B,Flujos!J6+1,FALSE) -> 0.02677209 | D6: 89.880746 | E6: 2.677209 | F6: =ROUND(D5*ROUND(((1+CALCULADORA!$C$16)^(1/12)-1),6),6) -> 0.454922 | G6: 3.132131 | H6: =IF($B6=0,0,G6/POWER(1+CALCULADORA!$C$29,Flujos!$B6/365)) -> 0 | I6: 2021-10-24 | J6: 4 | K6: =+DIAS365($A$2,A6) -> 122 | L6: 2.611035671e+11 | M6: 7777292145 | N6: 1321549423 | O6: 9098841568
A7: 2021-11-24 | B7: =IF(DIAS365(CALCULADORA!$C$27,A7)<0,0,DIAS365(CALCULADORA!$C$27,A7)) -> 0 | C7: =+HLOOKUP(CALCULADORA!$C$9,Tablas!B:B,Flujos!J7+1,FALSE) -> 0.02176445 | D7: 87.704301 | E7: 2.176445 | F7: =ROUND(D6*ROUND(((1+CALCULADORA!$C$16)^(1/12)-1),6),6) -> 0.441764 | G7: 2.618209 | H7: =IF($B7=0,0,G7/POWER(1+CALCULADORA!$C$29,Flujos!$B7/365)) -> 0 | I7: 2021-11-24 | J7: 5 | K7: =+DIAS365($A$2,A7) -> 153 | L7: 2.547809944e+11 | M7: 6322572725 | N7: 1283324032 | O7: 7605896757
A8: 2021-12-24 | B8: =IF(DIAS365(CALCULADORA!$C$27,A8)<0,0,DIAS365(CALCULADORA!$C$27,A8)) -> 0 | C8: =+HLOOKUP(CALCULADORA!$C$9,Tablas!B:B,Flujos!J8+1,FALSE) -> 0.01831821 | D8: 85.87248 | E8: 1.831821 | F8: =ROUND(D7*ROUND(((1+CALCULADORA!$C$16)^(1/12)-1),6),6) -> 0.431067 | G8: 2.262888 | H8: =IF($B8=0,0,G8/POWER(1+CALCULADORA!$C$29,Flujos!$B8/365)) -> 0 | I8: 2021-12-24 | J8: 6 | K8: =+DIAS365($A$2,A8) -> 183 | L8: 2.494595544e+11 | M8: 5321440005 | N8: 1252248588 | O8: 6573688593
A9: 2022-01-24 | B9: =IF(DIAS365(CALCULADORA!$C$27,A9)<0,0,DIAS365(CALCULADORA!$C$27,A9)) -> 0 | C9: =+HLOOKUP(CALCULADORA!$C$9,Tablas!B:B,Flujos!J9+1,FALSE) -> 0.01794704 | D9: 84.077776 | E9: 1.794704 | F9: =ROUND(D8*ROUND(((1+CALCULADORA!$C$16)^(1/12)-1),6),6) -> 0.422063 | G9: 2.216767 | H9: =IF($B9=0,0,G9/POWER(1+CALCULADORA!$C$29,Flujos!$B9/365)) -> 0 | I9: 2022-01-24 | J9: 7 | K9: =+DIAS365($A$2,A9) -> 214 | L9: 2.442459393e+11 | M9: 5213615120 | N9: 1226093710 | O9: 6439708830
A10: 2022-02-24 | B10: =IF(DIAS365(CALCULADORA!$C$27,A10)<0,0,DIAS365(CALCULADORA!$C$27,A10)) -> 0 | C10: =+HLOOKUP(CALCULADORA!$C$9,Tablas!B:B,Flujos!J10+1,FALSE) -> 0.01610036 | D10: 82.46774 | E10: 1.610036 | F10: =ROUND(D9*ROUND(((1+CALCULADORA!$C$16)^(1/12)-1),6),6) -> 0.413242 | G10: 2.023278 | H10: =IF($B10=0,0,G10/POWER(1+CALCULADORA!$C$29,Flujos!$B10/365)) -> 0 | I10: 2022-02-24 | J10: 8 | K10: =+DIAS365($A$2,A10) -> 245 | L10: 2.395687847e+11 | M10: 4677154580 | N10: 1200468792 | O10: 5877623372
A11: 2022-03-24 | B11: =IF(DIAS365(CALCULADORA!$C$27,A11)<0,0,DIAS365(CALCULADORA!$C$27,A11)) -> 0 | C11: =+HLOOKUP(CALCULADORA!$C$9,Tablas!B:B,Flujos!J11+1,FALSE) -> 0.0146862 | D11: 80.99912 | E11: 1.46862 | F11: =ROUND(D10*ROUND(((1+CALCULADORA!$C$16)^(1/12)-1),6),6) -> 0.405329 | G11: 1.873949 | H11: =IF($B11=0,0,G11/POWER(1+CALCULADORA!$C$29,Flujos!$B11/365)) -> 0 | I11: 2022-03-24 | J11: 9 | K11: =+DIAS365($A$2,A11) -> 273 | L11: 2.353024436e+11 | M11: 4266341100 | N11: 1177480577 | O11: 5443821677
A12: 2022-04-24 | B12: =IF(DIAS365(CALCULADORA!$C$27,A12)<0,0,DIAS365(CALCULADORA!$C$27,A12)) -> 0 | C12: =+HLOOKUP(CALCULADORA!$C$9,Tablas!B:B,Flujos!J12+1,FALSE) -> 0.01427731 | D12: 79.571389 | E12: 1.427731 | F12: =ROUND(D11*ROUND(((1+CALCULADORA!$C$16)^(1/12)-1),6),6) -> 0.398111 | G12: 1.825842 | H12: =IF($B12=0,0,G12/POWER(1+CALCULADORA!$C$29,Flujos!$B12/365)) -> 0 | I12: 2022-04-24 | J12: 10 | K12: =+DIAS365($A$2,A12) -> 304 | L12: 2.31154885e+11 | M12: 4147558555 | N12: 1156511510 | O12: 5304070065
A13: 2022-05-24 | B13: =IF(DIAS365(CALCULADORA!$C$27,A13)<0,0,DIAS365(CALCULADORA!$C$27,A13)) -> 0 | C13: =+HLOOKUP(CALCULADORA!$C$9,Tablas!B:B,Flujos!J13+1,FALSE) -> 0.01730595 | D13: 77.840794 | E13: 1.730595 | F13: =ROUND(D12*ROUND(((1+CALCULADORA!$C$16)^(1/12)-1),6),6) -> 0.391093 | G13: 2.121688 | H13: =IF($B13=0,0,G13/POWER(1+CALCULADORA!$C$29,Flujos!$B13/365)) -> 0 | I13: 2022-05-24 | J13: 11 | K13: =+DIAS365($A$2,A13) -> 334 | L13: 2.261275066e+11 | M13: 5027378475 | N13: 1136126260 | O13: 6163504735
A14: 2022-06-24 | B14: =IF(DIAS365(CALCULADORA!$C$27,A14)<0,0,DIAS365(CALCULADORA!$C$27,A14)) -> 0 | C14: =+HLOOKUP(CALCULADORA!$C$9,Tablas!B:B,Flujos!J14+1,FALSE) -> 0.01376916 | D14: 76.463878 | E14: 1.376916 | F14: =ROUND(D13*ROUND(((1+CALCULADORA!$C$16)^(1/12)-1),6),6) -> 0.382588 | G14: 1.759504 | H14: =IF($B14=0,0,G14/POWER(1+CALCULADORA!$C$29,Flujos!$B14/365)) -> 0 | I14: 2022-06-24 | J14: 12 | K14: =+DIAS365($A$2,A14) -> 365 | L14: 2.221275656e+11 | M14: 3999940980 | N14: 1111416695 | O14: 5111357675
A15: 2022-07-24 | B15: =IF(DIAS365(CALCULADORA!$C$27,A15)<0,0,DIAS365(CALCULADORA!$C$27,A15)) -> 0 | C15: =+HLOOKUP(CALCULADORA!$C$9,Tablas!B:B,Flujos!J15+1,FALSE) -> 0.01483369 | D15: 74.980509 | E15: 1.483369 | F15: =ROUND(D14*ROUND(((1+CALCULADORA!$C$16)^(1/12)-1),6),6) -> 0.37582 | G15: 1.859189 | H15: =IF($B15=0,0,G15/POWER(1+CALCULADORA!$C$29,Flujos!$B15/365)) -> 0 | I15: 2022-07-24 | J15: 13 | K15: =+DIAS365($A$2,A15) -> 395 | L15: 2.178183786e+11 | M15: 4309186945 | N15: 1091756985 | O15: 5400943930
A16: 2022-08-24 | B16: =IF(DIAS365(CALCULADORA!$C$27,A16)<0,0,DIAS365(CALCULADORA!$C$27,A16)) -> 0 | C16: =+HLOOKUP(CALCULADORA!$C$9,Tablas!B:B,Flujos!J16+1,FALSE) -> 0.01289312 | D16: 73.691197 | E16: 1.289312 | F16: =ROUND(D15*ROUND(((1+CALCULADORA!$C$16)^(1/12)-1),6),6) -> 0.368529 | G16: 1.657841 | H16: =IF($B16=0,0,G16/POWER(1+CALCULADORA!$C$29,Flujos!$B16/365)) -> 0 | I16: 2022-08-24 | J16: 14 | K16: =+DIAS365($A$2,A16) -> 426 | L16: 2.140729273e+11 | M16: 3745451360 | N16: 1070577331 | O16: 4816028691
A17: 2022-09-24 | B17: =IF(DIAS365(CALCULADORA!$C$27,A17)<0,0,DIAS365(CALCULADORA!$C$27,A17)) -> 0 | C17: =+HLOOKUP(CALCULADORA!$C$9,Tablas!B:B,Flujos!J17+1,FALSE) -> 0.01178352 | D17: 72.512845 | E17: 1.178352 | F17: =ROUND(D16*ROUND(((1+CALCULADORA!$C$16)^(1/12)-1),6),6) -> 0.362192 | G17: 1.540544 | H17: =IF($B17=0,0,G17/POWER(1+CALCULADORA!$C$29,Flujos!$B17/365)) -> 0 | I17: 2022-09-24 | J17: 15 | K17: =+DIAS365($A$2,A17) -> 457 | L17: 2.106498147e+11 | M17: 3423112560 | N17: 1052168438 | O17: 4475280998
A18: 2022-10-24 | B18: =IF(DIAS365(CALCULADORA!$C$27,A18)<0,0,DIAS365(CALCULADORA!$C$27,A18)) -> 0 | C18: =+HLOOKUP(CALCULADORA!$C$9,Tablas!B:B,Flujos!J18+1,FALSE) -> 0.01040654 | D18: 71.472191 | E18: 1.040654 | F18: =ROUND(D17*ROUND(((1+CALCULADORA!$C$16)^(1/12)-1),6),6) -> 0.356401 | G18: 1.397055 | H18: =IF($B18=0,0,G18/POWER(1+CALCULADORA!$C$29,Flujos!$B18/365)) -> 0 | I18: 2022-10-24 | J18: 16 | K18: =+DIAS365($A$2,A18) -> 487 | L18: 2.076267149e+11 | M18: 3023099870 | N18: 1035343839 | O18: 4058443709
A19: 2022-11-24 | B19: =IF(DIAS365(CALCULADORA!$C$27,A19)<0,0,DIAS365(CALCULADORA!$C$27,A19)) -> 0 | C19: =+HLOOKUP(CALCULADORA!$C$9,Tablas!B:B,Flujos!J19+1,FALSE) -> 0.01326818 | D19: 70.145373 | E19: 1.326818 | F19: =ROUND(D18*ROUND(((1+CALCULADORA!$C$16)^(1/12)-1),6),6) -> 0.351286 | G19: 1.678104 | H19: =IF($B19=0,0,G19/POWER(1+CALCULADORA!$C$29,Flujos!$B19/365)) -> 0 | I19: 2022-11-24 | J19: 17 | K19: =+DIAS365($A$2,A19) -> 518 | L19: 2.037723086e+11 | M19: 3854406290 | N19: 1020485304 | O19: 4874891594
A20: 2022-12-24 | B20: =IF(DIAS365(CALCULADORA!$C$27,A20)<0,0,DIAS365(CALCULADORA!$C$27,A20)) -> 0 | C20: =+HLOOKUP(CALCULADORA!$C$9,Tablas!B:B,Flujos!J20+1,FALSE) -> 0.01401153 | D20: 68.74422 | E20: 1.401153 | F20: =ROUND(D19*ROUND(((1+CALCULADORA!$C$16)^(1/12)-1),6),6) -> 0.344765 | G20: 1.745918 | H20: =IF($B20=0,0,G20/POWER(1+CALCULADORA!$C$29,Flujos!$B20/365)) -> 0 | I20: 2022-12-24 | J20: 18 | K20: =+DIAS365($A$2,A20) -> 548 | L20: 1.997019591e+11 | M20: 4070349465 | N20: 1001540897 | O20: 5071890362
A21: 2023-01-24 | B21: =IF(DIAS365(CALCULADORA!$C$27,A21)<0,0,DIAS365(CALCULADORA!$C$27,A21)) -> 0 | C21: =+HLOOKUP(CALCULADORA!$C$9,Tablas!B:B,Flujos!J21+1,FALSE) -> 0.01373559 | D21: 67.370661 | E21: 1.373559 | F21: =ROUND(D20*ROUND(((1+CALCULADORA!$C$16)^(1/12)-1),6),6) -> 0.337878 | G21: 1.711437 | H21: =IF($B21=0,0,G21/POWER(1+CALCULADORA!$C$29,Flujos!$B21/365)) -> 0 | I21: 2023-01-24 | J21: 19 | K21: =+DIAS365($A$2,A21) -> 579 | L21: 1.957117702e+11 | M21: 3990188895 | N21: 981535129 | O21: 4971724024
A22: 2023-02-24 | B22: =IF(DIAS365(CALCULADORA!$C$27,A22)<0,0,DIAS365(CALCULADORA!$C$27,A22)) -> 0 | C22: =+HLOOKUP(CALCULADORA!$C$9,Tablas!B:B,Flujos!J22+1,FALSE) -> 0.01440303 | D22: =+ROUND(D21-E22,6) -> 65.930358 | E22: 1.440303 | F22: =ROUND(D21*ROUND(((1+CALCULADORA!$C$16)^(1/12)-1),6),6) -> 0.331127 | G22: 1.77143 | H22: =IF($B22=0,0,G22/POWER(1+CALCULADORA!$C$29,Flujos!$B22/365)) -> 0 | I22: 2023-02-24 | J22: 20 | K22: =+DIAS365($A$2,A22) -> 610 | L22: 1.9152769e+11 | M22: 4184080215 | N22: 961923350.6 | O22: 5146003566
A23: 2023-03-24 | B23: =IF(DIAS365(CALCULADORA!$C$27,A23)<0,0,DIAS365(CALCULADORA!$C$27,A23)) -> 0 | C23: =+HLOOKUP(CALCULADORA!$C$9,Tablas!B:B,Flujos!J23+1,FALSE) -> 0.01222623 | D23: 64.707735 | E23: 1.222623 | F23: =ROUND(D22*ROUND(((1+CALCULADORA!$C$16)^(1/12)-1),6),6) -> 0.324048 | G23: 1.546671 | H23: =IF($B23=0,0,G23/POWER(1+CALCULADORA!$C$29,Flujos!$B23/365)) -> 0 | I23: 2023-03-24 | J23: 21 | K23: =+DIAS365($A$2,A23) -> 638 | L23: 1.879759702e+11 | M23: 3551719815 | N23: 941358596.3 | O23: 4493078411
A24: 2023-04-24 | B24: =IF(DIAS365(CALCULADORA!$C$27,A24)<0,0,DIAS365(CALCULADORA!$C$27,A24)) -> 0 | C24: =+HLOOKUP(CALCULADORA!$C$9,Tablas!B:B,Flujos!J24+1,FALSE) -> 0.01260328 | D24: 63.447407 | E24: 1.260328 | F24: =ROUND(D23*ROUND(((1+CALCULADORA!$C$16)^(1/12)-1),6),6) -> 0.318039 | G24: 1.578367 | H24: =IF($B24=0,0,G24/POWER(1+CALCULADORA!$C$29,Flujos!$B24/365)) -> 0 | I24: 2023-04-24 | J24: 22 | K24: =+DIAS365($A$2,A24) -> 669 | L24: 1.843147173e+11 | M24: 3661252840 | N24: 923901893.4 | O24: 4585154733
A25: 2023-05-24 | B25: =IF(DIAS365(CALCULADORA!$C$27,A25)<0,0,DIAS365(CALCULADORA!$C$27,A25)) -> 0 | C25: =+HLOOKUP(CALCULADORA!$C$9,Tablas!B:B,Flujos!J25+1,FALSE) -> 0.01062882 | D25: 62.384525 | E25: 1.062882 | F25: =ROUND(D24*ROUND(((1+CALCULADORA!$C$16)^(1/12)-1),6),6) -> 0.311844 | G25: 1.374726 | H25: =IF($B25=0,0,G25/POWER(1+CALCULADORA!$C$29,Flujos!$B25/365)) -> 0 | I25: 2023-05-24 | J25: 23 | K25: =+DIAS365($A$2,A25) -> 699 | L25: 1.812270451e+11 | M25: 3087672210 | N25: 905906835.7 | O25: 3993579046
A26: 2023-06-24 | B26: =IF(DIAS365(CALCULADORA!$C$27,A26)<0,0,DIAS365(CALCULADORA!$C$27,A26)) -> 0 | C26: =+HLOOKUP(CALCULADORA!$C$9,Tablas!B:B,Flujos!J26+1,FALSE) -> 0.00970835 | D26: 61.41369 | E26: 0.970835 | F26: =ROUND(D25*ROUND(((1+CALCULADORA!$C$16)^(1/12)-1),6),6) -> 0.30662 | G26: 1.277455 | H26: =IF($B26=0,0,G26/POWER(1+CALCULADORA!$C$29,Flujos!$B26/365)) -> 0 | I26: 2023-06-24 | J26: 24 | K26: =+DIAS365($A$2,A26) -> 730 | L26: 1.784067694e+11 | M26: 2820275675 | N26: 890730926.8 | O26: 3711006602
A27: 2023-07-24 | B27: =IF(DIAS365(CALCULADORA!$C$27,A27)<0,0,DIAS365(CALCULADORA!$C$27,A27)) -> 0 | C27: =+HLOOKUP(CALCULADORA!$C$9,Tablas!B:B,Flujos!J27+1,FALSE) -> 0.00918628 | D27: 60.495062 | E27: 0.918628 | F27: =ROUND(D26*ROUND(((1+CALCULADORA!$C$16)^(1/12)-1),6),6) -> 0.301848 | G27: 1.220476 | H27: =IF($B27=0,0,G27/POWER(1+CALCULADORA!$C$29,Flujos!$B27/365)) -> 0 | I27: 2023-07-24 | J27: 25 | K27: =+DIAS365($A$2,A27) -> 760 | L27: 1.757381551e+11 | M27: 2668614340 | N27: 876869271.8 | O27: 3545483612
A28: 2023-08-24 | B28: =IF(DIAS365(CALCULADORA!$C$27,A28)<0,0,DIAS365(CALCULADORA!$C$27,A28)) -> 0 | C28: =+HLOOKUP(CALCULADORA!$C$9,Tablas!B:B,Flujos!J28+1,FALSE) -> 0.01352611 | D28: 59.142451 | E28: 1.352611 | F28: =ROUND(D27*ROUND(((1+CALCULADORA!$C$16)^(1/12)-1),6),6) -> 0.297333 | G28: 1.649944 | H28: =IF($B28=0,0,G28/POWER(1+CALCULADORA!$C$29,Flujos!$B28/365)) -> 0 | I28: 2023-08-24 | J28: 26 | K28: =+DIAS365($A$2,A28) -> 791 | L28: 1.718088202e+11 | M28: 3929334955 | N28: 863753032.4 | O28: 4793087987
A29: 2023-09-24 | B29: =IF(DIAS365(CALCULADORA!$C$27,A29)<0,0,DIAS365(CALCULADORA!$C$27,A29)) -> 0 | C29: =+HLOOKUP(CALCULADORA!$C$9,Tablas!B:B,Flujos!J29+1,FALSE) -> 0.01143474 | D29: 57.998977 | E29: 1.143474 | F29: =ROUND(D28*ROUND(((1+CALCULADORA!$C$16)^(1/12)-1),6),6) -> 0.290685 | G29: 1.434159 | H29: =IF($B29=0,0,G29/POWER(1+CALCULADORA!$C$29,Flujos!$B29/365)) -> 0 | I29: 2023-09-24 | J29: 27 | K29: =+DIAS365($A$2,A29) -> 822 | L29: 1.684870282e+11 | M29: 3321791970 | N29: 844440351.1 | O29: 4166232321
A30: 2023-10-24 | B30: =IF(DIAS365(CALCULADORA!$C$27,A30)<0,0,DIAS365(CALCULADORA!$C$27,A30)) -> 0 | C30: =+HLOOKUP(CALCULADORA!$C$9,Tablas!B:B,Flujos!J30+1,FALSE) -> 0.00832034 | D30: 57.166943 | E30: 0.832034 | F30: =ROUND(D29*ROUND(((1+CALCULADORA!$C$16)^(1/12)-1),6),6) -> 0.285065 | G30: 1.117099 | H30: =IF($B30=0,0,G30/POWER(1+CALCULADORA!$C$29,Flujos!$B30/365)) -> 0 | I30: 2023-10-24 | J30: 28 | K30: =+DIAS365($A$2,A30) -> 852 | L30: 1.660699694e+11 | M30: 2417058770 | N30: 828113743.5 | O30: 3245172514
A31: 2023-11-24 | B31: =IF(DIAS365(CALCULADORA!$C$27,A31)<0,0,DIAS365(CALCULADORA!$C$27,A31)) -> 0 | C31: =+HLOOKUP(CALCULADORA!$C$9,Tablas!B:B,Flujos!J31+1,FALSE) -> 0.01294797 | D31: 55.872146 | E31: 1.294797 | F31: =ROUND(D30*ROUND(((1+CALCULADORA!$C$16)^(1/12)-1),6),6) -> 0.280976 | G31: 1.575773 | H31: =IF($B31=0,0,G31/POWER(1+CALCULADORA!$C$29,Flujos!$B31/365)) -> 0 | I31: 2023-11-24 | J31: 29 | K31: =+DIAS365($A$2,A31) -> 883 | L31: 1.623085841e+11 | M31: 3761385285 | N31: 816233899.7 | O31: 4577619185
A32: 2023-12-24 | B32: =IF(DIAS365(CALCULADORA!$C$27,A32)<0,0,DIAS365(CALCULADORA!$C$27,A32)) -> 0 | C32: =+HLOOKUP(CALCULADORA!$C$9,Tablas!B:B,Flujos!J32+1,FALSE) -> 0.0092125 | D32: 54.950896 | E32: 0.92125 | F32: =ROUND(D31*ROUND(((1+CALCULADORA!$C$16)^(1/12)-1),6),6) -> 0.274612 | G32: 1.195862 | H32: =IF($B32=0,0,G32/POWER(1+CALCULADORA!$C$29,Flujos!$B32/365)) -> 0 | I32: 2023-12-24 | J32: 30 | K32: =+DIAS365($A$2,A32) -> 913 | L32: 1.596323529e+11 | M32: 2676231250 | N32: 797746691 | O32: 3473977941
A33: 2024-01-24 | B33: =IF(DIAS365(CALCULADORA!$C$27,A33)<0,0,DIAS365(CALCULADORA!$C$27,A33)) -> 0 | C33: =+HLOOKUP(CALCULADORA!$C$9,Tablas!B:B,Flujos!J33+1,FALSE) -> 0.01153683 | D33: 53.797213 | E33: 1.153683 | F33: =ROUND(D32*ROUND(((1+CALCULADORA!$C$16)^(1/12)-1),6),6) -> 0.270084 | G33: 1.423767 | H33: =IF($B33=0,0,G33/POWER(1+CALCULADORA!$C$29,Flujos!$B33/365)) -> 0 | I33: 2024-01-24 | J33: 31 | K33: =+DIAS365($A$2,A33) -> 944 | L33: 1.562809038e+11 | M33: 3351449115 | N33: 784593014.4 | O33: 4136042129
A34: 2024-02-24 | B34: =IF(DIAS365(CALCULADORA!$C$27,A34)<0,0,DIAS365(CALCULADORA!$C$27,A34)) -> 0 | C34: =+HLOOKUP(CALCULADORA!$C$9,Tablas!B:B,Flujos!J34+1,FALSE) -> 0.01028062 | D34: 52.769151 | E34: 1.028062 | F34: =ROUND(D33*ROUND(((1+CALCULADORA!$C$16)^(1/12)-1),6),6) -> 0.264413 | G34: 1.292475 | H34: =IF($B34=0,0,G34/POWER(1+CALCULADORA!$C$29,Flujos!$B34/365)) -> 0 | I34: 2024-02-24 | J34: 32 | K34: =+DIAS365($A$2,A34) -> 975 | L34: 1.532943837e+11 | M34: 2986520110 | N34: 768120642 | O34: 3754640752
A35: =EDATE(A34,1) -> 2024-03-24 | B35: =IF(DIAS365(CALCULADORA!$C$27,A35)<0,0,DIAS365(CALCULADORA!$C$27,A35)) -> 0 | C35: =+HLOOKUP(CALCULADORA!$C$9,Tablas!B:B,Flujos!J35+1,FALSE) -> 0.0088502 | D35: 51.884131 | E35: 0.88502 | F35: =ROUND(D34*ROUND(((1+CALCULADORA!$C$16)^(1/12)-1),6),6) -> 0.25936 | G35: 1.14438 | H35: =IF($B35=0,0,G35/POWER(1+CALCULADORA!$C$29,Flujos!$B35/365)) -> 0 | I35: 2024-03-24 | J35: 33 | K35: =+DIAS365($A$2,A35) -> 1003 | L35: 1.507234006e+11 | M35: 2570983100 | N35: 753441895.7 | O35: 3324424996
A36: 2024-04-24 | B36: =IF(DIAS365(CALCULADORA!$C$27,A36)<0,0,DIAS365(CALCULADORA!$C$27,A36)) -> 23 | C36: =+HLOOKUP(CALCULADORA!$C$9,Tablas!B:B,Flujos!J36+1,FALSE) -> 0.01112976 | D36: 50.771155 | E36: 1.112976 | F36: =ROUND(D35*ROUND(((1+CALCULADORA!$C$16)^(1/12)-1),6),6) -> 0.255011 | G36: 1.367987 | H36: =IF($B36=0,0,G36/POWER(1+CALCULADORA!$C$29,Flujos!$B36/365)) -> 1.359097668 | I36: 2024-04-24 | J36: 34 | K36: =+DIAS365($A$2,A36) -> 1034 | L36: 1.474902053e+11 | M36: 3233195280 | N36: 740805513.7 | O36: 3974000794
A37: 2024-05-24 | B37: =IF(DIAS365(CALCULADORA!$C$27,A37)<0,0,DIAS365(CALCULADORA!$C$27,A37)) -> 53 | C37: =+HLOOKUP(CALCULADORA!$C$9,Tablas!B:B,Flujos!J37+1,FALSE) -> 0.00934304 | D37: 49.836851 | E37: 0.934304 | F37: =ROUND(D36*ROUND(((1+CALCULADORA!$C$16)^(1/12)-1),6),6) -> 0.24954 | G37: 1.183844 | H37: =IF($B37=0,0,G37/POWER(1+CALCULADORA!$C$29,Flujos!$B37/365)) -> 1.166192303 | I37: 2024-05-24 | J37: 35 | K37: =+DIAS365($A$2,A37) -> 1064 | L37: 1.447760522e+11 | M37: 2714153120 | N37: 724914358.9 | O37: 3439067479
A38: 2024-06-24 | B38: =IF(DIAS365(CALCULADORA!$C$27,A38)<0,0,DIAS365(CALCULADORA!$C$27,A38)) -> 84 | C38: =+HLOOKUP(CALCULADORA!$C$9,Tablas!B:B,Flujos!J38+1,FALSE) -> 0.00906709 | D38: 48.930142 | E38: 0.906709 | F38: =ROUND(D37*ROUND(((1+CALCULADORA!$C$16)^(1/12)-1),6),6) -> 0.244948 | G38: 1.151657 | H38: =IF($B38=0,0,G38/POWER(1+CALCULADORA!$C$29,Flujos!$B38/365)) -> 1.124560283 | I38: 2024-06-24 | J38: 36 | K38: =+DIAS365($A$2,A38) -> 1095 | L38: 1.421420625e+11 | M38: 2633989645 | N38: 711574296.3 | O38: 3345563941
A39: 2024-07-24 | B39: =IF(DIAS365(CALCULADORA!$C$27,A39)<0,0,DIAS365(CALCULADORA!$C$27,A39)) -> 114 | C39: =+HLOOKUP(CALCULADORA!$C$9,Tablas!B:B,Flujos!J39+1,FALSE) -> 0.00920471 | D39: 48.009671 | E39: 0.920471 | F39: =ROUND(D38*ROUND(((1+CALCULADORA!$C$16)^(1/12)-1),6),6) -> 0.240492 | G39: 1.160963 | H39: =IF($B39=0,0,G39/POWER(1+CALCULADORA!$C$29,Flujos!$B39/365)) -> 1.124048278 | I39: 2024-07-24 | J39: 37 | K39: =+DIAS365($A$2,A39) -> 1125 | L39: 1.394680943e+11 | M39: 2673968255 | N39: 698628237.2 | O39: 3372596492
A40: 2024-08-24 | B40: =IF(DIAS365(CALCULADORA!$C$27,A40)<0,0,DIAS365(CALCULADORA!$C$27,A40)) -> 145 | C40: =+HLOOKUP(CALCULADORA!$C$9,Tablas!B:B,Flujos!J40+1,FALSE) -> 0.00909141 | D40: =+ROUND(D39-E40,6) -> 47.10053 | E40: =ROUND(C40*$D$2,6) -> 0.909141 | F40: =ROUND(D39*ROUND(((1+CALCULADORA!$C$16)^(1/12)-1),6),6) -> 0.235968 | G40: =F40+E40 -> 1.145109 | H40: =IF($B40=0,0,G40/POWER(1+CALCULADORA!$C$29,Flujos!$B40/365)) -> 1.098999031 | I40: =+A40 -> 2024-08-24 | J40: 38 | K40: =+DIAS365($A$2,A40) -> 1156 | L40: 1.368270396e+11 | M40: 2641054605 | N40: 685485683.3 | O40: 3326540288
A41: 2024-09-24 | B41: =IF(DIAS365(CALCULADORA!$C$27,A41)<0,0,DIAS365(CALCULADORA!$C$27,A41)) -> 176 | C41: =+HLOOKUP(CALCULADORA!$C$9,Tablas!B:B,Flujos!J41+1,FALSE) -> 0.00904585 | D41: 46.195945 | E41: 0.904585 | F41: =ROUND(D40*ROUND(((1+CALCULADORA!$C$16)^(1/12)-1),6),6) -> 0.231499 | G41: 1.136084 | H41: =IF($B41=0,0,G41/POWER(1+CALCULADORA!$C$29,Flujos!$B41/365)) -> 1.080798719 | I41: 2024-09-24 | J41: 39 | K41: =+DIAS365($A$2,A41) -> 1187 | L41: 1.341992202e+11 | M41: 2627819425 | N41: 672504899.9 | O41: 3300324325
A42: 2024-10-24 | B42: =IF(DIAS365(CALCULADORA!$C$27,A42)<0,0,DIAS365(CALCULADORA!$C$27,A42)) -> 206 | C42: =+HLOOKUP(CALCULADORA!$C$9,Tablas!B:B,Flujos!J42+1,FALSE) -> 0.00894795 | D42: 45.30115 | E42: 0.894795 | F42: =ROUND(D41*ROUND(((1+CALCULADORA!$C$16)^(1/12)-1),6),6) -> 0.227053 | G42: 1.121848 | H42: =IF($B42=0,0,G42/POWER(1+CALCULADORA!$C$29,Flujos!$B42/365)) -> 1.058218603 | I42: 2024-10-24 | J42: 40 | K42: =+DIAS365($A$2,A42) -> 1217 | L42: 1.315998407e+11 | M42: 2599379475 | N42: 659589167.4 | O42: 3258968642
A43: 2024-11-24 | B43: =IF(DIAS365(CALCULADORA!$C$27,A43)<0,0,DIAS365(CALCULADORA!$C$27,A43)) -> 237 | C43: =+HLOOKUP(CALCULADORA!$C$9,Tablas!B:B,Flujos!J43+1,FALSE) -> 0.00883726 | D43: 44.417424 | E43: 0.883726 | F43: =ROUND(D42*ROUND(((1+CALCULADORA!$C$16)^(1/12)-1),6),6) -> 0.222655 | G43: 1.106381 | H43: =IF($B43=0,0,G43/POWER(1+CALCULADORA!$C$29,Flujos!$B43/365)) -> 1.034498771 | I43: 2024-11-24 | J43: 41 | K43: =+DIAS365($A$2,A43) -> 1248 | L43: 1.290326167e+11 | M43: 2567224030 | N43: 646813217.3 | O43: 3214037247
A44: 2024-12-24 | B44: =IF(DIAS365(CALCULADORA!$C$27,A44)<0,0,DIAS365(CALCULADORA!$C$27,A44)) -> 267 | C44: =+HLOOKUP(CALCULADORA!$C$9,Tablas!B:B,Flujos!J44+1,FALSE) -> 0.00875565 | D44: 43.541859 | E44: 0.875565 | F44: =ROUND(D43*ROUND(((1+CALCULADORA!$C$16)^(1/12)-1),6),6) -> 0.218312 | G44: 1.093877 | H44: =IF($B44=0,0,G44/POWER(1+CALCULADORA!$C$29,Flujos!$B44/365)) -> 1.014146642 | I44: 2024-12-24 | J44: 42 | K44: =+DIAS365($A$2,A44) -> 1278 | L44: 1.264891004e+11 | M44: 2543516325 | N44: 634195311.2 | O44: 3177711636
A45: 2025-01-24 | B45: =IF(DIAS365(CALCULADORA!$C$27,A45)<0,0,DIAS365(CALCULADORA!$C$27,A45)) -> 298 | C45: =+HLOOKUP(CALCULADORA!$C$9,Tablas!B:B,Flujos!J45+1,FALSE) -> 0.00867714 | D45: 42.674145 | E45: 0.867714 | F45: =ROUND(D44*ROUND(((1+CALCULADORA!$C$16)^(1/12)-1),6),6) -> 0.214008 | G45: 1.081722 | H45: =IF($B45=0,0,G45/POWER(1+CALCULADORA!$C$29,Flujos!$B45/365)) -> 0.994104008 | I45: 2025-01-24 | J45: 43 | K45: =+DIAS365($A$2,A45) -> 1309 | L45: 1.239683912e+11 | M45: 2520709170 | N45: 621693928.4 | O45: 3142403098
A46: 2025-02-24 | B46: =IF(DIAS365(CALCULADORA!$C$27,A46)<0,0,DIAS365(CALCULADORA!$C$27,A46)) -> 329 | C46: =+HLOOKUP(CALCULADORA!$C$9,Tablas!B:B,Flujos!J46+1,FALSE) -> 0.00860862 | D46: 41.813283 | E46: 0.860862 | F46: =ROUND(D45*ROUND(((1+CALCULADORA!$C$16)^(1/12)-1),6),6) -> 0.209743 | G46: 1.070605 | H46: =IF($B46=0,0,G46/POWER(1+CALCULADORA!$C$29,Flujos!$B46/365)) -> 0.9752800168 | I46: 2025-02-24 | J46: 44 | K46: =+DIAS365($A$2,A46) -> 1340 | L46: 1.214675871e+11 | M46: 2500804110 | N46: 609304642.9 | O46: 3110108753
A47: 2025-03-24 | B47: =IF(DIAS365(CALCULADORA!$C$27,A47)<0,0,DIAS365(CALCULADORA!$C$27,A47)) -> 357 | C47: =+HLOOKUP(CALCULADORA!$C$9,Tablas!B:B,Flujos!J47+1,FALSE) -> 0.00853589 | D47: 40.959694 | E47: 0.853589 | F47: =ROUND(D46*ROUND(((1+CALCULADORA!$C$16)^(1/12)-1),6),6) -> 0.205512 | G47: 1.059101 | H47: =IF($B47=0,0,G47/POWER(1+CALCULADORA!$C$29,Flujos!$B47/365)) -> 0.9571734264 | I47: 2025-03-24 | J47: 45 | K47: =+DIAS365($A$2,A47) -> 1368 | L47: 1.189879111e+11 | M47: 2479676045 | N47: 597013190.7 | O47: 3076689236
A48: 2025-04-24 | B48: =IF(DIAS365(CALCULADORA!$C$27,A48)<0,0,DIAS365(CALCULADORA!$C$27,A48)) -> 388 | C48: =+HLOOKUP(CALCULADORA!$C$9,Tablas!B:B,Flujos!J48+1,FALSE) -> 0.00846367 | D48: 40.113327 | E48: 0.846367 | F48: =ROUND(D47*ROUND(((1+CALCULADORA!$C$16)^(1/12)-1),6),6) -> 0.201317 | G48: 1.047684 | H48: =IF($B48=0,0,G48/POWER(1+CALCULADORA!$C$29,Flujos!$B48/365)) -> 0.9385717158 | I48: 2025-04-24 | J48: 46 | K48: =+DIAS365($A$2,A48) -> 1399 | L48: 1.165292149e+11 | M48: 2458696135 | N48: 584825582.9 | O48: 3043521718
A49: 2025-05-24 | B49: =IF(DIAS365(CALCULADORA!$C$27,A49)<0,0,DIAS365(CALCULADORA!$C$27,A49)) -> 418 | C49: =+HLOOKUP(CALCULADORA!$C$9,Tablas!B:B,Flujos!J49+1,FALSE) -> 0.00841182 | D49: 39.272145 | E49: 0.841182 | F49: =ROUND(D48*ROUND(((1+CALCULADORA!$C$16)^(1/12)-1),6),6) -> 0.197157 | G49: 1.038339 | H49: =IF($B49=0,0,G49/POWER(1+CALCULADORA!$C$29,Flujos!$B49/365)) -> 0.9223235835 | I49: 2025-05-24 | J49: 47 | K49: =+DIAS365($A$2,A49) -> 1429 | L49: 1.140855812e+11 | M49: 2443633710 | N49: 572741091.4 | O49: 3016374801
A50: 2025-06-24 | B50: =IF(DIAS365(CALCULADORA!$C$27,A50)<0,0,DIAS365(CALCULADORA!$C$27,A50)) -> 449 | C50: =+HLOOKUP(CALCULADORA!$C$9,Tablas!B:B,Flujos!J50+1,FALSE) -> 0.00810601 | D50: 38.461544 | E50: 0.810601 | F50: =ROUND(D49*ROUND(((1+CALCULADORA!$C$16)^(1/12)-1),6),6) -> 0.193023 | G50: 1.003624 | H50: =IF($B50=0,0,G50/POWER(1+CALCULADORA!$C$29,Flujos!$B50/365)) -> 0.8836882521 | I50: 2025-06-24 | J50: 48 | K50: =+DIAS365($A$2,A50) -> 1460 | L50: 1.117307853e+11 | M50: 2354795905 | N50: 560730631.7 | O50: 2915526537
A51: 2025-07-24 | B51: =IF(DIAS365(CALCULADORA!$C$27,A51)<0,0,DIAS365(CALCULADORA!$C$27,A51)) -> 479 | C51: =+HLOOKUP(CALCULADORA!$C$9,Tablas!B:B,Flujos!J51+1,FALSE) -> 0.0082698 | D51: 37.634564 | E51: 0.82698 | F51: =ROUND(D50*ROUND(((1+CALCULADORA!$C$16)^(1/12)-1),6),6) -> 0.189038 | G51: 1.016018 | H51: =IF($B51=0,0,G51/POWER(1+CALCULADORA!$C$29,Flujos!$B51/365)) -> 0.8870261873 | I51: 2025-07-24 | J51: 49 | K51: =+DIAS365($A$2,A51) -> 1490 | L51: 1.093284084e+11 | M51: 2402376900 | N51: 549156809.8 | O51: 2951533710
A52: 2025-08-24 | B52: =IF(DIAS365(CALCULADORA!$C$27,A52)<0,0,DIAS365(CALCULADORA!$C$27,A52)) -> 510 | C52: =+HLOOKUP(CALCULADORA!$C$9,Tablas!B:B,Flujos!J52+1,FALSE) -> 0.00820553 | D52: 36.814011 | E52: 0.820553 | F52: =ROUND(D51*ROUND(((1+CALCULADORA!$C$16)^(1/12)-1),6),6) -> 0.184974 | G52: 1.005527 | H52: =IF($B52=0,0,G52/POWER(1+CALCULADORA!$C$29,Flujos!$B52/365)) -> 0.8701871626 | I52: 2025-08-24 | J52: 50 | K52: =+DIAS365($A$2,A52) -> 1521 | L52: 1.06944702e+11 | M52: 2383706465 | N52: 537349127.4 | O52: 2921055592
A53: 2025-09-24 | B53: =IF(DIAS365(CALCULADORA!$C$27,A53)<0,0,DIAS365(CALCULADORA!$C$27,A53)) -> 541 | C53: =+HLOOKUP(CALCULADORA!$C$9,Tablas!B:B,Flujos!J53+1,FALSE) -> 0.00815747 | D53: 35.998264 | E53: 0.815747 | F53: =ROUND(D52*ROUND(((1+CALCULADORA!$C$16)^(1/12)-1),6),6) -> 0.180941 | G53: 0.996688 | H53: =IF($B53=0,0,G53/POWER(1+CALCULADORA!$C$29,Flujos!$B53/365)) -> 0.8549920195 | I53: 2025-09-24 | J53: 51 | K53: =+DIAS365($A$2,A53) -> 1552 | L53: 1.045749569e+11 | M53: 2369745035 | N53: 525633210.1 | O53: 2895378245
A54: 2025-10-24 | B54: =IF(DIAS365(CALCULADORA!$C$27,A54)<0,0,DIAS365(CALCULADORA!$C$27,A54)) -> 571 | C54: =+HLOOKUP(CALCULADORA!$C$9,Tablas!B:B,Flujos!J54+1,FALSE) -> 0.00806379 | D54: 35.191885 | E54: 0.806379 | F54: =ROUND(D53*ROUND(((1+CALCULADORA!$C$16)^(1/12)-1),6),6) -> 0.176931 | G54: 0.98331 | H54: =IF($B54=0,0,G54/POWER(1+CALCULADORA!$C$29,Flujos!$B54/365)) -> 0.8363735378 | I54: 2025-10-24 | J54: 52 | K54: =+DIAS365($A$2,A54) -> 1582 | L54: 1.022324259e+11 | M54: 2342530995 | N54: 513985913.3 | O54: 2856516908
A55: 2025-11-24 | B55: =IF(DIAS365(CALCULADORA!$C$27,A55)<0,0,DIAS365(CALCULADORA!$C$27,A55)) -> 602 | C55: =+HLOOKUP(CALCULADORA!$C$9,Tablas!B:B,Flujos!J55+1,FALSE) -> 0.00801831 | D55: 34.390054 | E55: 0.801831 | F55: =ROUND(D54*ROUND(((1+CALCULADORA!$C$16)^(1/12)-1),6),6) -> 0.172968 | G55: 0.974799 | H55: =IF($B55=0,0,G55/POWER(1+CALCULADORA!$C$29,Flujos!$B55/365)) -> 0.8218807317 | I55: 2025-11-24 | J55: 53 | K55: =+DIAS365($A$2,A55) -> 1613 | L55: 9.990310687e+10 | M55: 2329319055 | N55: 502472373.4 | O55: 2831791428
A56: 2025-12-24 | B56: =IF(DIAS365(CALCULADORA!$C$27,A56)<0,0,DIAS365(CALCULADORA!$C$27,A56)) -> 632 | C56: =+HLOOKUP(CALCULADORA!$C$9,Tablas!B:B,Flujos!J56+1,FALSE) -> 0.00794343 | D56: 33.595711 | E56: 0.794343 | F56: =ROUND(D55*ROUND(((1+CALCULADORA!$C$16)^(1/12)-1),6),6) -> 0.169027 | G56: 0.96337 | H56: =IF($B56=0,0,G56/POWER(1+CALCULADORA!$C$29,Flujos!$B56/365)) -> 0.8053670142 | I56: 2025-12-24 | J56: 54 | K56: =+DIAS365($A$2,A56) -> 1643 | L56: 9.759554045e+10 | M56: 2307566415 | N56: 491023770.3 | O56: 2798590185
A57: 2026-01-24 | B57: =IF(DIAS365(CALCULADORA!$C$27,A57)<0,0,DIAS365(CALCULADORA!$C$27,A57)) -> 663 | C57: =+HLOOKUP(CALCULADORA!$C$9,Tablas!B:B,Flujos!J57+1,FALSE) -> 0.00787578 | D57: 32.808133 | E57: 0.787578 | F57: =ROUND(D56*ROUND(((1+CALCULADORA!$C$16)^(1/12)-1),6),6) -> 0.165123 | G57: 0.952701 | H57: =IF($B57=0,0,G57/POWER(1+CALCULADORA!$C$29,Flujos!$B57/365)) -> 0.7894801905 | I57: 2026-01-24 | J57: 55 | K57: =+DIAS365($A$2,A57) -> 1674 | L57: 9.530762636e+10 | M57: 2287914090 | N57: 479682081.3 | O57: 2767596171
A58: 2026-02-24 | B58: =IF(DIAS365(CALCULADORA!$C$27,A58)<0,0,DIAS365(CALCULADORA!$C$27,A58)) -> 694 | C58: =+HLOOKUP(CALCULADORA!$C$9,Tablas!B:B,Flujos!J58+1,FALSE) -> 0.0077994 | D58: 32.028193 | E58: 0.77994 | F58: =ROUND(D57*ROUND(((1+CALCULADORA!$C$16)^(1/12)-1),6),6) -> 0.161252 | G58: 0.941192 | H58: =IF($B58=0,0,G58/POWER(1+CALCULADORA!$C$29,Flujos!$B58/365)) -> 0.7731196993 | I58: 2026-02-24 | J58: 56 | K58: =+DIAS365($A$2,A58) -> 1705 | L58: 9.304190066e+10 | M58: 2265725700 | N58: 468436983.6 | O58: 2734162684
A59: 2026-03-24 | B59: =IF(DIAS365(CALCULADORA!$C$27,A59)<0,0,DIAS365(CALCULADORA!$C$27,A59)) -> 722 | C59: =+HLOOKUP(CALCULADORA!$C$9,Tablas!B:B,Flujos!J59+1,FALSE) -> 0.00773079 | D59: 31.255114 | E59: 0.773079 | F59: =ROUND(D58*ROUND(((1+CALCULADORA!$C$16)^(1/12)-1),6),6) -> 0.157419 | G59: 0.930498 | H59: =IF($B59=0,0,G59/POWER(1+CALCULADORA!$C$29,Flujos!$B59/365)) -> 0.7582931847 | I59: 2026-03-24 | J59: 57 | K59: =+DIAS365($A$2,A59) -> 1733 | L59: 9.079610617e+10 | M59: 2245794495 | N59: 457300941.8 | O59: 2703095437
A60: 2026-04-24 | B60: =IF(DIAS365(CALCULADORA!$C$27,A60)<0,0,DIAS365(CALCULADORA!$C$27,A60)) -> 753 | C60: =+HLOOKUP(CALCULADORA!$C$9,Tablas!B:B,Flujos!J60+1,FALSE) -> 0.00769238 | D60: 30.485876 | E60: 0.769238 | F60: =ROUND(D59*ROUND(((1+CALCULADORA!$C$16)^(1/12)-1),6),6) -> 0.153619 | G60: 0.922857 | H60: =IF($B60=0,0,G60/POWER(1+CALCULADORA!$C$29,Flujos!$B60/365)) -> 0.7454868988 | I60: 2026-04-24 | J60: 58 | K60: =+DIAS365($A$2,A60) -> 1764 | L60: 8.856146978e+10 | M60: 2234636390 | N60: 446262861.8 | O60: 2680899252
A61: 2026-05-24 | B61: =IF(DIAS365(CALCULADORA!$C$27,A61)<0,0,DIAS365(CALCULADORA!$C$27,A61)) -> 783 | C61: =+HLOOKUP(CALCULADORA!$C$9,Tablas!B:B,Flujos!J61+1,FALSE) -> 0.00760898 | D61: 29.724978 | E61: 0.760898 | F61: =ROUND(D60*ROUND(((1+CALCULADORA!$C$16)^(1/12)-1),6),6) -> 0.149838 | G61: 0.910736 | H61: =IF($B61=0,0,G61/POWER(1+CALCULADORA!$C$29,Flujos!$B61/365)) -> 0.7294660847 | I61: 2026-05-24 | J61: 59 | K61: =+DIAS365($A$2,A61) -> 1794 | L61: 8.635106109e+10 | M61: 2210408690 | N61: 435279624 | O61: 2645688314
A62: 2026-06-24 | B62: =IF(DIAS365(CALCULADORA!$C$27,A62)<0,0,DIAS365(CALCULADORA!$C$27,A62)) -> 814 | C62: =+HLOOKUP(CALCULADORA!$C$9,Tablas!B:B,Flujos!J62+1,FALSE) -> 0.00732123 | D62: 28.992855 | E62: 0.732123 | F62: =ROUND(D61*ROUND(((1+CALCULADORA!$C$16)^(1/12)-1),6),6) -> 0.146098 | G62: 0.878221 | H62: =IF($B62=0,0,G62/POWER(1+CALCULADORA!$C$29,Flujos!$B62/365)) -> 0.6972689318 | I62: 2026-06-24 | J62: 60 | K62: =+DIAS365($A$2,A62) -> 1825 | L62: 8.422424377e+10 | M62: 2126817315 | N62: 424415465.3 | O62: 2551232780
A63: 2026-07-24 | B63: =IF(DIAS365(CALCULADORA!$C$27,A63)<0,0,DIAS365(CALCULADORA!$C$27,A63)) -> 844 | C63: =+HLOOKUP(CALCULADORA!$C$9,Tablas!B:B,Flujos!J63+1,FALSE) -> 0.00749566 | D63: 28.243289 | E63: 0.749566 | F63: =ROUND(D62*ROUND(((1+CALCULADORA!$C$16)^(1/12)-1),6),6) -> 0.1425 | G63: 0.892066 | H63: =IF($B63=0,0,G63/POWER(1+CALCULADORA!$C$29,Flujos!$B63/365)) -> 0.7022641205 | I63: 2026-07-24 | J63: 61 | K63: =+DIAS365($A$2,A63) -> 1855 | L63: 8.204675454e+10 | M63: 2177489230 | N63: 413962158.2 | O63: 2591451388
A64: 2026-08-24 | B64: =IF(DIAS365(CALCULADORA!$C$27,A64)<0,0,DIAS365(CALCULADORA!$C$27,A64)) -> 875 | C64: =+HLOOKUP(CALCULADORA!$C$9,Tablas!B:B,Flujos!J64+1,FALSE) -> 0.0074267 | D64: 27.500619 | E64: 0.74267 | F64: =ROUND(D63*ROUND(((1+CALCULADORA!$C$16)^(1/12)-1),6),6) -> 0.138816 | G64: 0.881486 | H64: =IF($B64=0,0,G64/POWER(1+CALCULADORA!$C$29,Flujos!$B64/365)) -> 0.6878643605 | I64: 2026-08-24 | J64: 62 | K64: =+DIAS365($A$2,A64) -> 1886 | L64: 7.988929819e+10 | M64: 2157456350 | N64: 403259798.6 | O64: 2560716149
A65: 2026-09-24 | B65: =IF(DIAS365(CALCULADORA!$C$27,A65)<0,0,DIAS365(CALCULADORA!$C$27,A65)) -> 906 | C65: =+HLOOKUP(CALCULADORA!$C$9,Tablas!B:B,Flujos!J65+1,FALSE) -> 0.00736374 | D65: 26.764245 | E65: 0.736374 | F65: =ROUND(D64*ROUND(((1+CALCULADORA!$C$16)^(1/12)-1),6),6) -> 0.135166 | G65: 0.87154 | H65: =IF($B65=0,0,G65/POWER(1+CALCULADORA!$C$29,Flujos!$B65/365)) -> 0.6741532144 | I65: 2026-09-24 | J65: 63 | K65: =+DIAS365($A$2,A65) -> 1917 | L65: 7.775013172e+10 | M65: 2139166470 | N65: 392655900.6 | O65: 2531822371
A66: 2026-10-24 | B66: =IF(DIAS365(CALCULADORA!$C$27,A66)<0,0,DIAS365(CALCULADORA!$C$27,A66)) -> 936 | C66: =+HLOOKUP(CALCULADORA!$C$9,Tablas!B:B,Flujos!J66+1,FALSE) -> 0.00729947 | D66: 26.034298 | E66: 0.729947 | F66: =ROUND(D65*ROUND(((1+CALCULADORA!$C$16)^(1/12)-1),6),6) -> 0.131546 | G66: 0.861493 | H66: =IF($B66=0,0,G66/POWER(1+CALCULADORA!$C$29,Flujos!$B66/365)) -> 0.6607391413 | I66: 2026-10-24 | J66: 64 | K66: =+DIAS365($A$2,A66) -> 1947 | L66: 7.562963569e+10 | M66: 2120496035 | N66: 382141897.4 | O66: 2502637932
A67: =EDATE(A66,1) -> 2026-11-24 | B67: =IF(DIAS365(CALCULADORA!$C$27,A67)<0,0,DIAS365(CALCULADORA!$C$27,A67)) -> 967 | C67: =+HLOOKUP(CALCULADORA!$C$9,Tablas!B:B,Flujos!J67+1,FALSE) -> 0.00724929 | D67: 25.309369 | E67: 0.724929 | F67: =ROUND(D66*ROUND(((1+CALCULADORA!$C$16)^(1/12)-1),6),6) -> 0.127959 | G67: 0.852888 | H67: =IF($B67=0,0,G67/POWER(1+CALCULADORA!$C$29,Flujos!$B67/365)) -> 0.6484166853 | I67: =+A67 -> 2026-11-24 | J67: 65 | K67: =+DIAS365($A$2,A67) -> 1978 | L67: 7.352371694e+10 | M67: 2105918745 | N67: 371719659.4 | O67: 2477638404
A68: 2026-12-24 | B68: =IF(DIAS365(CALCULADORA!$C$27,A68)<0,0,DIAS365(CALCULADORA!$C$27,A68)) -> 997 | C68: =+HLOOKUP(CALCULADORA!$C$9,Tablas!B:B,Flujos!J68+1,FALSE) -> 0.00718226 | D68: =+ROUND(D67-E68,6) -> 24.591143 | E68: =ROUND(C68*$D$2,6) -> 0.718226 | F68: =ROUND(D67*ROUND(((1+CALCULADORA!$C$16)^(1/12)-1),6),6) -> 0.124396 | G68: =F68+E68 -> 0.842622 | H68: =IF($B68=0,0,G68/POWER(1+CALCULADORA!$C$29,Flujos!$B68/365)) -> 0.6351875365 | I68: 2026-12-24 | J68: 66 | K68: =+DIAS365($A$2,A68) -> 2008 | L68: =+L67-M68 -> 7.143727041e+10 | M68: =+$L$2*C68 -> 2086446530 | N68: =+L67*$F$3% -> 361369068.8 | O68: =+N68+M68 -> 2447815599
A69: 2027-01-24 | B69: =IF(DIAS365(CALCULADORA!$C$27,A69)<0,0,DIAS365(CALCULADORA!$C$27,A69)) -> 1028 | C69: =+HLOOKUP(CALCULADORA!$C$9,Tablas!B:B,Flujos!J69+1,FALSE) -> 0.0071308 | D69: 23.878063 | E69: 0.71308 | F69: =ROUND(D68*ROUND(((1+CALCULADORA!$C$16)^(1/12)-1),6),6) -> 0.120865 | G69: 0.833945 | H69: =IF($B69=0,0,G69/POWER(1+CALCULADORA!$C$29,Flujos!$B69/365)) -> 0.6231469579 | I69: 2027-01-24 | J69: 67 | K69: =+DIAS365($A$2,A69) -> 2039 | L69: 6.936577301e+10 | M69: 2071497400 | N69: 351114184.1 | O69: 2422611584
A70: 2027-02-24 | B70: =IF(DIAS365(CALCULADORA!$C$27,A70)<0,0,DIAS365(CALCULADORA!$C$27,A70)) -> 1059 | C70: =+HLOOKUP(CALCULADORA!$C$9,Tablas!B:B,Flujos!J70+1,FALSE) -> 0.00706607 | D70: 23.171456 | E70: 0.706607 | F70: =ROUND(D69*ROUND(((1+CALCULADORA!$C$16)^(1/12)-1),6),6) -> 0.117361 | G70: 0.823968 | H70: =IF($B70=0,0,G70/POWER(1+CALCULADORA!$C$29,Flujos!$B70/365)) -> 0.6103055392 | I70: 2027-02-24 | J70: 68 | K70: =+DIAS365($A$2,A70) -> 2070 | L70: 6.731307968e+10 | M70: 2052693335 | N70: 340932774.4 | O70: 2393626109
A71: 2027-03-24 | B71: =IF(DIAS365(CALCULADORA!$C$27,A71)<0,0,DIAS365(CALCULADORA!$C$27,A71)) -> 1087 | C71: =+HLOOKUP(CALCULADORA!$C$9,Tablas!B:B,Flujos!J71+1,FALSE) -> 0.00701314 | D71: 22.470142 | E71: 0.701314 | F71: =ROUND(D70*ROUND(((1+CALCULADORA!$C$16)^(1/12)-1),6),6) -> 0.113888 | G71: 0.815202 | H71: =IF($B71=0,0,G71/POWER(1+CALCULADORA!$C$29,Flujos!$B71/365)) -> 0.5990394156 | I71: 2027-03-24 | J71: 69 | K71: =+DIAS365($A$2,A71) -> 2098 | L71: 6.527576251e+10 | M71: 2037317170 | N71: 330843786.6 | O71: 2368160957
A72: 2027-04-24 | B72: =IF(DIAS365(CALCULADORA!$C$27,A72)<0,0,DIAS365(CALCULADORA!$C$27,A72)) -> 1118 | C72: =+HLOOKUP(CALCULADORA!$C$9,Tablas!B:B,Flujos!J72+1,FALSE) -> 0.00694584 | D72: 21.775558 | E72: 0.694584 | F72: =ROUND(D71*ROUND(((1+CALCULADORA!$C$16)^(1/12)-1),6),6) -> 0.110441 | G72: 0.805025 | H72: =IF($B72=0,0,G72/POWER(1+CALCULADORA!$C$29,Flujos!$B72/365)) -> 0.5863857749 | I72: 2027-04-24 | J72: 70 | K72: =+DIAS365($A$2,A72) -> 2129 | L72: 6.325799599e+10 | M72: 2017766520 | N72: 320830372.7 | O72: 2338596893
A73: 2027-05-24 | B73: =IF(DIAS365(CALCULADORA!$C$27,A73)<0,0,DIAS365(CALCULADORA!$C$27,A73)) -> 1148 | C73: =+HLOOKUP(CALCULADORA!$C$9,Tablas!B:B,Flujos!J73+1,FALSE) -> 0.00688209 | D73: 21.087349 | E73: 0.688209 | F73: =ROUND(D72*ROUND(((1+CALCULADORA!$C$16)^(1/12)-1),6),6) -> 0.107027 | G73: 0.795236 | H73: =IF($B73=0,0,G73/POWER(1+CALCULADORA!$C$29,Flujos!$B73/365)) -> 0.5743506105 | I73: 2027-05-24 | J73: 71 | K73: =+DIAS365($A$2,A73) -> 2159 | L73: 6.125874884e+10 | M73: 1999247145 | N73: 310913050.3 | O73: 2310160195
A74: 2027-06-24 | B74: =IF(DIAS365(CALCULADORA!$C$27,A74)<0,0,DIAS365(CALCULADORA!$C$27,A74)) -> 1179 | C74: =+HLOOKUP(CALCULADORA!$C$9,Tablas!B:B,Flujos!J74+1,FALSE) -> 0.00656999 | D74: 20.43035 | E74: 0.656999 | F74: =ROUND(D73*ROUND(((1+CALCULADORA!$C$16)^(1/12)-1),6),6) -> 0.103644 | G74: 0.760643 | H74: =IF($B74=0,0,G74/POWER(1+CALCULADORA!$C$29,Flujos!$B74/365)) -> 0.5445601082 | I74: 2027-06-24 | J74: 72 | K74: =+DIAS365($A$2,A74) -> 2190 | L74: 5.935016675e+10 | M74: 1908582095 | N74: 301086750.6 | O74: 2209668846
A75: 2027-07-24 | B75: =IF(DIAS365(CALCULADORA!$C$27,A75)<0,0,DIAS365(CALCULADORA!$C$27,A75)) -> 1209 | C75: =+HLOOKUP(CALCULADORA!$C$9,Tablas!B:B,Flujos!J75+1,FALSE) -> 0.00673177 | D75: 19.757173 | E75: 0.673177 | F75: =ROUND(D74*ROUND(((1+CALCULADORA!$C$16)^(1/12)-1),6),6) -> 0.100415 | G75: 0.773592 | H75: =IF($B75=0,0,G75/POWER(1+CALCULADORA!$C$29,Flujos!$B75/365)) -> 0.5491410592 | I75: 2027-07-24 | J75: 73 | K75: =+DIAS365($A$2,A75) -> 2220 | L75: 5.739458756e+10 | M75: 1955579185 | N75: 291706069.6 | O75: 2247285255
A76: 2027-08-24 | B76: =IF(DIAS365(CALCULADORA!$C$27,A76)<0,0,DIAS365(CALCULADORA!$C$27,A76)) -> 1240 | C76: =+HLOOKUP(CALCULADORA!$C$9,Tablas!B:B,Flujos!J76+1,FALSE) -> 0.00667705 | D76: 19.089468 | E76: 0.667705 | F76: =ROUND(D75*ROUND(((1+CALCULADORA!$C$16)^(1/12)-1),6),6) -> 0.097107 | G76: 0.764812 | H76: =IF($B76=0,0,G76/POWER(1+CALCULADORA!$C$29,Flujos!$B76/365)) -> 0.538158912 | I76: 2027-08-24 | J76: 74 | K76: =+DIAS365($A$2,A76) -> 2251 | L76: 5.545490454e+10 | M76: 1939683025 | N76: 282094397.9 | O76: 2221777423
A77: 2027-09-24 | B77: =IF(DIAS365(CALCULADORA!$C$27,A77)<0,0,DIAS365(CALCULADORA!$C$27,A77)) -> 1271 | C77: =+HLOOKUP(CALCULADORA!$C$9,Tablas!B:B,Flujos!J77+1,FALSE) -> 0.00661141 | D77: 18.428327 | E77: 0.661141 | F77: =ROUND(D76*ROUND(((1+CALCULADORA!$C$16)^(1/12)-1),6),6) -> 0.093825 | G77: 0.754966 | H77: =IF($B77=0,0,G77/POWER(1+CALCULADORA!$C$29,Flujos!$B77/365)) -> 0.5265833619 | I77: 2027-09-24 | J77: 75 | K77: =+DIAS365($A$2,A77) -> 2282 | L77: 5.353428993e+10 | M77: 1920614605 | N77: 272560855.8 | O77: 2193175461
A78: 2027-10-24 | B78: =IF(DIAS365(CALCULADORA!$C$27,A78)<0,0,DIAS365(CALCULADORA!$C$27,A78)) -> 1301 | C78: =+HLOOKUP(CALCULADORA!$C$9,Tablas!B:B,Flujos!J78+1,FALSE) -> 0.00655145 | D78: 17.773182 | E78: 0.655145 | F78: =ROUND(D77*ROUND(((1+CALCULADORA!$C$16)^(1/12)-1),6),6) -> 0.090575 | G78: 0.74572 | H78: =IF($B78=0,0,G78/POWER(1+CALCULADORA!$C$29,Flujos!$B78/365)) -> 0.515730156 | I78: 2027-10-24 | J78: 76 | K78: =+DIAS365($A$2,A78) -> 2312 | L78: 5.163109371e+10 | M78: 1903196225 | N78: 263121035 | O78: 2166317260
A79: 2027-11-24 | B79: =IF(DIAS365(CALCULADORA!$C$27,A79)<0,0,DIAS365(CALCULADORA!$C$27,A79)) -> 1332 | C79: =+HLOOKUP(CALCULADORA!$C$9,Tablas!B:B,Flujos!J79+1,FALSE) -> 0.00649675 | D79: 17.123507 | E79: 0.649675 | F79: =ROUND(D78*ROUND(((1+CALCULADORA!$C$16)^(1/12)-1),6),6) -> 0.087355 | G79: 0.73703 | H79: =IF($B79=0,0,G79/POWER(1+CALCULADORA!$C$29,Flujos!$B79/365)) -> 0.5052610233 | I79: 2027-11-24 | J79: 77 | K79: =+DIAS365($A$2,A79) -> 2343 | L79: 4.974378783e+10 | M79: 1887305875 | N79: 253766825.6 | O79: 2141072701
A80: 2027-12-24 | B80: =IF(DIAS365(CALCULADORA!$C$27,A80)<0,0,DIAS365(CALCULADORA!$C$27,A80)) -> 1362 | C80: =+HLOOKUP(CALCULADORA!$C$9,Tablas!B:B,Flujos!J80+1,FALSE) -> 0.00643409 | D80: 16.480098 | E80: 0.643409 | F80: =ROUND(D79*ROUND(((1+CALCULADORA!$C$16)^(1/12)-1),6),6) -> 0.084162 | G80: 0.727571 | H80: =IF($B80=0,0,G80/POWER(1+CALCULADORA!$C$29,Flujos!$B80/365)) -> 0.4945531907 | I80: 2027-12-24 | J80: 78 | K80: =+DIAS365($A$2,A80) -> 2373 | L80: 4.787468469e+10 | M80: 1869103145 | N80: 244490717.2 | O80: 2113593862
A81: 2028-01-24 | B81: =IF(DIAS365(CALCULADORA!$C$27,A81)<0,0,DIAS365(CALCULADORA!$C$27,A81)) -> 1393 | C81: =+HLOOKUP(CALCULADORA!$C$9,Tablas!B:B,Flujos!J81+1,FALSE) -> 0.00637052 | D81: 15.843046 | E81: 0.637052 | F81: =ROUND(D80*ROUND(((1+CALCULADORA!$C$16)^(1/12)-1),6),6) -> 0.081 | G81: 0.718052 | H81: =IF($B81=0,0,G81/POWER(1+CALCULADORA!$C$29,Flujos!$B81/365)) -> 0.4838128735 | I81: 2028-01-24 | J81: 79 | K81: =+DIAS365($A$2,A81) -> 2404 | L81: 4.602404863e+10 | M81: 1850636060 | N81: 235304075.3 | O81: 2085940135
A82: 2028-02-24 | B82: =IF(DIAS365(CALCULADORA!$C$27,A82)<0,0,DIAS365(CALCULADORA!$C$27,A82)) -> 1424 | C82: =+HLOOKUP(CALCULADORA!$C$9,Tablas!B:B,Flujos!J82+1,FALSE) -> 0.00630633 | D82: 15.212413 | E82: 0.630633 | F82: =ROUND(D81*ROUND(((1+CALCULADORA!$C$16)^(1/12)-1),6),6) -> 0.077869 | G82: 0.708502 | H82: =IF($B82=0,0,G82/POWER(1+CALCULADORA!$C$29,Flujos!$B82/365)) -> 0.4732019226 | I82: 2028-02-24 | J82: 80 | K82: =+DIAS365($A$2,A82) -> 2435 | L82: 4.419205976e+10 | M82: 1831988865 | N82: 226208199 | O82: 2058197064
A83: 2028-03-24 | B83: =IF(DIAS365(CALCULADORA!$C$27,A83)<0,0,DIAS365(CALCULADORA!$C$27,A83)) -> 1452 | C83: =+HLOOKUP(CALCULADORA!$C$9,Tablas!B:B,Flujos!J83+1,FALSE) -> 0.00624548 | D83: 14.587865 | E83: 0.624548 | F83: =ROUND(D82*ROUND(((1+CALCULADORA!$C$16)^(1/12)-1),6),6) -> 0.074769 | G83: 0.699317 | H83: =IF($B83=0,0,G83/POWER(1+CALCULADORA!$C$29,Flujos!$B83/365)) -> 0.4633751101 | I83: 2028-03-24 | J83: 81 | K83: =+DIAS365($A$2,A83) -> 2463 | L83: 4.237774782e+10 | M83: 1814311940 | N83: 217203973.7 | O83: 2031515914
A84: 2028-04-24 | B84: =IF(DIAS365(CALCULADORA!$C$27,A84)<0,0,DIAS365(CALCULADORA!$C$27,A84)) -> 1483 | C84: =+HLOOKUP(CALCULADORA!$C$9,Tablas!B:B,Flujos!J84+1,FALSE) -> 0.00617988 | D84: 13.969877 | E84: 0.617988 | F84: =ROUND(D83*ROUND(((1+CALCULADORA!$C$16)^(1/12)-1),6),6) -> 0.071699 | G84: 0.689687 | H84: =IF($B84=0,0,G84/POWER(1+CALCULADORA!$C$29,Flujos!$B84/365)) -> 0.4529961933 | I84: 2028-04-24 | J84: 82 | K84: =+DIAS365($A$2,A84) -> 2494 | L84: 4.058249268e+10 | M84: 1795255140 | N84: 208286630.6 | O84: 2003541771
A85: 2028-05-24 | B85: =IF(DIAS365(CALCULADORA!$C$27,A85)<0,0,DIAS365(CALCULADORA!$C$27,A85)) -> 1513 | C85: =+HLOOKUP(CALCULADORA!$C$9,Tablas!B:B,Flujos!J85+1,FALSE) -> 0.00612035 | D85: 13.357842 | E85: 0.612035 | F85: =ROUND(D84*ROUND(((1+CALCULADORA!$C$16)^(1/12)-1),6),6) -> 0.068662 | G85: 0.680697 | H85: =IF($B85=0,0,G85/POWER(1+CALCULADORA!$C$29,Flujos!$B85/365)) -> 0.4433057304 | I85: 2028-05-24 | J85: 83 | K85: =+DIAS365($A$2,A85) -> 2524 | L85: 3.880453101e+10 | M85: 1777961675 | N85: 199462951.5 | O85: 1977424627
A86: 2028-06-24 | B86: =IF(DIAS365(CALCULADORA!$C$27,A86)<0,0,DIAS365(CALCULADORA!$C$27,A86)) -> 1544 | C86: =+HLOOKUP(CALCULADORA!$C$9,Tablas!B:B,Flujos!J86+1,FALSE) -> 0.00580786 | D86: 12.777056 | E86: 0.580786 | F86: =ROUND(D85*ROUND(((1+CALCULADORA!$C$16)^(1/12)-1),6),6) -> 0.065654 | G86: 0.64644 | H86: =IF($B86=0,0,G86/POWER(1+CALCULADORA!$C$29,Flujos!$B86/365)) -> 0.4173127237 | I86: 2028-06-24 | J86: 84 | K86: =+DIAS365($A$2,A86) -> 2555 | L86: 3.711734768e+10 | M86: 1687183330 | N86: 190724269.9 | O86: 1877907600
A87: 2028-07-24 | B87: =IF(DIAS365(CALCULADORA!$C$27,A87)<0,0,DIAS365(CALCULADORA!$C$27,A87)) -> 1574 | C87: =+HLOOKUP(CALCULADORA!$C$9,Tablas!B:B,Flujos!J87+1,FALSE) -> 0.00598203 | D87: 12.178853 | E87: 0.598203 | F87: =ROUND(D86*ROUND(((1+CALCULADORA!$C$16)^(1/12)-1),6),6) -> 0.062799 | G87: 0.661002 | H87: =IF($B87=0,0,G87/POWER(1+CALCULADORA!$C$29,Flujos!$B87/365)) -> 0.4231001453 | I87: 2028-07-24 | J87: 85 | K87: =+DIAS365($A$2,A87) -> 2585 | L87: 3.537956796e+10 | M87: 1737779715 | N87: 182431763.8 | O87: 1920211479
A88: 2028-08-24 | B88: =IF(DIAS365(CALCULADORA!$C$27,A88)<0,0,DIAS365(CALCULADORA!$C$27,A88)) -> 1605 | C88: =+HLOOKUP(CALCULADORA!$C$9,Tablas!B:B,Flujos!J88+1,FALSE) -> 0.00591211 | D88: 11.587642 | E88: 0.591211 | F88: =ROUND(D87*ROUND(((1+CALCULADORA!$C$16)^(1/12)-1),6),6) -> 0.059859 | G88: 0.65107 | H88: =IF($B88=0,0,G88/POWER(1+CALCULADORA!$C$29,Flujos!$B88/365)) -> 0.4130969433 | I88: 2028-08-24 | J88: 86 | K88: =+DIAS365($A$2,A88) -> 2616 | L88: 3.366210001e+10 | M88: 1717467955 | N88: 173890576.5 | O88: 1891358532
A89: 2028-09-24 | B89: =IF(DIAS365(CALCULADORA!$C$27,A89)<0,0,DIAS365(CALCULADORA!$C$27,A89)) -> 1636 | C89: =+HLOOKUP(CALCULADORA!$C$9,Tablas!B:B,Flujos!J89+1,FALSE) -> 0.00582681 | D89: 11.004961 | E89: 0.582681 | F89: =ROUND(D88*ROUND(((1+CALCULADORA!$C$16)^(1/12)-1),6),6) -> 0.056953 | G89: 0.639634 | H89: =IF($B89=0,0,G89/POWER(1+CALCULADORA!$C$29,Flujos!$B89/365)) -> 0.4022904602 | I89: 2028-09-24 | J89: 87 | K89: =+DIAS365($A$2,A89) -> 2647 | L89: 3.19694117e+10 | M89: 1692688305 | N89: 165449221.5 | O89: 1858137527
A90: 2028-10-24 | B90: =IF(DIAS365(CALCULADORA!$C$27,A90)<0,0,DIAS365(CALCULADORA!$C$27,A90)) -> 1666 | C90: =+HLOOKUP(CALCULADORA!$C$9,Tablas!B:B,Flujos!J90+1,FALSE) -> 0.00576404 | D90: 10.428557 | E90: 0.576404 | F90: =ROUND(D89*ROUND(((1+CALCULADORA!$C$16)^(1/12)-1),6),6) -> 0.054089 | G90: 0.630493 | H90: =IF($B90=0,0,G90/POWER(1+CALCULADORA!$C$29,Flujos!$B90/365)) -> 0.3931836578 | I90: 2028-10-24 | J90: 88 | K90: =+DIAS365($A$2,A90) -> 2677 | L90: 3.029495808e+10 | M90: 1674453620 | N90: 157129658.5 | O90: 1831583279
A91: 2028-11-24 | B91: =IF(DIAS365(CALCULADORA!$C$27,A91)<0,0,DIAS365(CALCULADORA!$C$27,A91)) -> 1697 | C91: =+HLOOKUP(CALCULADORA!$C$9,Tablas!B:B,Flujos!J91+1,FALSE) -> 0.00569659 | D91: 9.858898 | E91: 0.569659 | F91: =ROUND(D90*ROUND(((1+CALCULADORA!$C$16)^(1/12)-1),6),6) -> 0.051256 | G91: 0.620915 | H91: =IF($B91=0,0,G91/POWER(1+CALCULADORA!$C$29,Flujos!$B91/365)) -> 0.3838232134 | I91: 2028-11-24 | J91: 89 | K91: =+DIAS365($A$2,A91) -> 2708 | L91: 2.864009869e+10 | M91: 1654859395 | N91: 148899719 | O91: 1803759114
A92: 2028-12-24 | B92: =IF(DIAS365(CALCULADORA!$C$27,A92)<0,0,DIAS365(CALCULADORA!$C$27,A92)) -> 1727 | C92: =+HLOOKUP(CALCULADORA!$C$9,Tablas!B:B,Flujos!J92+1,FALSE) -> 0.00563196 | D92: 9.295702 | E92: 0.563196 | F92: =ROUND(D91*ROUND(((1+CALCULADORA!$C$16)^(1/12)-1),6),6) -> 0.048456 | G92: 0.611652 | H92: =IF($B92=0,0,G92/POWER(1+CALCULADORA!$C$29,Flujos!$B92/365)) -> 0.3748957195 | I92: 2028-12-24 | J92: 90 | K92: =+DIAS365($A$2,A92) -> 2738 | L92: 2.700401431e+10 | M92: 1636084380 | N92: 140766085.1 | O92: 1776850465
A93: 2029-01-24 | B93: =IF(DIAS365(CALCULADORA!$C$27,A93)<0,0,DIAS365(CALCULADORA!$C$27,A93)) -> 1758 | C93: =+HLOOKUP(CALCULADORA!$C$9,Tablas!B:B,Flujos!J93+1,FALSE) -> 0.00556786 | D93: 8.738916 | E93: 0.556786 | F93: =ROUND(D92*ROUND(((1+CALCULADORA!$C$16)^(1/12)-1),6),6) -> 0.045688 | G93: 0.602474 | H93: =IF($B93=0,0,G93/POWER(1+CALCULADORA!$C$29,Flujos!$B93/365)) -> 0.3660397813 | I93: 2029-01-24 | J93: 91 | K93: =+DIAS365($A$2,A93) -> 2769 | L93: 2.538655098e+10 | M93: 1617463330 | N93: 132724730.3 | O93: 1750188060
A94: 2029-02-24 | B94: =IF(DIAS365(CALCULADORA!$C$27,A94)<0,0,DIAS365(CALCULADORA!$C$27,A94)) -> 1789 | C94: =+HLOOKUP(CALCULADORA!$C$9,Tablas!B:B,Flujos!J94+1,FALSE) -> 0.00549839 | D94: 8.189077 | E94: 0.549839 | F94: =ROUND(D93*ROUND(((1+CALCULADORA!$C$16)^(1/12)-1),6),6) -> 0.042952 | G94: 0.592791 | H94: =IF($B94=0,0,G94/POWER(1+CALCULADORA!$C$29,Flujos!$B94/365)) -> 0.3570059672 | I94: 2029-02-24 | J94: 92 | K94: =+DIAS365($A$2,A94) -> 2800 | L94: 2.378926868e+10 | M94: 1597282295 | N94: 124774898.1 | O94: 1722057193
A95: 2029-03-24 | B95: =IF(DIAS365(CALCULADORA!$C$27,A95)<0,0,DIAS365(CALCULADORA!$C$27,A95)) -> 1817 | C95: =+HLOOKUP(CALCULADORA!$C$9,Tablas!B:B,Flujos!J95+1,FALSE) -> 0.00543345 | D95: 7.645732 | E95: 0.543345 | F95: =ROUND(D94*ROUND(((1+CALCULADORA!$C$16)^(1/12)-1),6),6) -> 0.040249 | G95: 0.583594 | H95: =IF($B95=0,0,G95/POWER(1+CALCULADORA!$C$29,Flujos!$B95/365)) -> 0.3486887121 | I95: 2029-03-24 | J95: 93 | K95: =+DIAS365($A$2,A95) -> 2828 | L95: 2.221085146e+10 | M95: 1578417225 | N95: 116924255.6 | O95: 1695341481
A96: 2029-04-24 | B96: =IF(DIAS365(CALCULADORA!$C$27,A96)<0,0,DIAS365(CALCULADORA!$C$27,A96)) -> 1848 | C96: =+HLOOKUP(CALCULADORA!$C$9,Tablas!B:B,Flujos!J96+1,FALSE) -> 0.00536199 | D96: 7.109533 | E96: 0.536199 | F96: =ROUND(D95*ROUND(((1+CALCULADORA!$C$16)^(1/12)-1),6),6) -> 0.037579 | G96: 0.573778 | H96: =IF($B96=0,0,G96/POWER(1+CALCULADORA!$C$29,Flujos!$B96/365)) -> 0.3398246347 | I96: 2029-04-24 | J96: 94 | K96: =+DIAS365($A$2,A96) -> 2859 | L96: 2.065319336e+10 | M96: 1557658095 | N96: 109166334.9 | O96: 1666824430
A97: 2029-05-24 | B97: =IF(DIAS365(CALCULADORA!$C$27,A97)<0,0,DIAS365(CALCULADORA!$C$27,A97)) -> 1878 | C97: =+HLOOKUP(CALCULADORA!$C$9,Tablas!B:B,Flujos!J97+1,FALSE) -> 0.00529281 | D97: 6.580252 | E97: 0.529281 | F97: =ROUND(D96*ROUND(((1+CALCULADORA!$C$16)^(1/12)-1),6),6) -> 0.034943 | G97: 0.564224 | H97: =IF($B97=0,0,G97/POWER(1+CALCULADORA!$C$29,Flujos!$B97/365)) -> 0.3313366813 | I97: 2029-05-24 | J97: 95 | K97: =+DIAS365($A$2,A97) -> 2889 | L97: 1.911563206e+10 | M97: 1537561305 | N97: 101510445.4 | O97: 1639071750
A98: 2029-06-24 | B98: =IF(DIAS365(CALCULADORA!$C$27,A98)<0,0,DIAS365(CALCULADORA!$C$27,A98)) -> 1909 | C98: =+HLOOKUP(CALCULADORA!$C$9,Tablas!B:B,Flujos!J98+1,FALSE) -> 0.00496206 | D98: 6.084046 | E98: 0.496206 | F98: =ROUND(D97*ROUND(((1+CALCULADORA!$C$16)^(1/12)-1),6),6) -> 0.032342 | G98: 0.528548 | H98: =IF($B98=0,0,G98/POWER(1+CALCULADORA!$C$29,Flujos!$B98/365)) -> 0.3076708083 | I98: 2029-06-24 | J98: 96 | K98: =+DIAS365($A$2,A98) -> 2920 | L98: 1.767415363e+10 | M98: 1441478430 | N98: 93953331.57 | O98: 1535431762
A99: =EDATE(A98,1) -> 2029-07-24 | B99: =IF(DIAS365(CALCULADORA!$C$27,A99)<0,0,DIAS365(CALCULADORA!$C$27,A99)) -> 1939 | C99: =+HLOOKUP(CALCULADORA!$C$9,Tablas!B:B,Flujos!J99+1,FALSE) -> 0.00513295 | D99: 5.570751 | E99: 0.513295 | F99: =ROUND(D98*ROUND(((1+CALCULADORA!$C$16)^(1/12)-1),6),6) -> 0.029903 | G99: 0.543198 | H99: =IF($B99=0,0,G99/POWER(1+CALCULADORA!$C$29,Flujos!$B99/365)) -> 0.3135212753 | I99: 2029-07-24 | J99: 97 | K99: =+DIAS365($A$2,A99) -> 2950 | L99: 1.618303165e+10 | M99: 1491121975 | N99: 86868465.09 | O99: 1577990440
A100: 2029-08-24 | B100: =IF(DIAS365(CALCULADORA!$C$27,A100)<0,0,DIAS365(CALCULADORA!$C$27,A100)) -> 1970 | C100: =+HLOOKUP(CALCULADORA!$C$9,Tablas!B:B,Flujos!J100+1,FALSE) -> 0.00503369 | D100: 5.067382 | E100: 0.503369 | F100: =ROUND(D99*ROUND(((1+CALCULADORA!$C$16)^(1/12)-1),6),6) -> 0.02738 | G100: 0.530749 | H100: =IF($B100=0,0,G100/POWER(1+CALCULADORA!$C$29,Flujos!$B100/365)) -> 0.303656048 | I100: 2029-08-24 | J100: 98 | K100: =+DIAS365($A$2,A100) -> 2981 | L100: 1.472074471e+10 | M100: 1462286945 | N100: 79539600.58 | O100: 1541826546
A101: 2029-09-24 | B101: =IF(DIAS365(CALCULADORA!$C$27,A101)<0,0,DIAS365(CALCULADORA!$C$27,A101)) -> 2001 | C101: =+HLOOKUP(CALCULADORA!$C$9,Tablas!B:B,Flujos!J101+1,FALSE) -> 0.0049107 | D101: 4.576312 | E101: 0.49107 | F101: =ROUND(D100*ROUND(((1+CALCULADORA!$C$16)^(1/12)-1),6),6) -> 0.024906 | G101: 0.515976 | H101: =IF($B101=0,0,G101/POWER(1+CALCULADORA!$C$29,Flujos!$B101/365)) -> 0.2926214435 | I101: 2029-09-24 | J101: 99 | K101: =+DIAS365($A$2,A101) -> 3012 | L101: 1.329418636e+10 | M101: 1426558350 | N101: 72352460.25 | O101: 1498910810
A102: 2029-10-24 | B102: =IF(DIAS365(CALCULADORA!$C$27,A102)<0,0,DIAS365(CALCULADORA!$C$27,A102)) -> 2031 | C102: =+HLOOKUP(CALCULADORA!$C$9,Tablas!B:B,Flujos!J102+1,FALSE) -> 0 | D102: 4.576312 | E102: 0 | F102: =ROUND(D101*ROUND(((1+CALCULADORA!$C$16)^(1/12)-1),6),6) -> 0.022493 | G102: 0.022493 | H102: =IF($B102=0,0,G102/POWER(1+CALCULADORA!$C$29,Flujos!$B102/365)) -> 0.01264826705 | I102: 2029-10-24 | J102: 100 | K102: =+DIAS365($A$2,A102) -> 3042 | L102: 1.329418636e+10 | M102: 0 | N102: 65340925.96 | O102: 65340925.96
A103: 2029-11-24 | B103: =IF(DIAS365(CALCULADORA!$C$27,A103)<0,0,DIAS365(CALCULADORA!$C$27,A103)) -> 2062 | C103: =+HLOOKUP(CALCULADORA!$C$9,Tablas!B:B,Flujos!J103+1,FALSE) -> 0 | D103: 4.576312 | E103: 0 | F103: =ROUND(D102*ROUND(((1+CALCULADORA!$C$16)^(1/12)-1),6),6) -> 0.022493 | G103: 0.022493 | H103: =IF($B103=0,0,G103/POWER(1+CALCULADORA!$C$29,Flujos!$B103/365)) -> 0.0125376148 | I103: 2029-11-24 | J103: 101 | K103: =+DIAS365($A$2,A103) -> 3073 | L103: 1.329418636e+10 | M103: 0 | N103: 65340925.96 | O103: 65340925.96
A104: 2029-12-24 | B104: =IF(DIAS365(CALCULADORA!$C$27,A104)<0,0,DIAS365(CALCULADORA!$C$27,A104)) -> 2092 | C104: =+HLOOKUP(CALCULADORA!$C$9,Tablas!B:B,Flujos!J104+1,FALSE) -> 0 | D104: 4.576312 | E104: 0 | F104: =ROUND(D103*ROUND(((1+CALCULADORA!$C$16)^(1/12)-1),6),6) -> 0.022493 | G104: 0.022493 | H104: =IF($B104=0,0,G104/POWER(1+CALCULADORA!$C$29,Flujos!$B104/365)) -> 0.01243145376 | I104: 2029-12-24 | J104: 102 | K104: =+DIAS365($A$2,A104) -> 3103 | L104: 1.329418636e+10 | M104: 0 | N104: 65340925.96 | O104: 65340925.96
A105: 2030-01-24 | B105: =IF(DIAS365(CALCULADORA!$C$27,A105)<0,0,DIAS365(CALCULADORA!$C$27,A105)) -> 2123 | C105: =+HLOOKUP(CALCULADORA!$C$9,Tablas!B:B,Flujos!J105+1,FALSE) -> 0 | D105: 4.576312 | E105: 0 | F105: =ROUND(D104*ROUND(((1+CALCULADORA!$C$16)^(1/12)-1),6),6) -> 0.022493 | G105: 0.022493 | H105: =IF($B105=0,0,G105/POWER(1+CALCULADORA!$C$29,Flujos!$B105/365)) -> 0.01232269828 | I105: 2030-01-24 | J105: 103 | K105: =+DIAS365($A$2,A105) -> 3134 | L105: 1.329418636e+10 | M105: 0 | N105: 65340925.96 | O105: 65340925.96
A106: 2030-02-24 | B106: =IF(DIAS365(CALCULADORA!$C$27,A106)<0,0,DIAS365(CALCULADORA!$C$27,A106)) -> 2154 | C106: =+HLOOKUP(CALCULADORA!$C$9,Tablas!B:B,Flujos!J106+1,FALSE) -> 0 | D106: 4.576312 | E106: 0 | F106: =ROUND(D105*ROUND(((1+CALCULADORA!$C$16)^(1/12)-1),6),6) -> 0.022493 | G106: 0.022493 | H106: =IF($B106=0,0,G106/POWER(1+CALCULADORA!$C$29,Flujos!$B106/365)) -> 0.01221489424 | I106: 2030-02-24 | J106: 104 | K106: =+DIAS365($A$2,A106) -> 3165 | L106: 1.329418636e+10 | M106: 0 | N106: 65340925.96 | O106: 65340925.96
A107: 2030-03-24 | B107: =IF(DIAS365(CALCULADORA!$C$27,A107)<0,0,DIAS365(CALCULADORA!$C$27,A107)) -> 2182 | C107: =+HLOOKUP(CALCULADORA!$C$9,Tablas!B:B,Flujos!J107+1,FALSE) -> 0 | D107: 4.576312 | E107: 0 | F107: =ROUND(D106*ROUND(((1+CALCULADORA!$C$16)^(1/12)-1),6),6) -> 0.022493 | G107: 0.022493 | H107: =IF($B107=0,0,G107/POWER(1+CALCULADORA!$C$29,Flujos!$B107/365)) -> 0.0121183337 | I107: 2030-03-24 | J107: 105 | K107: =+DIAS365($A$2,A107) -> 3193 | L107: 1.329418636e+10 | M107: 0 | N107: 65340925.96 | O107: 65340925.96
A108: 2030-04-24 | B108: =IF(DIAS365(CALCULADORA!$C$27,A108)<0,0,DIAS365(CALCULADORA!$C$27,A108)) -> 2213 | C108: =+HLOOKUP(CALCULADORA!$C$9,Tablas!B:B,Flujos!J108+1,FALSE) -> 0 | D108: 4.576312 | E108: 0 | F108: =ROUND(D107*ROUND(((1+CALCULADORA!$C$16)^(1/12)-1),6),6) -> 0.022493 | G108: 0.022493 | H108: =IF($B108=0,0,G108/POWER(1+CALCULADORA!$C$29,Flujos!$B108/365)) -> 0.01201231752 | I108: 2030-04-24 | J108: 106 | K108: =+DIAS365($A$2,A108) -> 3224 | L108: 1.329418636e+10 | M108: 0 | N108: 65340925.96 | O108: 65340925.96
A109: 2030-05-24 | B109: =IF(DIAS365(CALCULADORA!$C$27,A109)<0,0,DIAS365(CALCULADORA!$C$27,A109)) -> 2243 | C109: =+HLOOKUP(CALCULADORA!$C$9,Tablas!B:B,Flujos!J109+1,FALSE) -> 0 | D109: 4.576312 | E109: 0 | F109: =ROUND(D108*ROUND(((1+CALCULADORA!$C$16)^(1/12)-1),6),6) -> 0.022493 | G109: 0.022493 | H109: =IF($B109=0,0,G109/POWER(1+CALCULADORA!$C$29,Flujos!$B109/365)) -> 0.01191060439 | I109: 2030-05-24 | J109: 107 | K109: =+DIAS365($A$2,A109) -> 3254 | L109: 1.329418636e+10 | M109: 0 | N109: 65340925.96 | O109: 65340925.96
A110: 2030-06-24 | B110: =IF(DIAS365(CALCULADORA!$C$27,A110)<0,0,DIAS365(CALCULADORA!$C$27,A110)) -> 2274 | C110: =+HLOOKUP(CALCULADORA!$C$9,Tablas!B:B,Flujos!J110+1,FALSE) -> 0 | D110: 4.576312 | E110: 0 | F110: =ROUND(D109*ROUND(((1+CALCULADORA!$C$16)^(1/12)-1),6),6) -> 0.022493 | G110: 0.022493 | H110: =IF($B110=0,0,G110/POWER(1+CALCULADORA!$C$29,Flujos!$B110/365)) -> 0.01180640551 | I110: 2030-06-24 | J110: 108 | K110: =+DIAS365($A$2,A110) -> 3285 | L110: 1.329418636e+10 | M110: 0 | N110: 65340925.96 | O110: 65340925.96
A111: 2030-07-24 | B111: =IF(DIAS365(CALCULADORA!$C$27,A111)<0,0,DIAS365(CALCULADORA!$C$27,A111)) -> 2304 | C111: =+HLOOKUP(CALCULADORA!$C$9,Tablas!B:B,Flujos!J111+1,FALSE) -> 0 | D111: 4.576312 | E111: 0 | F111: =ROUND(D110*ROUND(((1+CALCULADORA!$C$16)^(1/12)-1),6),6) -> 0.022493 | G111: 0.022493 | H111: =IF($B111=0,0,G111/POWER(1+CALCULADORA!$C$29,Flujos!$B111/365)) -> 0.01170643591 | I111: 2030-07-24 | J111: 109 | K111: =+DIAS365($A$2,A111) -> 3315 | L111: 1.329418636e+10 | M111: 0 | N111: 65340925.96 | O111: 65340925.96
A112: 2030-08-24 | B112: =IF(DIAS365(CALCULADORA!$C$27,A112)<0,0,DIAS365(CALCULADORA!$C$27,A112)) -> 2335 | C112: =+HLOOKUP(CALCULADORA!$C$9,Tablas!B:B,Flujos!J112+1,FALSE) -> 0 | D112: 4.576312 | E112: 0 | F112: =ROUND(D111*ROUND(((1+CALCULADORA!$C$16)^(1/12)-1),6),6) -> 0.022493 | G112: 0.022493 | H112: =IF($B112=0,0,G112/POWER(1+CALCULADORA!$C$29,Flujos!$B112/365)) -> 0.01160402319 | I112: 2030-08-24 | J112: 110 | K112: =+DIAS365($A$2,A112) -> 3346 | L112: 1.329418636e+10 | M112: 0 | N112: 65340925.96 | O112: 65340925.96
A113: 2030-09-24 | B113: =IF(DIAS365(CALCULADORA!$C$27,A113)<0,0,DIAS365(CALCULADORA!$C$27,A113)) -> 2366 | C113: =+HLOOKUP(CALCULADORA!$C$9,Tablas!B:B,Flujos!J113+1,FALSE) -> 0 | D113: 4.576312 | E113: 0 | F113: =ROUND(D112*ROUND(((1+CALCULADORA!$C$16)^(1/12)-1),6),6) -> 0.022493 | G113: 0.022493 | H113: =IF($B113=0,0,G113/POWER(1+CALCULADORA!$C$29,Flujos!$B113/365)) -> 0.01150250641 | I113: 2030-09-24 | J113: 111 | K113: =+DIAS365($A$2,A113) -> 3377 | L113: 1.329418636e+10 | M113: 0 | N113: 65340925.96 | O113: 65340925.96
A114: 2030-10-24 | B114: =IF(DIAS365(CALCULADORA!$C$27,A114)<0,0,DIAS365(CALCULADORA!$C$27,A114)) -> 2396 | C114: =+HLOOKUP(CALCULADORA!$C$9,Tablas!B:B,Flujos!J114+1,FALSE) -> 0 | D114: 4.576312 | E114: 0 | F114: =ROUND(D113*ROUND(((1+CALCULADORA!$C$16)^(1/12)-1),6),6) -> 0.022493 | G114: 0.022493 | H114: =IF($B114=0,0,G114/POWER(1+CALCULADORA!$C$29,Flujos!$B114/365)) -> 0.01140511005 | I114: 2030-10-24 | J114: 112 | K114: =+DIAS365($A$2,A114) -> 3407 | L114: 1.329418636e+10 | M114: 0 | N114: 65340925.96 | O114: 65340925.96
A115: 2030-11-24 | B115: =IF(DIAS365(CALCULADORA!$C$27,A115)<0,0,DIAS365(CALCULADORA!$C$27,A115)) -> 2427 | C115: =+HLOOKUP(CALCULADORA!$C$9,Tablas!B:B,Flujos!J115+1,FALSE) -> 0 | D115: 4.576312 | E115: 0 | F115: =ROUND(D114*ROUND(((1+CALCULADORA!$C$16)^(1/12)-1),6),6) -> 0.022493 | G115: 0.022493 | H115: =IF($B115=0,0,G115/POWER(1+CALCULADORA!$C$29,Flujos!$B115/365)) -> 0.01130533345 | I115: 2030-11-24 | J115: 113 | K115: =+DIAS365($A$2,A115) -> 3438 | L115: 1.329418636e+10 | M115: 0 | N115: 65340925.96 | O115: 65340925.96
A116: 2030-12-24 | B116: =IF(DIAS365(CALCULADORA!$C$27,A116)<0,0,DIAS365(CALCULADORA!$C$27,A116)) -> 2457 | C116: =+HLOOKUP(CALCULADORA!$C$9,Tablas!B:B,Flujos!J116+1,FALSE) -> 0 | D116: 4.576312 | E116: 0 | F116: =ROUND(D115*ROUND(((1+CALCULADORA!$C$16)^(1/12)-1),6),6) -> 0.022493 | G116: 0.022493 | H116: =IF($B116=0,0,G116/POWER(1+CALCULADORA!$C$29,Flujos!$B116/365)) -> 0.01120960663 | I116: 2030-12-24 | J116: 114 | K116: =+DIAS365($A$2,A116) -> 3468 | L116: 1.329418636e+10 | M116: 0 | N116: 65340925.96 | O116: 65340925.96
A117: 2031-01-24 | B117: =IF(DIAS365(CALCULADORA!$C$27,A117)<0,0,DIAS365(CALCULADORA!$C$27,A117)) -> 2488 | C117: =+HLOOKUP(CALCULADORA!$C$9,Tablas!B:B,Flujos!J117+1,FALSE) -> 0.00186655 | D117: 4.389657 | E117: 0.186655 | F117: =ROUND(D116*ROUND(((1+CALCULADORA!$C$16)^(1/12)-1),6),6) -> 0.022493 | G117: 0.209148 | H117: =IF($B117=0,0,G117/POWER(1+CALCULADORA!$C$29,Flujos!$B117/365)) -> 0.1033190969 | I117: 2031-01-24 | J117: 115 | K117: =+DIAS365($A$2,A117) -> 3499 | L117: 1.275195358e+10 | M117: 542232775 | N117: 65340925.96 | O117: 607573701
A118: 2031-02-24 | B118: =IF(DIAS365(CALCULADORA!$C$27,A118)<0,0,DIAS365(CALCULADORA!$C$27,A118)) -> 2519 | C118: =+HLOOKUP(CALCULADORA!$C$9,Tablas!B:B,Flujos!J118+1,FALSE) -> 0.00365345 | D118: 4.024312 | E118: 0.365345 | F118: =ROUND(D117*ROUND(((1+CALCULADORA!$C$16)^(1/12)-1),6),6) -> 0.021575 | G118: 0.38692 | H118: =IF($B118=0,0,G118/POWER(1+CALCULADORA!$C$29,Flujos!$B118/365)) -> 0.1894662941 | I118: 2031-02-24 | J118: 116 | K118: =+DIAS365($A$2,A118) -> 3530 | L118: 1.169062636e+10 | M118: 1061327225 | N118: 62675851.87 | O118: 1124003077
A119: 2031-03-24 | B119: =IF(DIAS365(CALCULADORA!$C$27,A119)<0,0,DIAS365(CALCULADORA!$C$27,A119)) -> 2547 | C119: =+HLOOKUP(CALCULADORA!$C$9,Tablas!B:B,Flujos!J119+1,FALSE) -> 0.00360748 | D119: 3.663564 | E119: 0.360748 | F119: =ROUND(D118*ROUND(((1+CALCULADORA!$C$16)^(1/12)-1),6),6) -> 0.019779 | G119: 0.380527 | H119: =IF($B119=0,0,G119/POWER(1+CALCULADORA!$C$29,Flujos!$B119/365)) -> 0.1848627695 | I119: =+A119 -> 2031-03-24 | J119: 117 | K119: =+DIAS365($A$2,A119) -> 3558 | L119: 1.064265342e+10 | M119: 1047972940 | N119: 57459428.56 | O119: 1105432369
A120: 2031-04-24 | B120: =IF(DIAS365(CALCULADORA!$C$27,A120)<0,0,DIAS365(CALCULADORA!$C$27,A120)) -> 2578 | C120: =+HLOOKUP(CALCULADORA!$C$9,Tablas!B:B,Flujos!J120+1,FALSE) -> 0.00357049 | D120: 3.306515 | E120: 0.357049 | F120: =ROUND(D119*ROUND(((1+CALCULADORA!$C$16)^(1/12)-1),6),6) -> 0.018006 | G120: 0.375055 | H120: =IF($B120=0,0,G120/POWER(1+CALCULADORA!$C$29,Flujos!$B120/365)) -> 0.1806104329 | I120: =+A120 -> 2031-04-24 | J120: 118 | K120: =+DIAS365($A$2,A120) -> 3589 | L120: 9605426075 | M120: 1037227345 | N120: 52308641.56 | O120: 1089535987
A121: 2031-05-24 | B121: =IF(DIAS365(CALCULADORA!$C$27,A121)<0,0,DIAS365(CALCULADORA!$C$27,A121)) -> 2608 | C121: =+HLOOKUP(CALCULADORA!$C$9,Tablas!B:B,Flujos!J121+1,FALSE) -> 0.00353664 | D121: 2.952851 | E121: 0.353664 | F121: =ROUND(D120*ROUND(((1+CALCULADORA!$C$16)^(1/12)-1),6),6) -> 0.016252 | G121: 0.369916 | H121: =IF($B121=0,0,G121/POWER(1+CALCULADORA!$C$29,Flujos!$B121/365)) -> 0.1766273636 | I121: 2031-05-24 | J121: 119 | K121: =+DIAS365($A$2,A121) -> 3619 | L121: 8578032155 | M121: 1027393920 | N121: 47210669.16 | O121: 1074604589
A122: 2031-06-24 | B122: =IF(DIAS365(CALCULADORA!$C$27,A122)<0,0,DIAS365(CALCULADORA!$C$27,A122)) -> 2639 | C122: =+HLOOKUP(CALCULADORA!$C$9,Tablas!B:B,Flujos!J122+1,FALSE) -> 0.00320361 | D122: 2.63249 | E122: 0.320361 | F122: =ROUND(D121*ROUND(((1+CALCULADORA!$C$16)^(1/12)-1),6),6) -> 0.014513 | G122: 0.334874 | H122: =IF($B122=0,0,G122/POWER(1+CALCULADORA!$C$29,Flujos!$B122/365)) -> 0.1584966897 | I122: 2031-06-24 | J122: 120 | K122: =+DIAS365($A$2,A122) -> 3650 | L122: 7647383450 | M122: 930648705 | N122: 42161028.04 | O122: 972809733
A123: 2031-07-24 | B123: =IF(DIAS365(CALCULADORA!$C$27,A123)<0,0,DIAS365(CALCULADORA!$C$27,A123)) -> 2669 | C123: =+HLOOKUP(CALCULADORA!$C$9,Tablas!B:B,Flujos!J123+1,FALSE) -> 0.00346204 | D123: 2.286286 | E123: 0.346204 | F123: =ROUND(D122*ROUND(((1+CALCULADORA!$C$16)^(1/12)-1),6),6) -> 0.012939 | G123: 0.359143 | H123: =IF($B123=0,0,G123/POWER(1+CALCULADORA!$C$29,Flujos!$B123/365)) -> 0.1685439503 | I123: 2031-07-24 | J123: 121 | K123: =+DIAS365($A$2,A123) -> 3680 | L123: 6641660830 | M123: 1005722620 | N123: 37586889.66 | O123: 1043309510
A124: 2031-08-24 | B124: =IF(DIAS365(CALCULADORA!$C$27,A124)<0,0,DIAS365(CALCULADORA!$C$27,A124)) -> 2700 | C124: =+HLOOKUP(CALCULADORA!$C$9,Tablas!B:B,Flujos!J124+1,FALSE) -> 0.00342967 | D124: 1.943319 | E124: 0.342967 | F124: =ROUND(D123*ROUND(((1+CALCULADORA!$C$16)^(1/12)-1),6),6) -> 0.011237 | G124: 0.354204 | H124: =IF($B124=0,0,G124/POWER(1+CALCULADORA!$C$29,Flujos!$B124/365)) -> 0.1647718887 | I124: 2031-08-24 | J124: 122 | K124: =+DIAS365($A$2,A124) -> 3711 | L124: 5645341695 | M124: 996319135 | N124: 32643762.98 | O124: 1028962898
A125: 2031-09-24 | B125: =IF(DIAS365(CALCULADORA!$C$27,A125)<0,0,DIAS365(CALCULADORA!$C$27,A125)) -> 2731 | C125: =+HLOOKUP(CALCULADORA!$C$9,Tablas!B:B,Flujos!J125+1,FALSE) -> 0.00339635 | D125: 1.603684 | E125: 0.339635 | F125: =ROUND(D124*ROUND(((1+CALCULADORA!$C$16)^(1/12)-1),6),6) -> 0.009551 | G125: 0.349186 | H125: =IF($B125=0,0,G125/POWER(1+CALCULADORA!$C$29,Flujos!$B125/365)) -> 0.1610164984 | I125: 2031-09-24 | J125: 123 | K125: =+DIAS365($A$2,A125) -> 3742 | L125: 4658702020 | M125: 986639675 | N125: 27746854.43 | O125: 1014386529
A126: 2031-10-24 | B126: =IF(DIAS365(CALCULADORA!$C$27,A126)<0,0,DIAS365(CALCULADORA!$C$27,A126)) -> 2761 | C126: =+HLOOKUP(CALCULADORA!$C$9,Tablas!B:B,Flujos!J126+1,FALSE) -> 0.00336165 | D126: 1.267519 | E126: 0.336165 | F126: =ROUND(D125*ROUND(((1+CALCULADORA!$C$16)^(1/12)-1),6),6) -> 0.007882 | G126: 0.344047 | H126: =IF($B126=0,0,G126/POWER(1+CALCULADORA!$C$29,Flujos!$B126/365)) -> 0.1573034784 | I126: 2031-10-24 | J126: 124 | K126: =+DIAS365($A$2,A126) -> 3772 | L126: 3682142695 | M126: 976559325 | N126: 22897520.43 | O126: 999456845.4
A127: 2031-11-24 | B127: =IF(DIAS365(CALCULADORA!$C$27,A127)<0,0,DIAS365(CALCULADORA!$C$27,A127)) -> 2792 | C127: =+HLOOKUP(CALCULADORA!$C$9,Tablas!B:B,Flujos!J127+1,FALSE) -> 0.00332276 | D127: 0.935243 | E127: 0.332276 | F127: =ROUND(D126*ROUND(((1+CALCULADORA!$C$16)^(1/12)-1),6),6) -> 0.00623 | G127: 0.338506 | H127: =IF($B127=0,0,G127/POWER(1+CALCULADORA!$C$29,Flujos!$B127/365)) -> 0.1534160575 | I127: 2031-11-24 | J127: 125 | K127: =+DIAS365($A$2,A127) -> 3803 | L127: 2716880915 | M127: 965261780 | N127: 18097731.35 | O127: 983359511.3
A128: 2031-12-24 | B128: =IF(DIAS365(CALCULADORA!$C$27,A128)<0,0,DIAS365(CALCULADORA!$C$27,A128)) -> 2822 | C128: =+HLOOKUP(CALCULADORA!$C$9,Tablas!B:B,Flujos!J128+1,FALSE) -> 0.00328996 | D128: 0.606247 | E128: 0.328996 | F128: =ROUND(D127*ROUND(((1+CALCULADORA!$C$16)^(1/12)-1),6),6) -> 0.004597 | G128: 0.333593 | H128: =IF($B128=0,0,G128/POWER(1+CALCULADORA!$C$29,Flujos!$B128/365)) -> 0.1499092296 | I128: 2031-12-24 | J128: 126 | K128: =+DIAS365($A$2,A128) -> 3833 | L128: 1761147535 | M128: 955733380 | N128: 13353469.7 | O128: 969086849.7
A129: 2032-01-24 | B129: =IF(DIAS365(CALCULADORA!$C$27,A129)<0,0,DIAS365(CALCULADORA!$C$27,A129)) -> 2853 | C129: =+HLOOKUP(CALCULADORA!$C$9,Tablas!B:B,Flujos!J129+1,FALSE) -> 0.00325271 | D129: 0.280976 | E129: 0.325271 | F129: =ROUND(D128*ROUND(((1+CALCULADORA!$C$16)^(1/12)-1),6),6) -> 0.00298 | G129: 0.328251 | H129: =IF($B129=0,0,G129/POWER(1+CALCULADORA!$C$29,Flujos!$B129/365)) -> 0.1462181878 | I129: 2032-01-24 | J129: 127 | K129: =+DIAS365($A$2,A129) -> 3864 | L129: 816235280 | M129: 944912255 | N129: 8656040.135 | O129: 953568295.1
A130: 2032-02-24 | B130: =IF(DIAS365(CALCULADORA!$C$27,A130)<0,0,DIAS365(CALCULADORA!$C$27,A130)) -> 2884 | C130: =+HLOOKUP(CALCULADORA!$C$9,Tablas!B:B,Flujos!J130+1,FALSE) -> 0.00280976 | D130: 0 | E130: 0.280976 | F130: =ROUND(D129*ROUND(((1+CALCULADORA!$C$16)^(1/12)-1),6),6) -> 0.001381 | G130: 0.282357 | H130: =IF($B130=0,0,G130/POWER(1+CALCULADORA!$C$29,Flujos!$B130/365)) -> 0.1246745457 | I130: 2032-02-24 | J130: 128 | K130: =+DIAS365($A$2,A130) -> 3895 | L130: -6.067752838e-05 | M130: 816235280 | N130: 4011796.401 | O130: 820247076.4
A131: =EDATE(A130,1) -> 2032-03-24 | B131: =IF(DIAS365(CALCULADORA!$C$27,A131)<0,0,DIAS365(CALCULADORA!$C$27,A131)) -> 2912 | C131: =+HLOOKUP(CALCULADORA!$C$9,Tablas!B:B,Flujos!J131+1,FALSE) -> 0 | D131: 0 | E131: 0 | F131: =ROUND(D130*ROUND(((1+CALCULADORA!$C$16)^(1/12)-1),6),6) -> 0 | G131: 0 | H131: =IF($B131=0,0,G131/POWER(1+CALCULADORA!$C$29,Flujos!$B131/365)) -> 0 | I131: =+A131 -> 2032-03-24 | J131: 129 | K131: =+DIAS365($A$2,A131) -> 3923 | L131: -6.067752838e-05 | M131: 0 | N131: -2.98230052e-07 | O131: -2.98230052e-07
A132: 2032-04-24 | B132: =IF(DIAS365(CALCULADORA!$C$27,A132)<0,0,DIAS365(CALCULADORA!$C$27,A132)) -> 2943 | C132: =+HLOOKUP(CALCULADORA!$C$9,Tablas!B:B,Flujos!J132+1,FALSE) -> 0 | D132: =+ROUND(D131-E132,6) -> 0 | E132: =ROUND(C132*$D$2,6) -> 0 | F132: =ROUND(D131*ROUND(((1+CALCULADORA!$C$16)^(1/12)-1),6),6) -> 0 | G132: =F132+E132 -> 0 | H132: =IF($B132=0,0,G132/POWER(1+CALCULADORA!$C$29,Flujos!$B132/365)) -> 0 | I132: 2032-04-24 | J132: 130 | K132: =+DIAS365($A$2,A132) -> 3954 | L132: =+L131-M132 -> -6.067752838e-05 | M132: =+$L$2*C132 -> 0 | N132: =+L131*$F$3% -> -2.98230052e-07 | O132: =+N132+M132 -> -2.98230052e-07
A133: 2032-05-24 | B133: =IF(DIAS365(CALCULADORA!$C$27,A133)<0,0,DIAS365(CALCULADORA!$C$27,A133)) -> 2973 | C133: =+HLOOKUP(CALCULADORA!$C$9,Tablas!B:B,Flujos!J133+1,FALSE) -> 0 | D133: 0 | E133: 0 | F133: =ROUND(D132*ROUND(((1+CALCULADORA!$C$16)^(1/12)-1),6),6) -> 0 | G133: 0 | H133: =IF($B133=0,0,G133/POWER(1+CALCULADORA!$C$29,Flujos!$B133/365)) -> 0 | I133: 2032-05-24 | J133: 131 | K133: =+DIAS365($A$2,A133) -> 3984 | L133: -6.067752838e-05 | M133: 0 | N133: -2.98230052e-07 | O133: -2.98230052e-07
A134: 2032-06-24 | B134: =IF(DIAS365(CALCULADORA!$C$27,A134)<0,0,DIAS365(CALCULADORA!$C$27,A134)) -> 3004 | C134: =+HLOOKUP(CALCULADORA!$C$9,Tablas!B:B,Flujos!J134+1,FALSE) -> 0 | D134: 0 | E134: 0 | F134: =ROUND(D133*ROUND(((1+CALCULADORA!$C$16)^(1/12)-1),6),6) -> 0 | G134: 0 | H134: =IF($B134=0,0,G134/POWER(1+CALCULADORA!$C$29,Flujos!$B134/365)) -> 0 | I134: 2032-06-24 | J134: 132 | K134: =+DIAS365($A$2,A134) -> 4015 | L134: -6.067752838e-05 | M134: 0 | N134: -2.98230052e-07 | O134: -2.98230052e-07
A135: 2032-07-24 | B135: =IF(DIAS365(CALCULADORA!$C$27,A135)<0,0,DIAS365(CALCULADORA!$C$27,A135)) -> 3034 | C135: =+HLOOKUP(CALCULADORA!$C$9,Tablas!B:B,Flujos!J135+1,FALSE) -> 0 | D135: 0 | E135: 0 | F135: =ROUND(D134*ROUND(((1+CALCULADORA!$C$16)^(1/12)-1),6),6) -> 0 | G135: 0 | H135: =IF($B135=0,0,G135/POWER(1+CALCULADORA!$C$29,Flujos!$B135/365)) -> 0 | I135: 2032-07-24 | J135: 133 | K135: =+DIAS365($A$2,A135) -> 4045 | L135: -6.067752838e-05 | M135: 0 | N135: -2.98230052e-07 | O135: -2.98230052e-07
A136: 2032-08-24 | B136: =IF(DIAS365(CALCULADORA!$C$27,A136)<0,0,DIAS365(CALCULADORA!$C$27,A136)) -> 3065 | C136: =+HLOOKUP(CALCULADORA!$C$9,Tablas!B:B,Flujos!J136+1,FALSE) -> 0 | D136: 0 | E136: 0 | F136: =ROUND(D135*ROUND(((1+CALCULADORA!$C$16)^(1/12)-1),6),6) -> 0 | G136: 0 | H136: =IF($B136=0,0,G136/POWER(1+CALCULADORA!$C$29,Flujos!$B136/365)) -> 0 | I136: 2032-08-24 | J136: 134 | K136: =+DIAS365($A$2,A136) -> 4076 | L136: -6.067752838e-05 | M136: 0 | N136: -2.98230052e-07 | O136: -2.98230052e-07
A137: 2032-09-24 | B137: =IF(DIAS365(CALCULADORA!$C$27,A137)<0,0,DIAS365(CALCULADORA!$C$27,A137)) -> 3096 | C137: =+HLOOKUP(CALCULADORA!$C$9,Tablas!B:B,Flujos!J137+1,FALSE) -> 0 | D137: 0 | E137: 0 | F137: =ROUND(D136*ROUND(((1+CALCULADORA!$C$16)^(1/12)-1),6),6) -> 0 | G137: 0 | H137: =IF($B137=0,0,G137/POWER(1+CALCULADORA!$C$29,Flujos!$B137/365)) -> 0 | I137: 2032-09-24 | J137: 135 | K137: =+DIAS365($A$2,A137) -> 4107 | L137: -6.067752838e-05 | M137: 0 | N137: -2.98230052e-07 | O137: -2.98230052e-07
A138: 2032-10-24 | B138: =IF(DIAS365(CALCULADORA!$C$27,A138)<0,0,DIAS365(CALCULADORA!$C$27,A138)) -> 3126 | C138: =+HLOOKUP(CALCULADORA!$C$9,Tablas!B:B,Flujos!J138+1,FALSE) -> 0 | D138: 0 | E138: 0 | F138: =ROUND(D137*ROUND(((1+CALCULADORA!$C$16)^(1/12)-1),6),6) -> 0 | G138: 0 | H138: =IF($B138=0,0,G138/POWER(1+CALCULADORA!$C$29,Flujos!$B138/365)) -> 0 | I138: 2032-10-24 | J138: 136 | K138: =+DIAS365($A$2,A138) -> 4137 | L138: -6.067752838e-05 | M138: 0 | N138: -2.98230052e-07 | O138: -2.98230052e-07
A139: 2032-11-24 | B139: =IF(DIAS365(CALCULADORA!$C$27,A139)<0,0,DIAS365(CALCULADORA!$C$27,A139)) -> 3157 | C139: =+HLOOKUP(CALCULADORA!$C$9,Tablas!B:B,Flujos!J139+1,FALSE) -> 0 | D139: 0 | E139: 0 | F139: =ROUND(D138*ROUND(((1+CALCULADORA!$C$16)^(1/12)-1),6),6) -> 0 | G139: 0 | H139: =IF($B139=0,0,G139/POWER(1+CALCULADORA!$C$29,Flujos!$B139/365)) -> 0 | I139: 2032-11-24 | J139: 137 | K139: =+DIAS365($A$2,A139) -> 4168 | L139: -6.067752838e-05 | M139: 0 | N139: -2.98230052e-07 | O139: -2.98230052e-07
A140: 2032-12-24 | B140: =IF(DIAS365(CALCULADORA!$C$27,A140)<0,0,DIAS365(CALCULADORA!$C$27,A140)) -> 3187 | C140: =+HLOOKUP(CALCULADORA!$C$9,Tablas!B:B,Flujos!J140+1,FALSE) -> 0 | D140: 0 | E140: 0 | F140: =ROUND(D139*ROUND(((1+CALCULADORA!$C$16)^(1/12)-1),6),6) -> 0 | G140: 0 | H140: =IF($B140=0,0,G140/POWER(1+CALCULADORA!$C$29,Flujos!$B140/365)) -> 0 | I140: 2032-12-24 | J140: 138 | K140: =+DIAS365($A$2,A140) -> 4198 | L140: -6.067752838e-05 | M140: 0 | N140: -2.98230052e-07 | O140: -2.98230052e-07
A141: 2033-01-24 | B141: =IF(DIAS365(CALCULADORA!$C$27,A141)<0,0,DIAS365(CALCULADORA!$C$27,A141)) -> 3218 | C141: =+HLOOKUP(CALCULADORA!$C$9,Tablas!B:B,Flujos!J141+1,FALSE) -> 0 | D141: 0 | E141: 0 | F141: =ROUND(D140*ROUND(((1+CALCULADORA!$C$16)^(1/12)-1),6),6) -> 0 | G141: 0 | H141: =IF($B141=0,0,G141/POWER(1+CALCULADORA!$C$29,Flujos!$B141/365)) -> 0 | I141: 2033-01-24 | J141: 139 | K141: =+DIAS365($A$2,A141) -> 4229 | L141: -6.067752838e-05 | M141: 0 | N141: -2.98230052e-07 | O141: -2.98230052e-07
A142: 2033-02-24 | B142: =IF(DIAS365(CALCULADORA!$C$27,A142)<0,0,DIAS365(CALCULADORA!$C$27,A142)) -> 3249 | C142: =+HLOOKUP(CALCULADORA!$C$9,Tablas!B:B,Flujos!J142+1,FALSE) -> 0 | D142: 0 | E142: 0 | F142: =ROUND(D141*ROUND(((1+CALCULADORA!$C$16)^(1/12)-1),6),6) -> 0 | G142: 0 | H142: =IF($B142=0,0,G142/POWER(1+CALCULADORA!$C$29,Flujos!$B142/365)) -> 0 | I142: 2033-02-24 | J142: 140 | K142: =+DIAS365($A$2,A142) -> 4260 | L142: -6.067752838e-05 | M142: 0 | N142: -2.98230052e-07 | O142: -2.98230052e-07
A143: 2033-03-24 | B143: =IF(DIAS365(CALCULADORA!$C$27,A143)<0,0,DIAS365(CALCULADORA!$C$27,A143)) -> 3277 | C143: =+HLOOKUP(CALCULADORA!$C$9,Tablas!B:B,Flujos!J143+1,FALSE) -> 0 | D143: 0 | E143: 0 | F143: =ROUND(D142*ROUND(((1+CALCULADORA!$C$16)^(1/12)-1),6),6) -> 0 | G143: 0 | H143: =IF($B143=0,0,G143/POWER(1+CALCULADORA!$C$29,Flujos!$B143/365)) -> 0 | I143: 2033-03-24 | J143: 141 | K143: =+DIAS365($A$2,A143) -> 4288 | L143: -6.067752838e-05 | M143: 0 | N143: -2.98230052e-07 | O143: -2.98230052e-07
A144: 2033-04-24 | B144: =IF(DIAS365(CALCULADORA!$C$27,A144)<0,0,DIAS365(CALCULADORA!$C$27,A144)) -> 3308 | C144: =+HLOOKUP(CALCULADORA!$C$9,Tablas!B:B,Flujos!J144+1,FALSE) -> 0 | D144: 0 | E144: 0 | F144: =ROUND(D143*ROUND(((1+CALCULADORA!$C$16)^(1/12)-1),6),6) -> 0 | G144: 0 | H144: =IF($B144=0,0,G144/POWER(1+CALCULADORA!$C$29,Flujos!$B144/365)) -> 0 | I144: 2033-04-24 | J144: 142 | K144: =+DIAS365($A$2,A144) -> 4319 | L144: -6.067752838e-05 | M144: 0 | N144: -2.98230052e-07 | O144: -2.98230052e-07
A145: 2033-05-24 | B145: =IF(DIAS365(CALCULADORA!$C$27,A145)<0,0,DIAS365(CALCULADORA!$C$27,A145)) -> 3338 | C145: =+HLOOKUP(CALCULADORA!$C$9,Tablas!B:B,Flujos!J145+1,FALSE) -> 0 | D145: 0 | E145: 0 | F145: =ROUND(D144*ROUND(((1+CALCULADORA!$C$16)^(1/12)-1),6),6) -> 0 | G145: 0 | H145: =IF($B145=0,0,G145/POWER(1+CALCULADORA!$C$29,Flujos!$B145/365)) -> 0 | I145: 2033-05-24 | J145: 143 | K145: =+DIAS365($A$2,A145) -> 4349 | L145: -6.067752838e-05 | M145: 0 | N145: -2.98230052e-07 | O145: -2.98230052e-07
A146: 2033-06-24 | B146: =IF(DIAS365(CALCULADORA!$C$27,A146)<0,0,DIAS365(CALCULADORA!$C$27,A146)) -> 3369 | C146: =+HLOOKUP(CALCULADORA!$C$9,Tablas!B:B,Flujos!J146+1,FALSE) -> 0 | D146: 0 | E146: 0 | F146: =ROUND(D145*ROUND(((1+CALCULADORA!$C$16)^(1/12)-1),6),6) -> 0 | G146: 0 | H146: =IF($B146=0,0,G146/POWER(1+CALCULADORA!$C$29,Flujos!$B146/365)) -> 0 | I146: 2033-06-24 | J146: 144 | K146: =+DIAS365($A$2,A146) -> 4380 | L146: -6.067752838e-05 | M146: 0 | N146: -2.98230052e-07 | O146: -2.98230052e-07
A147: 2033-07-24 | B147: =IF(DIAS365(CALCULADORA!$C$27,A147)<0,0,DIAS365(CALCULADORA!$C$27,A147)) -> 3399 | C147: =+HLOOKUP(CALCULADORA!$C$9,Tablas!B:B,Flujos!J147+1,FALSE) -> 0 | D147: 0 | E147: 0 | F147: =ROUND(D146*ROUND(((1+CALCULADORA!$C$16)^(1/12)-1),6),6) -> 0 | G147: 0 | H147: =IF($B147=0,0,G147/POWER(1+CALCULADORA!$C$29,Flujos!$B147/365)) -> 0 | I147: 2033-07-24 | J147: 145 | K147: =+DIAS365($A$2,A147) -> 4410 | L147: -6.067752838e-05 | M147: 0 | N147: -2.98230052e-07 | O147: -2.98230052e-07
A148: 2033-08-24 | B148: =IF(DIAS365(CALCULADORA!$C$27,A148)<0,0,DIAS365(CALCULADORA!$C$27,A148)) -> 3430 | C148: =+HLOOKUP(CALCULADORA!$C$9,Tablas!B:B,Flujos!J148+1,FALSE) -> 0 | D148: 0 | E148: 0 | F148: =ROUND(D147*ROUND(((1+CALCULADORA!$C$16)^(1/12)-1),6),6) -> 0 | G148: 0 | H148: =IF($B148=0,0,G148/POWER(1+CALCULADORA!$C$29,Flujos!$B148/365)) -> 0 | I148: 2033-08-24 | J148: 146 | K148: =+DIAS365($A$2,A148) -> 4441 | L148: -6.067752838e-05 | M148: 0 | N148: -2.98230052e-07 | O148: -2.98230052e-07
A149: 2033-09-24 | B149: =IF(DIAS365(CALCULADORA!$C$27,A149)<0,0,DIAS365(CALCULADORA!$C$27,A149)) -> 3461 | C149: =+HLOOKUP(CALCULADORA!$C$9,Tablas!B:B,Flujos!J149+1,FALSE) -> 0 | D149: 0 | E149: 0 | F149: =ROUND(D148*ROUND(((1+CALCULADORA!$C$16)^(1/12)-1),6),6) -> 0 | G149: 0 | H149: =IF($B149=0,0,G149/POWER(1+CALCULADORA!$C$29,Flujos!$B149/365)) -> 0 | I149: 2033-09-24 | J149: 147 | K149: =+DIAS365($A$2,A149) -> 4472 | L149: -6.067752838e-05 | M149: 0 | N149: -2.98230052e-07 | O149: -2.98230052e-07
A150: 2033-10-24 | B150: =IF(DIAS365(CALCULADORA!$C$27,A150)<0,0,DIAS365(CALCULADORA!$C$27,A150)) -> 3491 | C150: =+HLOOKUP(CALCULADORA!$C$9,Tablas!B:B,Flujos!J150+1,FALSE) -> 0 | D150: 0 | E150: 0 | F150: =ROUND(D149*ROUND(((1+CALCULADORA!$C$16)^(1/12)-1),6),6) -> 0 | G150: 0 | H150: =IF($B150=0,0,G150/POWER(1+CALCULADORA!$C$29,Flujos!$B150/365)) -> 0 | I150: 2033-10-24 | J150: 148 | K150: =+DIAS365($A$2,A150) -> 4502 | L150: -6.067752838e-05 | M150: 0 | N150: -2.98230052e-07 | O150: -2.98230052e-07
A151: 2033-11-24 | B151: =IF(DIAS365(CALCULADORA!$C$27,A151)<0,0,DIAS365(CALCULADORA!$C$27,A151)) -> 3522 | C151: =+HLOOKUP(CALCULADORA!$C$9,Tablas!B:B,Flujos!J151+1,FALSE) -> 0 | D151: 0 | E151: 0 | F151: =ROUND(D150*ROUND(((1+CALCULADORA!$C$16)^(1/12)-1),6),6) -> 0 | G151: 0 | H151: =IF($B151=0,0,G151/POWER(1+CALCULADORA!$C$29,Flujos!$B151/365)) -> 0 | I151: 2033-11-24 | J151: 149 | K151: =+DIAS365($A$2,A151) -> 4533 | L151: -6.067752838e-05 | M151: 0 | N151: -2.98230052e-07 | O151: -2.98230052e-07
A152: 2033-12-24 | B152: =IF(DIAS365(CALCULADORA!$C$27,A152)<0,0,DIAS365(CALCULADORA!$C$27,A152)) -> 3552 | C152: =+HLOOKUP(CALCULADORA!$C$9,Tablas!B:B,Flujos!J152+1,FALSE) -> 0 | D152: 0 | E152: 0 | F152: =ROUND(D151*ROUND(((1+CALCULADORA!$C$16)^(1/12)-1),6),6) -> 0 | G152: 0 | H152: =IF($B152=0,0,G152/POWER(1+CALCULADORA!$C$29,Flujos!$B152/365)) -> 0 | I152: 2033-12-24 | J152: 150 | K152: =+DIAS365($A$2,A152) -> 4563 | L152: -6.067752838e-05 | M152: 0 | N152: -2.98230052e-07 | O152: -2.98230052e-07
A153: 2034-01-24 | B153: =IF(DIAS365(CALCULADORA!$C$27,A153)<0,0,DIAS365(CALCULADORA!$C$27,A153)) -> 3583 | C153: =+HLOOKUP(CALCULADORA!$C$9,Tablas!B:B,Flujos!J153+1,FALSE) -> 0 | D153: 0 | E153: 0 | F153: =ROUND(D152*ROUND(((1+CALCULADORA!$C$16)^(1/12)-1),6),6) -> 0 | G153: 0 | H153: =IF($B153=0,0,G153/POWER(1+CALCULADORA!$C$29,Flujos!$B153/365)) -> 0 | I153: 2034-01-24 | J153: 151 | K153: =+DIAS365($A$2,A153) -> 4594 | L153: -6.067752838e-05 | M153: 0 | N153: -2.98230052e-07 | O153: -2.98230052e-07
A154: 2034-02-24 | B154: =IF(DIAS365(CALCULADORA!$C$27,A154)<0,0,DIAS365(CALCULADORA!$C$27,A154)) -> 3614 | C154: =+HLOOKUP(CALCULADORA!$C$9,Tablas!B:B,Flujos!J154+1,FALSE) -> 0 | D154: 0 | E154: 0 | F154: =ROUND(D153*ROUND(((1+CALCULADORA!$C$16)^(1/12)-1),6),6) -> 0 | G154: 0 | H154: =IF($B154=0,0,G154/POWER(1+CALCULADORA!$C$29,Flujos!$B154/365)) -> 0 | I154: 2034-02-24 | J154: 152 | K154: =+DIAS365($A$2,A154) -> 4625 | L154: -6.067752838e-05 | M154: 0 | N154: -2.98230052e-07 | O154: -2.98230052e-07
A155: 2034-03-24 | B155: =IF(DIAS365(CALCULADORA!$C$27,A155)<0,0,DIAS365(CALCULADORA!$C$27,A155)) -> 3642 | C155: =+HLOOKUP(CALCULADORA!$C$9,Tablas!B:B,Flujos!J155+1,FALSE) -> 0 | D155: 0 | E155: 0 | F155: =ROUND(D154*ROUND(((1+CALCULADORA!$C$16)^(1/12)-1),6),6) -> 0 | G155: 0 | H155: =IF($B155=0,0,G155/POWER(1+CALCULADORA!$C$29,Flujos!$B155/365)) -> 0 | I155: 2034-03-24 | J155: 153 | K155: =+DIAS365($A$2,A155) -> 4653 | L155: -6.067752838e-05 | M155: 0 | N155: -2.98230052e-07 | O155: -2.98230052e-07
A156: 2034-04-24 | B156: =IF(DIAS365(CALCULADORA!$C$27,A156)<0,0,DIAS365(CALCULADORA!$C$27,A156)) -> 3673 | C156: =+HLOOKUP(CALCULADORA!$C$9,Tablas!B:B,Flujos!J156+1,FALSE) -> 0 | D156: 0 | E156: 0 | F156: =ROUND(D155*ROUND(((1+CALCULADORA!$C$16)^(1/12)-1),6),6) -> 0 | G156: 0 | H156: =IF($B156=0,0,G156/POWER(1+CALCULADORA!$C$29,Flujos!$B156/365)) -> 0 | I156: 2034-04-24 | J156: 154 | K156: =+DIAS365($A$2,A156) -> 4684 | L156: -6.067752838e-05 | M156: 0 | N156: -2.98230052e-07 | O156: -2.98230052e-07
A157: 2034-05-24 | B157: =IF(DIAS365(CALCULADORA!$C$27,A157)<0,0,DIAS365(CALCULADORA!$C$27,A157)) -> 3703 | C157: =+HLOOKUP(CALCULADORA!$C$9,Tablas!B:B,Flujos!J157+1,FALSE) -> 0 | D157: 0 | E157: 0 | F157: =ROUND(D156*ROUND(((1+CALCULADORA!$C$16)^(1/12)-1),6),6) -> 0 | G157: 0 | H157: =IF($B157=0,0,G157/POWER(1+CALCULADORA!$C$29,Flujos!$B157/365)) -> 0 | I157: 2034-05-24 | J157: 155 | K157: =+DIAS365($A$2,A157) -> 4714 | L157: -6.067752838e-05 | M157: 0 | N157: -2.98230052e-07 | O157: -2.98230052e-07
A158: 2034-06-24 | B158: =IF(DIAS365(CALCULADORA!$C$27,A158)<0,0,DIAS365(CALCULADORA!$C$27,A158)) -> 3734 | C158: =+HLOOKUP(CALCULADORA!$C$9,Tablas!B:B,Flujos!J158+1,FALSE) -> 0 | D158: 0 | E158: 0 | F158: =ROUND(D157*ROUND(((1+CALCULADORA!$C$16)^(1/12)-1),6),6) -> 0 | G158: 0 | H158: =IF($B158=0,0,G158/POWER(1+CALCULADORA!$C$29,Flujos!$B158/365)) -> 0 | I158: 2034-06-24 | J158: 156 | K158: =+DIAS365($A$2,A158) -> 4745 | L158: -6.067752838e-05 | M158: 0 | N158: -2.98230052e-07 | O158: -2.98230052e-07
A159: 2034-07-24 | B159: =IF(DIAS365(CALCULADORA!$C$27,A159)<0,0,DIAS365(CALCULADORA!$C$27,A159)) -> 3764 | C159: =+HLOOKUP(CALCULADORA!$C$9,Tablas!B:B,Flujos!J159+1,FALSE) -> 0 | D159: 0 | E159: 0 | F159: =ROUND(D158*ROUND(((1+CALCULADORA!$C$16)^(1/12)-1),6),6) -> 0 | G159: 0 | H159: =IF($B159=0,0,G159/POWER(1+CALCULADORA!$C$29,Flujos!$B159/365)) -> 0 | I159: 2034-07-24 | J159: 157 | K159: =+DIAS365($A$2,A159) -> 4775 | L159: -6.067752838e-05 | M159: 0 | N159: -2.98230052e-07 | O159: -2.98230052e-07
A160: 2034-08-24 | B160: =IF(DIAS365(CALCULADORA!$C$27,A160)<0,0,DIAS365(CALCULADORA!$C$27,A160)) -> 3795 | C160: =+HLOOKUP(CALCULADORA!$C$9,Tablas!B:B,Flujos!J160+1,FALSE) -> 0 | D160: 0 | E160: 0 | F160: =ROUND(D159*ROUND(((1+CALCULADORA!$C$16)^(1/12)-1),6),6) -> 0 | G160: 0 | H160: =IF($B160=0,0,G160/POWER(1+CALCULADORA!$C$29,Flujos!$B160/365)) -> 0 | I160: 2034-08-24 | J160: 158 | K160: =+DIAS365($A$2,A160) -> 4806 | L160: -6.067752838e-05 | M160: 0 | N160: -2.98230052e-07 | O160: -2.98230052e-07
A161: 2034-09-24 | B161: =IF(DIAS365(CALCULADORA!$C$27,A161)<0,0,DIAS365(CALCULADORA!$C$27,A161)) -> 3826 | C161: =+HLOOKUP(CALCULADORA!$C$9,Tablas!B:B,Flujos!J161+1,FALSE) -> 0 | D161: 0 | E161: 0 | F161: =ROUND(D160*ROUND(((1+CALCULADORA!$C$16)^(1/12)-1),6),6) -> 0 | G161: 0 | H161: =IF($B161=0,0,G161/POWER(1+CALCULADORA!$C$29,Flujos!$B161/365)) -> 0 | I161: 2034-09-24 | J161: 159 | K161: =+DIAS365($A$2,A161) -> 4837 | L161: -6.067752838e-05 | M161: 0 | N161: -2.98230052e-07 | O161: -2.98230052e-07
A162: 2034-10-24 | B162: =IF(DIAS365(CALCULADORA!$C$27,A162)<0,0,DIAS365(CALCULADORA!$C$27,A162)) -> 3856 | C162: =+HLOOKUP(CALCULADORA!$C$9,Tablas!B:B,Flujos!J162+1,FALSE) -> 0 | D162: 0 | E162: 0 | F162: =ROUND(D161*ROUND(((1+CALCULADORA!$C$16)^(1/12)-1),6),6) -> 0 | G162: 0 | H162: =IF($B162=0,0,G162/POWER(1+CALCULADORA!$C$29,Flujos!$B162/365)) -> 0 | I162: 2034-10-24 | J162: 160 | K162: =+DIAS365($A$2,A162) -> 4867 | L162: -6.067752838e-05 | M162: 0 | N162: -2.98230052e-07 | O162: -2.98230052e-07
A163: =EDATE(A162,1) -> 2034-11-24 | B163: =IF(DIAS365(CALCULADORA!$C$27,A163)<0,0,DIAS365(CALCULADORA!$C$27,A163)) -> 3887 | C163: =+HLOOKUP(CALCULADORA!$C$9,Tablas!B:B,Flujos!J163+1,FALSE) -> 0 | D163: 0 | E163: 0 | F163: =ROUND(D162*ROUND(((1+CALCULADORA!$C$16)^(1/12)-1),6),6) -> 0 | G163: 0 | H163: =IF($B163=0,0,G163/POWER(1+CALCULADORA!$C$29,Flujos!$B163/365)) -> 0 | I163: 2034-11-24 | J163: 161 | K163: =+DIAS365($A$2,A163) -> 4898 | L163: -6.067752838e-05 | M163: 0 | N163: -2.98230052e-07 | O163: -2.98230052e-07
A164: 2034-12-24 | B164: =IF(DIAS365(CALCULADORA!$C$27,A164)<0,0,DIAS365(CALCULADORA!$C$27,A164)) -> 3917 | C164: =+HLOOKUP(CALCULADORA!$C$9,Tablas!B:B,Flujos!J164+1,FALSE) -> 0 | D164: 0 | E164: 0 | F164: =ROUND(D163*ROUND(((1+CALCULADORA!$C$16)^(1/12)-1),6),6) -> 0 | G164: 0 | H164: =IF($B164=0,0,G164/POWER(1+CALCULADORA!$C$29,Flujos!$B164/365)) -> 0 | I164: 2034-12-24 | J164: 162 | K164: =+DIAS365($A$2,A164) -> 4928 | L164: -6.067752838e-05 | M164: 0 | N164: -2.98230052e-07 | O164: -2.98230052e-07
A165: 2035-01-24 | B165: =IF(DIAS365(CALCULADORA!$C$27,A165)<0,0,DIAS365(CALCULADORA!$C$27,A165)) -> 3948 | C165: =+HLOOKUP(CALCULADORA!$C$9,Tablas!B:B,Flujos!J165+1,FALSE) -> 0 | D165: 0 | E165: 0 | F165: =ROUND(D164*ROUND(((1+CALCULADORA!$C$16)^(1/12)-1),6),6) -> 0 | G165: 0 | H165: =IF($B165=0,0,G165/POWER(1+CALCULADORA!$C$29,Flujos!$B165/365)) -> 0 | I165: 2035-01-24 | J165: 163 | K165: =+DIAS365($A$2,A165) -> 4959 | L165: -6.067752838e-05 | M165: 0 | N165: -2.98230052e-07 | O165: -2.98230052e-07
A166: 2035-02-24 | B166: =IF(DIAS365(CALCULADORA!$C$27,A166)<0,0,DIAS365(CALCULADORA!$C$27,A166)) -> 3979 | C166: =+HLOOKUP(CALCULADORA!$C$9,Tablas!B:B,Flujos!J166+1,FALSE) -> 0 | D166: 0 | E166: 0 | F166: =ROUND(D165*ROUND(((1+CALCULADORA!$C$16)^(1/12)-1),6),6) -> 0 | G166: 0 | H166: =IF($B166=0,0,G166/POWER(1+CALCULADORA!$C$29,Flujos!$B166/365)) -> 0 | I166: 2035-02-24 | J166: 164 | K166: =+DIAS365($A$2,A166) -> 4990 | L166: -6.067752838e-05 | M166: 0 | N166: -2.98230052e-07 | O166: -2.98230052e-07
A167: 2035-03-24 | B167: =IF(DIAS365(CALCULADORA!$C$27,A167)<0,0,DIAS365(CALCULADORA!$C$27,A167)) -> 4007 | C167: =+HLOOKUP(CALCULADORA!$C$9,Tablas!B:B,Flujos!J167+1,FALSE) -> 0 | D167: 0 | E167: 0 | F167: =ROUND(D166*ROUND(((1+CALCULADORA!$C$16)^(1/12)-1),6),6) -> 0 | G167: 0 | H167: =IF($B167=0,0,G167/POWER(1+CALCULADORA!$C$29,Flujos!$B167/365)) -> 0 | I167: 2035-03-24 | J167: 165 | K167: =+DIAS365($A$2,A167) -> 5018 | L167: -6.067752838e-05 | M167: 0 | N167: -2.98230052e-07 | O167: -2.98230052e-07
A168: 2035-04-24 | B168: =IF(DIAS365(CALCULADORA!$C$27,A168)<0,0,DIAS365(CALCULADORA!$C$27,A168)) -> 4038 | C168: =+HLOOKUP(CALCULADORA!$C$9,Tablas!B:B,Flujos!J168+1,FALSE) -> 0 | D168: 0 | E168: 0 | F168: =ROUND(D167*ROUND(((1+CALCULADORA!$C$16)^(1/12)-1),6),6) -> 0 | G168: 0 | H168: =IF($B168=0,0,G168/POWER(1+CALCULADORA!$C$29,Flujos!$B168/365)) -> 0 | I168: 2035-04-24 | J168: 166 | K168: =+DIAS365($A$2,A168) -> 5049 | L168: -6.067752838e-05 | M168: 0 | N168: -2.98230052e-07 | O168: -2.98230052e-07
A169: 2035-05-24 | B169: =IF(DIAS365(CALCULADORA!$C$27,A169)<0,0,DIAS365(CALCULADORA!$C$27,A169)) -> 4068 | C169: =+HLOOKUP(CALCULADORA!$C$9,Tablas!B:B,Flujos!J169+1,FALSE) -> 0 | D169: 0 | E169: 0 | F169: =ROUND(D168*ROUND(((1+CALCULADORA!$C$16)^(1/12)-1),6),6) -> 0 | G169: 0 | H169: =IF($B169=0,0,G169/POWER(1+CALCULADORA!$C$29,Flujos!$B169/365)) -> 0 | I169: 2035-05-24 | J169: 167 | K169: =+DIAS365($A$2,A169) -> 5079 | L169: -6.067752838e-05 | M169: 0 | N169: -2.98230052e-07 | O169: -2.98230052e-07
A170: 2035-06-24 | B170: =IF(DIAS365(CALCULADORA!$C$27,A170)<0,0,DIAS365(CALCULADORA!$C$27,A170)) -> 4099 | C170: =+HLOOKUP(CALCULADORA!$C$9,Tablas!B:B,Flujos!J170+1,FALSE) -> 0 | D170: 0 | E170: 0 | F170: =ROUND(D169*ROUND(((1+CALCULADORA!$C$16)^(1/12)-1),6),6) -> 0 | G170: 0 | H170: =IF($B170=0,0,G170/POWER(1+CALCULADORA!$C$29,Flujos!$B170/365)) -> 0 | I170: 2035-06-24 | J170: 168 | K170: =+DIAS365($A$2,A170) -> 5110 | L170: -6.067752838e-05 | M170: 0 | N170: -2.98230052e-07 | O170: -2.98230052e-07
A171: 2035-07-24 | B171: =IF(DIAS365(CALCULADORA!$C$27,A171)<0,0,DIAS365(CALCULADORA!$C$27,A171)) -> 4129 | C171: =+HLOOKUP(CALCULADORA!$C$9,Tablas!B:B,Flujos!J171+1,FALSE) -> 0 | D171: 0 | E171: 0 | F171: =ROUND(D170*ROUND(((1+CALCULADORA!$C$16)^(1/12)-1),6),6) -> 0 | G171: 0 | H171: =IF($B171=0,0,G171/POWER(1+CALCULADORA!$C$29,Flujos!$B171/365)) -> 0 | I171: 2035-07-24 | J171: 169 | K171: =+DIAS365($A$2,A171) -> 5140 | L171: -6.067752838e-05 | M171: 0 | N171: -2.98230052e-07 | O171: -2.98230052e-07
A172: 2035-08-24 | B172: =IF(DIAS365(CALCULADORA!$C$27,A172)<0,0,DIAS365(CALCULADORA!$C$27,A172)) -> 4160 | C172: =+HLOOKUP(CALCULADORA!$C$9,Tablas!B:B,Flujos!J172+1,FALSE) -> 0 | D172: 0 | E172: 0 | F172: =ROUND(D171*ROUND(((1+CALCULADORA!$C$16)^(1/12)-1),6),6) -> 0 | G172: 0 | H172: =IF($B172=0,0,G172/POWER(1+CALCULADORA!$C$29,Flujos!$B172/365)) -> 0 | I172: 2035-08-24 | J172: 170 | K172: =+DIAS365($A$2,A172) -> 5171 | L172: -6.067752838e-05 | M172: 0 | N172: -2.98230052e-07 | O172: -2.98230052e-07
A173: 2035-09-24 | B173: =IF(DIAS365(CALCULADORA!$C$27,A173)<0,0,DIAS365(CALCULADORA!$C$27,A173)) -> 4191 | C173: =+HLOOKUP(CALCULADORA!$C$9,Tablas!B:B,Flujos!J173+1,FALSE) -> 0 | D173: 0 | E173: 0 | F173: =ROUND(D172*ROUND(((1+CALCULADORA!$C$16)^(1/12)-1),6),6) -> 0 | G173: 0 | H173: =IF($B173=0,0,G173/POWER(1+CALCULADORA!$C$29,Flujos!$B173/365)) -> 0 | I173: 2035-09-24 | J173: 171 | K173: =+DIAS365($A$2,A173) -> 5202 | L173: -6.067752838e-05 | M173: 0 | N173: -2.98230052e-07 | O173: -2.98230052e-07
A174: 2035-10-24 | B174: =IF(DIAS365(CALCULADORA!$C$27,A174)<0,0,DIAS365(CALCULADORA!$C$27,A174)) -> 4221 | C174: =+HLOOKUP(CALCULADORA!$C$9,Tablas!B:B,Flujos!J174+1,FALSE) -> 0 | D174: 0 | E174: 0 | F174: =ROUND(D173*ROUND(((1+CALCULADORA!$C$16)^(1/12)-1),6),6) -> 0 | G174: 0 | H174: =IF($B174=0,0,G174/POWER(1+CALCULADORA!$C$29,Flujos!$B174/365)) -> 0 | I174: 2035-10-24 | J174: 172 | K174: =+DIAS365($A$2,A174) -> 5232 | L174: -6.067752838e-05 | M174: 0 | N174: -2.98230052e-07 | O174: -2.98230052e-07
A175: 2035-11-24 | B175: =IF(DIAS365(CALCULADORA!$C$27,A175)<0,0,DIAS365(CALCULADORA!$C$27,A175)) -> 4252 | C175: =+HLOOKUP(CALCULADORA!$C$9,Tablas!B:B,Flujos!J175+1,FALSE) -> 0 | D175: 0 | E175: 0 | F175: =ROUND(D174*ROUND(((1+CALCULADORA!$C$16)^(1/12)-1),6),6) -> 0 | G175: 0 | H175: =IF($B175=0,0,G175/POWER(1+CALCULADORA!$C$29,Flujos!$B175/365)) -> 0 | I175: 2035-11-24 | J175: 173 | K175: =+DIAS365($A$2,A175) -> 5263 | L175: -6.067752838e-05 | M175: 0 | N175: -2.98230052e-07 | O175: -2.98230052e-07
A176: 2035-12-24 | B176: =IF(DIAS365(CALCULADORA!$C$27,A176)<0,0,DIAS365(CALCULADORA!$C$27,A176)) -> 4282 | C176: =+HLOOKUP(CALCULADORA!$C$9,Tablas!B:B,Flujos!J176+1,FALSE) -> 0 | D176: 0 | E176: 0 | F176: =ROUND(D175*ROUND(((1+CALCULADORA!$C$16)^(1/12)-1),6),6) -> 0 | G176: 0 | H176: =IF($B176=0,0,G176/POWER(1+CALCULADORA!$C$29,Flujos!$B176/365)) -> 0 | I176: 2035-12-24 | J176: 174 | K176: =+DIAS365($A$2,A176) -> 5293 | L176: -6.067752838e-05 | M176: 0 | N176: -2.98230052e-07 | O176: -2.98230052e-07
A177: 2036-01-24 | B177: =IF(DIAS365(CALCULADORA!$C$27,A177)<0,0,DIAS365(CALCULADORA!$C$27,A177)) -> 4313 | C177: =+HLOOKUP(CALCULADORA!$C$9,Tablas!B:B,Flujos!J177+1,FALSE) -> 0 | D177: 0 | E177: 0 | F177: =ROUND(D176*ROUND(((1+CALCULADORA!$C$16)^(1/12)-1),6),6) -> 0 | G177: 0 | H177: =IF($B177=0,0,G177/POWER(1+CALCULADORA!$C$29,Flujos!$B177/365)) -> 0 | I177: 2036-01-24 | J177: 175 | K177: =+DIAS365($A$2,A177) -> 5324 | L177: -6.067752838e-05 | M177: 0 | N177: -2.98230052e-07 | O177: -2.98230052e-07
A178: 2036-02-24 | B178: =IF(DIAS365(CALCULADORA!$C$27,A178)<0,0,DIAS365(CALCULADORA!$C$27,A178)) -> 4344 | C178: =+HLOOKUP(CALCULADORA!$C$9,Tablas!B:B,Flujos!J178+1,FALSE) -> 0 | D178: 0 | E178: 0 | F178: =ROUND(D177*ROUND(((1+CALCULADORA!$C$16)^(1/12)-1),6),6) -> 0 | G178: 0 | H178: =IF($B178=0,0,G178/POWER(1+CALCULADORA!$C$29,Flujos!$B178/365)) -> 0 | I178: 2036-02-24 | J178: 176 | K178: =+DIAS365($A$2,A178) -> 5355 | L178: -6.067752838e-05 | M178: 0 | N178: -2.98230052e-07 | O178: -2.98230052e-07
A179: 2036-03-24 | B179: =IF(DIAS365(CALCULADORA!$C$27,A179)<0,0,DIAS365(CALCULADORA!$C$27,A179)) -> 4372 | C179: =+HLOOKUP(CALCULADORA!$C$9,Tablas!B:B,Flujos!J179+1,FALSE) -> 0 | D179: 0 | E179: 0 | F179: =ROUND(D178*ROUND(((1+CALCULADORA!$C$16)^(1/12)-1),6),6) -> 0 | G179: 0 | H179: =IF($B179=0,0,G179/POWER(1+CALCULADORA!$C$29,Flujos!$B179/365)) -> 0 | I179: 2036-03-24 | J179: 177 | K179: =+DIAS365($A$2,A179) -> 5383 | L179: -6.067752838e-05 | M179: 0 | N179: -2.98230052e-07 | O179: -2.98230052e-07
A180: 2036-04-24 | B180: =IF(DIAS365(CALCULADORA!$C$27,A180)<0,0,DIAS365(CALCULADORA!$C$27,A180)) -> 4403 | C180: =+HLOOKUP(CALCULADORA!$C$9,Tablas!B:B,Flujos!J180+1,FALSE) -> 0 | D180: 0 | E180: 0 | F180: =ROUND(D179*ROUND(((1+CALCULADORA!$C$16)^(1/12)-1),6),6) -> 0 | G180: 0 | H180: =IF($B180=0,0,G180/POWER(1+CALCULADORA!$C$29,Flujos!$B180/365)) -> 0 | I180: 2036-04-24 | J180: 178 | K180: =+DIAS365($A$2,A180) -> 5414 | L180: -6.067752838e-05 | M180: 0 | N180: -2.98230052e-07 | O180: -2.98230052e-07
A181: 2036-05-24 | B181: =IF(DIAS365(CALCULADORA!$C$27,A181)<0,0,DIAS365(CALCULADORA!$C$27,A181)) -> 4433 | C181: =+HLOOKUP(CALCULADORA!$C$9,Tablas!B:B,Flujos!J181+1,FALSE) -> 0 | D181: 0 | E181: 0 | F181: =ROUND(D180*ROUND(((1+CALCULADORA!$C$16)^(1/12)-1),6),6) -> 0 | G181: 0 | H181: =IF($B181=0,0,G181/POWER(1+CALCULADORA!$C$29,Flujos!$B181/365)) -> 0 | I181: 2036-05-24 | J181: 179 | K181: =+DIAS365($A$2,A181) -> 5444 | L181: -6.067752838e-05 | M181: 0 | N181: -2.98230052e-07 | O181: -2.98230052e-07
A182: 2036-06-24 | B182: =IF(DIAS365(CALCULADORA!$C$27,A182)<0,0,DIAS365(CALCULADORA!$C$27,A182)) -> 4464 | C182: =+HLOOKUP(CALCULADORA!$C$9,Tablas!B:B,Flujos!J182+1,FALSE) -> 0 | D182: 0 | E182: 0 | F182: =ROUND(D181*ROUND(((1+CALCULADORA!$C$16)^(1/12)-1),6),6) -> 0 | G182: 0 | H182: =IF($B182=0,0,G182/POWER(1+CALCULADORA!$C$29,Flujos!$B182/365)) -> 0 | I182: 2036-06-24 | J182: 180 | K182: =+DIAS365($A$2,A182) -> 5475 | L182: -6.067752838e-05 | M182: 0 | N182: -2.98230052e-07 | O182: -2.98230052e-07
C183: =+SUMIF(B2:B182,">0",C2:C182) -> 0.51884131 | E183: =SUM(E2:E182) -> 100 | F183: =SUM(F2:F182) -> 20.770807 | G183: =SUM(G2:G182) -> 120.770807 | H183: =SUM(H2:H182) -> 46.45921624 | L183: Totales | M183: =SUM(M2:M182) -> 2.905e+11 | N183: =SUM(N2:N182) -> 6.033917291e+10 | O183: 3.508391729e+11

Sheet TIR de Tenencia (hidden)
A1: =+Flujos!A1 -> Fecha | B1: =+Flujos!L1 -> Saldo / Balance | C1: =+Flujos!M1 -> Pago de Capital | D1: =+Flujos!N1 -> Pago de Intereses | E1: =+Flujos!O1 -> Pago Total | F1: =+CALCULADORA!C27 -> 2024-04-01 | G1: Fecha | H1: Flujo | I1: Fecha | J1: Flujo 1 | K1: TIR | L1: =+DAY(A2) -> 24 | M1: =+MONTH(G2) -> 3 | N1: =+YEAR(G2) -> 2024 | P1: =MATCH(MAX('TIR de Tenencia'!I:I),'TIR de Tenencia'!I:I,0) -> 3
A2: =+Flujos!A2 -> 2021-06-24 | B2: =+Flujos!L2 -> 2.905e+11 | C2: =+Flujos!M2 -> 0 | D2: =+Flujos!N2 -> 0 | E2: =+Flujos!O2 -> 0 | G2: =+CALCULADORA!C23 -> 2024-03-07 | H2: =-CALCULADORA!C24 -> -1000000000 | I2: =+G2 -> 2024-03-07 | J2: =+H2 -> -1000000000 | K2: =+XIRR(J2:J22,I2:I22) ->  | L2: =+L1 -> 24 | M2: =+IF(M1=12,1,M1+1) -> 4 | N2: =+IF(M2=1,N1+1,N1) -> 2024 | P2: 1 | Q2: Enero
A3: =+Flujos!A3 -> 2021-07-24 | B3: =+Flujos!L3 -> 2.848278452e+11 | C3: =+Flujos!M3 -> 5672154845 | D3: =+Flujos!N3 -> 1427807500 | E3: =+Flujos!O3 -> 7099962345 | G3: =+DATE(N2,M2,L2) -> 2024-04-24 | H3: =IF(G3<CALCULADORA!$C$23,0,IF(CALCULADORA!$C$27>'TIR de Tenencia'!G3,E3,CALCULADORA!$C$33)) -> 135135586470 | I3: =+IF(H3=H2," ",G3) -> 2024-04-24 | J3: =+IF(H3=H2," ",H3) -> 135135586470 | L3: =+L2 -> 24 | M3: =+IF(M2=12,1,M2+1) -> 5 | N3: =+IF(M3=1,N2+1,N2) -> 2024 | P3: 2 | Q3: Febrero
A4: =+Flujos!A4 -> 2021-08-24 | B4: =+Flujos!L4 -> 2.765921731e+11 | C4: =+Flujos!M4 -> 8235672095 | D4: =+Flujos!N4 -> 1399928859 | E4: =+Flujos!O4 -> 9635600954 | G4: =+DATE(N3,M3,L3) -> 2024-05-24 | H4: =IF(G4<CALCULADORA!$C$23,0,IF(CALCULADORA!$C$27>'TIR de Tenencia'!G4,E4,CALCULADORA!$C$33)) -> 135135586470 | I4: =+IF(H4=H3," ",G4) ->  | J4: =+IF(H4=H3," ",H4) ->  | L4: 24 | M4: 6 | N4: 2024 | P4: 3 | Q4: Marzo
A5: =+Flujos!A5 -> 2021-09-24 | B5: =+Flujos!L5 -> 2.688808593e+11 | C5: =+Flujos!M5 -> 7711313785 | D5: =+Flujos!N5 -> 1359450531 | E5: =+Flujos!O5 -> 9070764316 | G5: 2024-06-24 | H5: =IF(G5<CALCULADORA!$C$23,0,IF(CALCULADORA!$C$27>'TIR de Tenencia'!G5,E5,CALCULADORA!$C$33)) -> 135135586470 | I5: =+IF(H5=H4," ",G5) ->  | J5: =+IF(H5=H4," ",H5) ->  | L5: 24 | M5: 7 | N5: 2024 | P5: 4 | Q5: Abril
A6: =+Flujos!A6 -> 2021-10-24 | B6: =+Flujos!L6 -> 2.611035671e+11 | C6: =+Flujos!M6 -> 7777292145 | D6: =+Flujos!N6 -> 1321549423 | E6: =+Flujos!O6 -> 9098841568 | G6: 2024-07-24 | H6: =IF(G6<CALCULADORA!$C$23,0,IF(CALCULADORA!$C$27>'TIR de Tenencia'!G6,E6,CALCULADORA!$C$33)) -> 135135586470 | L6: 24 | M6: 8 | N6: 2024 | P6: 5 | Q6: Mayo
A7: =+Flujos!A7 -> 2021-11-24 | B7: =+Flujos!L7 -> 2.547809944e+11 | C7: =+Flujos!M7 -> 6322572725 | D7: =+Flujos!N7 -> 1283324032 | E7: =+Flujos!O7 -> 7605896757 | G7: 2024-08-24 | H7: =IF(G7<CALCULADORA!$C$23,0,IF(CALCULADORA!$C$27>'TIR de Tenencia'!G7,E7,CALCULADORA!$C$33)) -> 135135586470 | L7: 24 | M7: 9 | N7: 2024 | P7: 6 | Q7: Junio
A8: =+Flujos!A8 -> 2021-12-24 | B8: =+Flujos!L8 -> 2.494595544e+11 | C8: =+Flujos!M8 -> 5321440005 | D8: =+Flujos!N8 -> 1252248588 | E8: =+Flujos!O8 -> 6573688593 | G8: 2024-09-24 | H8: =IF(G8<CALCULADORA!$C$23,0,IF(CALCULADORA!$C$27>'TIR de Tenencia'!G8,E8,CALCULADORA!$C$33)) -> 135135586470 | L8: 24 | M8: 10 | N8: 2024 | P8: 7 | Q8: Julio
A9: =+Flujos!A9 -> 2022-01-24 | B9: =+Flujos!L9 -> 2.442459393e+11 | C9: =+Flujos!M9 -> 5213615120 | D9: =+Flujos!N9 -> 1226093710 | E9: =+Flujos!O9 -> 6439708830 | G9: 2024-10-24 | H9: =IF(G9<CALCULADORA!$C$23,0,IF(CALCULADORA!$C$27>'TIR de Tenencia'!G9,E9,CALCULADORA!$C$33)) -> 135135586470 | L9: 24 | M9: 11 | N9: 2024 | P9: 8 | Q9: Agosto
A10: =+Flujos!A10 -> 2022-02-24 | B10: =+Flujos!L10 -> 2.395687847e+11 | C10: =+Flujos!M10 -> 4677154580 | D10: =+Flujos!N10 -> 1200468792 | E10: =+Flujos!O10 -> 5877623372 | G10: 2024-11-24 | H10: =IF(G10<CALCULADORA!$C$23,0,IF(CALCULADORA!$C$27>'TIR de Tenencia'!G10,E10,CALCULADORA!$C$33)) -> 135135586470 | L10: 24 | M10: 12 | N10: 2024 | P10: 9 | Q10: Septiembre
A11: =+Flujos!A11 -> 2022-03-24 | B11: =+Flujos!L11 -> 2.353024436e+11 | C11: =+Flujos!M11 -> 4266341100 | D11: =+Flujos!N11 -> 1177480577 | E11: =+Flujos!O11 -> 5443821677 | G11: 2024-12-24 | H11: =IF(G11<CALCULADORA!$C$23,0,IF(CALCULADORA!$C$27>'TIR de Tenencia'!G11,E11,CALCULADORA!$C$33)) -> 135135586470 | L11: 24 | M11: =+IF(M10=12,1,M10+1) -> 1 | N11: 2025 | P11: 10 | Q11: Octubre
A12: =+Flujos!A12 -> 2022-04-24 | B12: =+Flujos!L12 -> 2.31154885e+11 | C12: =+Flujos!M12 -> 4147558555 | D12: =+Flujos!N12 -> 1156511510 | E12: =+Flujos!O12 -> 5304070065 | G12: 2025-01-24 | H12: =IF(G12<CALCULADORA!$C$23,0,IF(CALCULADORA!$C$27>'TIR de Tenencia'!G12,E12,CALCULADORA!$C$33)) -> 135135586470 | L12: 24 | M12: 2 | N12: 2025 | P12: 11 | Q12: Noviembre
A13: =+Flujos!A13 -> 2022-05-24 | B13: =+Flujos!L13 -> 2.261275066e+11 | C13: =+Flujos!M13 -> 5027378475 | D13: =+Flujos!N13 -> 1136126260 | E13: =+Flujos!O13 -> 6163504735 | G13: 2025-02-24 | H13: =IF(G13<CALCULADORA!$C$23,0,IF(CALCULADORA!$C$27>'TIR de Tenencia'!G13,E13,CALCULADORA!$C$33)) -> 135135586470 | L13: 24 | M13: 3 | N13: 2025 | P13: 12 | Q13: Diciembre
A14: =+Flujos!A14 -> 2022-06-24 | B14: =+Flujos!L14 -> 2.221275656e+11 | C14: =+Flujos!M14 -> 3999940980 | D14: =+Flujos!N14 -> 1111416695 | E14: =+Flujos!O14 -> 5111357675 | G14: 2025-03-24 | H14: =IF(G14<CALCULADORA!$C$23,0,IF(CALCULADORA!$C$27>'TIR de Tenencia'!G14,E14,CALCULADORA!$C$33)) -> 135135586470 | L14: 24 | M14: 4 | N14: 2025
A15: =+Flujos!A15 -> 2022-07-24 | B15: =+Flujos!L15 -> 2.178183786e+11 | C15: =+Flujos!M15 -> 4309186945 | D15: =+Flujos!N15 -> 1091756985 | E15: =+Flujos!O15 -> 5400943930 | G15: 2025-04-24 | H15: =IF(G15<CALCULADORA!$C$23,0,IF(CALCULADORA!$C$27>'TIR de Tenencia'!G15,E15,CALCULADORA!$C$33)) -> 135135586470 | L15: 24 | M15: =+IF(M14=12,1,M14+1) -> 5 | N15: 2025
A16: =+Flujos!A16 -> 2022-08-24 | B16: =+Flujos!L16 -> 2.140729273e+11 | C16: =+Flujos!M16 -> 3745451360 | D16: =+Flujos!N16 -> 1070577331 | E16: =+Flujos!O16 -> 4816028691 | G16: 2025-05-24 | H16: =IF(G16<CALCULADORA!$C$23,0,IF(CALCULADORA!$C$27>'TIR de Tenencia'!G16,E16,CALCULADORA!$C$33)) -> 135135586470 | L16: 24 | M16: 6 | N16: 2025
A17: =+Flujos!A17 -> 2022-09-24 | B17: =+Flujos!L17 -> 2.106498147e+11 | C17: =+Flujos!M17 -> 3423112560 | D17: =+Flujos!N17 -> 1052168438 | E17: =+Flujos!O17 -> 4475280998 | G17: 2025-06-24 | H17: =IF(G17<CALCULADORA!$C$23,0,IF(CALCULADORA!$C$27>'TIR de Tenencia'!G17,E17,CALCULADORA!$C$33)) -> 135135586470 | I17: =+IF(H17=H16," ",G17) ->  | L17: 24 | M17: 7 | N17: 2025
A18: =+Flujos!A18 -> 2022-10-24 | B18: =+Flujos!L18 -> 2.076267149e+11 | C18: =+Flujos!M18 -> 3023099870 | D18: =+Flujos!N18 -> 1035343839 | E18: =+Flujos!O18 -> 4058443709 | G18: 2025-07-24 | H18: =IF(G18<CALCULADORA!$C$23,0,IF(CALCULADORA!$C$27>'TIR de Tenencia'!G18,E18,CALCULADORA!$C$33)) -> 135135586470 | L18: 24 | M18: 8 | N18: 2025
A19: =+Flujos!A19 -> 2022-11-24 | B19: =+Flujos!L19 -> 2.037723086e+11 | C19: =+Flujos!M19 -> 3854406290 | D19: =+Flujos!N19 -> 1020485304 | E19: =+Flujos!O19 -> 4874891594 | G19: 2025-08-24 | H19: =IF(G19<CALCULADORA!$C$23,0,IF(CALCULADORA!$C$27>'TIR de Tenencia'!G19,E19,CALCULADORA!$C$33)) -> 135135586470 | L19: 24 | M19: 9 | N19: 2025
A20: =+Flujos!A20 -> 2022-12-24 | B20: =+Flujos!L20 -> 1.997019591e+11 | C20: =+Flujos!M20 -> 4070349465 | D20: =+Flujos!N20 -> 1001540897 | E20: =+Flujos!O20 -> 5071890362 | G20: 2025-09-24 | H20: =IF(G20<CALCULADORA!$C$23,0,IF(CALCULADORA!$C$27>'TIR de Tenencia'!G20,E20,CALCULADORA!$C$33)) -> 135135586470 | L20: 24 | M20: =+IF(M19=12,1,M19+1) -> 10 | N20: 2025
A21: =+Flujos!A21 -> 2023-01-24 | B21: =+Flujos!L21 -> 1.957117702e+11 | C21: =+Flujos!M21 -> 3990188895 | D21: =+Flujos!N21 -> 981535129 | E21: =+Flujos!O21 -> 4971724024 | G21: 2025-10-24 | H21: =IF(G21<CALCULADORA!$C$23,0,IF(CALCULADORA!$C$27>'TIR de Tenencia'!G21,E21,CALCULADORA!$C$33)) -> 135135586470 | L21: 24 | M21: 11 | N21: 2025
A22: =+Flujos!A22 -> 2023-02-24 | B22: =+Flujos!L22 -> 1.9152769e+11 | C22: =+Flujos!M22 -> 4184080215 | D22: =+Flujos!N22 -> 961923350.6 | E22: =+Flujos!O22 -> 5146003566 | G22: 2025-11-24 | H22: =IF(G22<CALCULADORA!$C$23,0,IF(CALCULADORA!$C$27>'TIR de Tenencia'!G22,E22,CALCULADORA!$C$33)) -> 135135586470 | L22: 24 | M22: 12 | N22: 2025
A23: =+Flujos!A23 -> 2023-03-24 | B23: =+Flujos!L23 -> 1.879759702e+11 | C23: =+Flujos!M23 -> 3551719815 | D23: =+Flujos!N23 -> 941358596.3 | E23: =+Flujos!O23 -> 4493078411 | G23: 2025-12-24 | H23: =IF(G23<CALCULADORA!$C$23,0,IF(CALCULADORA!$C$27>'TIR de Tenencia'!G23,E23,CALCULADORA!$C$33)) -> 135135586470 | L23: 24 | M23: 1 | N23: 2026
A24: =+Flujos!A24 -> 2023-04-24 | B24: =+Flujos!L24 -> 1.843147173e+11 | C24: =+Flujos!M24 -> 3661252840 | D24: =+Flujos!N24 -> 923901893.4 | E24: =+Flujos!O24 -> 4585154733 | G24: 2026-01-24 | H24: =IF(G24<CALCULADORA!$C$23,0,IF(CALCULADORA!$C$27>'TIR de Tenencia'!G24,E24,CALCULADORA!$C$33)) -> 135135586470 | L24: 24 | M24: 2 | N24: 2026
A25: =+Flujos!A25 -> 2023-05-24 | B25: =+Flujos!L25 -> 1.812270451e+11 | C25: =+Flujos!M25 -> 3087672210 | D25: =+Flujos!N25 -> 905906835.7 | E25: =+Flujos!O25 -> 3993579046 | G25: 2026-02-24 | H25: =IF(G25<CALCULADORA!$C$23,0,IF(CALCULADORA!$C$27>'TIR de Tenencia'!G25,E25,CALCULADORA!$C$33)) -> 135135586470 | L25: 24 | M25: 3 | N25: 2026
A26: =+Flujos!A26 -> 2023-06-24 | B26: =+Flujos!L26 -> 1.784067694e+11 | C26: =+Flujos!M26 -> 2820275675 | D26: =+Flujos!N26 -> 890730926.8 | E26: =+Flujos!O26 -> 3711006602 | G26: 2026-03-24 | H26: =IF(G26<CALCULADORA!$C$23,0,IF(CALCULADORA!$C$27>'TIR de Tenencia'!G26,E26,CALCULADORA!$C$33)) -> 135135586470 | J26: =+IF(H26=H25," ",H26) ->  | L26: 24 | M26: 4 | N26: 2026
A27: =+Flujos!A27 -> 2023-07-24 | B27: =+Flujos!L27 -> 1.757381551e+11 | C27: =+Flujos!M27 -> 2668614340 | D27: =+Flujos!N27 -> 876869271.8 | E27: =+Flujos!O27 -> 3545483612 | G27: 2026-04-24 | H27: =IF(G27<CALCULADORA!$C$23,0,IF(CALCULADORA!$C$27>'TIR de Tenencia'!G27,E27,CALCULADORA!$C$33)) -> 135135586470 | L27: 24 | M27: 5 | N27: 2026
A28: =+Flujos!A28 -> 2023-08-24 | B28: =+Flujos!L28 -> 1.718088202e+11 | C28: =+Flujos!M28 -> 3929334955 | D28: =+Flujos!N28 -> 863753032.4 | E28: =+Flujos!O28 -> 4793087987 | G28: 2026-05-24 | H28: =IF(G28<CALCULADORA!$C$23,0,IF(CALCULADORA!$C$27>'TIR de Tenencia'!G28,E28,CALCULADORA!$C$33)) -> 135135586470 | L28: 24 | M28: 6 | N28: 2026
A29: =+Flujos!A29 -> 2023-09-24 | B29: =+Flujos!L29 -> 1.684870282e+11 | C29: =+Flujos!M29 -> 3321791970 | D29: =+Flujos!N29 -> 844440351.1 | E29: =+Flujos!O29 -> 4166232321 | G29: 2026-06-24 | H29: =IF(G29<CALCULADORA!$C$23,0,IF(CALCULADORA!$C$27>'TIR de Tenencia'!G29,E29,CALCULADORA!$C$33)) -> 135135586470 | L29: 24 | M29: 7 | N29: 2026
A30: =+Flujos!A30 -> 2023-10-24 | B30: =+Flujos!L30 -> 1.660699694e+11 | C30: =+Flujos!M30 -> 2417058770 | D30: =+Flujos!N30 -> 828113743.5 | E30: =+Flujos!O30 -> 3245172514 | G30: 2026-07-24 | H30: =IF(G30<CALCULADORA!$C$23,0,IF(CALCULADORA!$C$27>'TIR de Tenencia'!G30,E30,CALCULADORA!$C$33)) -> 135135586470 | L30: 24 | M30: 8 | N30: 2026
A31: =+Flujos!A31 -> 2023-11-24 | B31: =+Flujos!L31 -> 1.623085841e+11 | C31: =+Flujos!M31 -> 3761385285 | D31: =+Flujos!N31 -> 816233899.7 | E31: =+Flujos!O31 -> 4577619185 | G31: 2026-08-24 | H31: =IF(G31<CALCULADORA!$C$23,0,IF(CALCULADORA!$C$27>'TIR de Tenencia'!G31,E31,CALCULADORA!$C$33)) -> 135135586470 | L31: 24 | M31: 9 | N31: 2026
A32: =+Flujos!A32 -> 2023-12-24 | B32: =+Flujos!L32 -> 1.596323529e+11 | C32: =+Flujos!M32 -> 2676231250 | D32: =+Flujos!N32 -> 797746691 | E32: =+Flujos!O32 -> 3473977941 | G32: 2026-09-24 | H32: =IF(G32<CALCULADORA!$C$23,0,IF(CALCULADORA!$C$27>'TIR de Tenencia'!G32,E32,CALCULADORA!$C$33)) -> 135135586470 | L32: 24 | M32: 10 | N32: 2026
A33: =+Flujos!A33 -> 2024-01-24 | B33: =+Flujos!L33 -> 1.562809038e+11 | C33: =+Flujos!M33 -> 3351449115 | D33: =+Flujos!N33 -> 784593014.4 | E33: =+Flujos!O33 -> 4136042129 | G33: 2026-10-24 | H33: =IF(G33<CALCULADORA!$C$23,0,IF(CALCULADORA!$C$27>'TIR de Tenencia'!G33,E33,CALCULADORA!$C$33)) -> 135135586470 | L33: 24 | M33: 11 | N33: 2026
A34: =+Flujos!A34 -> 2024-02-24 | B34: =+Flujos!L34 -> 1.532943837e+11 | C34: =+Flujos!M34 -> 2986520110 | D34: =+Flujos!N34 -> 768120642 | E34: =+Flujos!O34 -> 3754640752 | G34: 2026-11-24 | H34: =IF(G34<CALCULADORA!$C$23,0,IF(CALCULADORA!$C$27>'TIR de Tenencia'!G34,E34,CALCULADORA!$C$33)) -> 135135586470 | L34: 24 | M34: 12 | N34: 2026
A35: =+Flujos!A35 -> 2024-03-24 | B35: =+Flujos!L35 -> 1.507234006e+11 | C35: =+Flujos!M35 -> 2570983100 | D35: =+Flujos!N35 -> 753441895.7 | E35: =+Flujos!O35 -> 3324424996 | G35: =+DATE(N34,M34,L34) -> 2026-12-24 | H35: =IF(G35<CALCULADORA!$C$23,0,IF(CALCULADORA!$C$27>'TIR de Tenencia'!G35,E35,CALCULADORA!$C$33)) -> 135135586470 | L35: 24 | M35: 1 | N35: 2027
A36: =+Flujos!A36 -> 2024-04-24 | B36: =+Flujos!L36 -> 1.474902053e+11 | C36: =+Flujos!M36 -> 3233195280 | D36: =+Flujos!N36 -> 740805513.7 | E36: =+Flujos!O36 -> 3974000794 | G36: 2027-01-24 | H36: =IF(G36<CALCULADORA!$C$23,0,IF(CALCULADORA!$C$27>'TIR de Tenencia'!G36,E36,CALCULADORA!$C$33)) -> 135135586470 | I36: =+IF(IF(H36=H35," ",G36)=CALCULADORA!C27,'TIR de Tenencia'!G36,CALCULADORA!C27) -> 2024-04-01 | L36: 24 | M36: 2 | N36: 2027
A37: =+Flujos!A37 -> 2024-05-24 | B37: =+Flujos!L37 -> 1.447760522e+11 | C37: =+Flujos!M37 -> 2714153120 | D37: =+Flujos!N37 -> 724914358.9 | E37: =+Flujos!O37 -> 3439067479 | G37: 2027-02-24 | H37: =IF(G37<CALCULADORA!$C$23,0,IF(CALCULADORA!$C$27>'TIR de Tenencia'!G37,E37,CALCULADORA!$C$33)) -> 135135586470 | L37: 24 | M37: 3 | N37: 2027
A38: =+Flujos!A38 -> 2024-06-24 | B38: =+Flujos!L38 -> 1.421420625e+11 | C38: =+Flujos!M38 -> 2633989645 | D38: =+Flujos!N38 -> 711574296.3 | E38: =+Flujos!O38 -> 3345563941 | G38: 2027-03-24 | H38: =IF(G38<CALCULADORA!$C$23,0,IF(CALCULADORA!$C$27>'TIR de Tenencia'!G38,E38,CALCULADORA!$C$33)) -> 135135586470 | L38: 24 | M38: 4 | N38: 2027
A39: =+Flujos!A39 -> 2024-07-24 | B39: =+Flujos!L39 -> 1.394680943e+11 | C39: =+Flujos!M39 -> 2673968255 | D39: =+Flujos!N39 -> 698628237.2 | E39: =+Flujos!O39 -> 3372596492 | G39: 2027-04-24 | H39: =IF(G39<CALCULADORA!$C$23,0,IF(CALCULADORA!$C$27>'TIR de Tenencia'!G39,E39,CALCULADORA!$C$33)) -> 135135586470 | L39: 24 | M39: 5 | N39: 2027
A40: =+Flujos!A40 -> 2024-08-24 | B40: =+Flujos!L40 -> 1.368270396e+11 | C40: =+Flujos!M40 -> 2641054605 | D40: =+Flujos!N40 -> 685485683.3 | E40: =+Flujos!O40 -> 3326540288 | G40: 2027-05-24 | H40: =IF(G40<CALCULADORA!$C$23,0,IF(CALCULADORA!$C$27>'TIR de Tenencia'!G40,E40,CALCULADORA!$C$33)) -> 135135586470 | L40: 24 | M40: 6 | N40: 2027
A41: =+Flujos!A41 -> 2024-09-24 | B41: =+Flujos!L41 -> 1.341992202e+11 | C41: =+Flujos!M41 -> 2627819425 | D41: =+Flujos!N41 -> 672504899.9 | E41: =+Flujos!O41 -> 3300324325 | G41: 2027-06-24 | H41: =IF(G41<CALCULADORA!$C$23,0,IF(CALCULADORA!$C$27>'TIR de Tenencia'!G41,E41,CALCULADORA!$C$33)) -> 135135586470 | L41: 24 | M41: 7 | N41: 2027
A42: =+Flujos!A42 -> 2024-10-24 | B42: =+Flujos!L42 -> 1.315998407e+11 | C42: =+Flujos!M42 -> 2599379475 | D42: =+Flujos!N42 -> 659589167.4 | E42: =+Flujos!O42 -> 3258968642 | G42: 2027-07-24 | H42: =IF(G42<CALCULADORA!$C$23,0,IF(CALCULADORA!$C$27>'TIR de Tenencia'!G42,E42,CALCULADORA!$C$33)) -> 135135586470 | L42: 24 | M42: 8 | N42: 2027
A43: =+Flujos!A43 -> 2024-11-24 | B43: =+Flujos!L43 -> 1.290326167e+11 | C43: =+Flujos!M43 -> 2567224030 | D43: =+Flujos!N43 -> 646813217.3 | E43: =+Flujos!O43 -> 3214037247 | G43: 2027-08-24 | H43: =IF(G43<CALCULADORA!$C$23,0,IF(CALCULADORA!$C$27>'TIR de Tenencia'!G43,E43,CALCULADORA!$C$33)) -> 135135586470 | L43: 24 | M43: 9 | N43: 2027
A44: =+Flujos!A44 -> 2024-12-24 | B44: =+Flujos!L44 -> 1.264891004e+11 | C44: =+Flujos!M44 -> 2543516325 | D44: =+Flujos!N44 -> 634195311.2 | E44: =+Flujos!O44 -> 3177711636 | G44: 2027-09-24 | H44: =IF(G44<CALCULADORA!$C$23,0,IF(CALCULADORA!$C$27>'TIR de Tenencia'!G44,E44,CALCULADORA!$C$33)) -> 135135586470 | L44: 24 | M44: 10 | N44: 2027
A45: =+Flujos!A45 -> 2025-01-24 | B45: =+Flujos!L45 -> 1.239683912e+11 | C45: =+Flujos!M45 -> 2520709170 | D45: =+Flujos!N45 -> 621693928.4 | E45: =+Flujos!O45 -> 3142403098 | G45: 2027-10-24 | H45: =IF(G45<CALCULADORA!$C$23,0,IF(CALCULADORA!$C$27>'TIR de Tenencia'!G45,E45,CALCULADORA!$C$33)) -> 135135586470 | L45: 24 | M45: 11 | N45: 2027
A46: =+Flujos!A46 -> 2025-02-24 | B46: =+Flujos!L46 -> 1.214675871e+11 | C46: =+Flujos!M46 -> 2500804110 | D46: =+Flujos!N46 -> 609304642.9 | E46: =+Flujos!O46 -> 3110108753 | G46: 2027-11-24 | H46: =IF(G46<CALCULADORA!$C$23,0,IF(CALCULADORA!$C$27>'TIR de Tenencia'!G46,E46,CALCULADORA!$C$33)) -> 135135586470 | L46: 24 | M46: 12 | N46: 2027
A47: =+Flujos!A47 -> 2025-03-24 | B47: =+Flujos!L47 -> 1.189879111e+11 | C47: =+Flujos!M47 -> 2479676045 | D47: =+Flujos!N47 -> 597013190.7 | E47: =+Flujos!O47 -> 3076689236 | G47: 2027-12-24 | H47: =IF(G47<CALCULADORA!$C$23,0,IF(CALCULADORA!$C$27>'TIR de Tenencia'!G47,E47,CALCULADORA!$C$33)) -> 135135586470 | L47: 24 | M47: 1 | N47: 2028
A48: =+Flujos!A48 -> 2025-04-24 | B48: =+Flujos!L48 -> 1.165292149e+11 | C48: =+Flujos!M48 -> 2458696135 | D48: =+Flujos!N48 -> 584825582.9 | E48: =+Flujos!O48 -> 3043521718 | G48: 2028-01-24 | H48: =IF(G48<CALCULADORA!$C$23,0,IF(CALCULADORA!$C$27>'TIR de Tenencia'!G48,E48,CALCULADORA!$C$33)) -> 135135586470 | L48: 24 | M48: 2 | N48: 2028
A49: =+Flujos!A49 -> 2025-05-24 | B49: =+Flujos!L49 -> 1.140855812e+11 | C49: =+Flujos!M49 -> 2443633710 | D49: =+Flujos!N49 -> 572741091.4 | E49: =+Flujos!O49 -> 3016374801 | G49: 2028-02-24 | H49: =IF(G49<CALCULADORA!$C$23,0,IF(CALCULADORA!$C$27>'TIR de Tenencia'!G49,E49,CALCULADORA!$C$33)) -> 135135586470 | L49: 24 | M49: 3 | N49: 2028
A50: =+Flujos!A50 -> 2025-06-24 | B50: =+Flujos!L50 -> 1.117307853e+11 | C50: =+Flujos!M50 -> 2354795905 | D50: =+Flujos!N50 -> 560730631.7 | E50: =+Flujos!O50 -> 2915526537 | G50: 2028-03-24 | H50: =IF(G50<CALCULADORA!$C$23,0,IF(CALCULADORA!$C$27>'TIR de Tenencia'!G50,E50,CALCULADORA!$C$33)) -> 135135586470 | L50: 24 | M50: 4 | N50: 2028
A51: =+Flujos!A51 -> 2025-07-24 | B51: =+Flujos!L51 -> 1.093284084e+11 | C51: =+Flujos!M51 -> 2402376900 | D51: =+Flujos!N51 -> 549156809.8 | E51: =+Flujos!O51 -> 2951533710 | G51: 2028-04-24 | H51: =IF(G51<CALCULADORA!$C$23,0,IF(CALCULADORA!$C$27>'TIR de Tenencia'!G51,E51,CALCULADORA!$C$33)) -> 135135586470 | L51: 24 | M51: 5 | N51: 2028
A52: =+Flujos!A52 -> 2025-08-24 | B52: =+Flujos!L52 -> 1.06944702e+11 | C52: =+Flujos!M52 -> 2383706465 | D52: =+Flujos!N52 -> 537349127.4 | E52: =+Flujos!O52 -> 2921055592 | G52: 2028-05-24 | H52: =IF(G52<CALCULADORA!$C$23,0,IF(CALCULADORA!$C$27>'TIR de Tenencia'!G52,E52,CALCULADORA!$C$33)) -> 135135586470 | L52: 24 | M52: 6 | N52: 2028
A53: =+Flujos!A53 -> 2025-09-24 | B53: =+Flujos!L53 -> 1.045749569e+11 | C53: =+Flujos!M53 -> 2369745035 | D53: =+Flujos!N53 -> 525633210.1 | E53: =+Flujos!O53 -> 2895378245 | G53: 2028-06-24 | H53: =IF(G53<CALCULADORA!$C$23,0,IF(CALCULADORA!$C$27>'TIR de Tenencia'!G53,E53,CALCULADORA!$C$33)) -> 135135586470 | L53: 24 | M53: 7 | N53: 2028
A54: =+Flujos!A54 -> 2025-10-24 | B54: =+Flujos!L54 -> 1.022324259e+11 | C54: =+Flujos!M54 -> 2342530995 | D54: =+Flujos!N54 -> 513985913.3 | E54: =+Flujos!O54 -> 2856516908 | G54: 2028-07-24 | H54: =IF(G54<CALCULADORA!$C$23,0,IF(CALCULADORA!$C$27>'TIR de Tenencia'!G54,E54,CALCULADORA!$C$33)) -> 135135586470 | L54: 24 | M54: 8 | N54: 2028
A55: =+Flujos!A55 -> 2025-11-24 | B55: =+Flujos!L55 -> 9.990310687e+10 | C55: =+Flujos!M55 -> 2329319055 | D55: =+Flujos!N55 -> 502472373.4 | E55: =+Flujos!O55 -> 2831791428 | G55: 2028-08-24 | H55: =IF(G55<CALCULADORA!$C$23,0,IF(CALCULADORA!$C$27>'TIR de Tenencia'!G55,E55,CALCULADORA!$C$33)) -> 135135586470 | L55: 24 | M55: 9 | N55: 2028
A56: =+Flujos!A56 -> 2025-12-24 | B56: =+Flujos!L56 -> 9.759554045e+10 | C56: =+Flujos!M56 -> 2307566415 | D56: =+Flujos!N56 -> 491023770.3 | E56: =+Flujos!O56 -> 2798590185 | G56: 2028-09-24 | H56: =IF(G56<CALCULADORA!$C$23,0,IF(CALCULADORA!$C$27>'TIR de Tenencia'!G56,E56,CALCULADORA!$C$33)) -> 135135586470 | L56: 24 | M56: 10 | N56: 2028
A57: =+Flujos!A57 -> 2026-01-24 | B57: =+Flujos!L57 -> 9.530762636e+10 | C57: =+Flujos!M57 -> 2287914090 | D57: =+Flujos!N57 -> 479682081.3 | E57: =+Flujos!O57 -> 2767596171 | G57: 2028-10-24 | H57: =IF(G57<CALCULADORA!$C$23,0,IF(CALCULADORA!$C$27>'TIR de Tenencia'!G57,E57,CALCULADORA!$C$33)) -> 135135586470 | L57: 24 | M57: 11 | N57: 2028
A58: =+Flujos!A58 -> 2026-02-24 | B58: =+Flujos!L58 -> 9.304190066e+10 | C58: =+Flujos!M58 -> 2265725700 | D58: =+Flujos!N58 -> 468436983.6 | E58: =+Flujos!O58 -> 2734162684 | G58: 2028-11-24 | H58: =IF(G58<CALCULADORA!$C$23,0,IF(CALCULADORA!$C$27>'TIR de Tenencia'!G58,E58,CALCULADORA!$C$33)) -> 135135586470 | L58: 24 | M58: 12 | N58: 2028
A59: =+Flujos!A59 -> 2026-03-24 | B59: =+Flujos!L59 -> 9.079610617e+10 | C59: =+Flujos!M59 -> 2245794495 | D59: =+Flujos!N59 -> 457300941.8 | E59: =+Flujos!O59 -> 2703095437 | G59: 2028-12-24 | H59: =IF(G59<CALCULADORA!$C$23,0,IF(CALCULADORA!$C$27>'TIR de Tenencia'!G59,E59,CALCULADORA!$C$33)) -> 135135586470 | L59: 24 | M59: 1 | N59: 2029
A60: =+Flujos!A60 -> 2026-04-24 | B60: =+Flujos!L60 -> 8.856146978e+10 | C60: =+Flujos!M60 -> 2234636390 | D60: =+Flujos!N60 -> 446262861.8 | E60: =+Flujos!O60 -> 2680899252 | G60: 2029-01-24 | H60: =IF(G60<CALCULADORA!$C$23,0,IF(CALCULADORA!$C$27>'TIR de Tenencia'!G60,E60,CALCULADORA!$C$33)) -> 135135586470 | L60: 24 | M60: 2 | N60: 2029
A61: =+Flujos!A61 -> 2026-05-24 | B61: =+Flujos!L61 -> 8.635106109e+10 | C61: =+Flujos!M61 -> 2210408690 | D61: =+Flujos!N61 -> 435279624 | E61: =+Flujos!O61 -> 2645688314 | G61: 2029-02-24 | H61: =IF(G61<CALCULADORA!$C$23,0,IF(CALCULADORA!$C$27>'TIR de Tenencia'!G61,E61,CALCULADORA!$C$33)) -> 135135586470 | L61: 24 | M61: 3 | N61: 2029
A62: =+Flujos!A62 -> 2026-06-24 | B62: =+Flujos!L62 -> 8.422424377e+10 | C62: =+Flujos!M62 -> 2126817315 | D62: =+Flujos!N62 -> 424415465.3 | E62: =+Flujos!O62 -> 2551232780 | G62: 2029-03-24 | H62: =IF(G62<CALCULADORA!$C$23,0,IF(CALCULADORA!$C$27>'TIR de Tenencia'!G62,E62,CALCULADORA!$C$33)) -> 135135586470 | L62: 24 | M62: 4 | N62: 2029
A63: =+Flujos!A63 -> 2026-07-24 | B63: =+Flujos!L63 -> 8.204675454e+10 | C63: =+Flujos!M63 -> 2177489230 | D63: =+Flujos!N63 -> 413962158.2 | E63: =+Flujos!O63 -> 2591451388 | G63: 2029-04-24 | H63: =IF(G63<CALCULADORA!$C$23,0,IF(CALCULADORA!$C$27>'TIR de Tenencia'!G63,E63,CALCULADORA!$C$33)) -> 135135586470 | L63: 24 | M63: 5 | N63: 2029
A64: =+Flujos!A64 -> 2026-08-24 | B64: =+Flujos!L64 -> 7.988929819e+10 | C64: =+Flujos!M64 -> 2157456350 | D64: =+Flujos!N64 -> 403259798.6 | E64: =+Flujos!O64 -> 2560716149 | G64: 2029-05-24 | H64: =IF(G64<CALCULADORA!$C$23,0,IF(CALCULADORA!$C$27>'TIR de Tenencia'!G64,E64,CALCULADORA!$C$33)) -> 135135586470 | L64: 24 | M64: 6 | N64: 2029
A65: =+Flujos!A65 -> 2026-09-24 | B65: =+Flujos!L65 -> 7.775013172e+10 | C65: =+Flujos!M65 -> 2139166470 | D65: =+Flujos!N65 -> 392655900.6 | E65: =+Flujos!O65 -> 2531822371 | G65: 2029-06-24 | H65: =IF(G65<CALCULADORA!$C$23,0,IF(CALCULADORA!$C$27>'TIR de Tenencia'!G65,E65,CALCULADORA!$C$33)) -> 135135586470 | L65: 24 | M65: 7 | N65: 2029
A66: =+Flujos!A66 -> 2026-10-24 | B66: =+Flujos!L66 -> 7.562963569e+10 | C66: =+Flujos!M66 -> 2120496035 | D66: =+Flujos!N66 -> 382141897.4 | E66: =+Flujos!O66 -> 2502637932 | G66: 2029-07-24 | H66: =IF(G66<CALCULADORA!$C$23,0,IF(CALCULADORA!$C$27>'TIR de Tenencia'!G66,E66,CALCULADORA!$C$33)) -> 135135586470 | L66: 24 | M66: 8 | N66: =+IF(M66=1,N65+1,N65) -> 2029
A67: =+Flujos!A67 -> 2026-11-24 | B67: =+Flujos!L67 -> 7.352371694e+10 | C67: =+Flujos!M67 -> 2105918745 | D67: =+Flujos!N67 -> 371719659.4 | E67: =+Flujos!O67 -> 2477638404 | G67: =+DATE(N66,M66,L66) -> 2029-08-24 | H67: =IF(G67<CALCULADORA!$C$23,0,IF(CALCULADORA!$C$27>'TIR de Tenencia'!G67,E67,CALCULADORA!$C$33)) -> 135135586470 | L67: =+L66 -> 24 | M67: =+IF(M66=12,1,M66+1) -> 9 | N67: 2029
A68: =+Flujos!A68 -> 2026-12-24 | B68: =+Flujos!L68 -> 7.143727041e+10 | C68: =+Flujos!M68 -> 2086446530 | D68: =+Flujos!N68 -> 361369068.8 | E68: =+Flujos!O68 -> 2447815599 | G68: 2029-09-24 | H68: =IF(G68<CALCULADORA!$C$23,0,IF(CALCULADORA!$C$27>'TIR de Tenencia'!G68,E68,CALCULADORA!$C$33)) -> 135135586470 | I68: =+IF(H68=H67," ",G68) ->  | J68: =+IF(H68=H67," ",H68) ->  | L68: 24 | M68: 10 | N68: 2029
A69: =+Flujos!A69 -> 2027-01-24 | B69: =+Flujos!L69 -> 6.936577301e+10 | C69: =+Flujos!M69 -> 2071497400 | D69: =+Flujos!N69 -> 351114184.1 | E69: =+Flujos!O69 -> 2422611584 | G69: 2029-10-24 | H69: =IF(G69<CALCULADORA!$C$23,0,IF(CALCULADORA!$C$27>'TIR de Tenencia'!G69,E69,CALCULADORA!$C$33)) -> 135135586470 | L69: 24 | M69: 11 | N69: 2029
A70: =+Flujos!A70 -> 2027-02-24 | B70: =+Flujos!L70 -> 6.731307968e+10 | C70: =+Flujos!M70 -> 2052693335 | D70: =+Flujos!N70 -> 340932774.4 | E70: =+Flujos!O70 -> 2393626109 | G70: 2029-11-24 | H70: =IF(G70<CALCULADORA!$C$23,0,IF(CALCULADORA!$C$27>'TIR de Tenencia'!G70,E70,CALCULADORA!$C$33)) -> 135135586470 | L70: 24 | M70: 12 | N70: 2029
A71: =+Flujos!A71 -> 2027-03-24 | B71: =+Flujos!L71 -> 6.527576251e+10 | C71: =+Flujos!M71 -> 2037317170 | D71: =+Flujos!N71 -> 330843786.6 | E71: =+Flujos!O71 -> 2368160957 | G71: 2029-12-24 | H71: =IF(G71<CALCULADORA!$C$23,0,IF(CALCULADORA!$C$27>'TIR de Tenencia'!G71,E71,CALCULADORA!$C$33)) -> 135135586470 | L71: 24 | M71: 1 | N71: 2030
A72: =+Flujos!A72 -> 2027-04-24 | B72: =+Flujos!L72 -> 6.325799599e+10 | C72: =+Flujos!M72 -> 2017766520 | D72: =+Flujos!N72 -> 320830372.7 | E72: =+Flujos!O72 -> 2338596893 | G72: 2030-01-24 | H72: =IF(G72<CALCULADORA!$C$23,0,IF(CALCULADORA!$C$27>'TIR de Tenencia'!G72,E72,CALCULADORA!$C$33)) -> 135135586470 | L72: 24 | M72: 2 | N72: 2030
A73: =+Flujos!A73 -> 2027-05-24 | B73: =+Flujos!L73 -> 6.125874884e+10 | C73: =+Flujos!M73 -> 1999247145 | D73: =+Flujos!N73 -> 310913050.3 | E73: =+Flujos!O73 -> 2310160195 | G73: 2030-02-24 | H73: =IF(G73<CALCULADORA!$C$23,0,IF(CALCULADORA!$C$27>'TIR de Tenencia'!G73,E73,CALCULADORA!$C$33)) -> 135135586470 | L73: 24 | M73: 3 | N73: 2030
A74: =+Flujos!A74 -> 2027-06-24 | B74: =+Flujos!L74 -> 5.935016675e+10 | C74: =+Flujos!M74 -> 1908582095 | D74: =+Flujos!N74 -> 301086750.6 | E74: =+Flujos!O74 -> 2209668846 | G74: 2030-03-24 | H74: =IF(G74<CALCULADORA!$C$23,0,IF(CALCULADORA!$C$27>'TIR de Tenencia'!G74,E74,CALCULADORA!$C$33)) -> 135135586470 | L74: 24 | M74: 4 | N74: 2030
A75: =+Flujos!A75 -> 2027-07-24 | B75: =+Flujos!L75 -> 5.739458756e+10 | C75: =+Flujos!M75 -> 1955579185 | D75: =+Flujos!N75 -> 291706069.6 | E75: =+Flujos!O75 -> 2247285255 | G75: 2030-04-24 | H75: =IF(G75<CALCULADORA!$C$23,0,IF(CALCULADORA!$C$27>'TIR de Tenencia'!G75,E75,CALCULADORA!$C$33)) -> 135135586470 | L75: 24 | M75: 5 | N75: 2030
A76: =+Flujos!A76 -> 2027-08-24 | B76: =+Flujos!L76 -> 5.545490454e+10 | C76: =+Flujos!M76 -> 1939683025 | D76: =+Flujos!N76 -> 282094397.9 | E76: =+Flujos!O76 -> 2221777423 | G76: 2030-05-24 | H76: =IF(G76<CALCULADORA!$C$23,0,IF(CALCULADORA!$C$27>'TIR de Tenencia'!G76,E76,CALCULADORA!$C$33)) -> 135135586470 | L76: 24 | M76: 6 | N76: 2030
A77: =+Flujos!A77 -> 2027-09-24 | B77: =+Flujos!L77 -> 5.353428993e+10 | C77: =+Flujos!M77 -> 1920614605 | D77: =+Flujos!N77 -> 272560855.8 | E77: =+Flujos!O77 -> 2193175461 | G77: 2030-06-24 | H77: =IF(G77<CALCULADORA!$C$23,0,IF(CALCULADORA!$C$27>'TIR de Tenencia'!G77,E77,CALCULADORA!$C$33)) -> 135135586470 | L77: 24 | M77: 7 | N77: 2030
A78: =+Flujos!A78 -> 2027-10-24 | B78: =+Flujos!L78 -> 5.163109371e+10 | C78: =+Flujos!M78 -> 1903196225 | D78: =+Flujos!N78 -> 263121035 | E78: =+Flujos!O78 -> 2166317260 | G78: 2030-07-24 | H78: =IF(G78<CALCULADORA!$C$23,0,IF(CALCULADORA!$C$27>'TIR de Tenencia'!G78,E78,CALCULADORA!$C$33)) -> 135135586470 | L78: 24 | M78: 8 | N78: 2030
A79: =+Flujos!A79 -> 2027-11-24 | B79: =+Flujos!L79 -> 4.974378783e+10 | C79: =+Flujos!M79 -> 1887305875 | D79: =+Flujos!N79 -> 253766825.6 | E79: =+Flujos!O79 -> 2141072701 | G79: 2030-08-24 | H79: =IF(G79<CALCULADORA!$C$23,0,IF(CALCULADORA!$C$27>'TIR de Tenencia'!G79,E79,CALCULADORA!$C$33)) -> 135135586470 | L79: 24 | M79: 9 | N79: 2030
A80: =+Flujos!A80 -> 2027-12-24 | B80: =+Flujos!L80 -> 4.787468469e+10 | C80: =+Flujos!M80 -> 1869103145 | D80: =+Flujos!N80 -> 244490717.2 | E80: =+Flujos!O80 -> 2113593862 | G80: 2030-09-24 | H80: =IF(G80<CALCULADORA!$C$23,0,IF(CALCULADORA!$C$27>'TIR de Tenencia'!G80,E80,CALCULADORA!$C$33)) -> 135135586470 | L80: 24 | M80: 10 | N80: 2030
A81: =+Flujos!A81 -> 2028-01-24 | B81: =+Flujos!L81 -> 4.602404863e+10 | C81: =+Flujos!M81 -> 1850636060 | D81: =+Flujos!N81 -> 235304075.3 | E81: =+Flujos!O81 -> 2085940135 | G81: 2030-10-24 | H81: =IF(G81<CALCULADORA!$C$23,0,IF(CALCULADORA!$C$27>'TIR de Tenencia'!G81,E81,CALCULADORA!$C$33)) -> 135135586470 | L81: 24 | M81: 11 | N81: 2030
A82: =+Flujos!A82 -> 2028-02-24 | B82: =+Flujos!L82 -> 4.419205976e+10 | C82: =+Flujos!M82 -> 1831988865 | D82: =+Flujos!N82 -> 226208199 | E82: =+Flujos!O82 -> 2058197064 | G82: 2030-11-24 | H82: =IF(G82<CALCULADORA!$C$23,0,IF(CALCULADORA!$C$27>'TIR de Tenencia'!G82,E82,CALCULADORA!$C$33)) -> 135135586470 | L82: 24 | M82: 12 | N82: 2030
A83: =+Flujos!A83 -> 2028-03-24 | B83: =+Flujos!L83 -> 4.237774782e+10 | C83: =+Flujos!M83 -> 1814311940 | D83: =+Flujos!N83 -> 217203973.7 | E83: =+Flujos!O83 -> 2031515914 | G83: 2030-12-24 | H83: =IF(G83<CALCULADORA!$C$23,0,IF(CALCULADORA!$C$27>'TIR de Tenencia'!G83,E83,CALCULADORA!$C$33)) -> 135135586470 | L83: 24 | M83: 1 | N83: 2031
A84: =+Flujos!A84 -> 2028-04-24 | B84: =+Flujos!L84 -> 4.058249268e+10 | C84: =+Flujos!M84 -> 1795255140 | D84: =+Flujos!N84 -> 208286630.6 | E84: =+Flujos!O84 -> 2003541771 | G84: 2031-01-24 | H84: =IF(G84<CALCULADORA!$C$23,0,IF(CALCULADORA!$C$27>'TIR de Tenencia'!G84,E84,CALCULADORA!$C$33)) -> 135135586470 | L84: 24 | M84: 2 | N84: 2031
A85: =+Flujos!A85 -> 2028-05-24 | B85: =+Flujos!L85 -> 3.880453101e+10 | C85: =+Flujos!M85 -> 1777961675 | D85: =+Flujos!N85 -> 199462951.5 | E85: =+Flujos!O85 -> 1977424627 | G85: 2031-02-24 | H85: =IF(G85<CALCULADORA!$C$23,0,IF(CALCULADORA!$C$27>'TIR de Tenencia'!G85,E85,CALCULADORA!$C$33)) -> 135135586470 | L85: 24 | M85: 3 | N85: 2031
A86: =+Flujos!A86 -> 2028-06-24 | B86: =+Flujos!L86 -> 3.711734768e+10 | C86: =+Flujos!M86 -> 1687183330 | D86: =+Flujos!N86 -> 190724269.9 | E86: =+Flujos!O86 -> 1877907600 | G86: 2031-03-24 | H86: =IF(G86<CALCULADORA!$C$23,0,IF(CALCULADORA!$C$27>'TIR de Tenencia'!G86,E86,CALCULADORA!$C$33)) -> 135135586470 | L86: 24 | M86: 4 | N86: 2031
A87: =+Flujos!A87 -> 2028-07-24 | B87: =+Flujos!L87 -> 3.537956796e+10 | C87: =+Flujos!M87 -> 1737779715 | D87: =+Flujos!N87 -> 182431763.8 | E87: =+Flujos!O87 -> 1920211479 | G87: 2031-04-24 | H87: =IF(G87<CALCULADORA!$C$23,0,IF(CALCULADORA!$C$27>'TIR de Tenencia'!G87,E87,CALCULADORA!$C$33)) -> 135135586470 | L87: 24 | M87: 5 | N87: 2031
A88: =+Flujos!A88 -> 2028-08-24 | B88: =+Flujos!L88 -> 3.366210001e+10 | C88: =+Flujos!M88 -> 1717467955 | D88: =+Flujos!N88 -> 173890576.5 | E88: =+Flujos!O88 -> 1891358532 | G88: 2031-05-24 | H88: =IF(G88<CALCULADORA!$C$23,0,IF(CALCULADORA!$C$27>'TIR de Tenencia'!G88,E88,CALCULADORA!$C$33)) -> 135135586470 | L88: 24 | M88: 6 | N88: 2031
A89: =+Flujos!A89 -> 2028-09-24 | B89: =+Flujos!L89 -> 3.19694117e+10 | C89: =+Flujos!M89 -> 1692688305 | D89: =+Flujos!N89 -> 165449221.5 | E89: =+Flujos!O89 -> 1858137527 | G89: 2031-06-24 | H89: =IF(G89<CALCULADORA!$C$23,0,IF(CALCULADORA!$C$27>'TIR de Tenencia'!G89,E89,CALCULADORA!$C$33)) -> 135135586470 | L89: 24 | M89: 7 | N89: 2031
A90: =+Flujos!A90 -> 2028-10-24 | B90: =+Flujos!L90 -> 3.029495808e+10 | C90: =+Flujos!M90 -> 1674453620 | D90: =+Flujos!N90 -> 157129658.5 | E90: =+Flujos!O90 -> 1831583279 | G90: 2031-07-24 | H90: =IF(G90<CALCULADORA!$C$23,0,IF(CALCULADORA!$C$27>'TIR de Tenencia'!G90,E90,CALCULADORA!$C$33)) -> 135135586470 | L90: 24 | M90: 8 | N90: 2031
A91: =+Flujos!A91 -> 2028-11-24 | B91: =+Flujos!L91 -> 2.864009869e+10 | C91: =+Flujos!M91 -> 1654859395 | D91: =+Flujos!N91 -> 148899719 | E91: =+Flujos!O91 -> 1803759114 | G91: 2031-08-24 | H91: =IF(G91<CALCULADORA!$C$23,0,IF(CALCULADORA!$C$27>'TIR de Tenencia'!G91,E91,CALCULADORA!$C$33)) -> 135135586470 | L91: 24 | M91: 9 | N91: 2031
A92: =+Flujos!A92 -> 2028-12-24 | B92: =+Flujos!L92 -> 2.700401431e+10 | C92: =+Flujos!M92 -> 1636084380 | D92: =+Flujos!N92 -> 140766085.1 | E92: =+Flujos!O92 -> 1776850465 | G92: 2031-09-24 | H92: =IF(G92<CALCULADORA!$C$23,0,IF(CALCULADORA!$C$27>'TIR de Tenencia'!G92,E92,CALCULADORA!$C$33)) -> 135135586470 | L92: 24 | M92: 10 | N92: 2031
A93: =+Flujos!A93 -> 2029-01-24 | B93: =+Flujos!L93 -> 2.538655098e+10 | C93: =+Flujos!M93 -> 1617463330 | D93: =+Flujos!N93 -> 132724730.3 | E93: =+Flujos!O93 -> 1750188060 | G93: 2031-10-24 | H93: =IF(G93<CALCULADORA!$C$23,0,IF(CALCULADORA!$C$27>'TIR de Tenencia'!G93,E93,CALCULADORA!$C$33)) -> 135135586470 | L93: 24 | M93: 11 | N93: 2031
A94: =+Flujos!A94 -> 2029-02-24 | B94: =+Flujos!L94 -> 2.378926868e+10 | C94: =+Flujos!M94 -> 1597282295 | D94: =+Flujos!N94 -> 124774898.1 | E94: =+Flujos!O94 -> 1722057193 | G94: 2031-11-24 | H94: =IF(G94<CALCULADORA!$C$23,0,IF(CALCULADORA!$C$27>'TIR de Tenencia'!G94,E94,CALCULADORA!$C$33)) -> 135135586470 | L94: 24 | M94: 12 | N94: 2031
A95: =+Flujos!A95 -> 2029-03-24 | B95: =+Flujos!L95 -> 2.221085146e+10 | C95: =+Flujos!M95 -> 1578417225 | D95: =+Flujos!N95 -> 116924255.6 | E95: =+Flujos!O95 -> 1695341481 | G95: 2031-12-24 | H95: =IF(G95<CALCULADORA!$C$23,0,IF(CALCULADORA!$C$27>'TIR de Tenencia'!G95,E95,CALCULADORA!$C$33)) -> 135135586470 | L95: 24 | M95: 1 | N95: 2032
A96: =+Flujos!A96 -> 2029-04-24 | B96: =+Flujos!L96 -> 2.065319336e+10 | C96: =+Flujos!M96 -> 1557658095 | D96: =+Flujos!N96 -> 109166334.9 | E96: =+Flujos!O96 -> 1666824430 | G96: 2032-01-24 | H96: =IF(G96<CALCULADORA!$C$23,0,IF(CALCULADORA!$C$27>'TIR de Tenencia'!G96,E96,CALCULADORA!$C$33)) -> 135135586470 | L96: 24 | M96: 2 | N96: 2032
A97: =+Flujos!A97 -> 2029-05-24 | B97: =+Flujos!L97 -> 1.911563206e+10 | C97: =+Flujos!M97 -> 1537561305 | D97: =+Flujos!N97 -> 101510445.4 | E97: =+Flujos!O97 -> 1639071750 | G97: 2032-02-24 | H97: =IF(G97<CALCULADORA!$C$23,0,IF(CALCULADORA!$C$27>'TIR de Tenencia'!G97,E97,CALCULADORA!$C$33)) -> 135135586470 | L97: 24 | M97: 3 | N97: 2032
A98: =+Flujos!A98 -> 2029-06-24 | B98: =+Flujos!L98 -> 1.767415363e+10 | C98: =+Flujos!M98 -> 1441478430 | D98: =+Flujos!N98 -> 93953331.57 | E98: =+Flujos!O98 -> 1535431762 | G98: 2032-03-24 | H98: =IF(G98<CALCULADORA!$C$23,0,IF(CALCULADORA!$C$27>'TIR de Tenencia'!G98,E98,CALCULADORA!$C$33)) -> 135135586470 | L98: 24 | M98: 4 | N98: 2032
A99: =+Flujos!A99 -> 2029-07-24 | B99: =+Flujos!L99 -> 1.618303165e+10 | C99: =+Flujos!M99 -> 1491121975 | D99: =+Flujos!N99 -> 86868465.09 | E99: =+Flujos!O99 -> 1577990440 | G99: =+DATE(N98,M98,L98) -> 2032-04-24 | H99: =IF(G99<CALCULADORA!$C$23,0,IF(CALCULADORA!$C$27>'TIR de Tenencia'!G99,E99,CALCULADORA!$C$33)) -> 135135586470 | L99: 24 | M99: 5 | N99: 2032
A100: =+Flujos!A100 -> 2029-08-24 | B100: =+Flujos!L100 -> 1.472074471e+10 | C100: =+Flujos!M100 -> 1462286945 | D100: =+Flujos!N100 -> 79539600.58 | E100: =+Flujos!O100 -> 1541826546 | G100: 2032-05-24 | H100: =IF(G100<CALCULADORA!$C$23,0,IF(CALCULADORA!$C$27>'TIR de Tenencia'!G100,E100,CALCULADORA!$C$33)) -> 135135586470 | L100: 24 | M100: 6 | N100: 2032
A101: =+Flujos!A101 -> 2029-09-24 | B101: =+Flujos!L101 -> 1.329418636e+10 | C101: =+Flujos!M101 -> 1426558350 | D101: =+Flujos!N101 -> 72352460.25 | E101: =+Flujos!O101 -> 1498910810 | G101: 2032-06-24 | H101: =IF(G101<CALCULADORA!$C$23,0,IF(CALCULADORA!$C$27>'TIR de Tenencia'!G101,E101,CALCULADORA!$C$33)) -> 135135586470 | L101: 24 | M101: 7 | N101: 2032
A102: =+Flujos!A102 -> 2029-10-24 | B102: =+Flujos!L102 -> 1.329418636e+10 | C102: =+Flujos!M102 -> 0 | D102: =+Flujos!N102 -> 65340925.96 | E102: =+Flujos!O102 -> 65340925.96 | G102: 2032-07-24 | H102: =IF(G102<CALCULADORA!$C$23,0,IF(CALCULADORA!$C$27>'TIR de Tenencia'!G102,E102,CALCULADORA!$C$33)) -> 135135586470 | L102: 24 | M102: 8 | N102: 2032
A103: =+Flujos!A103 -> 2029-11-24 | B103: =+Flujos!L103 -> 1.329418636e+10 | C103: =+Flujos!M103 -> 0 | D103: =+Flujos!N103 -> 65340925.96 | E103: =+Flujos!O103 -> 65340925.96 | G103: 2032-08-24 | H103: =IF(G103<CALCULADORA!$C$23,0,IF(CALCULADORA!$C$27>'TIR de Tenencia'!G103,E103,CALCULADORA!$C$33)) -> 135135586470 | L103: 24 | M103: 9 | N103: 2032
A104: =+Flujos!A104 -> 2029-12-24 | B104: =+Flujos!L104 -> 1.329418636e+10 | C104: =+Flujos!M104 -> 0 | D104: =+Flujos!N104 -> 65340925.96 | E104: =+Flujos!O104 -> 65340925.96 | G104: 2032-09-24 | H104: =IF(G104<CALCULADORA!$C$23,0,IF(CALCULADORA!$C$27>'TIR de Tenencia'!G104,E104,CALCULADORA!$C$33)) -> 135135586470 | L104: 24 | M104: 10 | N104: 2032
A105: =+Flujos!A105 -> 2030-01-24 | B105: =+Flujos!L105 -> 1.329418636e+10 | C105: =+Flujos!M105 -> 0 | D105: =+Flujos!N105 -> 65340925.96 | E105: =+Flujos!O105 -> 65340925.96 | G105: 2032-10-24 | H105: =IF(G105<CALCULADORA!$C$23,0,IF(CALCULADORA!$C$27>'TIR de Tenencia'!G105,E105,CALCULADORA!$C$33)) -> 135135586470 | L105: 24 | M105: 11 | N105: 2032
A106: =+Flujos!A106 -> 2030-02-24 | B106: =+Flujos!L106 -> 1.329418636e+10 | C106: =+Flujos!M106 -> 0 | D106: =+Flujos!N106 -> 65340925.96 | E106: =+Flujos!O106 -> 65340925.96 | G106: 2032-11-24 | H106: =IF(G106<CALCULADORA!$C$23,0,IF(CALCULADORA!$C$27>'TIR de Tenencia'!G106,E106,CALCULADORA!$C$33)) -> 135135586470 | L106: 24 | M106: 12 | N106: 2032
A107: =+Flujos!A107 -> 2030-03-24 | B107: =+Flujos!L107 -> 1.329418636e+10 | C107: =+Flujos!M107 -> 0 | D107: =+Flujos!N107 -> 65340925.96 | E107: =+Flujos!O107 -> 65340925.96 | G107: 2032-12-24 | H107: =IF(G107<CALCULADORA!$C$23,0,IF(CALCULADORA!$C$27>'TIR de Tenencia'!G107,E107,CALCULADORA!$C$33)) -> 135135586470 | L107: 24 | M107: 1 | N107: 2033
A108: =+Flujos!A108 -> 2030-04-24 | B108: =+Flujos!L108 -> 1.329418636e+10 | C108: =+Flujos!M108 -> 0 | D108: =+Flujos!N108 -> 65340925.96 | E108: =+Flujos!O108 -> 65340925.96 | G108: 2033-01-24 | H108: =IF(G108<CALCULADORA!$C$23,0,IF(CALCULADORA!$C$27>'TIR de Tenencia'!G108,E108,CALCULADORA!$C$33)) -> 135135586470 | L108: 24 | M108: 2 | N108: 2033
A109: =+Flujos!A109 -> 2030-05-24 | B109: =+Flujos!L109 -> 1.329418636e+10 | C109: =+Flujos!M109 -> 0 | D109: =+Flujos!N109 -> 65340925.96 | E109: =+Flujos!O109 -> 65340925.96 | G109: 2033-02-24 | H109: =IF(G109<CALCULADORA!$C$23,0,IF(CALCULADORA!$C$27>'TIR de Tenencia'!G109,E109,CALCULADORA!$C$33)) -> 135135586470 | L109: 24 | M109: 3 | N109: 2033
A110: =+Flujos!A110 -> 2030-06-24 | B110: =+Flujos!L110 -> 1.329418636e+10 | C110: =+Flujos!M110 -> 0 | D110: =+Flujos!N110 -> 65340925.96 | E110: =+Flujos!O110 -> 65340925.96 | G110: 2033-03-24 | H110: =IF(G110<CALCULADORA!$C$23,0,IF(CALCULADORA!$C$27>'TIR de Tenencia'!G110,E110,CALCULADORA!$C$33)) -> 135135586470 | L110: 24 | M110: 4 | N110: 2033
A111: =+Flujos!A111 -> 2030-07-24 | B111: =+Flujos!L111 -> 1.329418636e+10 | C111: =+Flujos!M111 -> 0 | D111: =+Flujos!N111 -> 65340925.96 | E111: =+Flujos!O111 -> 65340925.96 | G111: 2033-04-24 | H111: =IF(G111<CALCULADORA!$C$23,0,IF(CALCULADORA!$C$27>'TIR de Tenencia'!G111,E111,CALCULADORA!$C$33)) -> 135135586470 | L111: 24 | M111: 5 | N111: =+IF(M111=1,N110+1,N110) -> 2033
A112: =+Flujos!A112 -> 2030-08-24 | B112: =+Flujos!L112 -> 1.329418636e+10 | C112: =+Flujos!M112 -> 0 | D112: =+Flujos!N112 -> 65340925.96 | E112: =+Flujos!O112 -> 65340925.96 | G112: 2033-05-24 | H112: =IF(G112<CALCULADORA!$C$23,0,IF(CALCULADORA!$C$27>'TIR de Tenencia'!G112,E112,CALCULADORA!$C$33)) -> 135135586470 | L112: 24 | M112: 6 | N112: 2033
A113: =+Flujos!A113 -> 2030-09-24 | B113: =+Flujos!L113 -> 1.329418636e+10 | C113: =+Flujos!M113 -> 0 | D113: =+Flujos!N113 -> 65340925.96 | E113: =+Flujos!O113 -> 65340925.96 | G113: 2033-06-24 | H113: =IF(G113<CALCULADORA!$C$23,0,IF(CALCULADORA!$C$27>'TIR de Tenencia'!G113,E113,CALCULADORA!$C$33)) -> 135135586470 | L113: 24 | M113: 7 | N113: 2033
A114: =+Flujos!A114 -> 2030-10-24 | B114: =+Flujos!L114 -> 1.329418636e+10 | C114: =+Flujos!M114 -> 0 | D114: =+Flujos!N114 -> 65340925.96 | E114: =+Flujos!O114 -> 65340925.96 | G114: 2033-07-24 | H114: =IF(G114<CALCULADORA!$C$23,0,IF(CALCULADORA!$C$27>'TIR de Tenencia'!G114,E114,CALCULADORA!$C$33)) -> 135135586470 | L114: 24 | M114: 8 | N114: 2033
A115: =+Flujos!A115 -> 2030-11-24 | B115: =+Flujos!L115 -> 1.329418636e+10 | C115: =+Flujos!M115 -> 0 | D115: =+Flujos!N115 -> 65340925.96 | E115: =+Flujos!O115 -> 65340925.96 | G115: 2033-08-24 | H115: =IF(G115<CALCULADORA!$C$23,0,IF(CALCULADORA!$C$27>'TIR de Tenencia'!G115,E115,CALCULADORA!$C$33)) -> 135135586470 | L115: 24 | M115: 9 | N115: 2033
A116: =+Flujos!A116 -> 2030-12-24 | B116: =+Flujos!L116 -> 1.329418636e+10 | C116: =+Flujos!M116 -> 0 | D116: =+Flujos!N116 -> 65340925.96 | E116: =+Flujos!O116 -> 65340925.96 | G116: 2033-09-24 | H116: =IF(G116<CALCULADORA!$C$23,0,IF(CALCULADORA!$C$27>'TIR de Tenencia'!G116,E116,CALCULADORA!$C$33)) -> 135135586470 | L116: 24 | M116: 10 | N116: 2033
A117: =+Flujos!A117 -> 2031-01-24 | B117: =+Flujos!L117 -> 1.275195358e+10 | C117: =+Flujos!M117 -> 542232775 | D117: =+Flujos!N117 -> 65340925.96 | E117: =+Flujos!O117 -> 607573701 | G117: 2033-10-24 | H117: =IF(G117<CALCULADORA!$C$23,0,IF(CALCULADORA!$C$27>'TIR de Tenencia'!G117,E117,CALCULADORA!$C$33)) -> 135135586470 | L117: 24 | M117: 11 | N117: 2033
A118: =+Flujos!A118 -> 2031-02-24 | B118: =+Flujos!L118 -> 1.169062636e+10 | C118: =+Flujos!M118 -> 1061327225 | D118: =+Flujos!N118 -> 62675851.87 | E118: =+Flujos!O118 -> 1124003077 | G118: 2033-11-24 | H118: =IF(G118<CALCULADORA!$C$23,0,IF(CALCULADORA!$C$27>'TIR de Tenencia'!G118,E118,CALCULADORA!$C$33)) -> 135135586470 | L118: 24 | M118: 12 | N118: 2033
A119: =+Flujos!A119 -> 2031-03-24 | B119: =+Flujos!L119 -> 1.064265342e+10 | C119: =+Flujos!M119 -> 1047972940 | D119: =+Flujos!N119 -> 57459428.56 | E119: =+Flujos!O119 -> 1105432369 | G119: 2033-12-24 | H119: =IF(G119<CALCULADORA!$C$23,0,IF(CALCULADORA!$C$27>'TIR de Tenencia'!G119,E119,CALCULADORA!$C$33)) -> 135135586470 | L119: 24 | M119: 1 | N119: 2034
A120: =+Flujos!A120 -> 2031-04-24 | B120: =+Flujos!L120 -> 9605426075 | C120: =+Flujos!M120 -> 1037227345 | D120: =+Flujos!N120 -> 52308641.56 | E120: =+Flujos!O120 -> 1089535987 | G120: 2034-01-24 | H120: =IF(G120<CALCULADORA!$C$23,0,IF(CALCULADORA!$C$27>'TIR de Tenencia'!G120,E120,CALCULADORA!$C$33)) -> 135135586470 | L120: 24 | M120: 2 | N120: 2034
A121: =+Flujos!A121 -> 2031-05-24 | B121: =+Flujos!L121 -> 8578032155 | C121: =+Flujos!M121 -> 1027393920 | D121: =+Flujos!N121 -> 47210669.16 | E121: =+Flujos!O121 -> 1074604589 | G121: 2034-02-24 | H121: =IF(G121<CALCULADORA!$C$23,0,IF(CALCULADORA!$C$27>'TIR de Tenencia'!G121,E121,CALCULADORA!$C$33)) -> 135135586470 | L121: 24 | M121: 3 | N121: 2034
A122: =+Flujos!A122 -> 2031-06-24 | B122: =+Flujos!L122 -> 7647383450 | C122: =+Flujos!M122 -> 930648705 | D122: =+Flujos!N122 -> 42161028.04 | E122: =+Flujos!O122 -> 972809733 | G122: 2034-03-24 | H122: =IF(G122<CALCULADORA!$C$23,0,IF(CALCULADORA!$C$27>'TIR de Tenencia'!G122,E122,CALCULADORA!$C$33)) -> 135135586470 | L122: 24 | M122: 4 | N122: 2034
A123: =+Flujos!A123 -> 2031-07-24 | B123: =+Flujos!L123 -> 6641660830 | C123: =+Flujos!M123 -> 1005722620 | D123: =+Flujos!N123 -> 37586889.66 | E123: =+Flujos!O123 -> 1043309510 | G123: 2034-04-24 | H123: =IF(G123<CALCULADORA!$C$23,0,IF(CALCULADORA!$C$27>'TIR de Tenencia'!G123,E123,CALCULADORA!$C$33)) -> 135135586470 | L123: 24 | M123: 5 | N123: 2034
A124: =+Flujos!A124 -> 2031-08-24 | B124: =+Flujos!L124 -> 5645341695 | C124: =+Flujos!M124 -> 996319135 | D124: =+Flujos!N124 -> 32643762.98 | E124: =+Flujos!O124 -> 1028962898 | G124: 2034-05-24 | H124: =IF(G124<CALCULADORA!$C$23,0,IF(CALCULADORA!$C$27>'TIR de Tenencia'!G124,E124,CALCULADORA!$C$33)) -> 135135586470 | L124: 24 | M124: 6 | N124: 2034
A125: =+Flujos!A125 -> 2031-09-24 | B125: =+Flujos!L125 -> 4658702020 | C125: =+Flujos!M125 -> 986639675 | D125: =+Flujos!N125 -> 27746854.43 | E125: =+Flujos!O125 -> 1014386529 | G125: 2034-06-24 | H125: =IF(G125<CALCULADORA!$C$23,0,IF(CALCULADORA!$C$27>'TIR de Tenencia'!G125,E125,CALCULADORA!$C$33)) -> 135135586470 | L125: 24 | M125: 7 | N125: 2034
A126: =+Flujos!A126 -> 2031-10-24 | B126: =+Flujos!L126 -> 3682142695 | C126: =+Flujos!M126 -> 976559325 | D126: =+Flujos!N126 -> 22897520.43 | E126: =+Flujos!O126 -> 999456845.4 | G126: 2034-07-24 | H126: =IF(G126<CALCULADORA!$C$23,0,IF(CALCULADORA!$C$27>'TIR de Tenencia'!G126,E126,CALCULADORA!$C$33)) -> 135135586470 | L126: 24 | M126: 8 | N126: 2034
A127: =+Flujos!A127 -> 2031-11-24 | B127: =+Flujos!L127 -> 2716880915 | C127: =+Flujos!M127 -> 965261780 | D127: =+Flujos!N127 -> 18097731.35 | E127: =+Flujos!O127 -> 983359511.3 | G127: 2034-08-24 | H127: =IF(G127<CALCULADORA!$C$23,0,IF(CALCULADORA!$C$27>'TIR de Tenencia'!G127,E127,CALCULADORA!$C$33)) -> 135135586470 | L127: 24 | M127: 9 | N127: 2034
A128: =+Flujos!A128 -> 2031-12-24 | B128: =+Flujos!L128 -> 1761147535 | C128: =+Flujos!M128 -> 955733380 | D128: =+Flujos!N128 -> 13353469.7 | E128: =+Flujos!O128 -> 969086849.7 | G128: 2034-09-24 | H128: =IF(G128<CALCULADORA!$C$23,0,IF(CALCULADORA!$C$27>'TIR de Tenencia'!G128,E128,CALCULADORA!$C$33)) -> 135135586470 | L128: 24 | M128: 10 | N128: 2034
A129: =+Flujos!A129 -> 2032-01-24 | B129: =+Flujos!L129 -> 816235280 | C129: =+Flujos!M129 -> 944912255 | D129: =+Flujos!N129 -> 8656040.135 | E129: =+Flujos!O129 -> 953568295.1 | G129: 2034-10-24 | H129: =IF(G129<CALCULADORA!$C$23,0,IF(CALCULADORA!$C$27>'TIR de Tenencia'!G129,E129,CALCULADORA!$C$33)) -> 135135586470 | L129: 24 | M129: 11 | N129: 2034
A130: =+Flujos!A130 -> 2032-02-24 | B130: =+Flujos!L130 -> -6.067752838e-05 | C130: =+Flujos!M130 -> 816235280 | D130: =+Flujos!N130 -> 4011796.401 | E130: =+Flujos!O130 -> 820247076.4 | G130: 2034-11-24 | H130: =IF(G130<CALCULADORA!$C$23,0,IF(CALCULADORA!$C$27>'TIR de Tenencia'!G130,E130,CALCULADORA!$C$33)) -> 135135586470 | L130: 24 | M130: 12 | N130: 2034
A131: =+Flujos!A131 -> 2032-03-24 | B131: =+Flujos!L131 -> -6.067752838e-05 | C131: =+Flujos!M131 -> 0 | D131: =+Flujos!N131 -> -2.98230052e-07 | E131: =+Flujos!O131 -> -2.98230052e-07 | G131: =+DATE(N130,M130,L130) -> 2034-12-24 | H131: =IF(G131<CALCULADORA!$C$23,0,IF(CALCULADORA!$C$27>'TIR de Tenencia'!G131,E131,CALCULADORA!$C$33)) -> 135135586470 | L131: =+L130 -> 24 | M131: =+IF(M130=12,1,M130+1) -> 1 | N131: =+IF(M131=1,N130+1,N130) -> 2035
A132: =+Flujos!A132 -> 2032-04-24 | B132: =+Flujos!L132 -> -6.067752838e-05 | C132: =+Flujos!M132 -> 0 | D132: =+Flujos!N132 -> -2.98230052e-07 | E132: =+Flujos!O132 -> -2.98230052e-07 | G132: 2035-01-24 | H132: =IF(G132<CALCULADORA!$C$23,0,IF(CALCULADORA!$C$27>'TIR de Tenencia'!G132,E132,CALCULADORA!$C$33)) -> 135135586470 | I132: =+IF(H132=H131," ",G132) ->  | J132: =+IF(H132=H131," ",H132) ->  | L132: 24 | M132: 2 | N132: 2035
A133: =+Flujos!A133 -> 2032-05-24 | B133: =+Flujos!L133 -> -6.067752838e-05 | C133: =+Flujos!M133 -> 0 | D133: =+Flujos!N133 -> -2.98230052e-07 | E133: =+Flujos!O133 -> -2.98230052e-07 | G133: 2035-02-24 | H133: =IF(G133<CALCULADORA!$C$23,0,IF(CALCULADORA!$C$27>'TIR de Tenencia'!G133,E133,CALCULADORA!$C$33)) -> 135135586470 | L133: 24 | M133: 3 | N133: 2035
A134: =+Flujos!A134 -> 2032-06-24 | B134: =+Flujos!L134 -> -6.067752838e-05 | C134: =+Flujos!M134 -> 0 | D134: =+Flujos!N134 -> -2.98230052e-07 | E134: =+Flujos!O134 -> -2.98230052e-07 | G134: 2035-03-24 | H134: =IF(G134<CALCULADORA!$C$23,0,IF(CALCULADORA!$C$27>'TIR de Tenencia'!G134,E134,CALCULADORA!$C$33)) -> 135135586470 | L134: 24 | M134: 4 | N134: 2035
A135: =+Flujos!A135 -> 2032-07-24 | B135: =+Flujos!L135 -> -6.067752838e-05 | C135: =+Flujos!M135 -> 0 | D135: =+Flujos!N135 -> -2.98230052e-07 | E135: =+Flujos!O135 -> -2.98230052e-07 | G135: 2035-04-24 | H135: =IF(G135<CALCULADORA!$C$23,0,IF(CALCULADORA!$C$27>'TIR de Tenencia'!G135,E135,CALCULADORA!$C$33)) -> 135135586470 | L135: 24 | M135: 5 | N135: 2035
A136: =+Flujos!A136 -> 2032-08-24 | B136: =+Flujos!L136 -> -6.067752838e-05 | C136: =+Flujos!M136 -> 0 | D136: =+Flujos!N136 -> -2.98230052e-07 | E136: =+Flujos!O136 -> -2.98230052e-07 | G136: 2035-05-24 | H136: =IF(G136<CALCULADORA!$C$23,0,IF(CALCULADORA!$C$27>'TIR de Tenencia'!G136,E136,CALCULADORA!$C$33)) -> 135135586470 | L136: 24 | M136: 6 | N136: 2035
A137: =+Flujos!A137 -> 2032-09-24 | B137: =+Flujos!L137 -> -6.067752838e-05 | C137: =+Flujos!M137 -> 0 | D137: =+Flujos!N137 -> -2.98230052e-07 | E137: =+Flujos!O137 -> -2.98230052e-07 | G137: 2035-06-24 | H137: =IF(G137<CALCULADORA!$C$23,0,IF(CALCULADORA!$C$27>'TIR de Tenencia'!G137,E137,CALCULADORA!$C$33)) -> 135135586470 | L137: 24 | M137: 7 | N137: 2035
A138: =+Flujos!A138 -> 2032-10-24 | B138: =+Flujos!L138 -> -6.067752838e-05 | C138: =+Flujos!M138 -> 0 | D138: =+Flujos!N138 -> -2.98230052e-07 | E138: =+Flujos!O138 -> -2.98230052e-07 | G138: 2035-07-24 | H138: =IF(G138<CALCULADORA!$C$23,0,IF(CALCULADORA!$C$27>'TIR de Tenencia'!G138,E138,CALCULADORA!$C$33)) -> 135135586470 | L138: 24 | M138: 8 | N138: 2035
A139: =+Flujos!A139 -> 2032-11-24 | B139: =+Flujos!L139 -> -6.067752838e-05 | C139: =+Flujos!M139 -> 0 | D139: =+Flujos!N139 -> -2.98230052e-07 | E139: =+Flujos!O139 -> -2.98230052e-07 | G139: 2035-08-24 | H139: =IF(G139<CALCULADORA!$C$23,0,IF(CALCULADORA!$C$27>'TIR de Tenencia'!G139,E139,CALCULADORA!$C$33)) -> 135135586470 | L139: 24 | M139: 9 | N139: 2035
A140: =+Flujos!A140 -> 2032-12-24 | B140: =+Flujos!L140 -> -6.067752838e-05 | C140: =+Flujos!M140 -> 0 | D140: =+Flujos!N140 -> -2.98230052e-07 | E140: =+Flujos!O140 -> -2.98230052e-07 | G140: 2035-09-24 | H140: =IF(G140<CALCULADORA!$C$23,0,IF(CALCULADORA!$C$27>'TIR de Tenencia'!G140,E140,CALCULADORA!$C$33)) -> 135135586470 | L140: 24 | M140: 10 | N140: 2035
A141: =+Flujos!A141 -> 2033-01-24 | B141: =+Flujos!L141 -> -6.067752838e-05 | C141: =+Flujos!M141 -> 0 | D141: =+Flujos!N141 -> -2.98230052e-07 | E141: =+Flujos!O141 -> -2.98230052e-07 | G141: 2035-10-24 | H141: =IF(G141<CALCULADORA!$C$23,0,IF(CALCULADORA!$C$27>'TIR de Tenencia'!G141,E141,CALCULADORA!$C$33)) -> 135135586470 | L141: 24 | M141: 11 | N141: 2035
A142: =+Flujos!A142 -> 2033-02-24 | B142: =+Flujos!L142 -> -6.067752838e-05 | C142: =+Flujos!M142 -> 0 | D142: =+Flujos!N142 -> -2.98230052e-07 | E142: =+Flujos!O142 -> -2.98230052e-07 | G142: 2035-11-24 | H142: =IF(G142<CALCULADORA!$C$23,0,IF(CALCULADORA!$C$27>'TIR de Tenencia'!G142,E142,CALCULADORA!$C$33)) -> 135135586470 | L142: 24 | M142: 12 | N142: 2035
A143: =+Flujos!A143 -> 2033-03-24 | B143: =+Flujos!L143 -> -6.067752838e-05 | C143: =+Flujos!M143 -> 0 | D143: =+Flujos!N143 -> -2.98230052e-07 | E143: =+Flujos!O143 -> -2.98230052e-07 | G143: 2035-12-24 | H143: =IF(G143<CALCULADORA!$C$23,0,IF(CALCULADORA!$C$27>'TIR de Tenencia'!G143,E143,CALCULADORA!$C$33)) -> 135135586470 | L143: 24 | M143: 1 | N143: 2036
A144: =+Flujos!A144 -> 2033-04-24 | B144: =+Flujos!L144 -> -6.067752838e-05 | C144: =+Flujos!M144 -> 0 | D144: =+Flujos!N144 -> -2.98230052e-07 | E144: =+Flujos!O144 -> -2.98230052e-07 | G144: 2036-01-24 | H144: =IF(G144<CALCULADORA!$C$23,0,IF(CALCULADORA!$C$27>'TIR de Tenencia'!G144,E144,CALCULADORA!$C$33)) -> 135135586470 | L144: 24 | M144: 2 | N144: 2036
A145: =+Flujos!A145 -> 2033-05-24 | B145: =+Flujos!L145 -> -6.067752838e-05 | C145: =+Flujos!M145 -> 0 | D145: =+Flujos!N145 -> -2.98230052e-07 | E145: =+Flujos!O145 -> -2.98230052e-07 | G145: 2036-02-24 | H145: =IF(G145<CALCULADORA!$C$23,0,IF(CALCULADORA!$C$27>'TIR de Tenencia'!G145,E145,CALCULADORA!$C$33)) -> 135135586470 | L145: 24 | M145: 3 | N145: 2036
A146: =+Flujos!A146 -> 2033-06-24 | B146: =+Flujos!L146 -> -6.067752838e-05 | C146: =+Flujos!M146 -> 0 | D146: =+Flujos!N146 -> -2.98230052e-07 | E146: =+Flujos!O146 -> -2.98230052e-07 | G146: 2036-03-24 | H146: =IF(G146<CALCULADORA!$C$23,0,IF(CALCULADORA!$C$27>'TIR de Tenencia'!G146,E146,CALCULADORA!$C$33)) -> 135135586470 | L146: 24 | M146: 4 | N146: 2036
A147: =+Flujos!A147 -> 2033-07-24 | B147: =+Flujos!L147 -> -6.067752838e-05 | C147: =+Flujos!M147 -> 0 | D147: =+Flujos!N147 -> -2.98230052e-07 | E147: =+Flujos!O147 -> -2.98230052e-07 | G147: 2036-04-24 | H147: =IF(G147<CALCULADORA!$C$23,0,IF(CALCULADORA!$C$27>'TIR de Tenencia'!G147,E147,CALCULADORA!$C$33)) -> 135135586470 | L147: 24 | M147: 5 | N147: 2036
A148: =+Flujos!A148 -> 2033-08-24 | B148: =+Flujos!L148 -> -6.067752838e-05 | C148: =+Flujos!M148 -> 0 | D148: =+Flujos!N148 -> -2.98230052e-07 | E148: =+Flujos!O148 -> -2.98230052e-07 | G148: 2036-05-24 | H148: =IF(G148<CALCULADORA!$C$23,0,IF(CALCULADORA!$C$27>'TIR de Tenencia'!G148,E148,CALCULADORA!$C$33)) -> 135135586470 | L148: 24 | M148: 6 | N148: 2036
A149: =+Flujos!A149 -> 2033-09-24 | B149: =+Flujos!L149 -> -6.067752838e-05 | C149: =+Flujos!M149 -> 0 | D149: =+Flujos!N149 -> -2.98230052e-07 | E149: =+Flujos!O149 -> -2.98230052e-07 | G149: 2036-06-24 | H149: =IF(G149<CALCULADORA!$C$23,0,IF(CALCULADORA!$C$27>'TIR de Tenencia'!G149,E149,CALCULADORA!$C$33)) -> 135135586470 | L149: 24 | M149: 7 | N149: 2036
A150: =+Flujos!A150 -> 2033-10-24 | B150: =+Flujos!L150 -> -6.067752838e-05 | C150: =+Flujos!M150 -> 0 | D150: =+Flujos!N150 -> -2.98230052e-07 | E150: =+Flujos!O150 -> -2.98230052e-07 | G150: 2036-07-24 | H150: =IF(G150<CALCULADORA!$C$23,0,IF(CALCULADORA!$C$27>'TIR de Tenencia'!G150,E150,CALCULADORA!$C$33)) -> 135135586470 | L150: 24 | M150: 8 | N150: 2036
A151: =+Flujos!A151 -> 2033-11-24 | B151: =+Flujos!L151 -> -6.067752838e-05 | C151: =+Flujos!M151 -> 0 | D151: =+Flujos!N151 -> -2.98230052e-07 | E151: =+Flujos!O151 -> -2.98230052e-07 | G151: 2036-08-24 | H151: =IF(G151<CALCULADORA!$C$23,0,IF(CALCULADORA!$C$27>'TIR de Tenencia'!G151,E151,CALCULADORA!$C$33)) -> 135135586470 | L151: 24 | M151: 9 | N151: 2036
A152: =+Flujos!A152 -> 2033-12-24 | B152: =+Flujos!L152 -> -6.067752838e-05 | C152: =+Flujos!M152 -> 0 | D152: =+Flujos!N152 -> -2.98230052e-07 | E152: =+Flujos!O152 -> -2.98230052e-07 | G152: 2036-09-24 | H152: =IF(G152<CALCULADORA!$C$23,0,IF(CALCULADORA!$C$27>'TIR de Tenencia'!G152,E152,CALCULADORA!$C$33)) -> 135135586470 | L152: 24 | M152: 10 | N152: 2036
A153: =+Flujos!A153 -> 2034-01-24 | B153: =+Flujos!L153 -> -6.067752838e-05 | C153: =+Flujos!M153 -> 0 | D153: =+Flujos!N153 -> -2.98230052e-07 | E153: =+Flujos!O153 -> -2.98230052e-07 | G153: 2036-10-24 | H153: =IF(G153<CALCULADORA!$C$23,0,IF(CALCULADORA!$C$27>'TIR de Tenencia'!G153,E153,CALCULADORA!$C$33)) -> 135135586470 | L153: 24 | M153: 11 | N153: 2036
A154: =+Flujos!A154 -> 2034-02-24 | B154: =+Flujos!L154 -> -6.067752838e-05 | C154: =+Flujos!M154 -> 0 | D154: =+Flujos!N154 -> -2.98230052e-07 | E154: =+Flujos!O154 -> -2.98230052e-07 | G154: 2036-11-24 | H154: =IF(G154<CALCULADORA!$C$23,0,IF(CALCULADORA!$C$27>'TIR de Tenencia'!G154,E154,CALCULADORA!$C$33)) -> 135135586470 | L154: 24 | M154: 12 | N154: 2036
A155: =+Flujos!A155 -> 2034-03-24 | B155: =+Flujos!L155 -> -6.067752838e-05 | C155: =+Flujos!M155 -> 0 | D155: =+Flujos!N155 -> -2.98230052e-07 | E155: =+Flujos!O155 -> -2.98230052e-07 | G155: 2036-12-24 | H155: =IF(G155<CALCULADORA!$C$23,0,IF(CALCULADORA!$C$27>'TIR de Tenencia'!G155,E155,CALCULADORA!$C$33)) -> 135135586470 | L155: 24 | M155: 1 | N155: 2037
A156: =+Flujos!A156 -> 2034-04-24 | B156: =+Flujos!L156 -> -6.067752838e-05 | C156: =+Flujos!M156 -> 0 | D156: =+Flujos!N156 -> -2.98230052e-07 | E156: =+Flujos!O156 -> -2.98230052e-07 | G156: 2037-01-24 | H156: =IF(G156<CALCULADORA!$C$23,0,IF(CALCULADORA!$C$27>'TIR de Tenencia'!G156,E156,CALCULADORA!$C$33)) -> 135135586470 | L156: 24 | M156: 2 | N156: 2037
A157: =+Flujos!A157 -> 2034-05-24 | B157: =+Flujos!L157 -> -6.067752838e-05 | C157: =+Flujos!M157 -> 0 | D157: =+Flujos!N157 -> -2.98230052e-07 | E157: =+Flujos!O157 -> -2.98230052e-07 | G157: 2037-02-24 | H157: =IF(G157<CALCULADORA!$C$23,0,IF(CALCULADORA!$C$27>'TIR de Tenencia'!G157,E157,CALCULADORA!$C$33)) -> 135135586470 | L157: 24 | M157: 3 | N157: 2037
A158: =+Flujos!A158 -> 2034-06-24 | B158: =+Flujos!L158 -> -6.067752838e-05 | C158: =+Flujos!M158 -> 0 | D158: =+Flujos!N158 -> -2.98230052e-07 | E158: =+Flujos!O158 -> -2.98230052e-07 | G158: 2037-03-24 | H158: =IF(G158<CALCULADORA!$C$23,0,IF(CALCULADORA!$C$27>'TIR de Tenencia'!G158,E158,CALCULADORA!$C$33)) -> 135135586470 | L158: 24 | M158: 4 | N158: 2037
A159: =+Flujos!A159 -> 2034-07-24 | B159: =+Flujos!L159 -> -6.067752838e-05 | C159: =+Flujos!M159 -> 0 | D159: =+Flujos!N159 -> -2.98230052e-07 | E159: =+Flujos!O159 -> -2.98230052e-07 | G159: 2037-04-24 | H159: =IF(G159<CALCULADORA!$C$23,0,IF(CALCULADORA!$C$27>'TIR de Tenencia'!G159,E159,CALCULADORA!$C$33)) -> 135135586470 | L159: 24 | M159: 5 | N159: 2037
A160: =+Flujos!A160 -> 2034-08-24 | B160: =+Flujos!L160 -> -6.067752838e-05 | C160: =+Flujos!M160 -> 0 | D160: =+Flujos!N160 -> -2.98230052e-07 | E160: =+Flujos!O160 -> -2.98230052e-07 | G160: 2037-05-24 | H160: =IF(G160<CALCULADORA!$C$23,0,IF(CALCULADORA!$C$27>'TIR de Tenencia'!G160,E160,CALCULADORA!$C$33)) -> 135135586470 | L160: 24 | M160: 6 | N160: 2037
A161: =+Flujos!A161 -> 2034-09-24 | B161: =+Flujos!L161 -> -6.067752838e-05 | C161: =+Flujos!M161 -> 0 | D161: =+Flujos!N161 -> -2.98230052e-07 | E161: =+Flujos!O161 -> -2.98230052e-07 | G161: 2037-06-24 | H161: =IF(G161<CALCULADORA!$C$23,0,IF(CALCULADORA!$C$27>'TIR de Tenencia'!G161,E161,CALCULADORA!$C$33)) -> 135135586470 | L161: 24 | M161: 7 | N161: 2037
A162: =+Flujos!A162 -> 2034-10-24 | B162: =+Flujos!L162 -> -6.067752838e-05 | C162: =+Flujos!M162 -> 0 | D162: =+Flujos!N162 -> -2.98230052e-07 | E162: =+Flujos!O162 -> -2.98230052e-07 | G162: 2037-07-24 | H162: =IF(G162<CALCULADORA!$C$23,0,IF(CALCULADORA!$C$27>'TIR de Tenencia'!G162,E162,CALCULADORA!$C$33)) -> 135135586470 | L162: 24 | M162: 8 | N162: 2037
A163: =+Flujos!A163 -> 2034-11-24 | B163: =+Flujos!L163 -> -6.067752838e-05 | C163: =+Flujos!M163 -> 0 | D163: =+Flujos!N163 -> -2.98230052e-07 | E163: =+Flujos!O163 -> -2.98230052e-07 | G163: =+DATE(N162,M162,L162) -> 2037-08-24 | H163: =IF(G163<CALCULADORA!$C$23,0,IF(CALCULADORA!$C$27>'TIR de Tenencia'!G163,E163,CALCULADORA!$C$33)) -> 135135586470 | L163: 24 | M163: 9 | N163: 2037
A164: =+Flujos!A164 -> 2034-12-24 | B164: =+Flujos!L164 -> -6.067752838e-05 | C164: =+Flujos!M164 -> 0 | D164: =+Flujos!N164 -> -2.98230052e-07 | E164: =+Flujos!O164 -> -2.98230052e-07 | G164: 2037-09-24 | H164: =IF(G164<CALCULADORA!$C$23,0,IF(CALCULADORA!$C$27>'TIR de Tenencia'!G164,E164,CALCULADORA!$C$33)) -> 135135586470 | L164: 24 | M164: 10 | N164: 2037
A165: =+Flujos!A165 -> 2035-01-24 | B165: =+Flujos!L165 -> -6.067752838e-05 | C165: =+Flujos!M165 -> 0 | D165: =+Flujos!N165 -> -2.98230052e-07 | E165: =+Flujos!O165 -> -2.98230052e-07 | G165: 2037-10-24 | H165: =IF(G165<CALCULADORA!$C$23,0,IF(CALCULADORA!$C$27>'TIR de Tenencia'!G165,E165,CALCULADORA!$C$33)) -> 135135586470 | L165: 24 | M165: 11 | N165: 2037
A166: =+Flujos!A166 -> 2035-02-24 | B166: =+Flujos!L166 -> -6.067752838e-05 | C166: =+Flujos!M166 -> 0 | D166: =+Flujos!N166 -> -2.98230052e-07 | E166: =+Flujos!O166 -> -2.98230052e-07 | G166: 2037-11-24 | H166: =IF(G166<CALCULADORA!$C$23,0,IF(CALCULADORA!$C$27>'TIR de Tenencia'!G166,E166,CALCULADORA!$C$33)) -> 135135586470 | L166: 24 | M166: 12 | N166: 2037
A167: =+Flujos!A167 -> 2035-03-24 | B167: =+Flujos!L167 -> -6.067752838e-05 | C167: =+Flujos!M167 -> 0 | D167: =+Flujos!N167 -> -2.98230052e-07 | E167: =+Flujos!O167 -> -2.98230052e-07 | G167: 2037-12-24 | H167: =IF(G167<CALCULADORA!$C$23,0,IF(CALCULADORA!$C$27>'TIR de Tenencia'!G167,E167,CALCULADORA!$C$33)) -> 135135586470 | L167: 24 | M167: 1 | N167: 2038
A168: =+Flujos!A168 -> 2035-04-24 | B168: =+Flujos!L168 -> -6.067752838e-05 | C168: =+Flujos!M168 -> 0 | D168: =+Flujos!N168 -> -2.98230052e-07 | E168: =+Flujos!O168 -> -2.98230052e-07 | G168: 2038-01-24 | H168: =IF(G168<CALCULADORA!$C$23,0,IF(CALCULADORA!$C$27>'TIR de Tenencia'!G168,E168,CALCULADORA!$C$33)) -> 135135586470 | L168: 24 | M168: 2 | N168: 2038
A169: =+Flujos!A169 -> 2035-05-24 | B169: =+Flujos!L169 -> -6.067752838e-05 | C169: =+Flujos!M169 -> 0 | D169: =+Flujos!N169 -> -2.98230052e-07 | E169: =+Flujos!O169 -> -2.98230052e-07 | G169: 2038-02-24 | H169: =IF(G169<CALCULADORA!$C$23,0,IF(CALCULADORA!$C$27>'TIR de Tenencia'!G169,E169,CALCULADORA!$C$33)) -> 135135586470 | L169: 24 | M169: 3 | N169: 2038
A170: =+Flujos!A170 -> 2035-06-24 | B170: =+Flujos!L170 -> -6.067752838e-05 | C170: =+Flujos!M170 -> 0 | D170: =+Flujos!N170 -> -2.98230052e-07 | E170: =+Flujos!O170 -> -2.98230052e-07 | G170: 2038-03-24 | H170: =IF(G170<CALCULADORA!$C$23,0,IF(CALCULADORA!$C$27>'TIR de Tenencia'!G170,E170,CALCULADORA!$C$33)) -> 135135586470 | L170: 24 | M170: 4 | N170: 2038
A171: =+Flujos!A171 -> 2035-07-24 | B171: =+Flujos!L171 -> -6.067752838e-05 | C171: =+Flujos!M171 -> 0 | D171: =+Flujos!N171 -> -2.98230052e-07 | E171: =+Flujos!O171 -> -2.98230052e-07 | G171: 2038-04-24 | H171: =IF(G171<CALCULADORA!$C$23,0,IF(CALCULADORA!$C$27>'TIR de Tenencia'!G171,E171,CALCULADORA!$C$33)) -> 135135586470 | L171: 24 | M171: 5 | N171: 2038
A172: =+Flujos!A172 -> 2035-08-24 | B172: =+Flujos!L172 -> -6.067752838e-05 | C172: =+Flujos!M172 -> 0 | D172: =+Flujos!N172 -> -2.98230052e-07 | E172: =+Flujos!O172 -> -2.98230052e-07 | G172: 2038-05-24 | H172: =IF(G172<CALCULADORA!$C$23,0,IF(CALCULADORA!$C$27>'TIR de Tenencia'!G172,E172,CALCULADORA!$C$33)) -> 135135586470 | L172: 24 | M172: 6 | N172: 2038
A173: =+Flujos!A173 -> 2035-09-24 | B173: =+Flujos!L173 -> -6.067752838e-05 | C173: =+Flujos!M173 -> 0 | D173: =+Flujos!N173 -> -2.98230052e-07 | E173: =+Flujos!O173 -> -2.98230052e-07 | G173: 2038-06-24 | H173: =IF(G173<CALCULADORA!$C$23,0,IF(CALCULADORA!$C$27>'TIR de Tenencia'!G173,E173,CALCULADORA!$C$33)) -> 135135586470 | L173: 24 | M173: 7 | N173: 2038
A174: =+Flujos!A174 -> 2035-10-24 | B174: =+Flujos!L174 -> -6.067752838e-05 | C174: =+Flujos!M174 -> 0 | D174: =+Flujos!N174 -> -2.98230052e-07 | E174: =+Flujos!O174 -> -2.98230052e-07 | G174: 2038-07-24 | H174: =IF(G174<CALCULADORA!$C$23,0,IF(CALCULADORA!$C$27>'TIR de Tenencia'!G174,E174,CALCULADORA!$C$33)) -> 135135586470 | L174: 24 | M174: 8 | N174: 2038
A175: =+Flujos!A175 -> 2035-11-24 | B175: =+Flujos!L175 -> -6.067752838e-05 | C175: =+Flujos!M175 -> 0 | D175: =+Flujos!N175 -> -2.98230052e-07 | E175: =+Flujos!O175 -> -2.98230052e-07 | G175: 2038-08-24 | H175: =IF(G175<CALCULADORA!$C$23,0,IF(CALCULADORA!$C$27>'TIR de Tenencia'!G175,E175,CALCULADORA!$C$33)) -> 135135586470 | L175: 24 | M175: 9 | N175: 2038
A176: =+Flujos!A176 -> 2035-12-24 | B176: =+Flujos!L176 -> -6.067752838e-05 | C176: =+Flujos!M176 -> 0 | D176: =+Flujos!N176 -> -2.98230052e-07 | E176: =+Flujos!O176 -> -2.98230052e-07 | G176: 2038-09-24 | H176: =IF(G176<CALCULADORA!$C$23,0,IF(CALCULADORA!$C$27>'TIR de Tenencia'!G176,E176,CALCULADORA!$C$33)) -> 135135586470 | L176: 24 | M176: 10 | N176: 2038
A177: =+Flujos!A177 -> 2036-01-24 | B177: =+Flujos!L177 -> -6.067752838e-05 | C177: =+Flujos!M177 -> 0 | D177: =+Flujos!N177 -> -2.98230052e-07 | E177: =+Flujos!O177 -> -2.98230052e-07 | G177: 2038-10-24 | H177: =IF(G177<CALCULADORA!$C$23,0,IF(CALCULADORA!$C$27>'TIR de Tenencia'!G177,E177,CALCULADORA!$C$33)) -> 135135586470 | L177: 24 | M177: 11 | N177: 2038
A178: =+Flujos!A178 -> 2036-02-24 | B178: =+Flujos!L178 -> -6.067752838e-05 | C178: =+Flujos!M178 -> 0 | D178: =+Flujos!N178 -> -2.98230052e-07 | E178: =+Flujos!O178 -> -2.98230052e-07 | G178: 2038-11-24 | H178: =IF(G178<CALCULADORA!$C$23,0,IF(CALCULADORA!$C$27>'TIR de Tenencia'!G178,E178,CALCULADORA!$C$33)) -> 135135586470 | L178: 24 | M178: 12 | N178: 2038
A179: =+Flujos!A179 -> 2036-03-24 | B179: =+Flujos!L179 -> -6.067752838e-05 | C179: =+Flujos!M179 -> 0 | D179: =+Flujos!N179 -> -2.98230052e-07 | E179: =+Flujos!O179 -> -2.98230052e-07 | G179: 2038-12-24 | H179: =IF(G179<CALCULADORA!$C$23,0,IF(CALCULADORA!$C$27>'TIR de Tenencia'!G179,E179,CALCULADORA!$C$33)) -> 135135586470 | L179: 24 | M179: 1 | N179: 2039
A180: =+Flujos!A180 -> 2036-04-24 | B180: =+Flujos!L180 -> -6.067752838e-05 | C180: =+Flujos!M180 -> 0 | D180: =+Flujos!N180 -> -2.98230052e-07 | E180: =+Flujos!O180 -> -2.98230052e-07 | G180: 2039-01-24 | H180: =IF(G180<CALCULADORA!$C$23,0,IF(CALCULADORA!$C$27>'TIR de Tenencia'!G180,E180,CALCULADORA!$C$33)) -> 135135586470 | L180: 24 | M180: 2 | N180: 2039
A181: =+Flujos!A181 -> 2036-05-24 | B181: =+Flujos!L181 -> -6.067752838e-05 | C181: =+Flujos!M181 -> 0 | D181: =+Flujos!N181 -> -2.98230052e-07 | E181: =+Flujos!O181 -> -2.98230052e-07 | G181: 2039-02-24 | H181: =IF(G181<CALCULADORA!$C$23,0,IF(CALCULADORA!$C$27>'TIR de Tenencia'!G181,E181,CALCULADORA!$C$33)) -> 135135586470 | L181: 24 | M181: 3 | N181: 2039
A182: =+Flujos!A182 -> 2036-06-24 | B182: =+Flujos!L182 -> -6.067752838e-05 | C182: =+Flujos!M182 -> 0 | D182: =+Flujos!N182 -> -2.98230052e-07 | E182: =+Flujos!O182 -> -2.98230052e-07 | G182: 2039-03-24 | H182: =IF(G182<CALCULADORA!$C$23,0,IF(CALCULADORA!$C$27>'TIR de Tenencia'!G182,E182,CALCULADORA!$C$33)) -> 135135586470 | L182: 24 | M182: 4 | N182: 2039
B183: Totales | C183: =SUM(C2:C182) -> 2.905e+11 | D183: 6.033917291e+10 | E183: 3.508391729e+11
I184: =+IF(H184=H183," ",H184) ->  | K184: =+MONTH(A184) -> 1 | L184: =+YEAR(A184) -> 1900
K185: 1 | L185: 1900
K186: 1 | L186: 1900
K187: 1 | L187: 1900
K188: 1 | L188: 1900
K189: 1 | L189: 1900
K190: 1 | L190: 1900
K191: 1 | L191: 1900
K192: 1 | L192: 1900
K193: 1 | L193: 1900
K194: 1 | L194: 1900
K195: 1 | L195: 1900
K196: 1 | L196: 1900
K197: 1 | L197: 1900
K198: 1 | L198: 1900
K199: 1 | L199: 1900
K200: 1 | L200: 1900
... 4300 more rows

Sheet Tabla de Amortizacion (hidden)
A1: FECHA | B1: Tabla de Amortización Valoración | E1: Tabla de Amortización Valoración | F1: Tabla de Amortización Valoración | G1: Tabla de Amortización Valoración | H1: Tabla de Amortización Valoración | I1: Tabla de Amortización Valoración | J1: Tabla de Amortización Valoración | K1: Tabla de Amortización Valoración | L1: Tabla de Amortización Valoración | M1: Tabla de Amortización Valoración | N1: Tabla de Amortización Valoración
B2: =+CALCULADORA!C9 -> TIPS N21 A | E2: =+Características!$B$1 -> TIPS N13 A | F2: =+Características!$C$1 -> TIPS N14 A | G2: =+Características!$D$1 -> TIPS N15 A | H2: =+Características!$E$1 -> TIPS N16 A | I2: =+Características!$F$1 -> TIPS N17 A | J2: =+Características!$G$1 -> TIPS N18 A 2034 | K2: =+Características!$H$1 -> TIPS N19 A 2034 | L2: =+Características!$I$1 -> TIPS N20 A 2034 | M2: =+Características!$J$1 -> TIPS N21 A | N2: =+Características!$K$1 -> TIPS N22 A
A3: =+Flujos!A3 -> 2021-07-24 | B3: =+VLOOKUP(A3,$D$2:$M$182,MATCH($B$2,$D$2:$M$2,0),FALSE) -> 0.01952549 | D3: =+A3 -> 2021-07-24 | E3: 0.02044998 | F3: 0.01368171 | G3: 0.02659682 | H3: 0.02356776 | I3: 0.03571942 | J3: 0.00605857 | K3: 0.01847045 | L3: 0.0158525 | M3: 0.01952549 | N3: 0.01619246
A4: =+Flujos!A4 -> 2021-08-24 | B4: =+VLOOKUP(A4,$D$2:$M$182,MATCH($B$2,$D$2:$M$2,0),FALSE) -> 0.02834999 | D4: =+A4 -> 2021-08-24 | E4: 0.01389231 | F4: 0.01183556 | G4: 0.02294987 | H4: 0.02133346 | I4: 0.02457022 | J4: 0.0236512 | K4: 0.02392001 | L4: 0.02892144 | M4: 0.02834999 | N4: 0.01483531
A5: =+Flujos!A5 -> 2021-09-24 | B5: 0.02654497 | D5: 2021-09-24 | E5: 0.01675198 | F5: 0.01424274 | G5: 0.02656322 | H5: 0.02897295 | I5: 0.0199412 | J5: 0.02121142 | K5: 0.02116353 | L5: 0.02259371 | M5: 0.02654497 | N5: 0.01458314
A6: =+Flujos!A6 -> 2021-10-24 | B6: 0.02677209 | D6: 2021-10-24 | E6: 0.01204601 | F6: 0.01511885 | G6: 0.02616427 | H6: 0.02223212 | I6: 0.01917548 | J6: 0.02364436 | K6: 0.01844168 | L6: 0.02618229 | M6: 0.02677209 | N6: 0.01703072
A7: =+Flujos!A7 -> 2021-11-24 | B7: 0.02176445 | D7: 2021-11-24 | E7: 0.01163129 | F7: 0.01640594 | G7: 0.02127747 | H7: 0.02047248 | I7: 0.01949236 | J7: 0.02091759 | K7: 0.02002614 | L7: 0.02214692 | M7: 0.02176445 | N7: 0.01626606
A8: =+Flujos!A8 -> 2021-12-24 | B8: 0.01831821 | D8: 2021-12-24 | E8: 0.01407613 | F8: 0.01820595 | G8: 0.02742637 | H8: 0.02060537 | I8: 0.02337156 | J8: 0.02529812 | K8: 0.01920896 | L8: 0.01938706 | M8: 0.01831821 | N8: 0.01510009
A9: =+Flujos!A9 -> 2022-01-24 | B9: 0.01794704 | D9: 2022-01-24 | E9: 0.01742161 | F9: 0.02362088 | G9: 0.02119926 | H9: 0.02115641 | I9: 0.01787675 | J9: 0.01834793 | K9: 0.0156808 | L9: 0.01884397 | M9: 0.01794704 | N9: 0.01488265
A10: =+Flujos!A10 -> 2022-02-24 | B10: 0.01610036 | D10: 2022-02-24 | E10: 0.01186987 | F10: 0.02330254 | G10: 0.01664172 | H10: 0.01838404 | I10: 0.02257094 | J10: 0.01917264 | K10: 0.02031004 | L10: 0.02129778 | M10: 0.01610036 | N10: 0.01467615
A11: =+Flujos!A11 -> 2022-03-24 | B11: 0.0146862 | D11: 2022-03-24 | E11: 0.02125241 | F11: 0.02457678 | G11: 0.01428269 | H11: 0.02119569 | I11: 0.01776765 | J11: 0.01797415 | K11: 0.01653618 | L11: 0.01328574 | M11: 0.0146862 | N11: 0.01447384
A12: =+Flujos!A12 -> 2022-04-24 | B12: 0.01427731 | D12: 2022-04-24 | E12: 0.01996124 | F12: 0.02252216 | G12: 0.01979017 | H12: 0.02337674 | I12: 0.01561815 | J12: 0.0192707 | K12: 0.01068205 | L12: 0.01759811 | M12: 0.01427731 | N12: 0.01429074
A13: =+Flujos!A13 -> 2022-05-24 | B13: 0.01730595 | D13: 2022-05-24 | E13: 0.01495962 | F13: 0.02172866 | G13: 0.01486948 | H13: 0.01376149 | I13: 0.01843288 | J13: 0.01051969 | K13: 0.0165158 | L13: 0.01624602 | M13: 0.01730595 | N13: 0.01410128
A14: =+Flujos!A14 -> 2022-06-24 | B14: 0.01376916 | D14: 2022-06-24 | E14: 0.01775622 | F14: 0.01924675 | G14: 0.01443206 | H14: 0.01698375 | I14: 0.0167106 | J14: 0.02197584 | K14: 0.01429638 | L14: 0.01670805 | M14: 0.01376916 | N14: 0.01391055
A15: =+Flujos!A15 -> 2022-07-24 | B15: 0.01483369 | D15: 2022-07-24 | E15: 0.01861186 | F15: 0.01952513 | G15: 0.01976905 | H15: 0.022644 | I15: 0.02242677 | J15: 0.01699029 | K15: 0.00923389 | L15: 0.01450048 | M15: 0.01483369 | N15: 0.01372454
A16: =+Flujos!A16 -> 2022-08-24 | B16: 0.01289312 | D16: 2022-08-24 | E16: 0.01496187 | F16: 0.02071941 | G16: 0.01836559 | H16: 0.01870053 | I16: 0.0225063 | J16: 0.01325195 | K16: 0.01499669 | L16: 0.0159464 | M16: 0.01289312 | N16: 0.01351694
A17: =+Flujos!A17 -> 2022-09-24 | B17: 0.01178352 | D17: 2022-09-24 | E17: 0.01762456 | F17: 0.02070901 | G17: 0.01807762 | H17: 0.02424875 | I17: 0.01981603 | J17: 0.01007138 | K17: 0.01357463 | L17: 0.01568914 | M17: 0.01178352 | N17: 0.01331237
A18: =+Flujos!A18 -> 2022-10-24 | B18: 0.01040654 | D18: 2022-10-24 | E18: 0.0128802 | F18: 0.01853392 | G18: 0.02047601 | H18: 0.01717284 | I18: 0.01604535 | J18: 0.02083114 | K18: 0.01483513 | L18: 0.01075758 | M18: 0.01040654 | N18: 0.01311194
A19: =+Flujos!A19 -> 2022-11-24 | B19: 0.01326818 | D19: 2022-11-24 | E19: 0.01380986 | F19: 0.01617943 | G19: 0.01518027 | H19: 0.01614614 | I19: 0.019135 | J19: 0.01314528 | K19: 0.00807425 | L19: 0.01354073 | M19: 0.01326818 | N19: 0.01291384
A20: =+Flujos!A20 -> 2022-12-24 | B20: 0.01401153 | D20: 2022-12-24 | E20: 0.01326533 | F20: 0.01960572 | G20: 0.02128655 | H20: 0.01870624 | I20: 0.01850661 | J20: 0.01464749 | K20: 0.01361384 | L20: 0.01276501 | M20: 0.01401153 | N20: 0.01271894
A21: =+Flujos!A21 -> 2023-01-24 | B21: 0.01373559 | D21: 2023-01-24 | E21: 0.01197941 | F21: 0.017751 | G21: 0.01596307 | H21: 0.0282862 | I21: 0.01447718 | J21: 0.01006517 | K21: 0.01019619 | L21: 0.01161447 | M21: 0.01373559 | N21: 0.01252789
A22: =+Flujos!A22 -> 2023-02-24 | B22: 0.01440303 | D22: 2023-02-24 | E22: 0.01272617 | F22: 0.0201187 | G22: 0.01999637 | H22: 0.01329859 | I22: 0.01654485 | J22: 0.01054455 | K22: 0.01032425 | L22: 0.01331859 | M22: 0.01440303 | N22: 0.01234261
A23: =+Flujos!A23 -> 2023-03-24 | B23: 0.01222623 | D23: 2023-03-24 | E23: 0.01530562 | F23: 0.01828355 | G23: 0.01469504 | H23: 0.01814356 | I23: 0.01661799 | J23: 0.00992201 | K23: 0.01241966 | L23: 0.00949922 | M23: 0.01222623 | N23: 0.0121607
A24: =+Flujos!A24 -> 2023-04-24 | B24: 0.01260328 | D24: 2023-04-24 | E24: 0.01334941 | F24: 0.01320268 | G24: 0.01966265 | H24: 0.01595792 | I24: 0.0193822 | J24: 0.00999066 | K24: 0.00874107 | L24: 0.01038323 | M24: 0.01260328 | N24: 0.01198722
A25: =+Flujos!A25 -> 2023-05-24 | B25: 0.01062882 | D25: 2023-05-24 | E25: 0.01343126 | F25: 0.01729486 | G25: 0.01651748 | H25: 0.01681101 | I25: 0.02416772 | J25: 0.00939988 | K25: 0.00834591 | L25: 0.01440096 | M25: 0.01062882 | N25: 0.01181313
A26: =+Flujos!A26 -> 2023-06-24 | B26: 0.00970835 | D26: 2023-06-24 | E26: 0.01613141 | F26: 0.01540016 | G26: 0.01611479 | H26: 0.01544912 | I26: 0.02190972 | J26: 0.00657291 | K26: 0.01046561 | L26: 0.0111731 | M26: 0.00970835 | N26: 0.01163946
A27: =+Flujos!A27 -> 2023-07-24 | B27: 0.00918628 | D27: 2023-07-24 | E27: 0.01431813 | F27: 0.01890395 | G27: 0.01270605 | H27: 0.01386443 | I27: 0.00938747 | J27: 0.0127433 | K27: 0.00621205 | L27: 0.01300945 | M27: 0.00918628 | N27: 0.01146206
A28: =+Flujos!A28 -> 2023-08-24 | B28: 0.01352611 | D28: 2023-08-24 | E28: 0.01628853 | F28: 0.01500383 | G28: 0.01494734 | H28: 0.01572838 | I28: 0.00224242 | J28: 0.00847706 | K28: 0.00775293 | L28: 0.01152998 | M28: 0.01352611 | N28: 0.01128155
A29: =+Flujos!A29 -> 2023-09-24 | B29: 0.01143474 | D29: 2023-09-24 | E29: 0.01435779 | F29: 0.02084695 | G29: 0.01662729 | H29: 0.02086454 | I29: 0.00663784 | J29: 0.00962463 | K29: 0.0071742 | L29: 0.00854143 | M29: 0.01143474 | N29: 0.01110137
A30: =+Flujos!A30 -> 2023-10-24 | B30: 0.00832034 | D30: 2023-10-24 | E30: 0.01661774 | F30: 0.01219917 | G30: 0.01673982 | H30: 0.01103635 | I30: 0.01070316 | J30: 0.00867892 | K30: 0.00712022 | L30: 0.00922056 | M30: 0.00832034 | N30: 0.01092356
A31: =+Flujos!A31 -> 2023-11-24 | B31: 0.01294797 | D31: 2023-11-24 | E31: 0.01476718 | F31: 0.0160444 | G31: 0.01522799 | H31: 0.00328742 | I31: 0.01145043 | J31: 0.00606589 | K31: 0.00986897 | L31: 0.01068278 | M31: 0.01294797 | N31: 0.0107472
A32: =+Flujos!A32 -> 2023-12-24 | B32: 0.0092125 | D32: 2023-12-24 | E32: 0.01467772 | F32: 0.0126768 | G32: 0.01799877 | H32: 0.00335904 | I32: 0.00932192 | J32: 0.0056227 | K32: 0.00844365 | L32: 0.00840043 | M32: 0.0092125 | N32: 0.01057164
A33: =+Flujos!A33 -> 2024-01-24 | B33: 0.01153683 | D33: 2024-01-24 | E33: 0.0121292 | F33: 0.01359303 | G33: 0.01670931 | H33: 0.0047029 | I33: 0.01425703 | J33: 0.00739365 | K33: 0.01285656 | L33: 0.00942713 | M33: 0.01153683 | N33: 0.01039586
A34: =+Flujos!A34 -> 2024-02-24 | B34: 0.01028062 | D34: 2024-02-24 | E34: 0.01172219 | F34: 0.01628187 | G34: 0.01902509 | H34: 0.00592936 | I34: 0.01300706 | J34: 0.01001431 | K34: 0.00928653 | L34: 0.0082664 | M34: 0.01028062 | N34: 0.01021475
A35: =+Flujos!A35 -> 2024-03-24 | B35: 0.0088502 | D35: 2024-03-24 | E35: 0.01530554 | F35: 0.01221051 | G35: 0.01549794 | H35: 0.00934888 | I35: 0.01105333 | J35: 0.0087118 | K35: 0.01317768 | L35: 0.01171722 | M35: 0.0088502 | N35: 0.01003445
A36: =+Flujos!A36 -> 2024-04-24 | B36: 0.01112976 | D36: 2024-04-24 | E36: 0.01318137 | F36: 0.0154152 | G36: 0.00120175 | H36: 0.0094674 | I36: 0.01644809 | J36: 0.00753429 | K36: 0.00855881 | L36: 0.00993075 | M36: 0.01112976 | N36: 0.00983199
A37: =+Flujos!A37 -> 2024-05-24 | B37: 0.00934304 | D37: 2024-05-24 | E37: 0.01449017 | F37: 0.014099 | G37: 0.00117287 | H37: 0.01645422 | I37: 0.01266616 | J37: 0.01076061 | K37: 0.00847394 | L37: 0.01268487 | M37: 0.00934304 | N37: 0.00963954
A38: =+Flujos!A38 -> 2024-06-24 | B38: 0.00906709 | D38: 2024-06-24 | E38: 0.01049837 | F38: 0.01640389 | G38: 0.00631143 | H38: 0.01360503 | I38: 0.01359347 | J38: 0.01157145 | K38: 0.00839487 | L38: 0.01235936 | M38: 0.00906709 | N38: 0.0094635
A39: =+Flujos!A39 -> 2024-07-24 | B39: 0.00920471 | D39: 2024-07-24 | E39: 0.01470858 | F39: 0.00988778 | G39: 0.00710865 | H39: 0.01503896 | I39: 0.01185657 | J39: 0.00497716 | K39: 0.00831084 | L39: 0.01052609 | M39: 0.00920471 | N39: 0.00929219
A40: =+Flujos!A40 -> 2024-08-24 | B40: 0.00909141 | D40: 2024-08-24 | E40: 0.01444744 | F40: 0.00087918 | G40: 0.00697761 | H40: 0.01366977 | I40: 0.01347089 | J40: 0.00412667 | K40: 0.00822761 | L40: 0.01047932 | M40: 0.00909141 | N40: 0.00915129
A41: =+Flujos!A41 -> 2024-09-24 | B41: 0.00904585 | D41: 2024-09-24 | E41: 0.01291791 | F41: 0.00348549 | G41: 0.01336185 | H41: 0.01395939 | I41: 0.01437008 | J41: 0.00745427 | K41: 0.00814211 | L41: 0.01040114 | M41: 0.00904585 | N41: 0.0090103
A42: =+Flujos!A42 -> 2024-10-24 | B42: 0.00894795 | D42: 2024-10-24 | E42: 0.01272832 | F42: 0.00474617 | G42: 0.00978246 | H42: 0.01200633 | I42: 0.01209825 | J42: 0.00736272 | K42: 0.00805671 | L42: 0.01035637 | M42: 0.00894795 | N42: 0.00887462
A43: =+Flujos!A43 -> 2024-11-24 | B43: 0.00883726 | D43: 2024-11-24 | E43: 0.00010085 | F43: 0.00903694 | G43: 0.01328964 | H43: 0.01270412 | I43: 0.01289714 | J43: 0.00729125 | K43: 0.00796294 | L43: 0.01029982 | M43: 0.00883726 | N43: 0.00874253
A44: =+Flujos!A44 -> 2024-12-24 | B44: 0.00875565 | D44: 2024-12-24 | E44: 0.00259768 | F44: 0.0052115 | G44: 0.01251384 | H44: 0.01132464 | I44: 0.01219468 | J44: 0.00722371 | K44: 0.0078809 | L44: 0.00987593 | M44: 0.00875565 | N44: 0.00861343
A45: =+Flujos!A45 -> 2025-01-24 | B45: 0.00867714 | D45: 2025-01-24 | E45: 0.00257446 | F45: 0.00984007 | G45: 0.01011529 | H45: 0.00969269 | I45: 0.01176555 | J45: 0.00715552 | K45: 0.00780546 | L45: 0.01005599 | M45: 0.00867714 | N45: 0.00848407
A46: =+Flujos!A46 -> 2025-02-24 | B46: 0.00860862 | D46: 2025-02-24 | E46: 0.00600046 | F46: 0.00958311 | G46: 0.01229326 | H46: 0.01363761 | I46: 0.01069626 | J46: 0.00709127 | K46: 0.00772525 | L46: 0.00991518 | M46: 0.00860862 | N46: 0.00836119
A47: =+Flujos!A47 -> 2025-03-24 | B47: 0.00853589 | D47: 2025-03-24 | E47: 0.00721973 | F47: 0.01028221 | G47: 0.01129489 | H47: 0.01135293 | I47: 0.01330106 | J47: 0.00701712 | K47: 0.0076384 | L47: 0.00984249 | M47: 0.00853589 | N47: 0.0082309
A48: =+Flujos!A48 -> 2025-04-24 | B48: 0.00846367 | D48: 2025-04-24 | E48: 0.00767481 | F48: 0.00824404 | G48: 0.00951999 | H48: 0.01013605 | I48: 0.01010537 | J48: 0.0069516 | K48: 0.00755149 | L48: 0.00974023 | M48: 0.00846367 | N48: 0.00810521
A49: =+Flujos!A49 -> 2025-05-24 | B49: 0.00841182 | D49: 2025-05-24 | E49: 0.011827 | F49: 0.00970398 | G49: 0.01382827 | H49: 0.01023478 | I49: 0.00953173 | J49: 0.00688331 | K49: 0.00747597 | L49: 0.00969675 | M49: 0.00841182 | N49: 0.00797557
A50: =+Flujos!A50 -> 2025-06-24 | B50: 0.00810601 | D50: 2025-06-24 | E50: 0.0112454 | F50: 0.008772 | G50: 0.00905725 | H50: 0.0082423 | I50: 0.00893678 | J50: 0.00682107 | K50: 0.00739855 | L50: 0.009564 | M50: 0.00810601 | N50: 0.00785501
A51: =+Flujos!A51 -> 2025-07-24 | B51: 0.0082698 | D51: 2025-07-24 | E51: 0.0122264 | F51: 0.01334663 | G51: 0.01029287 | H51: 0.01079955 | I51: 0.00961686 | J51: 0.00674599 | K51: 0.00731283 | L51: 0.009527 | M51: 0.0082698 | N51: 0.00773995
A52: =+Flujos!A52 -> 2025-08-24 | B52: 0.00820553 | D52: 2025-08-24 | E52: 0.00968244 | F52: 0.00920606 | G52: 0.01148269 | H52: 0.01187544 | I52: 0.00779207 | J52: 0.00668328 | K52: 0.00723171 | L52: 0.00936171 | M52: 0.00820553 | N52: 0.00762202
A53: =+Flujos!A53 -> 2025-09-24 | B53: 0.00815747 | D53: 2025-09-24 | E53: 0.01374424 | F53: 0.01075445 | G53: 0.00948177 | H53: 0.01019234 | I53: 0.01006071 | J53: 0.00662558 | K53: 0.00715069 | L53: 0.00929849 | M53: 0.00815747 | N53: 0.00750538
A54: =+Flujos!A54 -> 2025-10-24 | B54: 0.00806379 | D54: 2025-10-24 | E54: 0.00903524 | F54: 0.00724663 | G54: 0.00804489 | H54: 0.01059437 | I54: 0.01081909 | J54: 0.0065561 | K54: 0.00707168 | L54: 0.00918481 | M54: 0.00806379 | N54: 0.00739067
A55: =+Flujos!A55 -> 2025-11-24 | B55: 0.00801831 | D55: 2025-11-24 | E55: 0.01006501 | F55: 0.00948708 | G55: 0.01157107 | H55: 0.0111525 | I55: 0.00763213 | J55: 0.00649131 | K55: 0.00699139 | L55: 0.00909326 | M55: 0.00801831 | N55: 0.00727719
A56: =+Flujos!A56 -> 2025-12-24 | B56: 0.00794343 | D56: 2025-12-24 | E56: 0.00694017 | F56: 0.0084972 | G56: 0.0091879 | H56: 0.00963262 | I56: 0.00913507 | J56: 0.00642634 | K56: 0.00697365 | L56: 0.00868867 | M56: 0.00794343 | N56: 0.00716512
A57: =+Flujos!A57 -> 2026-01-24 | B57: 0.00787578 | D57: 2026-01-24 | E57: 0.01032482 | F57: 0.0089106 | G57: 0.01061184 | H57: 0.00611365 | I57: 0.00824169 | J57: 0.00635615 | K57: 0.00898852 | L57: 0.00889882 | M57: 0.00787578 | N57: 0.00705261
A58: =+Flujos!A58 -> 2026-02-24 | B58: 0.0077994 | D58: 2026-02-24 | E58: 0.01014255 | F58: 0.00780819 | G58: 0.00963164 | H58: 0.00810022 | I58: 0.00595712 | J58: 0.00629433 | K58: 0.00890796 | L58: 0.00876802 | M58: 0.0077994 | N58: 0.00870426
A59: =+Flujos!A59 -> 2026-03-24 | B59: 0.00773079 | D59: 2026-03-24 | E59: 0.01028269 | F59: 0.00961772 | G59: 0.00826396 | H59: 0.00639594 | I59: 0.00799775 | J59: 0.00747934 | K59: 0.00882116 | L59: 0.00865816 | M59: 0.00773079 | N59: 0.00928629
A60: =+Flujos!A60 -> 2026-04-24 | B60: 0.00769238 | D60: 2026-04-24 | E60: 0.01217725 | F60: 0.00795294 | G60: 0.00754122 | H60: 0.0099169 | I60: 0.00630369 | J60: 0.00835249 | K60: 0.0082473 | L60: 0.00855747 | M60: 0.00769238 | N60: 0.00917137
A61: =+Flujos!A61 -> 2026-05-24 | B61: 0.00760898 | D61: 2026-05-24 | E61: 0.00910267 | F61: 0.00689769 | G61: 0.0075995 | H61: 0.00934268 | I61: 0.00676965 | J61: 0.00829638 | K61: 0.00861732 | L61: 0.008449 | M61: 0.00760898 | N61: 0.00905416
A62: =+Flujos!A62 -> 2026-06-24 | B62: 0.00732123 | D62: 2026-06-24 | E62: 0.00848117 | F62: 0.00769056 | G62: 0.0058627 | H62: 0.0055879 | I62: 0.00687964 | J62: 0.00821278 | K62: 0.00854064 | L62: 0.00834552 | M62: 0.00732123 | N62: 0.00868427
A63: =+Flujos!A63 -> 2026-07-24 | B63: 0.00749566 | D63: 2026-07-24 | E63: 0.00793732 | F63: 0.00873037 | G63: 0.00651442 | H63: 0.00736599 | I63: 0.00709652 | J63: 0.00816419 | K63: 0.00839754 | L63: 0.00821769 | M63: 0.00749566 | N63: 0.00882097
A64: =+Flujos!A64 -> 2026-08-24 | B64: 0.0074267 | D64: 2026-08-24 | E64: 0.00813077 | F64: 0.00635374 | G64: 0.00768038 | H64: 0.00620802 | I64: 0.00499626 | J64: 0.00762059 | K64: 0.00829537 | L64: 0.00811006 | M64: 0.0074267 | N64: 0.00870709
A65: =+Flujos!A65 -> 2026-09-24 | B65: 0.00736374 | D65: 2026-09-24 | E65: 0.0116814 | F65: 0.00702952 | G65: 0.00561159 | H65: 0.00603929 | I65: 0.00604351 | J65: 0.00795554 | K65: 0.00820406 | L65: 0.00801645 | M65: 0.00736374 | N65: 0.00859712
A66: =+Flujos!A66 -> 2026-10-24 | B66: 0.00729947 | D66: 2026-10-24 | E66: 0.00784629 | F66: 0.00685882 | G66: 0.00380373 | H66: 0.00558452 | I66: 0.00593204 | J66: 0.00788876 | K66: 0.00811471 | L66: 0.00784801 | M66: 0.00729947 | N66: 0.00848801
A67: =+Flujos!A67 -> 2026-11-24 | B67: 0.00724929 | D67: 2026-11-24 | E67: 0.00750415 | F67: 0.00752729 | G67: 0.00534973 | H67: 0.00572911 | I67: 0.00511061 | J67: 0.00781242 | K67: 0.00801453 | L67: 0.00772457 | M67: 0.00724929 | N67: 0.0083698
A68: =+Flujos!A68 -> 2026-12-24 | B68: =+VLOOKUP(A68,$D$2:$M$182,MATCH($B$2,$D$2:$M$2,0),FALSE) -> 0.00718226 | D68: =+A68 -> 2026-12-24 | E68: 0.00886363 | F68: 0.00782742 | G68: 0.0047784 | H68: 0.0058543 | I68: 0.00705012 | J68: 0.00770775 | K68: 0.00790811 | L68: 0.00728535 | M68: 0.00718226 | N68: 0.00826305
A69: =+Flujos!A69 -> 2027-01-24 | B69: 0.0071308 | D69: 2027-01-24 | E69: 0.00786875 | F69: 0.0057107 | G69: 0.00629813 | H69: 0.0058232 | I69: 0.00714261 | J69: 0.00759709 | K69: 0.00779898 | L69: 0.00749837 | M69: 0.0071308 | N69: 0.00815103
A70: =+Flujos!A70 -> 2027-02-24 | B70: 0.00706607 | D70: 2027-02-24 | E70: 0.00717001 | F70: 0.0049743 | G70: 0.00444419 | H70: 0.00630288 | I70: 0.00630244 | J70: 0.00751213 | K70: 0.00770207 | L70: 0.00738594 | M70: 0.00706607 | N70: 0.00804698
A71: =+Flujos!A71 -> 2027-03-24 | B71: 0.00701314 | D71: 2027-03-24 | E71: 0.00753296 | F71: 0.00467522 | G71: 0.00523832 | H71: 0.00466736 | I71: 0.00592662 | J71: 0.00740387 | K71: 0.00757213 | L71: 0.0072734 | M71: 0.00701314 | N71: 0.00793946
A72: =+Flujos!A72 -> 2027-04-24 | B72: 0.00694584 | D72: 2027-04-24 | E72: 0.00797559 | F72: 0.00608281 | G72: 0.00482507 | H72: 0.00544469 | I72: 0.00511144 | J72: 0.0073353 | K72: 0.00701417 | L72: 0.00713837 | M72: 0.00694584 | N72: 0.00783183
A73: =+Flujos!A73 -> 2027-05-24 | B73: 0.00688209 | D73: 2027-05-24 | E73: 0.00507735 | F73: 0.00605835 | G73: 0.00538974 | H73: 0.00553811 | I73: 0.00541929 | J73: 0.00723723 | K73: 0.0073778 | L73: 0.00704496 | M73: 0.00688209 | N73: 0.00772372
A74: =+Flujos!A74 -> 2027-06-24 | B74: 0.00656999 | D74: 2027-06-24 | E74: 0.00793204 | F74: 0.0046723 | G74: 0.00476348 | H74: 0.00572962 | I74: 0.00538604 | J74: 0.007156 | K74: 0.0072892 | L74: 0.00692014 | M74: 0.00656999 | N74: 0.0073443
A75: =+Flujos!A75 -> 2027-07-24 | B75: 0.00673177 | D75: 2027-07-24 | E75: 0.00654332 | F75: 0.00512363 | G75: 0.00552716 | H75: 0.00462437 | I75: 0.00624491 | J75: 0.00708599 | K75: 0.00721269 | L75: 0.00680539 | M75: 0.00673177 | N75: 0.00750885
A76: =+Flujos!A76 -> 2027-08-24 | B76: 0.00667705 | D76: 2027-08-24 | E76: 0.00538377 | F76: 0.00499619 | G76: 0.00513644 | H76: 0.00552078 | I76: 0.00483699 | J76: 0.00651109 | K76: 0.0071175 | L76: 0.00670472 | M76: 0.00667705 | N76: 0.00741455
A77: =+Flujos!A77 -> 2027-09-24 | B77: 0.00661141 | D77: 2027-09-24 | E77: 0.00605675 | F77: 0.00623352 | G77: 0.00466968 | H77: 0.00538949 | I77: 0.00471786 | J77: 0.00688031 | K77: 0.0070425 | L77: 0.00657789 | M77: 0.00661141 | N77: 0.00731924
A78: =+Flujos!A78 -> 2027-10-24 | B78: 0.00655145 | D78: 2027-10-24 | E78: 0.00674591 | F78: 0.0049786 | G78: 0.00470663 | H78: 0.00447927 | I78: 0.00471728 | J78: 0.00677194 | K78: 0.00695543 | L78: 0.00647582 | M78: 0.00655145 | N78: 0.00722807
A79: =+Flujos!A79 -> 2027-11-24 | B79: 0.00649675 | D79: 2027-11-24 | E79: 0.00578832 | F79: 0.00372572 | G79: 0.00351463 | H79: 0.00457942 | I79: 0.0046782 | J79: 0.00668128 | K79: 0.0068598 | L79: 0.0063588 | M79: 0.00649675 | N79: 0.00713842
A80: =+Flujos!A80 -> 2027-12-24 | B80: 0.00643409 | D80: 2027-12-24 | E80: 0.00573167 | F80: 0.00469667 | G80: 0.00403741 | H80: 0.00448373 | I80: 0.00466654 | J80: 0.00660172 | K80: 0.00675569 | L80: 0.0059208 | M80: 0.00643409 | N80: 0.00705021
A81: =+Flujos!A81 -> 2028-01-24 | B81: 0.00637052 | D81: 2028-01-24 | E81: 0.00498663 | F81: 0.00430156 | G81: 0.00383969 | H81: 0.00443048 | I81: 0.00458637 | J81: 0.00651074 | K81: 0.00666479 | L81: 0.00616834 | M81: 0.00637052 | N81: 0.00696287
A82: =+Flujos!A82 -> 2028-02-24 | B82: 0.00630633 | D82: 2028-02-24 | E82: 0.00427695 | F82: 0.00499132 | G82: 0.00450982 | H82: 0.00435579 | I82: 0.00452792 | J82: 0.00643448 | K82: 0.00658473 | L82: 0.00607285 | M82: 0.00630633 | N82: 0.00687238
A83: =+Flujos!A83 -> 2028-03-24 | B83: 0.00624548 | D83: 2028-03-24 | E83: 0.00494324 | F83: 0.00437396 | G83: 0.00456853 | H83: 0.00433911 | I83: 0.00446792 | J83: 0.00635986 | K83: 0.00648196 | L83: 0.00596402 | M83: 0.00624548 | N83: 0.00678157
A84: =+Flujos!A84 -> 2028-04-24 | B84: 0.00617988 | D84: 2028-04-24 | E84: 0.0051546 | F84: 0.00440034 | G84: 0.00398468 | H84: 0.00423915 | I84: 0.00441955 | J84: 0.0062791 | K84: 0.00590733 | L84: 0.00584198 | M84: 0.00617988 | N84: 0.00669264
A85: =+Flujos!A85 -> 2028-05-24 | B85: 0.00612035 | D85: 2028-05-24 | E85: 0.00473523 | F85: 0.00473489 | G85: 0.00397407 | H85: 0.00418399 | I85: 0.00435527 | J85: 0.00621277 | K85: 0.00629149 | L85: 0.00572563 | M85: 0.00612035 | N85: 0.00660145
A86: =+Flujos!A86 -> 2028-06-24 | B86: 0.00580786 | D86: 2028-06-24 | E86: 0.00542712 | F86: 0.00416042 | G86: 0.00370495 | H86: 0.00387119 | I86: 0.00403875 | J86: 0.00611343 | K86: 0.00621761 | L86: 0.0056183 | M86: 0.00580786 | N86: 0.0062474
A87: =+Flujos!A87 -> 2028-07-24 | B87: 0.00598203 | D87: 2028-07-24 | E87: 0.00481406 | F87: 0.00384573 | G87: 0.00384729 | H87: 0.00406447 | I87: 0.00426707 | J87: 0.006043 | K87: 0.0061221 | L87: 0.00550676 | M87: 0.00598203 | N87: 0.00643556
A88: =+Flujos!A88 -> 2028-08-24 | B88: 0.00591211 | D88: 2028-08-24 | E88: 0.00396974 | F88: 0.00400827 | G88: 0.00384572 | H88: 0.00399802 | I88: 0.00421632 | J88: 0.00546169 | K88: 0.00602427 | L88: 0.00540786 | M88: 0.00591211 | N88: 0.00635752
A89: =+Flujos!A89 -> 2028-09-24 | B89: 0.00582681 | D89: 2028-09-24 | E89: 0.00603652 | F89: 0.00394832 | G89: 0.00379283 | H89: 0.00395054 | I89: 0.00415286 | J89: 0.00588073 | K89: 0.00594567 | L89: 0.00529366 | M89: 0.00582681 | N89: 0.00628089
A90: =+Flujos!A90 -> 2028-10-24 | B90: 0.00576404 | D90: 2028-10-24 | E90: 0.0053256 | F90: 0.00395048 | G90: 0.00375348 | H90: 0.00390062 | I90: 0.00413531 | J90: 0.00579603 | K90: 0.00586676 | L90: 0.0052002 | M90: 0.00576404 | N90: 0.00620567
A91: =+Flujos!A91 -> 2028-11-24 | B91: 0.00569659 | D91: 2028-11-24 | E91: 0.00446407 | F91: 0.0039433 | G91: 0.00366075 | H91: 0.0023437 | I91: 0.00347224 | J91: 0.0057048 | K91: 0.00575439 | L91: 0.00510284 | M91: 0.00569659 | N91: 0.00613184
A92: =+Flujos!A92 -> 2028-12-24 | B92: 0.00563196 | D92: 2028-12-24 | E92: 0.00441958 | F92: 0.00392638 | G92: 0.00305047 | H92: 0 | I92: 0 | J92: 0.00563645 | K92: 0.00567922 | L92: 0.00466374 | M92: 0.00563196 | N92: 0.0060583
A93: =+Flujos!A93 -> 2029-01-24 | B93: 0.00556786 | D93: 2029-01-24 | E93: 0.00438629 | F93: 0.00389834 | G93: 0 | H93: 0 | I93: 0 | J93: 0.00555519 | K93: 0.00561146 | L93: 0.00493942 | M93: 0.00556786 | N93: 0.00598628
A94: =+Flujos!A94 -> 2029-02-24 | B94: 0.00549839 | D94: 2029-02-24 | E94: 0.00438038 | F94: 0.0038491 | G94: 0 | H94: 0 | I94: 0 | J94: 0.00548059 | K94: 0.00555016 | L94: 0.00485552 | M94: 0.00549839 | N94: 0.00591668
A95: =+Flujos!A95 -> 2029-03-24 | B95: 0.00543345 | D95: 2029-03-24 | E95: 0.00437982 | F95: 0.00382686 | G95: 0 | H95: 0 | I95: 0 | J95: 0.00542358 | K95: 0.00548466 | L95: 0.00476093 | M95: 0.00543345 | N95: 0.00584843
A96: =+Flujos!A96 -> 2029-04-24 | B96: 0.00536199 | D96: 2029-04-24 | E96: 0.0043268 | F96: 0.00378085 | G96: 0 | H96: 0 | I96: 0 | J96: 0.0053679 | K96: 0.00488644 | L96: 0.00467876 | M96: 0.00536199 | N96: 0.00578063
A97: =+Flujos!A97 -> 2029-05-24 | B97: 0.00529281 | D97: 2029-05-24 | E97: 0.00427415 | F97: 0.00377437 | G97: 0 | H97: 0 | I97: 0 | J97: 0.005315 | K97: 0.00532245 | L97: 0.00459147 | M97: 0.00529281 | N97: 0.00571502
A98: =+Flujos!A98 -> 2029-06-24 | B98: 0.00496206 | D98: 2029-06-24 | E98: 0.00398605 | F98: 0.00145143 | G98: 0 | H98: 0 | I98: 0 | J98: 0.00525984 | K98: 0.00524098 | L98: 0.00449096 | M98: 0.00496206 | N98: 0.00536995
A99: =+Flujos!A99 -> 2029-07-24 | B99: 0.00513295 | D99: 2029-07-24 | E99: 0.00417448 | F99: 0 | G99: 0 | H99: 0 | I99: 0 | J99: 0.00521228 | K99: 0.00516738 | L99: 0.0043903 | M99: 0.00513295 | N99: 0.00557398
A100: =+Flujos!A100 -> 2029-08-24 | B100: 0.00503369 | D100: 2029-08-24 | E100: 0.004164 | F100: 0 | G100: 0 | H100: 0 | I100: 0 | J100: 0.00464017 | K100: 0.00510234 | L100: 0.00430307 | M100: 0.00503369 | N100: 0.00550771
A101: =+Flujos!A101 -> 2029-09-24 | B101: 0.0049107 | D101: 2029-09-24 | E101: 0.00412411 | F101: 0 | G101: 0 | H101: 0 | I101: 0 | J101: 0.00510442 | K101: 0.00503099 | L101: 0.00423181 | M101: 0.0049107 | N101: 0.00544123
A102: =+Flujos!A102 -> 2029-10-24 | B102: 0 | D102: 2029-10-24 | E102: 0.00408752 | F102: 0 | G102: 0 | H102: 0 | I102: 0 | J102: 0.00506249 | K102: 0.00497288 | L102: 0.00414047 | M102: 0 | N102: 0.00537755
A103: =+Flujos!A103 -> 2029-11-24 | B103: 0 | D103: 2029-11-24 | E103: 0.00405935 | F103: 0 | G103: 0 | H103: 0 | I103: 0 | J103: 0.00502226 | K103: 0.00492072 | L103: 0.0040373 | M103: 0 | N103: 0.00531604
A104: =+Flujos!A104 -> 2029-12-24 | B104: 0 | D104: 2029-12-24 | E104: 0.00258686 | F104: 0 | G104: 0 | H104: 0 | I104: 0 | J104: 0.00496829 | K104: 0.00487084 | L104: 0.00355316 | M104: 0 | N104: 0.00524931
A105: =+Flujos!A105 -> 2030-01-24 | B105: 0 | D105: 2030-01-24 | E105: 0 | F105: 0 | G105: 0 | H105: 0 | I105: 0 | J105: 0.00492523 | K105: 0.00482458 | L105: 0.00383646 | M105: 0 | N105: 0.00519095
A106: =+Flujos!A106 -> 2030-02-24 | B106: 0 | D106: 2030-02-24 | E106: 0 | F106: 0 | G106: 0 | H106: 0 | I106: 0 | J106: 0.00488139 | K106: 0.00477821 | L106: 0.00131036 | M106: 0 | N106: 0.0051123
A107: =+Flujos!A107 -> 2030-03-24 | B107: 0 | D107: 2030-03-24 | E107: 0 | F107: 0 | G107: 0 | H107: 0 | I107: 0 | J107: 0.0048419 | K107: 0.00473477 | L107: 0 | M107: 0 | N107: 0.00503128
A108: =+Flujos!A108 -> 2030-04-24 | B108: 0 | D108: 2030-04-24 | E108: 0 | F108: 0 | G108: 0 | H108: 0 | I108: 0 | J108: 0.00479208 | K108: 0.00413758 | L108: 0 | M108: 0 | N108: 0.00494056
A109: =+Flujos!A109 -> 2030-05-24 | B109: 0 | D109: 2030-05-24 | E109: 0 | F109: 0 | G109: 0 | H109: 0 | I109: 0 | J109: 0.00474357 | K109: 0.00463563 | L109: 0 | M109: 0 | N109: 0.00487257
A110: =+Flujos!A110 -> 2030-06-24 | B110: 0 | D110: 2030-06-24 | E110: 0 | F110: 0 | G110: 0 | H110: 0 | I110: 0 | J110: 0.00469855 | K110: 0.00458733 | L110: 0 | M110: 0 | N110: 0.00450637
A111: =+Flujos!A111 -> 2030-07-24 | B111: 0 | D111: 2030-07-24 | E111: 0 | F111: 0 | G111: 0 | H111: 0 | I111: 0 | J111: 0.00465618 | K111: 0.00453567 | L111: 0 | M111: 0 | N111: 0.00472175
A112: =+Flujos!A112 -> 2030-08-24 | B112: 0 | D112: 2030-08-24 | E112: 0 | F112: 0 | G112: 0 | H112: 0 | I112: 0 | J112: 0.00406119 | K112: 0.00448558 | L112: 0 | M112: 0 | N112: 0.00467627
A113: =+Flujos!A113 -> 2030-09-24 | B113: 0 | D113: 2030-09-24 | E113: 0 | F113: 0 | G113: 0 | H113: 0 | I113: 0 | J113: 0.0045746 | K113: 0.0044325 | L113: 0 | M113: 0 | N113: 0.0046317
A114: =+Flujos!A114 -> 2030-10-24 | B114: 0 | D114: 2030-10-24 | E114: 0 | F114: 0 | G114: 0 | H114: 0 | I114: 0 | J114: 0.00453138 | K114: 0.00438027 | L114: 0 | M114: 0 | N114: 0.00458805
A115: =+Flujos!A115 -> 2030-11-24 | B115: 0 | D115: 2030-11-24 | E115: 0 | F115: 0 | G115: 0 | H115: 0 | I115: 0 | J115: 0.0044839 | K115: 0.00433131 | L115: 0 | M115: 0 | N115: 0.0045453
A116: =+Flujos!A116 -> 2030-12-24 | B116: 0 | D116: 2030-12-24 | E116: 0 | F116: 0 | G116: 0 | H116: 0 | I116: 0 | J116: 0.00444373 | K116: 0.00427061 | L116: 0 | M116: 0 | N116: 0.00339966
A117: =+Flujos!A117 -> 2031-01-24 | B117: 0.00186655 | D117: 2031-01-24 | E117: 0 | F117: 0 | G117: 0 | H117: 0 | I117: 0 | J117: 0.00439957 | K117: 0.00421646 | L117: 0 | M117: 0.00186655 | N117: 0
A118: =+Flujos!A118 -> 2031-02-24 | B118: 0.00365345 | D118: 2031-02-24 | E118: 0 | F118: 0 | G118: 0 | H118: 0 | I118: 0 | J118: 0.00435511 | K118: 0.00416618 | L118: 0 | M118: 0.00365345 | N118: 0
A119: =+Flujos!A119 -> 2031-03-24 | B119: 0.00360748 | D119: 2031-03-24 | E119: 0 | F119: 0 | G119: 0 | H119: 0 | I119: 0 | J119: 0.00431459 | K119: 0.00409887 | L119: 0 | M119: 0.00360748 | N119: 0
A120: =+Flujos!A120 -> 2031-04-24 | B120: 0.00357049 | D120: 2031-04-24 | E120: 0 | F120: 0 | G120: 0 | H120: 0 | I120: 0 | J120: 0.0042696 | K120: 0.0034659 | L120: 0 | M120: 0.00357049 | N120: 0
A121: =+Flujos!A121 -> 2031-05-24 | B121: 0.00353664 | D121: 2031-05-24 | E121: 0 | F121: 0 | G121: 0 | H121: 0 | I121: 0 | J121: 0.00421962 | K121: 0.00400341 | L121: 0 | M121: 0.00353664 | N121: 0
A122: =+Flujos!A122 -> 2031-06-24 | B122: 0.00320361 | D122: 2031-06-24 | E122: 0 | F122: 0 | G122: 0 | H122: 0 | I122: 0 | J122: 0.0041786 | K122: 0.00395374 | L122: 0 | M122: 0.00320361 | N122: 0
A123: =+Flujos!A123 -> 2031-07-24 | B123: 0.00346204 | D123: 2031-07-24 | E123: 0 | F123: 0 | G123: 0 | H123: 0 | I123: 0 | J123: 0.00413702 | K123: 0.00389456 | L123: 0 | M123: 0.00346204 | N123: 0
A124: =+Flujos!A124 -> 2031-08-24 | B124: 0.00342967 | D124: 2031-08-24 | E124: 0 | F124: 0 | G124: 0 | H124: 0 | I124: 0 | J124: 0.00217463 | K124: 0.00030831 | L124: 0 | M124: 0.00342967 | N124: 0
A125: =+Flujos!A125 -> 2031-09-24 | B125: 0.00339635 | D125: 2031-09-24 | E125: 0 | F125: 0 | G125: 0 | H125: 0 | I125: 0 | J125: 0 | K125: 0 | L125: 0 | M125: 0.00339635 | N125: 0
A126: =+Flujos!A126 -> 2031-10-24 | B126: 0.00336165 | D126: 2031-10-24 | E126: 0 | F126: 0 | G126: 0 | H126: 0 | I126: 0 | J126: 0 | K126: 0 | L126: 0 | M126: 0.00336165 | N126: 0
A127: =+Flujos!A127 -> 2031-11-24 | B127: 0.00332276 | D127: 2031-11-24 | E127: 0 | F127: 0 | G127: 0 | H127: 0 | I127: 0 | J127: 0 | K127: 0 | L127: 0 | M127: 0.00332276 | N127: 0
A128: =+Flujos!A128 -> 2031-12-24 | B128: 0.00328996 | D128: 2031-12-24 | E128: 0 | F128: 0 | G128: 0 | H128: 0 | I128: 0 | J128: 0 | K128: 0 | L128: 0 | M128: 0.00328996 | N128: 0
A129: =+Flujos!A129 -> 2032-01-24 | B129: 0.00325271 | D129: 2032-01-24 | E129: 0 | F129: 0 | G129: 0 | H129: 0 | I129: 0 | J129: 0 | K129: 0 | L129: 0 | M129: 0.00325271 | N129: 0
A130: =+Flujos!A130 -> 2032-02-24 | B130: 0.00280976 | D130: 2032-02-24 | E130: 0 | F130: 0 | G130: 0 | H130: 0 | I130: 0 | J130: 0 | K130: 0 | L130: 0 | M130: 0.00280976 | N130: 0
A131: =+Flujos!A131 -> 2032-03-24 | B131: 0 | D131: 2032-03-24 | E131: 0 | F131: 0 | G131: 0 | H131: 0 | I131: 0 | J131: 0 | K131: 0 | L131: 0 | M131: 0 | N131: 0
A132: =+Flujos!A132 -> 2032-04-24 | B132: =+VLOOKUP(A132,$D$2:$M$182,MATCH($B$2,$D$2:$M$2,0),FALSE) -> 0 | D132: =+A132 -> 2032-04-24 | E132: 0 | F132: 0 | G132: 0 | H132: 0 | I132: 0 | J132: 0 | K132: 0 | L132: 0 | M132: 0 | N132: 0
A133: =+Flujos!A133 -> 2032-05-24 | B133: 0 | D133: 2032-05-24 | E133: 0 | F133: 0 | G133: 0 | H133: 0 | I133: 0 | J133: 0 | K133: 0 | L133: 0 | M133: 0 | N133: 0
A134: =+Flujos!A134 -> 2032-06-24 | B134: 0 | D134: 2032-06-24 | E134: 0 | F134: 0 | G134: 0 | H134: 0 | I134: 0 | J134: 0 | K134: 0 | L134: 0 | M134: 0 | N134: 0
A135: =+Flujos!A135 -> 2032-07-24 | B135: 0 | D135: 2032-07-24 | E135: 0 | F135: 0 | G135: 0 | H135: 0 | I135: 0 | J135: 0 | K135: 0 | L135: 0 | M135: 0 | N135: 0
A136: =+Flujos!A136 -> 2032-08-24 | B136: 0 | D136: 2032-08-24 | E136: 0 | F136: 0 | G136: 0 | H136: 0 | I136: 0 | J136: 0 | K136: 0 | L136: 0 | M136: 0 | N136: 0
A137: =+Flujos!A137 -> 2032-09-24 | B137: 0 | D137: 2032-09-24 | E137: 0 | F137: 0 | G137: 0 | H137: 0 | I137: 0 | J137: 0 | K137: 0 | L137: 0 | M137: 0 | N137: 0
A138: =+Flujos!A138 -> 2032-10-24 | B138: 0 | D138: 2032-10-24 | E138: 0 | F138: 0 | G138: 0 | H138: 0 | I138: 0 | J138: 0 | K138: 0 | L138: 0 | M138: 0 | N138: 0
A139: =+Flujos!A139 -> 2032-11-24 | B139: 0 | D139: 2032-11-24 | E139: 0 | F139: 0 | G139: 0 | H139: 0 | I139: 0 | J139: 0 | K139: 0 | L139: 0 | M139: 0 | N139: 0
A140: =+Flujos!A140 -> 2032-12-24 | B140: 0 | D140: 2032-12-24 | E140: 0 | F140: 0 | G140: 0 | H140: 0 | I140: 0 | J140: 0 | K140: 0 | L140: 0 | M140: 0 | N140: 0
A141: =+Flujos!A141 -> 2033-01-24 | B141: 0 | D141: 2033-01-24 | E141: 0 | F141: 0 | G141: 0 | H141: 0 | I141: 0 | J141: 0 | K141: 0 | L141: 0 | M141: 0 | N141: 0
A142: =+Flujos!A142 -> 2033-02-24 | B142: 0 | D142: 2033-02-24 | E142: 0 | F142: 0 | G142: 0 | H142: 0 | I142: 0 | J142: 0 | K142: 0 | L142: 0 | M142: 0 | N142: 0
A143: =+Flujos!A143 -> 2033-03-24 | B143: 0 | D143: 2033-03-24 | E143: 0 | F143: 0 | G143: 0 | H143: 0 | I143: 0 | J143: 0 | K143: 0 | L143: 0 | M143: 0 | N143: 0
A144: =+Flujos!A144 -> 2033-04-24 | B144: 0 | D144: 2033-04-24 | E144: 0 | F144: 0 | G144: 0 | H144: 0 | I144: 0 | J144: 0 | K144: 0 | L144: 0 | M144: 0 | N144: 0
A145: =+Flujos!A145 -> 2033-05-24 | B145: 0 | D145: 2033-05-24 | E145: 0 | F145: 0 | G145: 0 | H145: 0 | I145: 0 | J145: 0 | K145: 0 | L145: 0 | M145: 0 | N145: 0
A146: =+Flujos!A146 -> 2033-06-24 | B146: 0 | D146: 2033-06-24 | E146: 0 | F146: 0 | G146: 0 | H146: 0 | I146: 0 | J146: 0 | K146: 0 | L146: 0 | M146: 0 | N146: 0
A147: =+Flujos!A147 -> 2033-07-24 | B147: 0 | D147: 2033-07-24 | E147: 0 | F147: 0 | G147: 0 | H147: 0 | I147: 0 | J147: 0 | K147: 0 | L147: 0 | M147: 0 | N147: 0
A148: =+Flujos!A148 -> 2033-08-24 | B148: 0 | D148: 2033-08-24 | E148: 0 | F148: 0 | G148: 0 | H148: 0 | I148: 0 | J148: 0 | K148: 0 | L148: 0 | M148: 0 | N148: 0
A149: =+Flujos!A149 -> 2033-09-24 | B149: 0 | D149: 2033-09-24 | E149: 0 | F149: 0 | G149: 0 | H149: 0 | I149: 0 | J149: 0 | K149: 0 | L149: 0 | M149: 0 | N149: 0
A150: =+Flujos!A150 -> 2033-10-24 | B150: 0 | D150: 2033-10-24 | E150: 0 | F150: 0 | G150: 0 | H150: 0 | I150: 0 | J150: 0 | K150: 0 | L150: 0 | M150: 0 | N150: 0
A151: =+Flujos!A151 -> 2033-11-24 | B151: 0 | D151: 2033-11-24 | E151: 0 | F151: 0 | G151: 0 | H151: 0 | I151: 0 | J151: 0 | K151: 0 | L151: 0 | M151: 0 | N151: 0
A152: =+Flujos!A152 -> 2033-12-24 | B152: 0 | D152: 2033-12-24 | E152: 0 | F152: 0 | G152: 0 | H152: 0 | I152: 0 | J152: 0 | K152: 0 | L152: 0 | M152: 0 | N152: 0
A153: =+Flujos!A153 -> 2034-01-24 | B153: 0 | D153: 2034-01-24 | E153: 0 | F153: 0 | G153: 0 | H153: 0 | I153: 0 | J153: 0 | K153: 0 | L153: 0 | M153: 0 | N153: 0
A154: =+Flujos!A154 -> 2034-02-24 | B154: 0 | D154: 2034-02-24 | E154: 0 | F154: 0 | G154: 0 | H154: 0 | I154: 0 | J154: 0 | K154: 0 | L154: 0 | M154: 0 | N154: 0
A155: =+Flujos!A155 -> 2034-03-24 | B155: 0 | D155: 2034-03-24 | E155: 0 | F155: 0 | G155: 0 | H155: 0 | I155: 0 | J155: 0 | K155: 0 | L155: 0 | M155: 0 | N155: 0
A156: =+Flujos!A156 -> 2034-04-24 | B156: 0 | D156: 2034-04-24 | E156: 0 | F156: 0 | G156: 0 | H156: 0 | I156: 0 | J156: 0 | K156: 0 | L156: 0 | M156: 0 | N156: 0
A157: =+Flujos!A157 -> 2034-05-24 | B157: 0 | D157: 2034-05-24 | E157: 0 | F157: 0 | G157: 0 | H157: 0 | I157: 0 | J157: 0 | K157: 0 | L157: 0 | M157: 0 | N157: 0
A158: =+Flujos!A158 -> 2034-06-24 | B158: 0 | D158: 2034-06-24 | E158: 0 | F158: 0 | G158: 0 | H158: 0 | I158: 0 | J158: 0 | K158: 0 | L158: 0 | M158: 0 | N158: 0
A159: =+Flujos!A159 -> 2034-07-24 | B159: 0 | D159: 2034-07-24 | E159: 0 | F159: 0 | G159: 0 | H159: 0 | I159: 0 | J159: 0 | K159: 0 | L159: 0 | M159: 0 | N159: 0
A160: =+Flujos!A160 -> 2034-08-24 | B160: 0 | D160: 2034-08-24 | E160: 0 | F160: 0 | G160: 0 | H160: 0 | I160: 0 | J160: 0 | K160: 0 | L160: 0 | M160: 0 | N160: 0
A161: =+Flujos!A161 -> 2034-09-24 | B161: 0 | D161: 2034-09-24 | E161: 0 | F161: 0 | G161: 0 | H161: 0 | I161: 0 | J161: 0 | K161: 0 | L161: 0 | M161: 0 | N161: 0
A162: =+Flujos!A162 -> 2034-10-24 | B162: 0 | D162: 2034-10-24 | E162: 0 | F162: 0 | G162: 0 | H162: 0 | I162: 0 | J162: 0 | K162: 0 | L162: 0 | M162: 0 | N162: 0
A163: =+Flujos!A163 -> 2034-11-24 | B163: 0 | D163: 2034-11-24 | E163: 0 | F163: 0 | G163: 0 | H163: 0 | I163: 0 | J163: 0 | K163: 0 | L163: 0 | M163: 0 | N163: 0
A164: =+Flujos!A164 -> 2034-12-24 | B164: 0 | D164: 2034-12-24 | E164: 0 | F164: 0 | G164: 0 | H164: 0 | I164: 0 | J164: 0 | K164: 0 | L164: 0 | M164: 0 | N164: 0
A165: =+Flujos!A165 -> 2035-01-24 | B165: 0 | D165: 2035-01-24 | E165: 0 | F165: 0 | G165: 0 | H165: 0 | I165: 0 | J165: 0 | K165: 0 | L165: 0 | M165: 0 | N165: 0
A166: =+Flujos!A166 -> 2035-02-24 | B166: 0 | D166: 2035-02-24 | E166: 0 | F166: 0 | G166: 0 | H166: 0 | I166: 0 | J166: 0 | K166: 0 | L166: 0 | M166: 0 | N166: 0
A167: =+Flujos!A167 -> 2035-03-24 | B167: 0 | D167: 2035-03-24 | E167: 0 | F167: 0 | G167: 0 | H167: 0 | I167: 0 | J167: 0 | K167: 0 | L167: 0 | M167: 0 | N167: 0
A168: =+Flujos!A168 -> 2035-04-24 | B168: 0 | D168: 2035-04-24 | E168: 0 | F168: 0 | G168: 0 | H168: 0 | I168: 0 | J168: 0 | K168: 0 | L168: 0 | M168: 0 | N168: 0
A169: =+Flujos!A169 -> 2035-05-24 | B169: 0 | D169: 2035-05-24 | E169: 0 | F169: 0 | G169: 0 | H169: 0 | I169: 0 | J169: 0 | K169: 0 | L169: 0 | M169: 0 | N169: 0
A170: =+Flujos!A170 -> 2035-06-24 | B170: 0 | D170: 2035-06-24 | E170: 0 | F170: 0 | G170: 0 | H170: 0 | I170: 0 | J170: 0 | K170: 0 | L170: 0 | M170: 0 | N170: 0
A171: =+Flujos!A171 -> 2035-07-24 | B171: 0 | D171: 2035-07-24 | E171: 0 | F171: 0 | G171: 0 | H171: 0 | I171: 0 | J171: 0 | K171: 0 | L171: 0 | M171: 0 | N171: 0
A172: =+Flujos!A172 -> 2035-08-24 | B172: 0 | D172: 2035-08-24 | E172: 0 | F172: 0 | G172: 0 | H172: 0 | I172: 0 | J172: 0 | K172: 0 | L172: 0 | M172: 0 | N172: 0
A173: =+Flujos!A173 -> 2035-09-24 | B173: 0 | D173: 2035-09-24 | E173: 0 | F173: 0 | G173: 0 | H173: 0 | I173: 0 | J173: 0 | K173: 0 | L173: 0 | M173: 0 | N173: 0
A174: =+Flujos!A174 -> 2035-10-24 | B174: 0 | D174: 2035-10-24 | E174: 0 | F174: 0 | G174: 0 | H174: 0 | I174: 0 | J174: 0 | K174: 0 | L174: 0 | M174: 0 | N174: 0
A175: =+Flujos!A175 -> 2035-11-24 | B175: 0 | D175: 2035-11-24 | E175: 0 | F175: 0 | G175: 0 | H175: 0 | I175: 0 | J175: 0 | K175: 0 | L175: 0 | M175: 0 | N175: 0
A176: =+Flujos!A176 -> 2035-12-24 | B176: 0 | D176: 2035-12-24 | E176: 0 | F176: 0 | G176: 0 | H176: 0 | I176: 0 | J176: 0 | K176: 0 | L176: 0 | M176: 0 | N176: 0
A177: =+Flujos!A177 -> 2036-01-24 | B177: 0 | D177: 2036-01-24 | E177: 0 | F177: 0 | G177: 0 | H177: 0 | I177: 0 | J177: 0 | K177: 0 | L177: 0 | M177: 0 | N177: 0
A178: =+Flujos!A178 -> 2036-02-24 | B178: 0 | D178: 2036-02-24 | E178: 0 | F178: 0 | G178: 0 | H178: 0 | I178: 0 | J178: 0 | K178: 0 | L178: 0 | M178: 0 | N178: 0
A179: =+Flujos!A179 -> 2036-03-24 | B179: 0 | D179: 2036-03-24 | E179: 0 | F179: 0 | G179: 0 | H179: 0 | I179: 0 | J179: 0 | K179: 0 | L179: 0 | M179: 0 | N179: 0
A180: =+Flujos!A180 -> 2036-04-24 | B180: 0 | D180: 2036-04-24 | E180: 0 | F180: 0 | G180: 0 | H180: 0 | I180: 0 | J180: 0 | K180: 0 | L180: 0 | M180: 0 | N180: 0
A181: =+Flujos!A181 -> 2036-05-24 | B181: 0 | D181: 2036-05-24 | E181: 0 | F181: 0 | G181: 0 | H181: 0 | I181: 0 | J181: 0 | K181: 0 | L181: 0 | M181: 0 | N181: 0
A182: =+Flujos!A182 -> 2036-06-24 | B182: 0 | D182: 2036-06-24 | E182: 0 | F182: 0 | G182: 0 | H182: 0 | I182: 0 | J182: 0 | K182: 0 | L182: 0 | M182: 0 | N182: 0
E183: =SUM(E3:E182) -> 1 | F183: 1 | G183: 1 | H183: 1 | I183: 1 | J183: 1 | K183: 1 | L183: 1 | M183: =SUM(M3:M182) -> 1 | N183: 1
E184: =1-E183 -> 0 | F184: 0 | G184: 0 | H184: 0 | I184: 0 | J184: 0 | K184: 0 | L184: 0 | M184: =1-M183 -> 0 | N184: 0

Sheet Tablas (hidden)
A1: FECHA | B1: =+CALCULADORA!C9 -> TIPS N21 A | C1: Valoración
A2: =+'Tabla de Amortizacion'!A3 -> 2021-07-24 | B2: =+ROUND(C2,8) -> 0.01952549 | C2: =+VLOOKUP(A2,'Tabla de Amortizacion'!$D$2:$N$182,MATCH(Tablas!$B$1,'Tabla de Amortizacion'!$D$2:$N$2,0)) -> 0.01952549 | E2: =IF([1]CALCULADORA!$F$10="Contractual",ROUND('[1]Tabla de Amortizacion'!C3,8),IF([1]CALCULADORA!$F$10="6% (Medio)",ROUND('[1]Tabla de Amortizacion'!F3,8),IF([1]CALCULADORA!$F$10="10% (Medio Alto)",ROUND('[1]Tabla de Amortizacion'!H3,8),IF([1]CALCULADORA!$F$10="14% (Alto)",ROUND('[1]Tabla de Amortizacion'!#REF!,8),IF([1]CALCULADORA!$F$10=20%,ROUND('[1]Tabla de Amortizacion'!#REF!,8),ROUND('[1]Tabla de Amortizacion'!K3,8)))))) -> 0
A3: =EDATE(A2,1) -> 2021-08-24 | B3: =+ROUND(C3,8) -> 0.02834999 | C3: =+VLOOKUP(A3,'Tabla de Amortizacion'!$D$2:$N$182,MATCH(Tablas!$B$1,'Tabla de Amortizacion'!$D$2:$N$2,0)) -> 0.02834999 | E3: =IF([1]CALCULADORA!$F$10="Contractual",ROUND('[1]Tabla de Amortizacion'!C4,8),IF([1]CALCULADORA!$F$10="6% (Medio)",ROUND('[1]Tabla de Amortizacion'!F4,8),IF([1]CALCULADORA!$F$10="10% (Medio Alto)",ROUND('[1]Tabla de Amortizacion'!H4,8),IF([1]CALCULADORA!$F$10="14% (Alto)",ROUND('[1]Tabla de Amortizacion'!#REF!,8),IF([1]CALCULADORA!$F$10=20%,ROUND('[1]Tabla de Amortizacion'!#REF!,8),ROUND('[1]Tabla de Amortizacion'!K4,8)))))) -> 0
A4: 2021-09-24 | B4: 0.02654497 | C4: =+VLOOKUP(A4,'Tabla de Amortizacion'!$D$2:$N$182,MATCH(Tablas!$B$1,'Tabla de Amortizacion'!$D$2:$N$2,0)) -> 0.02654497 | E4: =IF([1]CALCULADORA!$F$10="Contractual",ROUND('[1]Tabla de Amortizacion'!C5,8),IF([1]CALCULADORA!$F$10="6% (Medio)",ROUND('[1]Tabla de Amortizacion'!F5,8),IF([1]CALCULADORA!$F$10="10% (Medio Alto)",ROUND('[1]Tabla de Amortizacion'!H5,8),IF([1]CALCULADORA!$F$10="14% (Alto)",ROUND('[1]Tabla de Amortizacion'!#REF!,8),IF([1]CALCULADORA!$F$10=20%,ROUND('[1]Tabla de Amortizacion'!#REF!,8),ROUND('[1]Tabla de Amortizacion'!K5,8)))))) -> 0
A5: 2021-10-24 | B5: 0.02677209 | C5: =+VLOOKUP(A5,'Tabla de Amortizacion'!$D$2:$N$182,MATCH(Tablas!$B$1,'Tabla de Amortizacion'!$D$2:$N$2,0)) -> 0.02677209 | E5: =IF([1]CALCULADORA!$F$10="Contractual",ROUND('[1]Tabla de Amortizacion'!C6,8),IF([1]CALCULADORA!$F$10="6% (Medio)",ROUND('[1]Tabla de Amortizacion'!F6,8),IF([1]CALCULADORA!$F$10="10% (Medio Alto)",ROUND('[1]Tabla de Amortizacion'!H6,8),IF([1]CALCULADORA!$F$10="14% (Alto)",ROUND('[1]Tabla de Amortizacion'!#REF!,8),IF([1]CALCULADORA!$F$10=20%,ROUND('[1]Tabla de Amortizacion'!#REF!,8),ROUND('[1]Tabla de Amortizacion'!K6,8)))))) -> 0
A6: 2021-11-24 | B6: 0.02176445 | C6: =+VLOOKUP(A6,'Tabla de Amortizacion'!$D$2:$N$182,MATCH(Tablas!$B$1,'Tabla de Amortizacion'!$D$2:$N$2,0)) -> 0.02176445 | E6: =IF([1]CALCULADORA!$F$10="Contractual",ROUND('[1]Tabla de Amortizacion'!C7,8),IF([1]CALCULADORA!$F$10="6% (Medio)",ROUND('[1]Tabla de Amortizacion'!F7,8),IF([1]CALCULADORA!$F$10="10% (Medio Alto)",ROUND('[1]Tabla de Amortizacion'!H7,8),IF([1]CALCULADORA!$F$10="14% (Alto)",ROUND('[1]Tabla de Amortizacion'!#REF!,8),IF([1]CALCULADORA!$F$10=20%,ROUND('[1]Tabla de Amortizacion'!#REF!,8),ROUND('[1]Tabla de Amortizacion'!K7,8)))))) -> 0
A7: 2021-12-24 | B7: 0.01831821 | C7: =+VLOOKUP(A7,'Tabla de Amortizacion'!$D$2:$N$182,MATCH(Tablas!$B$1,'Tabla de Amortizacion'!$D$2:$N$2,0)) -> 0.01831821 | E7: =IF([1]CALCULADORA!$F$10="Contractual",ROUND('[1]Tabla de Amortizacion'!C8,8),IF([1]CALCULADORA!$F$10="6% (Medio)",ROUND('[1]Tabla de Amortizacion'!F8,8),IF([1]CALCULADORA!$F$10="10% (Medio Alto)",ROUND('[1]Tabla de Amortizacion'!H8,8),IF([1]CALCULADORA!$F$10="14% (Alto)",ROUND('[1]Tabla de Amortizacion'!#REF!,8),IF([1]CALCULADORA!$F$10=20%,ROUND('[1]Tabla de Amortizacion'!#REF!,8),ROUND('[1]Tabla de Amortizacion'!K8,8)))))) -> 0
A8: 2022-01-24 | B8: 0.01794704 | C8: =+VLOOKUP(A8,'Tabla de Amortizacion'!$D$2:$N$182,MATCH(Tablas!$B$1,'Tabla de Amortizacion'!$D$2:$N$2,0)) -> 0.01794704 | E8: =IF([1]CALCULADORA!$F$10="Contractual",ROUND('[1]Tabla de Amortizacion'!C9,8),IF([1]CALCULADORA!$F$10="6% (Medio)",ROUND('[1]Tabla de Amortizacion'!F9,8),IF([1]CALCULADORA!$F$10="10% (Medio Alto)",ROUND('[1]Tabla de Amortizacion'!H9,8),IF([1]CALCULADORA!$F$10="14% (Alto)",ROUND('[1]Tabla de Amortizacion'!#REF!,8),IF([1]CALCULADORA!$F$10=20%,ROUND('[1]Tabla de Amortizacion'!#REF!,8),ROUND('[1]Tabla de Amortizacion'!K9,8)))))) -> 0
A9: 2022-02-24 | B9: 0.01610036 | C9: =+VLOOKUP(A9,'Tabla de Amortizacion'!$D$2:$N$182,MATCH(Tablas!$B$1,'Tabla de Amortizacion'!$D$2:$N$2,0)) -> 0.01610036 | E9: =IF([1]CALCULADORA!$F$10="Contractual",ROUND('[1]Tabla de Amortizacion'!C10,8),IF([1]CALCULADORA!$F$10="6% (Medio)",ROUND('[1]Tabla de Amortizacion'!F10,8),IF([1]CALCULADORA!$F$10="10% (Medio Alto)",ROUND('[1]Tabla de Amortizacion'!H10,8),IF([1]CALCULADORA!$F$10="14% (Alto)",ROUND('[1]Tabla de Amortizacion'!#REF!,8),IF([1]CALCULADORA!$F$10=20%,ROUND('[1]Tabla de Amortizacion'!#REF!,8),ROUND('[1]Tabla de Amortizacion'!K10,8)))))) -> 0
A10: 2022-03-24 | B10: 0.0146862 | C10: =+VLOOKUP(A10,'Tabla de Amortizacion'!$D$2:$N$182,MATCH(Tablas!$B$1,'Tabla de Amortizacion'!$D$2:$N$2,0)) -> 0.0146862 | E10: =IF([1]CALCULADORA!$F$10="Contractual",ROUND('[1]Tabla de Amortizacion'!C11,8),IF([1]CALCULADORA!$F$10="6% (Medio)",ROUND('[1]Tabla de Amortizacion'!F11,8),IF([1]CALCULADORA!$F$10="10% (Medio Alto)",ROUND('[1]Tabla de Amortizacion'!H11,8),IF([1]CALCULADORA!$F$10="14% (Alto)",ROUND('[1]Tabla de Amortizacion'!#REF!,8),IF([1]CALCULADORA!$F$10=20%,ROUND('[1]Tabla de Amortizacion'!#REF!,8),ROUND('[1]Tabla de Amortizacion'!K11,8)))))) -> 0
A11: 2022-04-24 | B11: 0.01427731 | C11: =+VLOOKUP(A11,'Tabla de Amortizacion'!$D$2:$N$182,MATCH(Tablas!$B$1,'Tabla de Amortizacion'!$D$2:$N$2,0)) -> 0.01427731 | E11: =IF([1]CALCULADORA!$F$10="Contractual",ROUND('[1]Tabla de Amortizacion'!C12,8),IF([1]CALCULADORA!$F$10="6% (Medio)",ROUND('[1]Tabla de Amortizacion'!F12,8),IF([1]CALCULADORA!$F$10="10% (Medio Alto)",ROUND('[1]Tabla de Amortizacion'!H12,8),IF([1]CALCULADORA!$F$10="14% (Alto)",ROUND('[1]Tabla de Amortizacion'!#REF!,8),IF([1]CALCULADORA!$F$10=20%,ROUND('[1]Tabla de Amortizacion'!#REF!,8),ROUND('[1]Tabla de Amortizacion'!K12,8)))))) -> 0
A12: 2022-05-24 | B12: 0.01730595 | C12: =+VLOOKUP(A12,'Tabla de Amortizacion'!$D$2:$N$182,MATCH(Tablas!$B$1,'Tabla de Amortizacion'!$D$2:$N$2,0)) -> 0.01730595 | E12: =IF([1]CALCULADORA!$F$10="Contractual",ROUND('[1]Tabla de Amortizacion'!C13,8),IF([1]CALCULADORA!$F$10="6% (Medio)",ROUND('[1]Tabla de Amortizacion'!F13,8),IF([1]CALCULADORA!$F$10="10% (Medio Alto)",ROUND('[1]Tabla de Amortizacion'!H13,8),IF([1]CALCULADORA!$F$10="14% (Alto)",ROUND('[1]Tabla de Amortizacion'!#REF!,8),IF([1]CALCULADORA!$F$10=20%,ROUND('[1]Tabla de Amortizacion'!#REF!,8),ROUND('[1]Tabla de Amortizacion'!K13,8)))))) -> 0
A13: 2022-06-24 | B13: 0.01376916 | C13: =+VLOOKUP(A13,'Tabla de Amortizacion'!$D$2:$N$182,MATCH(Tablas!$B$1,'Tabla de Amortizacion'!$D$2:$N$2,0)) -> 0.01376916 | E13: =IF([1]CALCULADORA!$F$10="Contractual",ROUND('[1]Tabla de Amortizacion'!C14,8),IF([1]CALCULADORA!$F$10="6% (Medio)",ROUND('[1]Tabla de Amortizacion'!F14,8),IF([1]CALCULADORA!$F$10="10% (Medio Alto)",ROUND('[1]Tabla de Amortizacion'!H14,8),IF([1]CALCULADORA!$F$10="14% (Alto)",ROUND('[1]Tabla de Amortizacion'!#REF!,8),IF([1]CALCULADORA!$F$10=20%,ROUND('[1]Tabla de Amortizacion'!#REF!,8),ROUND('[1]Tabla de Amortizacion'!K14,8)))))) -> 0
A14: 2022-07-24 | B14: 0.01483369 | C14: =+VLOOKUP(A14,'Tabla de Amortizacion'!$D$2:$N$182,MATCH(Tablas!$B$1,'Tabla de Amortizacion'!$D$2:$N$2,0)) -> 0.01483369 | E14: =IF([1]CALCULADORA!$F$10="Contractual",ROUND('[1]Tabla de Amortizacion'!C15,8),IF([1]CALCULADORA!$F$10="6% (Medio)",ROUND('[1]Tabla de Amortizacion'!F15,8),IF([1]CALCULADORA!$F$10="10% (Medio Alto)",ROUND('[1]Tabla de Amortizacion'!H15,8),IF([1]CALCULADORA!$F$10="14% (Alto)",ROUND('[1]Tabla de Amortizacion'!#REF!,8),IF([1]CALCULADORA!$F$10=20%,ROUND('[1]Tabla de Amortizacion'!#REF!,8),ROUND('[1]Tabla de Amortizacion'!K15,8)))))) -> 0
A15: 2022-08-24 | B15: 0.01289312 | C15: =+VLOOKUP(A15,'Tabla de Amortizacion'!$D$2:$N$182,MATCH(Tablas!$B$1,'Tabla de Amortizacion'!$D$2:$N$2,0)) -> 0.01289312 | E15: =IF([1]CALCULADORA!$F$10="Contractual",ROUND('[1]Tabla de Amortizacion'!C16,8),IF([1]CALCULADORA!$F$10="6% (Medio)",ROUND('[1]Tabla de Amortizacion'!F16,8),IF([1]CALCULADORA!$F$10="10% (Medio Alto)",ROUND('[1]Tabla de Amortizacion'!H16,8),IF([1]CALCULADORA!$F$10="14% (Alto)",ROUND('[1]Tabla de Amortizacion'!#REF!,8),IF([1]CALCULADORA!$F$10=20%,ROUND('[1]Tabla de Amortizacion'!#REF!,8),ROUND('[1]Tabla de Amortizacion'!K16,8)))))) -> 0
A16: 2022-09-24 | B16: 0.01178352 | C16: =+VLOOKUP(A16,'Tabla de Amortizacion'!$D$2:$N$182,MATCH(Tablas!$B$1,'Tabla de Amortizacion'!$D$2:$N$2,0)) -> 0.01178352 | E16: =IF([1]CALCULADORA!$F$10="Contractual",ROUND('[1]Tabla de Amortizacion'!C17,8),IF([1]CALCULADORA!$F$10="6% (Medio)",ROUND('[1]Tabla de Amortizacion'!F17,8),IF([1]CALCULADORA!$F$10="10% (Medio Alto)",ROUND('[1]Tabla de Amortizacion'!H17,8),IF([1]CALCULADORA!$F$10="14% (Alto)",ROUND('[1]Tabla de Amortizacion'!#REF!,8),IF([1]CALCULADORA!$F$10=20%,ROUND('[1]Tabla de Amortizacion'!#REF!,8),ROUND('[1]Tabla de Amortizacion'!K17,8)))))) -> 0
A17: 2022-10-24 | B17: 0.01040654 | C17: =+VLOOKUP(A17,'Tabla de Amortizacion'!$D$2:$N$182,MATCH(Tablas!$B$1,'Tabla de Amortizacion'!$D$2:$N$2,0)) -> 0.01040654 | E17: =IF([1]CALCULADORA!$F$10="Contractual",ROUND('[1]Tabla de Amortizacion'!C18,8),IF([1]CALCULADORA!$F$10="6% (Medio)",ROUND('[1]Tabla de Amortizacion'!F18,8),IF([1]CALCULADORA!$F$10="10% (Medio Alto)",ROUND('[1]Tabla de Amortizacion'!H18,8),IF([1]CALCULADORA!$F$10="14% (Alto)",ROUND('[1]Tabla de Amortizacion'!#REF!,8),IF([1]CALCULADORA!$F$10=20%,ROUND('[1]Tabla de Amortizacion'!#REF!,8),ROUND('[1]Tabla de Amortizacion'!K18,8)))))) -> 0
A18: 2022-11-24 | B18: 0.01326818 | C18: =+VLOOKUP(A18,'Tabla de Amortizacion'!$D$2:$N$182,MATCH(Tablas!$B$1,'Tabla de Amortizacion'!$D$2:$N$2,0)) -> 0.01326818 | E18: =IF([1]CALCULADORA!$F$10="Contractual",ROUND('[1]Tabla de Amortizacion'!C19,8),IF([1]CALCULADORA!$F$10="6% (Medio)",ROUND('[1]Tabla de Amortizacion'!F19,8),IF([1]CALCULADORA!$F$10="10% (Medio Alto)",ROUND('[1]Tabla de Amortizacion'!H19,8),IF([1]CALCULADORA!$F$10="14% (Alto)",ROUND('[1]Tabla de Amortizacion'!#REF!,8),IF([1]CALCULADORA!$F$10=20%,ROUND('[1]Tabla de Amortizacion'!#REF!,8),ROUND('[1]Tabla de Amortizacion'!K19,8)))))) -> 0
A19: 2022-12-24 | B19: 0.01401153 | C19: =+VLOOKUP(A19,'Tabla de Amortizacion'!$D$2:$N$182,MATCH(Tablas!$B$1,'Tabla de Amortizacion'!$D$2:$N$2,0)) -> 0.01401153 | E19: =IF([1]CALCULADORA!$F$10="Contractual",ROUND('[1]Tabla de Amortizacion'!C20,8),IF([1]CALCULADORA!$F$10="6% (Medio)",ROUND('[1]Tabla de Amortizacion'!F20,8),IF([1]CALCULADORA!$F$10="10% (Medio Alto)",ROUND('[1]Tabla de Amortizacion'!H20,8),IF([1]CALCULADORA!$F$10="14% (Alto)",ROUND('[1]Tabla de Amortizacion'!#REF!,8),IF([1]CALCULADORA!$F$10=20%,ROUND('[1]Tabla de Amortizacion'!#REF!,8),ROUND('[1]Tabla de Amortizacion'!K20,8)))))) -> 0
A20: 2023-01-24 | B20: 0.01373559 | C20: =+VLOOKUP(A20,'Tabla de Amortizacion'!$D$2:$N$182,MATCH(Tablas!$B$1,'Tabla de Amortizacion'!$D$2:$N$2,0)) -> 0.01373559 | E20: =IF([1]CALCULADORA!$F$10="Contractual",ROUND('[1]Tabla de Amortizacion'!C21,8),IF([1]CALCULADORA!$F$10="6% (Medio)",ROUND('[1]Tabla de Amortizacion'!F21,8),IF([1]CALCULADORA!$F$10="10% (Medio Alto)",ROUND('[1]Tabla de Amortizacion'!H21,8),IF([1]CALCULADORA!$F$10="14% (Alto)",ROUND('[1]Tabla de Amortizacion'!#REF!,8),IF([1]CALCULADORA!$F$10=20%,ROUND('[1]Tabla de Amortizacion'!#REF!,8),ROUND('[1]Tabla de Amortizacion'!K21,8)))))) -> 0
A21: 2023-02-24 | B21: 0.01440303 | C21: =+VLOOKUP(A21,'Tabla de Amortizacion'!$D$2:$N$182,MATCH(Tablas!$B$1,'Tabla de Amortizacion'!$D$2:$N$2,0)) -> 0.01440303 | E21: =IF([1]CALCULADORA!$F$10="Contractual",ROUND('[1]Tabla de Amortizacion'!C22,8),IF([1]CALCULADORA!$F$10="6% (Medio)",ROUND('[1]Tabla de Amortizacion'!F22,8),IF([1]CALCULADORA!$F$10="10% (Medio Alto)",ROUND('[1]Tabla de Amortizacion'!H22,8),IF([1]CALCULADORA!$F$10="14% (Alto)",ROUND('[1]Tabla de Amortizacion'!#REF!,8),IF([1]CALCULADORA!$F$10=20%,ROUND('[1]Tabla de Amortizacion'!#REF!,8),ROUND('[1]Tabla de Amortizacion'!K22,8)))))) -> 0
A22: 2023-03-24 | B22: 0.01222623 | C22: =+VLOOKUP(A22,'Tabla de Amortizacion'!$D$2:$N$182,MATCH(Tablas!$B$1,'Tabla de Amortizacion'!$D$2:$N$2,0)) -> 0.01222623 | E22: =IF([1]CALCULADORA!$F$10="Contractual",ROUND('[1]Tabla de Amortizacion'!C23,8),IF([1]CALCULADORA!$F$10="6% (Medio)",ROUND('[1]Tabla de Amortizacion'!F23,8),IF([1]CALCULADORA!$F$10="10% (Medio Alto)",ROUND('[1]Tabla de Amortizacion'!H23,8),IF([1]CALCULADORA!$F$10="14% (Alto)",ROUND('[1]Tabla de Amortizacion'!#REF!,8),IF([1]CALCULADORA!$F$10=20%,ROUND('[1]Tabla de Amortizacion'!#REF!,8),ROUND('[1]Tabla de Amortizacion'!K23,8)))))) -> 0
A23: 2023-04-24 | B23: 0.01260328 | C23: =+VLOOKUP(A23,'Tabla de Amortizacion'!$D$2:$N$182,MATCH(Tablas!$B$1,'Tabla de Amortizacion'!$D$2:$N$2,0)) -> 0.01260328 | E23: =IF([1]CALCULADORA!$F$10="Contractual",ROUND('[1]Tabla de Amortizacion'!C24,8),IF([1]CALCULADORA!$F$10="6% (Medio)",ROUND('[1]Tabla de Amortizacion'!F24,8),IF([1]CALCULADORA!$F$10="10% (Medio Alto)",ROUND('[1]Tabla de Amortizacion'!H24,8),IF([1]CALCULADORA!$F$10="14% (Alto)",ROUND('[1]Tabla de Amortizacion'!#REF!,8),IF([1]CALCULADORA!$F$10=20%,ROUND('[1]Tabla de Amortizacion'!#REF!,8),ROUND('[1]Tabla de Amortizacion'!K24,8)))))) -> 0
A24: 2023-05-24 | B24: 0.01062882 | C24: =+VLOOKUP(A24,'Tabla de Amortizacion'!$D$2:$N$182,MATCH(Tablas!$B$1,'Tabla de Amortizacion'!$D$2:$N$2,0)) -> 0.01062882 | E24: =IF([1]CALCULADORA!$F$10="Contractual",ROUND('[1]Tabla de Amortizacion'!C25,8),IF([1]CALCULADORA!$F$10="6% (Medio)",ROUND('[1]Tabla de Amortizacion'!F25,8),IF([1]CALCULADORA!$F$10="10% (Medio Alto)",ROUND('[1]Tabla de Amortizacion'!H25,8),IF([1]CALCULADORA!$F$10="14% (Alto)",ROUND('[1]Tabla de Amortizacion'!#REF!,8),IF([1]CALCULADORA!$F$10=20%,ROUND('[1]Tabla de Amortizacion'!#REF!,8),ROUND('[1]Tabla de Amortizacion'!K25,8)))))) -> 0
A25: 2023-06-24 | B25: 0.00970835 | C25: =+VLOOKUP(A25,'Tabla de Amortizacion'!$D$2:$N$182,MATCH(Tablas!$B$1,'Tabla de Amortizacion'!$D$2:$N$2,0)) -> 0.00970835 | E25: =IF([1]CALCULADORA!$F$10="Contractual",ROUND('[1]Tabla de Amortizacion'!C26,8),IF([1]CALCULADORA!$F$10="6% (Medio)",ROUND('[1]Tabla de Amortizacion'!F26,8),IF([1]CALCULADORA!$F$10="10% (Medio Alto)",ROUND('[1]Tabla de Amortizacion'!H26,8),IF([1]CALCULADORA!$F$10="14% (Alto)",ROUND('[1]Tabla de Amortizacion'!#REF!,8),IF([1]CALCULADORA!$F$10=20%,ROUND('[1]Tabla de Amortizacion'!#REF!,8),ROUND('[1]Tabla de Amortizacion'!K26,8)))))) -> 0
A26: 2023-07-24 | B26: 0.00918628 | C26: =+VLOOKUP(A26,'Tabla de Amortizacion'!$D$2:$N$182,MATCH(Tablas!$B$1,'Tabla de Amortizacion'!$D$2:$N$2,0)) -> 0.00918628 | E26: =IF([1]CALCULADORA!$F$10="Contractual",ROUND('[1]Tabla de Amortizacion'!C27,8),IF([1]CALCULADORA!$F$10="6% (Medio)",ROUND('[1]Tabla de Amortizacion'!F27,8),IF([1]CALCULADORA!$F$10="10% (Medio Alto)",ROUND('[1]Tabla de Amortizacion'!H27,8),IF([1]CALCULADORA!$F$10="14% (Alto)",ROUND('[1]Tabla de Amortizacion'!#REF!,8),IF([1]CALCULADORA!$F$10=20%,ROUND('[1]Tabla de Amortizacion'!#REF!,8),ROUND('[1]Tabla de Amortizacion'!K27,8)))))) -> 0
A27: 2023-08-24 | B27: 0.01352611 | C27: =+VLOOKUP(A27,'Tabla de Amortizacion'!$D$2:$N$182,MATCH(Tablas!$B$1,'Tabla de Amortizacion'!$D$2:$N$2,0)) -> 0.01352611 | E27: =IF([1]CALCULADORA!$F$10="Contractual",ROUND('[1]Tabla de Amortizacion'!C28,8),IF([1]CALCULADORA!$F$10="6% (Medio)",ROUND('[1]Tabla de Amortizacion'!F28,8),IF([1]CALCULADORA!$F$10="10% (Medio Alto)",ROUND('[1]Tabla de Amortizacion'!H28,8),IF([1]CALCULADORA!$F$10="14% (Alto)",ROUND('[1]Tabla de Amortizacion'!#REF!,8),IF([1]CALCULADORA!$F$10=20%,ROUND('[1]Tabla de Amortizacion'!#REF!,8),ROUND('[1]Tabla de Amortizacion'!K28,8)))))) -> 0
A28: 2023-09-24 | B28: 0.01143474 | C28: =+VLOOKUP(A28,'Tabla de Amortizacion'!$D$2:$N$182,MATCH(Tablas!$B$1,'Tabla de Amortizacion'!$D$2:$N$2,0)) -> 0.01143474 | E28: =IF([1]CALCULADORA!$F$10="Contractual",ROUND('[1]Tabla de Amortizacion'!C29,8),IF([1]CALCULADORA!$F$10="6% (Medio)",ROUND('[1]Tabla de Amortizacion'!F29,8),IF([1]CALCULADORA!$F$10="10% (Medio Alto)",ROUND('[1]Tabla de Amortizacion'!H29,8),IF([1]CALCULADORA!$F$10="14% (Alto)",ROUND('[1]Tabla de Amortizacion'!#REF!,8),IF([1]CALCULADORA!$F$10=20%,ROUND('[1]Tabla de Amortizacion'!#REF!,8),ROUND('[1]Tabla de Amortizacion'!K29,8)))))) -> 0
A29: 2023-10-24 | B29: 0.00832034 | C29: =+VLOOKUP(A29,'Tabla de Amortizacion'!$D$2:$N$182,MATCH(Tablas!$B$1,'Tabla de Amortizacion'!$D$2:$N$2,0)) -> 0.00832034 | E29: =IF([1]CALCULADORA!$F$10="Contractual",ROUND('[1]Tabla de Amortizacion'!C30,8),IF([1]CALCULADORA!$F$10="6% (Medio)",ROUND('[1]Tabla de Amortizacion'!F30,8),IF([1]CALCULADORA!$F$10="10% (Medio Alto)",ROUND('[1]Tabla de Amortizacion'!H30,8),IF([1]CALCULADORA!$F$10="14% (Alto)",ROUND('[1]Tabla de Amortizacion'!#REF!,8),IF([1]CALCULADORA!$F$10=20%,ROUND('[1]Tabla de Amortizacion'!#REF!,8),ROUND('[1]Tabla de Amortizacion'!K30,8)))))) -> 0
A30: 2023-11-24 | B30: 0.01294797 | C30: =+VLOOKUP(A30,'Tabla de Amortizacion'!$D$2:$N$182,MATCH(Tablas!$B$1,'Tabla de Amortizacion'!$D$2:$N$2,0)) -> 0.01294797 | E30: =IF([1]CALCULADORA!$F$10="Contractual",ROUND('[1]Tabla de Amortizacion'!C31,8),IF([1]CALCULADORA!$F$10="6% (Medio)",ROUND('[1]Tabla de Amortizacion'!F31,8),IF([1]CALCULADORA!$F$10="10% (Medio Alto)",ROUND('[1]Tabla de Amortizacion'!H31,8),IF([1]CALCULADORA!$F$10="14% (Alto)",ROUND('[1]Tabla de Amortizacion'!#REF!,8),IF([1]CALCULADORA!$F$10=20%,ROUND('[1]Tabla de Amortizacion'!#REF!,8),ROUND('[1]Tabla de Amortizacion'!K31,8)))))) -> 0
A31: 2023-12-24 | B31: 0.0092125 | C31: =+VLOOKUP(A31,'Tabla de Amortizacion'!$D$2:$N$182,MATCH(Tablas!$B$1,'Tabla de Amortizacion'!$D$2:$N$2,0)) -> 0.0092125 | E31: =IF([1]CALCULADORA!$F$10="Contractual",ROUND('[1]Tabla de Amortizacion'!C32,8),IF([1]CALCULADORA!$F$10="6% (Medio)",ROUND('[1]Tabla de Amortizacion'!F32,8),IF([1]CALCULADORA!$F$10="10% (Medio Alto)",ROUND('[1]Tabla de Amortizacion'!H32,8),IF([1]CALCULADORA!$F$10="14% (Alto)",ROUND('[1]Tabla de Amortizacion'!#REF!,8),IF([1]CALCULADORA!$F$10=20%,ROUND('[1]Tabla de Amortizacion'!#REF!,8),ROUND('[1]Tabla de Amortizacion'!K32,8)))))) -> 0
A32: 2024-01-24 | B32: 0.01153683 | C32: =+VLOOKUP(A32,'Tabla de Amortizacion'!$D$2:$N$182,MATCH(Tablas!$B$1,'Tabla de Amortizacion'!$D$2:$N$2,0)) -> 0.01153683 | E32: =IF([1]CALCULADORA!$F$10="Contractual",ROUND('[1]Tabla de Amortizacion'!C33,8),IF([1]CALCULADORA!$F$10="6% (Medio)",ROUND('[1]Tabla de Amortizacion'!F33,8),IF([1]CALCULADORA!$F$10="10% (Medio Alto)",ROUND('[1]Tabla de Amortizacion'!H33,8),IF([1]CALCULADORA!$F$10="14% (Alto)",ROUND('[1]Tabla de Amortizacion'!#REF!,8),IF([1]CALCULADORA!$F$10=20%,ROUND('[1]Tabla de Amortizacion'!#REF!,8),ROUND('[1]Tabla de Amortizacion'!K33,8)))))) -> 0
A33: 2024-02-24 | B33: 0.01028062 | C33: =+VLOOKUP(A33,'Tabla de Amortizacion'!$D$2:$N$182,MATCH(Tablas!$B$1,'Tabla de Amortizacion'!$D$2:$N$2,0)) -> 0.01028062 | E33: =IF([1]CALCULADORA!$F$10="Contractual",ROUND('[1]Tabla de Amortizacion'!C34,8),IF([1]CALCULADORA!$F$10="6% (Medio)",ROUND('[1]Tabla de Amortizacion'!F34,8),IF([1]CALCULADORA!$F$10="10% (Medio Alto)",ROUND('[1]Tabla de Amortizacion'!H34,8),IF([1]CALCULADORA!$F$10="14% (Alto)",ROUND('[1]Tabla de Amortizacion'!#REF!,8),IF([1]CALCULADORA!$F$10=20%,ROUND('[1]Tabla de Amortizacion'!#REF!,8),ROUND('[1]Tabla de Amortizacion'!K34,8)))))) -> 0
A34: 2024-03-24 | B34: 0.0088502 | C34: =+VLOOKUP(A34,'Tabla de Amortizacion'!$D$2:$N$182,MATCH(Tablas!$B$1,'Tabla de Amortizacion'!$D$2:$N$2,0)) -> 0.0088502 | E34: =IF([1]CALCULADORA!$F$10="Contractual",ROUND('[1]Tabla de Amortizacion'!C35,8),IF([1]CALCULADORA!$F$10="6% (Medio)",ROUND('[1]Tabla de Amortizacion'!F35,8),IF([1]CALCULADORA!$F$10="10% (Medio Alto)",ROUND('[1]Tabla de Amortizacion'!H35,8),IF([1]CALCULADORA!$F$10="14% (Alto)",ROUND('[1]Tabla de Amortizacion'!#REF!,8),IF([1]CALCULADORA!$F$10=20%,ROUND('[1]Tabla de Amortizacion'!#REF!,8),ROUND('[1]Tabla de Amortizacion'!K35,8)))))) -> 0
A35: 2024-04-24 | B35: 0.01112976 | C35: =+VLOOKUP(A35,'Tabla de Amortizacion'!$D$2:$N$182,MATCH(Tablas!$B$1,'Tabla de Amortizacion'!$D$2:$N$2,0)) -> 0.01112976 | E35: =IF([1]CALCULADORA!$F$10="Contractual",ROUND('[1]Tabla de Amortizacion'!C36,8),IF([1]CALCULADORA!$F$10="6% (Medio)",ROUND('[1]Tabla de Amortizacion'!F36,8),IF([1]CALCULADORA!$F$10="10% (Medio Alto)",ROUND('[1]Tabla de Amortizacion'!H36,8),IF([1]CALCULADORA!$F$10="14% (Alto)",ROUND('[1]Tabla de Amortizacion'!#REF!,8),IF([1]CALCULADORA!$F$10=20%,ROUND('[1]Tabla de Amortizacion'!#REF!,8),ROUND('[1]Tabla de Amortizacion'!K36,8)))))) -> 0
A36: 2024-05-24 | B36: 0.00934304 | C36: =+VLOOKUP(A36,'Tabla de Amortizacion'!$D$2:$N$182,MATCH(Tablas!$B$1,'Tabla de Amortizacion'!$D$2:$N$2,0)) -> 0.00934304 | E36: =IF([1]CALCULADORA!$F$10="Contractual",ROUND('[1]Tabla de Amortizacion'!C37,8),IF([1]CALCULADORA!$F$10="6% (Medio)",ROUND('[1]Tabla de Amortizacion'!F37,8),IF([1]CALCULADORA!$F$10="10% (Medio Alto)",ROUND('[1]Tabla de Amortizacion'!H37,8),IF([1]CALCULADORA!$F$10="14% (Alto)",ROUND('[1]Tabla de Amortizacion'!#REF!,8),IF([1]CALCULADORA!$F$10=20%,ROUND('[1]Tabla de Amortizacion'!#REF!,8),ROUND('[1]Tabla de Amortizacion'!K37,8)))))) -> 0
A37: 2024-06-24 | B37: 0.00906709 | C37: =+VLOOKUP(A37,'Tabla de Amortizacion'!$D$2:$N$182,MATCH(Tablas!$B$1,'Tabla de Amortizacion'!$D$2:$N$2,0)) -> 0.00906709 | E37: =IF([1]CALCULADORA!$F$10="Contractual",ROUND('[1]Tabla de Amortizacion'!C38,8),IF([1]CALCULADORA!$F$10="6% (Medio)",ROUND('[1]Tabla de Amortizacion'!F38,8),IF([1]CALCULADORA!$F$10="10% (Medio Alto)",ROUND('[1]Tabla de Amortizacion'!H38,8),IF([1]CALCULADORA!$F$10="14% (Alto)",ROUND('[1]Tabla de Amortizacion'!#REF!,8),IF([1]CALCULADORA!$F$10=20%,ROUND('[1]Tabla de Amortizacion'!#REF!,8),ROUND('[1]Tabla de Amortizacion'!K38,8)))))) -> 0
A38: 2024-07-24 | B38: 0.00920471 | C38: =+VLOOKUP(A38,'Tabla de Amortizacion'!$D$2:$N$182,MATCH(Tablas!$B$1,'Tabla de Amortizacion'!$D$2:$N$2,0)) -> 0.00920471 | E38: =IF([1]CALCULADORA!$F$10="Contractual",ROUND('[1]Tabla de Amortizacion'!C39,8),IF([1]CALCULADORA!$F$10="6% (Medio)",ROUND('[1]Tabla de Amortizacion'!F39,8),IF([1]CALCULADORA!$F$10="10% (Medio Alto)",ROUND('[1]Tabla de Amortizacion'!H39,8),IF([1]CALCULADORA!$F$10="14% (Alto)",ROUND('[1]Tabla de Amortizacion'!#REF!,8),IF([1]CALCULADORA!$F$10=20%,ROUND('[1]Tabla de Amortizacion'!#REF!,8),ROUND('[1]Tabla de Amortizacion'!K39,8)))))) -> 0
A39: 2024-08-24 | B39: 0.00909141 | C39: =+VLOOKUP(A39,'Tabla de Amortizacion'!$D$2:$N$182,MATCH(Tablas!$B$1,'Tabla de Amortizacion'!$D$2:$N$2,0)) -> 0.00909141 | E39: =IF([1]CALCULADORA!$F$10="Contractual",ROUND('[1]Tabla de Amortizacion'!C40,8),IF([1]CALCULADORA!$F$10="6% (Medio)",ROUND('[1]Tabla de Amortizacion'!F40,8),IF([1]CALCULADORA!$F$10="10% (Medio Alto)",ROUND('[1]Tabla de Amortizacion'!H40,8),IF([1]CALCULADORA!$F$10="14% (Alto)",ROUND('[1]Tabla de Amortizacion'!#REF!,8),IF([1]CALCULADORA!$F$10=20%,ROUND('[1]Tabla de Amortizacion'!#REF!,8),ROUND('[1]Tabla de Amortizacion'!K40,8)))))) -> 0
A40: 2024-09-24 | B40: 0.00904585 | C40: =+VLOOKUP(A40,'Tabla de Amortizacion'!$D$2:$N$182,MATCH(Tablas!$B$1,'Tabla de Amortizacion'!$D$2:$N$2,0)) -> 0.00904585 | E40: =IF([1]CALCULADORA!$F$10="Contractual",ROUND('[1]Tabla de Amortizacion'!C41,8),IF([1]CALCULADORA!$F$10="6% (Medio)",ROUND('[1]Tabla de Amortizacion'!F41,8),IF([1]CALCULADORA!$F$10="10% (Medio Alto)",ROUND('[1]Tabla de Amortizacion'!H41,8),IF([1]CALCULADORA!$F$10="14% (Alto)",ROUND('[1]Tabla de Amortizacion'!#REF!,8),IF([1]CALCULADORA!$F$10=20%,ROUND('[1]Tabla de Amortizacion'!#REF!,8),ROUND('[1]Tabla de Amortizacion'!K41,8)))))) -> 0
A41: 2024-10-24 | B41: 0.00894795 | C41: =+VLOOKUP(A41,'Tabla de Amortizacion'!$D$2:$N$182,MATCH(Tablas!$B$1,'Tabla de Amortizacion'!$D$2:$N$2,0)) -> 0.00894795 | E41: =IF([1]CALCULADORA!$F$10="Contractual",ROUND('[1]Tabla de Amortizacion'!C42,8),IF([1]CALCULADORA!$F$10="6% (Medio)",ROUND('[1]Tabla de Amortizacion'!F42,8),IF([1]CALCULADORA!$F$10="10% (Medio Alto)",ROUND('[1]Tabla de Amortizacion'!H42,8),IF([1]CALCULADORA!$F$10="14% (Alto)",ROUND('[1]Tabla de Amortizacion'!#REF!,8),IF([1]CALCULADORA!$F$10=20%,ROUND('[1]Tabla de Amortizacion'!#REF!,8),ROUND('[1]Tabla de Amortizacion'!K42,8)))))) -> 0
A42: 2024-11-24 | B42: 0.00883726 | C42: =+VLOOKUP(A42,'Tabla de Amortizacion'!$D$2:$N$182,MATCH(Tablas!$B$1,'Tabla de Amortizacion'!$D$2:$N$2,0)) -> 0.00883726 | E42: =IF([1]CALCULADORA!$F$10="Contractual",ROUND('[1]Tabla de Amortizacion'!C43,8),IF([1]CALCULADORA!$F$10="6% (Medio)",ROUND('[1]Tabla de Amortizacion'!F43,8),IF([1]CALCULADORA!$F$10="10% (Medio Alto)",ROUND('[1]Tabla de Amortizacion'!H43,8),IF([1]CALCULADORA!$F$10="14% (Alto)",ROUND('[1]Tabla de Amortizacion'!#REF!,8),IF([1]CALCULADORA!$F$10=20%,ROUND('[1]Tabla de Amortizacion'!#REF!,8),ROUND('[1]Tabla de Amortizacion'!K43,8)))))) -> 0
A43: 2024-12-24 | B43: 0.00875565 | C43: =+VLOOKUP(A43,'Tabla de Amortizacion'!$D$2:$N$182,MATCH(Tablas!$B$1,'Tabla de Amortizacion'!$D$2:$N$2,0)) -> 0.00875565 | E43: =IF([1]CALCULADORA!$F$10="Contractual",ROUND('[1]Tabla de Amortizacion'!C44,8),IF([1]CALCULADORA!$F$10="6% (Medio)",ROUND('[1]Tabla de Amortizacion'!F44,8),IF([1]CALCULADORA!$F$10="10% (Medio Alto)",ROUND('[1]Tabla de Amortizacion'!H44,8),IF([1]CALCULADORA!$F$10="14% (Alto)",ROUND('[1]Tabla de Amortizacion'!#REF!,8),IF([1]CALCULADORA!$F$10=20%,ROUND('[1]Tabla de Amortizacion'!#REF!,8),ROUND('[1]Tabla de Amortizacion'!K44,8)))))) -> 0
A44: 2025-01-24 | B44: 0.00867714 | C44: =+VLOOKUP(A44,'Tabla de Amortizacion'!$D$2:$N$182,MATCH(Tablas!$B$1,'Tabla de Amortizacion'!$D$2:$N$2,0)) -> 0.00867714 | E44: =IF([1]CALCULADORA!$F$10="Contractual",ROUND('[1]Tabla de Amortizacion'!C45,8),IF([1]CALCULADORA!$F$10="6% (Medio)",ROUND('[1]Tabla de Amortizacion'!F45,8),IF([1]CALCULADORA!$F$10="10% (Medio Alto)",ROUND('[1]Tabla de Amortizacion'!H45,8),IF([1]CALCULADORA!$F$10="14% (Alto)",ROUND('[1]Tabla de Amortizacion'!#REF!,8),IF([1]CALCULADORA!$F$10=20%,ROUND('[1]Tabla de Amortizacion'!#REF!,8),ROUND('[1]Tabla de Amortizacion'!K45,8)))))) -> 0
A45: 2025-02-24 | B45: 0.00860862 | C45: =+VLOOKUP(A45,'Tabla de Amortizacion'!$D$2:$N$182,MATCH(Tablas!$B$1,'Tabla de Amortizacion'!$D$2:$N$2,0)) -> 0.00860862 | E45: =IF([1]CALCULADORA!$F$10="Contractual",ROUND('[1]Tabla de Amortizacion'!C46,8),IF([1]CALCULADORA!$F$10="6% (Medio)",ROUND('[1]Tabla de Amortizacion'!F46,8),IF([1]CALCULADORA!$F$10="10% (Medio Alto)",ROUND('[1]Tabla de Amortizacion'!H46,8),IF([1]CALCULADORA!$F$10="14% (Alto)",ROUND('[1]Tabla de Amortizacion'!#REF!,8),IF([1]CALCULADORA!$F$10=20%,ROUND('[1]Tabla de Amortizacion'!#REF!,8),ROUND('[1]Tabla de Amortizacion'!K46,8)))))) -> 0
A46: 2025-03-24 | B46: 0.00853589 | C46: =+VLOOKUP(A46,'Tabla de Amortizacion'!$D$2:$N$182,MATCH(Tablas!$B$1,'Tabla de Amortizacion'!$D$2:$N$2,0)) -> 0.00853589 | E46: =IF([1]CALCULADORA!$F$10="Contractual",ROUND('[1]Tabla de Amortizacion'!C47,8),IF([1]CALCULADORA!$F$10="6% (Medio)",ROUND('[1]Tabla de Amortizacion'!F47,8),IF([1]CALCULADORA!$F$10="10% (Medio Alto)",ROUND('[1]Tabla de Amortizacion'!H47,8),IF([1]CALCULADORA!$F$10="14% (Alto)",ROUND('[1]Tabla de Amortizacion'!#REF!,8),IF([1]CALCULADORA!$F$10=20%,ROUND('[1]Tabla de Amortizacion'!#REF!,8),ROUND('[1]Tabla de Amortizacion'!K47,8)))))) -> 0
A47: 2025-04-24 | B47: 0.00846367 | C47: =+VLOOKUP(A47,'Tabla de Amortizacion'!$D$2:$N$182,MATCH(Tablas!$B$1,'Tabla de Amortizacion'!$D$2:$N$2,0)) -> 0.00846367 | E47: =IF([1]CALCULADORA!$F$10="Contractual",ROUND('[1]Tabla de Amortizacion'!C48,8),IF([1]CALCULADORA!$F$10="6% (Medio)",ROUND('[1]Tabla de Amortizacion'!F48,8),IF([1]CALCULADORA!$F$10="10% (Medio Alto)",ROUND('[1]Tabla de Amortizacion'!H48,8),IF([1]CALCULADORA!$F$10="14% (Alto)",ROUND('[1]Tabla de Amortizacion'!#REF!,8),IF([1]CALCULADORA!$F$10=20%,ROUND('[1]Tabla de Amortizacion'!#REF!,8),ROUND('[1]Tabla de Amortizacion'!K48,8)))))) -> 0
A48: 2025-05-24 | B48: 0.00841182 | C48: =+VLOOKUP(A48,'Tabla de Amortizacion'!$D$2:$N$182,MATCH(Tablas!$B$1,'Tabla de Amortizacion'!$D$2:$N$2,0)) -> 0.00841182 | E48: =IF([1]CALCULADORA!$F$10="Contractual",ROUND('[1]Tabla de Amortizacion'!C49,8),IF([1]CALCULADORA!$F$10="6% (Medio)",ROUND('[1]Tabla de Amortizacion'!F49,8),IF([1]CALCULADORA!$F$10="10% (Medio Alto)",ROUND('[1]Tabla de Amortizacion'!H49,8),IF([1]CALCULADORA!$F$10="14% (Alto)",ROUND('[1]Tabla de Amortizacion'!#REF!,8),IF([1]CALCULADORA!$F$10=20%,ROUND('[1]Tabla de Amortizacion'!#REF!,8),ROUND('[1]Tabla de Amortizacion'!K49,8)))))) -> 0
A49: 2025-06-24 | B49: 0.00810601 | C49: =+VLOOKUP(A49,'Tabla de Amortizacion'!$D$2:$N$182,MATCH(Tablas!$B$1,'Tabla de Amortizacion'!$D$2:$N$2,0)) -> 0.00810601 | E49: =IF([1]CALCULADORA!$F$10="Contractual",ROUND('[1]Tabla de Amortizacion'!C50,8),IF([1]CALCULADORA!$F$10="6% (Medio)",ROUND('[1]Tabla de Amortizacion'!F50,8),IF([1]CALCULADORA!$F$10="10% (Medio Alto)",ROUND('[1]Tabla de Amortizacion'!H50,8),IF([1]CALCULADORA!$F$10="14% (Alto)",ROUND('[1]Tabla de Amortizacion'!#REF!,8),IF([1]CALCULADORA!$F$10=20%,ROUND('[1]Tabla de Amortizacion'!#REF!,8),ROUND('[1]Tabla de Amortizacion'!K50,8)))))) -> 0
A50: 2025-07-24 | B50: 0.0082698 | C50: =+VLOOKUP(A50,'Tabla de Amortizacion'!$D$2:$N$182,MATCH(Tablas!$B$1,'Tabla de Amortizacion'!$D$2:$N$2,0)) -> 0.0082698 | E50: =IF([1]CALCULADORA!$F$10="Contractual",ROUND('[1]Tabla de Amortizacion'!C51,8),IF([1]CALCULADORA!$F$10="6% (Medio)",ROUND('[1]Tabla de Amortizacion'!F51,8),IF([1]CALCULADORA!$F$10="10% (Medio Alto)",ROUND('[1]Tabla de Amortizacion'!H51,8),IF([1]CALCULADORA!$F$10="14% (Alto)",ROUND('[1]Tabla de Amortizacion'!#REF!,8),IF([1]CALCULADORA!$F$10=20%,ROUND('[1]Tabla de Amortizacion'!#REF!,8),ROUND('[1]Tabla de Amortizacion'!K51,8)))))) -> 0
A51: 2025-08-24 | B51: 0.00820553 | C51: =+VLOOKUP(A51,'Tabla de Amortizacion'!$D$2:$N$182,MATCH(Tablas!$B$1,'Tabla de Amortizacion'!$D$2:$N$2,0)) -> 0.00820553 | E51: =IF([1]CALCULADORA!$F$10="Contractual",ROUND('[1]Tabla de Amortizacion'!C52,8),IF([1]CALCULADORA!$F$10="6% (Medio)",ROUND('[1]Tabla de Amortizacion'!F52,8),IF([1]CALCULADORA!$F$10="10% (Medio Alto)",ROUND('[1]Tabla de Amortizacion'!H52,8),IF([1]CALCULADORA!$F$10="14% (Alto)",ROUND('[1]Tabla de Amortizacion'!#REF!,8),IF([1]CALCULADORA!$F$10=20%,ROUND('[1]Tabla de Amortizacion'!#REF!,8),ROUND('[1]Tabla de Amortizacion'!K52,8)))))) -> 0
A52: 2025-09-24 | B52: 0.00815747 | C52: =+VLOOKUP(A52,'Tabla de Amortizacion'!$D$2:$N$182,MATCH(Tablas!$B$1,'Tabla de Amortizacion'!$D$2:$N$2,0)) -> 0.00815747 | E52: =IF([1]CALCULADORA!$F$10="Contractual",ROUND('[1]Tabla de Amortizacion'!C53,8),IF([1]CALCULADORA!$F$10="6% (Medio)",ROUND('[1]Tabla de Amortizacion'!F53,8),IF([1]CALCULADORA!$F$10="10% (Medio Alto)",ROUND('[1]Tabla de Amortizacion'!H53,8),IF([1]CALCULADORA!$F$10="14% (Alto)",ROUND('[1]Tabla de Amortizacion'!#REF!,8),IF([1]CALCULADORA!$F$10=20%,ROUND('[1]Tabla de Amortizacion'!#REF!,8),ROUND('[1]Tabla de Amortizacion'!K53,8)))))) -> 0
A53: 2025-10-24 | B53: 0.00806379 | C53: =+VLOOKUP(A53,'Tabla de Amortizacion'!$D$2:$N$182,MATCH(Tablas!$B$1,'Tabla de Amortizacion'!$D$2:$N$2,0)) -> 0.00806379 | E53: =IF([1]CALCULADORA!$F$10="Contractual",ROUND('[1]Tabla de Amortizacion'!C54,8),IF([1]CALCULADORA!$F$10="6% (Medio)",ROUND('[1]Tabla de Amortizacion'!F54,8),IF([1]CALCULADORA!$F$10="10% (Medio Alto)",ROUND('[1]Tabla de Amortizacion'!H54,8),IF([1]CALCULADORA!$F$10="14% (Alto)",ROUND('[1]Tabla de Amortizacion'!#REF!,8),IF([1]CALCULADORA!$F$10=20%,ROUND('[1]Tabla de Amortizacion'!#REF!,8),ROUND('[1]Tabla de Amortizacion'!K54,8)))))) -> 0
A54: 2025-11-24 | B54: 0.00801831 | C54: =+VLOOKUP(A54,'Tabla de Amortizacion'!$D$2:$N$182,MATCH(Tablas!$B$1,'Tabla de Amortizacion'!$D$2:$N$2,0)) -> 0.00801831 | E54: =IF([1]CALCULADORA!$F$10="Contractual",ROUND('[1]Tabla de Amortizacion'!C55,8),IF([1]CALCULADORA!$F$10="6% (Medio)",ROUND('[1]Tabla de Amortizacion'!F55,8),IF([1]CALCULADORA!$F$10="10% (Medio Alto)",ROUND('[1]Tabla de Amortizacion'!H55,8),IF([1]CALCULADORA!$F$10="14% (Alto)",ROUND('[1]Tabla de Amortizacion'!#REF!,8),IF([1]CALCULADORA!$F$10=20%,ROUND('[1]Tabla de Amortizacion'!#REF!,8),ROUND('[1]Tabla de Amortizacion'!K55,8)))))) -> 0
A55: 2025-12-24 | B55: 0.00794343 | C55: =+VLOOKUP(A55,'Tabla de Amortizacion'!$D$2:$N$182,MATCH(Tablas!$B$1,'Tabla de Amortizacion'!$D$2:$N$2,0)) -> 0.00794343 | E55: =IF([1]CALCULADORA!$F$10="Contractual",ROUND('[1]Tabla de Amortizacion'!C56,8),IF([1]CALCULADORA!$F$10="6% (Medio)",ROUND('[1]Tabla de Amortizacion'!F56,8),IF([1]CALCULADORA!$F$10="10% (Medio Alto)",ROUND('[1]Tabla de Amortizacion'!H56,8),IF([1]CALCULADORA!$F$10="14% (Alto)",ROUND('[1]Tabla de Amortizacion'!#REF!,8),IF([1]CALCULADORA!$F$10=20%,ROUND('[1]Tabla de Amortizacion'!#REF!,8),ROUND('[1]Tabla de Amortizacion'!K56,8)))))) -> 0
A56: 2026-01-24 | B56: 0.00787578 | C56: =+VLOOKUP(A56,'Tabla de Amortizacion'!$D$2:$N$182,MATCH(Tablas!$B$1,'Tabla de Amortizacion'!$D$2:$N$2,0)) -> 0.00787578 | E56: =IF([1]CALCULADORA!$F$10="Contractual",ROUND('[1]Tabla de Amortizacion'!C57,8),IF([1]CALCULADORA!$F$10="6% (Medio)",ROUND('[1]Tabla de Amortizacion'!F57,8),IF([1]CALCULADORA!$F$10="10% (Medio Alto)",ROUND('[1]Tabla de Amortizacion'!H57,8),IF([1]CALCULADORA!$F$10="14% (Alto)",ROUND('[1]Tabla de Amortizacion'!#REF!,8),IF([1]CALCULADORA!$F$10=20%,ROUND('[1]Tabla de Amortizacion'!#REF!,8),ROUND('[1]Tabla de Amortizacion'!K57,8)))))) -> 0
A57: 2026-02-24 | B57: 0.0077994 | C57: =+VLOOKUP(A57,'Tabla de Amortizacion'!$D$2:$N$182,MATCH(Tablas!$B$1,'Tabla de Amortizacion'!$D$2:$N$2,0)) -> 0.0077994 | E57: =IF([1]CALCULADORA!$F$10="Contractual",ROUND('[1]Tabla de Amortizacion'!C58,8),IF([1]CALCULADORA!$F$10="6% (Medio)",ROUND('[1]Tabla de Amortizacion'!F58,8),IF([1]CALCULADORA!$F$10="10% (Medio Alto)",ROUND('[1]Tabla de Amortizacion'!H58,8),IF([1]CALCULADORA!$F$10="14% (Alto)",ROUND('[1]Tabla de Amortizacion'!#REF!,8),IF([1]CALCULADORA!$F$10=20%,ROUND('[1]Tabla de Amortizacion'!#REF!,8),ROUND('[1]Tabla de Amortizacion'!K58,8)))))) -> 0
A58: 2026-03-24 | B58: 0.00773079 | C58: =+VLOOKUP(A58,'Tabla de Amortizacion'!$D$2:$N$182,MATCH(Tablas!$B$1,'Tabla de Amortizacion'!$D$2:$N$2,0)) -> 0.00773079 | E58: =IF([1]CALCULADORA!$F$10="Contractual",ROUND('[1]Tabla de Amortizacion'!C59,8),IF([1]CALCULADORA!$F$10="6% (Medio)",ROUND('[1]Tabla de Amortizacion'!F59,8),IF([1]CALCULADORA!$F$10="10% (Medio Alto)",ROUND('[1]Tabla de Amortizacion'!H59,8),IF([1]CALCULADORA!$F$10="14% (Alto)",ROUND('[1]Tabla de Amortizacion'!#REF!,8),IF([1]CALCULADORA!$F$10=20%,ROUND('[1]Tabla de Amortizacion'!#REF!,8),ROUND('[1]Tabla de Amortizacion'!K59,8)))))) -> 0
A59: 2026-04-24 | B59: 0.00769238 | C59: =+VLOOKUP(A59,'Tabla de Amortizacion'!$D$2:$N$182,MATCH(Tablas!$B$1,'Tabla de Amortizacion'!$D$2:$N$2,0)) -> 0.00769238 | E59: =IF([1]CALCULADORA!$F$10="Contractual",ROUND('[1]Tabla de Amortizacion'!C60,8),IF([1]CALCULADORA!$F$10="6% (Medio)",ROUND('[1]Tabla de Amortizacion'!F60,8),IF([1]CALCULADORA!$F$10="10% (Medio Alto)",ROUND('[1]Tabla de Amortizacion'!H60,8),IF([1]CALCULADORA!$F$10="14% (Alto)",ROUND('[1]Tabla de Amortizacion'!#REF!,8),IF([1]CALCULADORA!$F$10=20%,ROUND('[1]Tabla de Amortizacion'!#REF!,8),ROUND('[1]Tabla de Amortizacion'!K60,8)))))) -> 0
A60: 2026-05-24 | B60: 0.00760898 | C60: =+VLOOKUP(A60,'Tabla de Amortizacion'!$D$2:$N$182,MATCH(Tablas!$B$1,'Tabla de Amortizacion'!$D$2:$N$2,0)) -> 0.00760898 | E60: =IF([1]CALCULADORA!$F$10="Contractual",ROUND('[1]Tabla de Amortizacion'!C61,8),IF([1]CALCULADORA!$F$10="6% (Medio)",ROUND('[1]Tabla de Amortizacion'!F61,8),IF([1]CALCULADORA!$F$10="10% (Medio Alto)",ROUND('[1]Tabla de Amortizacion'!H61,8),IF([1]CALCULADORA!$F$10="14% (Alto)",ROUND('[1]Tabla de Amortizacion'!#REF!,8),IF([1]CALCULADORA!$F$10=20%,ROUND('[1]Tabla de Amortizacion'!#REF!,8),ROUND('[1]Tabla de Amortizacion'!K61,8)))))) -> 0
A61: 2026-06-24 | B61: 0.00732123 | C61: =+VLOOKUP(A61,'Tabla de Amortizacion'!$D$2:$N$182,MATCH(Tablas!$B$1,'Tabla de Amortizacion'!$D$2:$N$2,0)) -> 0.00732123 | E61: =IF([1]CALCULADORA!$F$10="Contractual",ROUND('[1]Tabla de Amortizacion'!C62,8),IF([1]CALCULADORA!$F$10="6% (Medio)",ROUND('[1]Tabla de Amortizacion'!F62,8),IF([1]CALCULADORA!$F$10="10% (Medio Alto)",ROUND('[1]Tabla de Amortizacion'!H62,8),IF([1]CALCULADORA!$F$10="14% (Alto)",ROUND('[1]Tabla de Amortizacion'!#REF!,8),IF([1]CALCULADORA!$F$10=20%,ROUND('[1]Tabla de Amortizacion'!#REF!,8),ROUND('[1]Tabla de Amortizacion'!K62,8)))))) -> 0
A62: 2026-07-24 | B62: 0.00749566 | C62: =+VLOOKUP(A62,'Tabla de Amortizacion'!$D$2:$N$182,MATCH(Tablas!$B$1,'Tabla de Amortizacion'!$D$2:$N$2,0)) -> 0.00749566 | E62: =IF([1]CALCULADORA!$F$10="Contractual",ROUND('[1]Tabla de Amortizacion'!C63,8),IF([1]CALCULADORA!$F$10="6% (Medio)",ROUND('[1]Tabla de Amortizacion'!F63,8),IF([1]CALCULADORA!$F$10="10% (Medio Alto)",ROUND('[1]Tabla de Amortizacion'!H63,8),IF([1]CALCULADORA!$F$10="14% (Alto)",ROUND('[1]Tabla de Amortizacion'!#REF!,8),IF([1]CALCULADORA!$F$10=20%,ROUND('[1]Tabla de Amortizacion'!#REF!,8),ROUND('[1]Tabla de Amortizacion'!K63,8)))))) -> 0
A63: 2026-08-24 | B63: 0.0074267 | C63: =+VLOOKUP(A63,'Tabla de Amortizacion'!$D$2:$N$182,MATCH(Tablas!$B$1,'Tabla de Amortizacion'!$D$2:$N$2,0)) -> 0.0074267 | E63: =IF([1]CALCULADORA!$F$10="Contractual",ROUND('[1]Tabla de Amortizacion'!C64,8),IF([1]CALCULADORA!$F$10="6% (Medio)",ROUND('[1]Tabla de Amortizacion'!F64,8),IF([1]CALCULADORA!$F$10="10% (Medio Alto)",ROUND('[1]Tabla de Amortizacion'!H64,8),IF([1]CALCULADORA!$F$10="14% (Alto)",ROUND('[1]Tabla de Amortizacion'!#REF!,8),IF([1]CALCULADORA!$F$10=20%,ROUND('[1]Tabla de Amortizacion'!#REF!,8),ROUND('[1]Tabla de Amortizacion'!K64,8)))))) -> 0
A64: 2026-09-24 | B64: 0.00736374 | C64: =+VLOOKUP(A64,'Tabla de Amortizacion'!$D$2:$N$182,MATCH(Tablas!$B$1,'Tabla de Amortizacion'!$D$2:$N$2,0)) -> 0.00736374 | E64: =IF([1]CALCULADORA!$F$10="Contractual",ROUND('[1]Tabla de Amortizacion'!C65,8),IF([1]CALCULADORA!$F$10="6% (Medio)",ROUND('[1]Tabla de Amortizacion'!F65,8),IF([1]CALCULADORA!$F$10="10% (Medio Alto)",ROUND('[1]Tabla de Amortizacion'!H65,8),IF([1]CALCULADORA!$F$10="14% (Alto)",ROUND('[1]Tabla de Amortizacion'!#REF!,8),IF([1]CALCULADORA!$F$10=20%,ROUND('[1]Tabla de Amortizacion'!#REF!,8),ROUND('[1]Tabla de Amortizacion'!K65,8)))))) -> 0
A65: 2026-10-24 | B65: 0.00729947 | C65: =+VLOOKUP(A65,'Tabla de Amortizacion'!$D$2:$N$182,MATCH(Tablas!$B$1,'Tabla de Amortizacion'!$D$2:$N$2,0)) -> 0.00729947 | E65: =IF([1]CALCULADORA!$F$10="Contractual",ROUND('[1]Tabla de Amortizacion'!C66,8),IF([1]CALCULADORA!$F$10="6% (Medio)",ROUND('[1]Tabla de Amortizacion'!F66,8),IF([1]CALCULADORA!$F$10="10% (Medio Alto)",ROUND('[1]Tabla de Amortizacion'!H66,8),IF([1]CALCULADORA!$F$10="14% (Alto)",ROUND('[1]Tabla de Amortizacion'!#REF!,8),IF([1]CALCULADORA!$F$10=20%,ROUND('[1]Tabla de Amortizacion'!#REF!,8),ROUND('[1]Tabla de Amortizacion'!K66,8)))))) -> 0
A66: 2026-11-24 | B66: 0.00724929 | C66: =+VLOOKUP(A66,'Tabla de Amortizacion'!$D$2:$N$182,MATCH(Tablas!$B$1,'Tabla de Amortizacion'!$D$2:$N$2,0)) -> 0.00724929 | E66: =IF([1]CALCULADORA!$F$10="Contractual",ROUND('[1]Tabla de Amortizacion'!C67,8),IF([1]CALCULADORA!$F$10="6% (Medio)",ROUND('[1]Tabla de Amortizacion'!F67,8),IF([1]CALCULADORA!$F$10="10% (Medio Alto)",ROUND('[1]Tabla de Amortizacion'!H67,8),IF([1]CALCULADORA!$F$10="14% (Alto)",ROUND('[1]Tabla de Amortizacion'!#REF!,8),IF([1]CALCULADORA!$F$10=20%,ROUND('[1]Tabla de Amortizacion'!#REF!,8),ROUND('[1]Tabla de Amortizacion'!K67,8)))))) -> 0
A67: =EDATE(A66,1) -> 2026-12-24 | B67: =+ROUND(C67,8) -> 0.00718226 | C67: =+VLOOKUP(A67,'Tabla de Amortizacion'!$D$2:$N$182,MATCH(Tablas!$B$1,'Tabla de Amortizacion'!$D$2:$N$2,0)) -> 0.00718226 | E67: =IF([1]CALCULADORA!$F$10="Contractual",ROUND('[1]Tabla de Amortizacion'!C68,8),IF([1]CALCULADORA!$F$10="6% (Medio)",ROUND('[1]Tabla de Amortizacion'!F68,8),IF([1]CALCULADORA!$F$10="10% (Medio Alto)",ROUND('[1]Tabla de Amortizacion'!H68,8),IF([1]CALCULADORA!$F$10="14% (Alto)",ROUND('[1]Tabla de Amortizacion'!#REF!,8),IF([1]CALCULADORA!$F$10=20%,ROUND('[1]Tabla de Amortizacion'!#REF!,8),ROUND('[1]Tabla de Amortizacion'!K68,8)))))) -> 0
A68: 2027-01-24 | B68: 0.0071308 | C68: =+VLOOKUP(A68,'Tabla de Amortizacion'!$D$2:$N$182,MATCH(Tablas!$B$1,'Tabla de Amortizacion'!$D$2:$N$2,0)) -> 0.0071308 | E68: =IF([1]CALCULADORA!$F$10="Contractual",ROUND('[1]Tabla de Amortizacion'!C69,8),IF([1]CALCULADORA!$F$10="6% (Medio)",ROUND('[1]Tabla de Amortizacion'!F69,8),IF([1]CALCULADORA!$F$10="10% (Medio Alto)",ROUND('[1]Tabla de Amortizacion'!H69,8),IF([1]CALCULADORA!$F$10="14% (Alto)",ROUND('[1]Tabla de Amortizacion'!#REF!,8),IF([1]CALCULADORA!$F$10=20%,ROUND('[1]Tabla de Amortizacion'!#REF!,8),ROUND('[1]Tabla de Amortizacion'!K69,8)))))) -> 0
A69: 2027-02-24 | B69: 0.00706607 | C69: =+VLOOKUP(A69,'Tabla de Amortizacion'!$D$2:$N$182,MATCH(Tablas!$B$1,'Tabla de Amortizacion'!$D$2:$N$2,0)) -> 0.00706607 | E69: =IF([1]CALCULADORA!$F$10="Contractual",ROUND('[1]Tabla de Amortizacion'!C70,8),IF([1]CALCULADORA!$F$10="6% (Medio)",ROUND('[1]Tabla de Amortizacion'!F70,8),IF([1]CALCULADORA!$F$10="10% (Medio Alto)",ROUND('[1]Tabla de Amortizacion'!H70,8),IF([1]CALCULADORA!$F$10="14% (Alto)",ROUND('[1]Tabla de Amortizacion'!#REF!,8),IF([1]CALCULADORA!$F$10=20%,ROUND('[1]Tabla de Amortizacion'!#REF!,8),ROUND('[1]Tabla de Amortizacion'!K70,8)))))) -> 0
A70: 2027-03-24 | B70: 0.00701314 | C70: =+VLOOKUP(A70,'Tabla de Amortizacion'!$D$2:$N$182,MATCH(Tablas!$B$1,'Tabla de Amortizacion'!$D$2:$N$2,0)) -> 0.00701314 | E70: =IF([1]CALCULADORA!$F$10="Contractual",ROUND('[1]Tabla de Amortizacion'!C71,8),IF([1]CALCULADORA!$F$10="6% (Medio)",ROUND('[1]Tabla de Amortizacion'!F71,8),IF([1]CALCULADORA!$F$10="10% (Medio Alto)",ROUND('[1]Tabla de Amortizacion'!H71,8),IF([1]CALCULADORA!$F$10="14% (Alto)",ROUND('[1]Tabla de Amortizacion'!#REF!,8),IF([1]CALCULADORA!$F$10=20%,ROUND('[1]Tabla de Amortizacion'!#REF!,8),ROUND('[1]Tabla de Amortizacion'!K71,8)))))) -> 0
A71: 2027-04-24 | B71: 0.00694584 | C71: =+VLOOKUP(A71,'Tabla de Amortizacion'!$D$2:$N$182,MATCH(Tablas!$B$1,'Tabla de Amortizacion'!$D$2:$N$2,0)) -> 0.00694584 | E71: =IF([1]CALCULADORA!$F$10="Contractual",ROUND('[1]Tabla de Amortizacion'!C72,8),IF([1]CALCULADORA!$F$10="6% (Medio)",ROUND('[1]Tabla de Amortizacion'!F72,8),IF([1]CALCULADORA!$F$10="10% (Medio Alto)",ROUND('[1]Tabla de Amortizacion'!H72,8),IF([1]CALCULADORA!$F$10="14% (Alto)",ROUND('[1]Tabla de Amortizacion'!#REF!,8),IF([1]CALCULADORA!$F$10=20%,ROUND('[1]Tabla de Amortizacion'!#REF!,8),ROUND('[1]Tabla de Amortizacion'!K72,8)))))) -> 0
A72: 2027-05-24 | B72: 0.00688209 | C72: =+VLOOKUP(A72,'Tabla de Amortizacion'!$D$2:$N$182,MATCH(Tablas!$B$1,'Tabla de Amortizacion'!$D$2:$N$2,0)) -> 0.00688209 | E72: =IF([1]CALCULADORA!$F$10="Contractual",ROUND('[1]Tabla de Amortizacion'!C73,8),IF([1]CALCULADORA!$F$10="6% (Medio)",ROUND('[1]Tabla de Amortizacion'!F73,8),IF([1]CALCULADORA!$F$10="10% (Medio Alto)",ROUND('[1]Tabla de Amortizacion'!H73,8),IF([1]CALCULADORA!$F$10="14% (Alto)",ROUND('[1]Tabla de Amortizacion'!#REF!,8),IF([1]CALCULADORA!$F$10=20%,ROUND('[1]Tabla de Amortizacion'!#REF!,8),ROUND('[1]Tabla de Amortizacion'!K73,8)))))) -> 0
A73: 2027-06-24 | B73: 0.00656999 | C73: =+VLOOKUP(A73,'Tabla de Amortizacion'!$D$2:$N$182,MATCH(Tablas!$B$1,'Tabla de Amortizacion'!$D$2:$N$2,0)) -> 0.00656999 | E73: =IF([1]CALCULADORA!$F$10="Contractual",ROUND('[1]Tabla de Amortizacion'!C74,8),IF([1]CALCULADORA!$F$10="6% (Medio)",ROUND('[1]Tabla de Amortizacion'!F74,8),IF([1]CALCULADORA!$F$10="10% (Medio Alto)",ROUND('[1]Tabla de Amortizacion'!H74,8),IF([1]CALCULADORA!$F$10="14% (Alto)",ROUND('[1]Tabla de Amortizacion'!#REF!,8),IF([1]CALCULADORA!$F$10=20%,ROUND('[1]Tabla de Amortizacion'!#REF!,8),ROUND('[1]Tabla de Amortizacion'!K74,8)))))) -> 0
A74: 2027-07-24 | B74: 0.00673177 | C74: =+VLOOKUP(A74,'Tabla de Amortizacion'!$D$2:$N$182,MATCH(Tablas!$B$1,'Tabla de Amortizacion'!$D$2:$N$2,0)) -> 0.00673177 | E74: =IF([1]CALCULADORA!$F$10="Contractual",ROUND('[1]Tabla de Amortizacion'!C75,8),IF([1]CALCULADORA!$F$10="6% (Medio)",ROUND('[1]Tabla de Amortizacion'!F75,8),IF([1]CALCULADORA!$F$10="10% (Medio Alto)",ROUND('[1]Tabla de Amortizacion'!H75,8),IF([1]CALCULADORA!$F$10="14% (Alto)",ROUND('[1]Tabla de Amortizacion'!#REF!,8),IF([1]CALCULADORA!$F$10=20%,ROUND('[1]Tabla de Amortizacion'!#REF!,8),ROUND('[1]Tabla de Amortizacion'!K75,8)))))) -> 0
A75: 2027-08-24 | B75: 0.00667705 | C75: =+VLOOKUP(A75,'Tabla de Amortizacion'!$D$2:$N$182,MATCH(Tablas!$B$1,'Tabla de Amortizacion'!$D$2:$N$2,0)) -> 0.00667705 | E75: =IF([1]CALCULADORA!$F$10="Contractual",ROUND('[1]Tabla de Amortizacion'!C76,8),IF([1]CALCULADORA!$F$10="6% (Medio)",ROUND('[1]Tabla de Amortizacion'!F76,8),IF([1]CALCULADORA!$F$10="10% (Medio Alto)",ROUND('[1]Tabla de Amortizacion'!H76,8),IF([1]CALCULADORA!$F$10="14% (Alto)",ROUND('[1]Tabla de Amortizacion'!#REF!,8),IF([1]CALCULADORA!$F$10=20%,ROUND('[1]Tabla de Amortizacion'!#REF!,8),ROUND('[1]Tabla de Amortizacion'!K76,8)))))) -> 0
A76: 2027-09-24 | B76: 0.00661141 | C76: =+VLOOKUP(A76,'Tabla de Amortizacion'!$D$2:$N$182,MATCH(Tablas!$B$1,'Tabla de Amortizacion'!$D$2:$N$2,0)) -> 0.00661141 | E76: =IF([1]CALCULADORA!$F$10="Contractual",ROUND('[1]Tabla de Amortizacion'!C77,8),IF([1]CALCULADORA!$F$10="6% (Medio)",ROUND('[1]Tabla de Amortizacion'!F77,8),IF([1]CALCULADORA!$F$10="10% (Medio Alto)",ROUND('[1]Tabla de Amortizacion'!H77,8),IF([1]CALCULADORA!$F$10="14% (Alto)",ROUND('[1]Tabla de Amortizacion'!#REF!,8),IF([1]CALCULADORA!$F$10=20%,ROUND('[1]Tabla de Amortizacion'!#REF!,8),ROUND('[1]Tabla de Amortizacion'!K77,8)))))) -> 0
A77: 2027-10-24 | B77: 0.00655145 | C77: =+VLOOKUP(A77,'Tabla de Amortizacion'!$D$2:$N$182,MATCH(Tablas!$B$1,'Tabla de Amortizacion'!$D$2:$N$2,0)) -> 0.00655145 | E77: =IF([1]CALCULADORA!$F$10="Contractual",ROUND('[1]Tabla de Amortizacion'!C78,8),IF([1]CALCULADORA!$F$10="6% (Medio)",ROUND('[1]Tabla de Amortizacion'!F78,8),IF([1]CALCULADORA!$F$10="10% (Medio Alto)",ROUND('[1]Tabla de Amortizacion'!H78,8),IF([1]CALCULADORA!$F$10="14% (Alto)",ROUND('[1]Tabla de Amortizacion'!#REF!,8),IF([1]CALCULADORA!$F$10=20%,ROUND('[1]Tabla de Amortizacion'!#REF!,8),ROUND('[1]Tabla de Amortizacion'!K78,8)))))) -> 0
A78: 2027-11-24 | B78: 0.00649675 | C78: =+VLOOKUP(A78,'Tabla de Amortizacion'!$D$2:$N$182,MATCH(Tablas!$B$1,'Tabla de Amortizacion'!$D$2:$N$2,0)) -> 0.00649675 | E78: =IF([1]CALCULADORA!$F$10="Contractual",ROUND('[1]Tabla de Amortizacion'!C79,8),IF([1]CALCULADORA!$F$10="6% (Medio)",ROUND('[1]Tabla de Amortizacion'!F79,8),IF([1]CALCULADORA!$F$10="10% (Medio Alto)",ROUND('[1]Tabla de Amortizacion'!H79,8),IF([1]CALCULADORA!$F$10="14% (Alto)",ROUND('[1]Tabla de Amortizacion'!#REF!,8),IF([1]CALCULADORA!$F$10=20%,ROUND('[1]Tabla de Amortizacion'!#REF!,8),ROUND('[1]Tabla de Amortizacion'!K79,8)))))) -> 0
A79: 2027-12-24 | B79: 0.00643409 | C79: =+VLOOKUP(A79,'Tabla de Amortizacion'!$D$2:$N$182,MATCH(Tablas!$B$1,'Tabla de Amortizacion'!$D$2:$N$2,0)) -> 0.00643409 | E79: =IF([1]CALCULADORA!$F$10="Contractual",ROUND('[1]Tabla de Amortizacion'!C80,8),IF([1]CALCULADORA!$F$10="6% (Medio)",ROUND('[1]Tabla de Amortizacion'!F80,8),IF([1]CALCULADORA!$F$10="10% (Medio Alto)",ROUND('[1]Tabla de Amortizacion'!H80,8),IF([1]CALCULADORA!$F$10="14% (Alto)",ROUND('[1]Tabla de Amortizacion'!#REF!,8),IF([1]CALCULADORA!$F$10=20%,ROUND('[1]Tabla de Amortizacion'!#REF!,8),ROUND('[1]Tabla de Amortizacion'!K80,8)))))) -> 0
A80: 2028-01-24 | B80: 0.00637052 | C80: =+VLOOKUP(A80,'Tabla de Amortizacion'!$D$2:$N$182,MATCH(Tablas!$B$1,'Tabla de Amortizacion'!$D$2:$N$2,0)) -> 0.00637052 | E80: =IF([1]CALCULADORA!$F$10="Contractual",ROUND('[1]Tabla de Amortizacion'!C81,8),IF([1]CALCULADORA!$F$10="6% (Medio)",ROUND('[1]Tabla de Amortizacion'!F81,8),IF([1]CALCULADORA!$F$10="10% (Medio Alto)",ROUND('[1]Tabla de Amortizacion'!H81,8),IF([1]CALCULADORA!$F$10="14% (Alto)",ROUND('[1]Tabla de Amortizacion'!#REF!,8),IF([1]CALCULADORA!$F$10=20%,ROUND('[1]Tabla de Amortizacion'!#REF!,8),ROUND('[1]Tabla de Amortizacion'!K81,8)))))) -> 0
A81: 2028-02-24 | B81: 0.00630633 | C81: =+VLOOKUP(A81,'Tabla de Amortizacion'!$D$2:$N$182,MATCH(Tablas!$B$1,'Tabla de Amortizacion'!$D$2:$N$2,0)) -> 0.00630633 | E81: =IF([1]CALCULADORA!$F$10="Contractual",ROUND('[1]Tabla de Amortizacion'!C82,8),IF([1]CALCULADORA!$F$10="6% (Medio)",ROUND('[1]Tabla de Amortizacion'!F82,8),IF([1]CALCULADORA!$F$10="10% (Medio Alto)",ROUND('[1]Tabla de Amortizacion'!H82,8),IF([1]CALCULADORA!$F$10="14% (Alto)",ROUND('[1]Tabla de Amortizacion'!#REF!,8),IF([1]CALCULADORA!$F$10=20%,ROUND('[1]Tabla de Amortizacion'!#REF!,8),ROUND('[1]Tabla de Amortizacion'!K82,8)))))) -> 0
A82: 2028-03-24 | B82: 0.00624548 | C82: =+VLOOKUP(A82,'Tabla de Amortizacion'!$D$2:$N$182,MATCH(Tablas!$B$1,'Tabla de Amortizacion'!$D$2:$N$2,0)) -> 0.00624548 | E82: =IF([1]CALCULADORA!$F$10="Contractual",ROUND('[1]Tabla de Amortizacion'!C83,8),IF([1]CALCULADORA!$F$10="6% (Medio)",ROUND('[1]Tabla de Amortizacion'!F83,8),IF([1]CALCULADORA!$F$10="10% (Medio Alto)",ROUND('[1]Tabla de Amortizacion'!H83,8),IF([1]CALCULADORA!$F$10="14% (Alto)",ROUND('[1]Tabla de Amortizacion'!#REF!,8),IF([1]CALCULADORA!$F$10=20%,ROUND('[1]Tabla de Amortizacion'!#REF!,8),ROUND('[1]Tabla de Amortizacion'!K83,8)))))) -> 0
A83: 2028-04-24 | B83: 0.00617988 | C83: =+VLOOKUP(A83,'Tabla de Amortizacion'!$D$2:$N$182,MATCH(Tablas!$B$1,'Tabla de Amortizacion'!$D$2:$N$2,0)) -> 0.00617988 | E83: =IF([1]CALCULADORA!$F$10="Contractual",ROUND('[1]Tabla de Amortizacion'!C84,8),IF([1]CALCULADORA!$F$10="6% (Medio)",ROUND('[1]Tabla de Amortizacion'!F84,8),IF([1]CALCULADORA!$F$10="10% (Medio Alto)",ROUND('[1]Tabla de Amortizacion'!H84,8),IF([1]CALCULADORA!$F$10="14% (Alto)",ROUND('[1]Tabla de Amortizacion'!#REF!,8),IF([1]CALCULADORA!$F$10=20%,ROUND('[1]Tabla de Amortizacion'!#REF!,8),ROUND('[1]Tabla de Amortizacion'!K84,8)))))) -> 0
A84: 2028-05-24 | B84: 0.00612035 | C84: =+VLOOKUP(A84,'Tabla de Amortizacion'!$D$2:$N$182,MATCH(Tablas!$B$1,'Tabla de Amortizacion'!$D$2:$N$2,0)) -> 0.00612035 | E84: =IF([1]CALCULADORA!$F$10="Contractual",ROUND('[1]Tabla de Amortizacion'!C85,8),IF([1]CALCULADORA!$F$10="6% (Medio)",ROUND('[1]Tabla de Amortizacion'!F85,8),IF([1]CALCULADORA!$F$10="10% (Medio Alto)",ROUND('[1]Tabla de Amortizacion'!H85,8),IF([1]CALCULADORA!$F$10="14% (Alto)",ROUND('[1]Tabla de Amortizacion'!#REF!,8),IF([1]CALCULADORA!$F$10=20%,ROUND('[1]Tabla de Amortizacion'!#REF!,8),ROUND('[1]Tabla de Amortizacion'!K85,8)))))) -> 0
A85: 2028-06-24 | B85: 0.00580786 | C85: =+VLOOKUP(A85,'Tabla de Amortizacion'!$D$2:$N$182,MATCH(Tablas!$B$1,'Tabla de Amortizacion'!$D$2:$N$2,0)) -> 0.00580786 | E85: =IF([1]CALCULADORA!$F$10="Contractual",ROUND('[1]Tabla de Amortizacion'!C86,8),IF([1]CALCULADORA!$F$10="6% (Medio)",ROUND('[1]Tabla de Amortizacion'!F86,8),IF([1]CALCULADORA!$F$10="10% (Medio Alto)",ROUND('[1]Tabla de Amortizacion'!H86,8),IF([1]CALCULADORA!$F$10="14% (Alto)",ROUND('[1]Tabla de Amortizacion'!#REF!,8),IF([1]CALCULADORA!$F$10=20%,ROUND('[1]Tabla de Amortizacion'!#REF!,8),ROUND('[1]Tabla de Amortizacion'!K86,8)))))) -> 0
A86: 2028-07-24 | B86: 0.00598203 | C86: =+VLOOKUP(A86,'Tabla de Amortizacion'!$D$2:$N$182,MATCH(Tablas!$B$1,'Tabla de Amortizacion'!$D$2:$N$2,0)) -> 0.00598203 | E86: =IF([1]CALCULADORA!$F$10="Contractual",ROUND('[1]Tabla de Amortizacion'!C87,8),IF([1]CALCULADORA!$F$10="6% (Medio)",ROUND('[1]Tabla de Amortizacion'!F87,8),IF([1]CALCULADORA!$F$10="10% (Medio Alto)",ROUND('[1]Tabla de Amortizacion'!H87,8),IF([1]CALCULADORA!$F$10="14% (Alto)",ROUND('[1]Tabla de Amortizacion'!#REF!,8),IF([1]CALCULADORA!$F$10=20%,ROUND('[1]Tabla de Amortizacion'!#REF!,8),ROUND('[1]Tabla de Amortizacion'!K87,8)))))) -> 0
A87: 2028-08-24 | B87: 0.00591211 | C87: =+VLOOKUP(A87,'Tabla de Amortizacion'!$D$2:$N$182,MATCH(Tablas!$B$1,'Tabla de Amortizacion'!$D$2:$N$2,0)) -> 0.00591211 | E87: =IF([1]CALCULADORA!$F$10="Contractual",ROUND('[1]Tabla de Amortizacion'!C88,8),IF([1]CALCULADORA!$F$10="6% (Medio)",ROUND('[1]Tabla de Amortizacion'!F88,8),IF([1]CALCULADORA!$F$10="10% (Medio Alto)",ROUND('[1]Tabla de Amortizacion'!H88,8),IF([1]CALCULADORA!$F$10="14% (Alto)",ROUND('[1]Tabla de Amortizacion'!#REF!,8),IF([1]CALCULADORA!$F$10=20%,ROUND('[1]Tabla de Amortizacion'!#REF!,8),ROUND('[1]Tabla de Amortizacion'!K88,8)))))) -> 0
A88: 2028-09-24 | B88: 0.00582681 | C88: =+VLOOKUP(A88,'Tabla de Amortizacion'!$D$2:$N$182,MATCH(Tablas!$B$1,'Tabla de Amortizacion'!$D$2:$N$2,0)) -> 0.00582681 | E88: =IF([1]CALCULADORA!$F$10="Contractual",ROUND('[1]Tabla de Amortizacion'!C89,8),IF([1]CALCULADORA!$F$10="6% (Medio)",ROUND('[1]Tabla de Amortizacion'!F89,8),IF([1]CALCULADORA!$F$10="10% (Medio Alto)",ROUND('[1]Tabla de Amortizacion'!H89,8),IF([1]CALCULADORA!$F$10="14% (Alto)",ROUND('[1]Tabla de Amortizacion'!#REF!,8),IF([1]CALCULADORA!$F$10=20%,ROUND('[1]Tabla de Amortizacion'!#REF!,8),ROUND('[1]Tabla de Amortizacion'!K89,8)))))) -> 0
A89: 2028-10-24 | B89: 0.00576404 | C89: =+VLOOKUP(A89,'Tabla de Amortizacion'!$D$2:$N$182,MATCH(Tablas!$B$1,'Tabla de Amortizacion'!$D$2:$N$2,0)) -> 0.00576404 | E89: =IF([1]CALCULADORA!$F$10="Contractual",ROUND('[1]Tabla de Amortizacion'!C90,8),IF([1]CALCULADORA!$F$10="6% (Medio)",ROUND('[1]Tabla de Amortizacion'!F90,8),IF([1]CALCULADORA!$F$10="10% (Medio Alto)",ROUND('[1]Tabla de Amortizacion'!H90,8),IF([1]CALCULADORA!$F$10="14% (Alto)",ROUND('[1]Tabla de Amortizacion'!#REF!,8),IF([1]CALCULADORA!$F$10=20%,ROUND('[1]Tabla de Amortizacion'!#REF!,8),ROUND('[1]Tabla de Amortizacion'!K90,8)))))) -> 0
A90: 2028-11-24 | B90: 0.00569659 | C90: =+VLOOKUP(A90,'Tabla de Amortizacion'!$D$2:$N$182,MATCH(Tablas!$B$1,'Tabla de Amortizacion'!$D$2:$N$2,0)) -> 0.00569659 | E90: =IF([1]CALCULADORA!$F$10="Contractual",ROUND('[1]Tabla de Amortizacion'!C91,8),IF([1]CALCULADORA!$F$10="6% (Medio)",ROUND('[1]Tabla de Amortizacion'!F91,8),IF([1]CALCULADORA!$F$10="10% (Medio Alto)",ROUND('[1]Tabla de Amortizacion'!H91,8),IF([1]CALCULADORA!$F$10="14% (Alto)",ROUND('[1]Tabla de Amortizacion'!#REF!,8),IF([1]CALCULADORA!$F$10=20%,ROUND('[1]Tabla de Amortizacion'!#REF!,8),ROUND('[1]Tabla de Amortizacion'!K91,8)))))) -> 0
A91: 2028-12-24 | B91: 0.00563196 | C91: =+VLOOKUP(A91,'Tabla de Amortizacion'!$D$2:$N$182,MATCH(Tablas!$B$1,'Tabla de Amortizacion'!$D$2:$N$2,0)) -> 0.00563196 | E91: =IF([1]CALCULADORA!$F$10="Contractual",ROUND('[1]Tabla de Amortizacion'!C92,8),IF([1]CALCULADORA!$F$10="6% (Medio)",ROUND('[1]Tabla de Amortizacion'!F92,8),IF([1]CALCULADORA!$F$10="10% (Medio Alto)",ROUND('[1]Tabla de Amortizacion'!H92,8),IF([1]CALCULADORA!$F$10="14% (Alto)",ROUND('[1]Tabla de Amortizacion'!#REF!,8),IF([1]CALCULADORA!$F$10=20%,ROUND('[1]Tabla de Amortizacion'!#REF!,8),ROUND('[1]Tabla de Amortizacion'!K92,8)))))) -> 0
A92: 2029-01-24 | B92: 0.00556786 | C92: =+VLOOKUP(A92,'Tabla de Amortizacion'!$D$2:$N$182,MATCH(Tablas!$B$1,'Tabla de Amortizacion'!$D$2:$N$2,0)) -> 0.00556786 | E92: =IF([1]CALCULADORA!$F$10="Contractual",ROUND('[1]Tabla de Amortizacion'!C93,8),IF([1]CALCULADORA!$F$10="6% (Medio)",ROUND('[1]Tabla de Amortizacion'!F93,8),IF([1]CALCULADORA!$F$10="10% (Medio Alto)",ROUND('[1]Tabla de Amortizacion'!H93,8),IF([1]CALCULADORA!$F$10="14% (Alto)",ROUND('[1]Tabla de Amortizacion'!#REF!,8),IF([1]CALCULADORA!$F$10=20%,ROUND('[1]Tabla de Amortizacion'!#REF!,8),ROUND('[1]Tabla de Amortizacion'!K93,8)))))) -> 0
A93: 2029-02-24 | B93: 0.00549839 | C93: =+VLOOKUP(A93,'Tabla de Amortizacion'!$D$2:$N$182,MATCH(Tablas!$B$1,'Tabla de Amortizacion'!$D$2:$N$2,0)) -> 0.00549839 | E93: =IF([1]CALCULADORA!$F$10="Contractual",ROUND('[1]Tabla de Amortizacion'!C94,8),IF([1]CALCULADORA!$F$10="6% (Medio)",ROUND('[1]Tabla de Amortizacion'!F94,8),IF([1]CALCULADORA!$F$10="10% (Medio Alto)",ROUND('[1]Tabla de Amortizacion'!H94,8),IF([1]CALCULADORA!$F$10="14% (Alto)",ROUND('[1]Tabla de Amortizacion'!#REF!,8),IF([1]CALCULADORA!$F$10=20%,ROUND('[1]Tabla de Amortizacion'!#REF!,8),ROUND('[1]Tabla de Amortizacion'!K94,8)))))) -> 0
A94: 2029-03-24 | B94: 0.00543345 | C94: =+VLOOKUP(A94,'Tabla de Amortizacion'!$D$2:$N$182,MATCH(Tablas!$B$1,'Tabla de Amortizacion'!$D$2:$N$2,0)) -> 0.00543345 | E94: =IF([1]CALCULADORA!$F$10="Contractual",ROUND('[1]Tabla de Amortizacion'!C95,8),IF([1]CALCULADORA!$F$10="6% (Medio)",ROUND('[1]Tabla de Amortizacion'!F95,8),IF([1]CALCULADORA!$F$10="10% (Medio Alto)",ROUND('[1]Tabla de Amortizacion'!H95,8),IF([1]CALCULADORA!$F$10="14% (Alto)",ROUND('[1]Tabla de Amortizacion'!#REF!,8),IF([1]CALCULADORA!$F$10=20%,ROUND('[1]Tabla de Amortizacion'!#REF!,8),ROUND('[1]Tabla de Amortizacion'!K95,8)))))) -> 0
A95: 2029-04-24 | B95: 0.00536199 | C95: =+VLOOKUP(A95,'Tabla de Amortizacion'!$D$2:$N$182,MATCH(Tablas!$B$1,'Tabla de Amortizacion'!$D$2:$N$2,0)) -> 0.00536199 | E95: =IF([1]CALCULADORA!$F$10="Contractual",ROUND('[1]Tabla de Amortizacion'!C96,8),IF([1]CALCULADORA!$F$10="6% (Medio)",ROUND('[1]Tabla de Amortizacion'!F96,8),IF([1]CALCULADORA!$F$10="10% (Medio Alto)",ROUND('[1]Tabla de Amortizacion'!H96,8),IF([1]CALCULADORA!$F$10="14% (Alto)",ROUND('[1]Tabla de Amortizacion'!#REF!,8),IF([1]CALCULADORA!$F$10=20%,ROUND('[1]Tabla de Amortizacion'!#REF!,8),ROUND('[1]Tabla de Amortizacion'!K96,8)))))) -> 0
A96: 2029-05-24 | B96: 0.00529281 | C96: =+VLOOKUP(A96,'Tabla de Amortizacion'!$D$2:$N$182,MATCH(Tablas!$B$1,'Tabla de Amortizacion'!$D$2:$N$2,0)) -> 0.00529281 | E96: =IF([1]CALCULADORA!$F$10="Contractual",ROUND('[1]Tabla de Amortizacion'!C97,8),IF([1]CALCULADORA!$F$10="6% (Medio)",ROUND('[1]Tabla de Amortizacion'!F97,8),IF([1]CALCULADORA!$F$10="10% (Medio Alto)",ROUND('[1]Tabla de Amortizacion'!H97,8),IF([1]CALCULADORA!$F$10="14% (Alto)",ROUND('[1]Tabla de Amortizacion'!#REF!,8),IF([1]CALCULADORA!$F$10=20%,ROUND('[1]Tabla de Amortizacion'!#REF!,8),ROUND('[1]Tabla de Amortizacion'!K97,8)))))) -> 0
A97: 2029-06-24 | B97: 0.00496206 | C97: =+VLOOKUP(A97,'Tabla de Amortizacion'!$D$2:$N$182,MATCH(Tablas!$B$1,'Tabla de Amortizacion'!$D$2:$N$2,0)) -> 0.00496206 | E97: =IF([1]CALCULADORA!$F$10="Contractual",ROUND('[1]Tabla de Amortizacion'!C98,8),IF([1]CALCULADORA!$F$10="6% (Medio)",ROUND('[1]Tabla de Amortizacion'!F98,8),IF([1]CALCULADORA!$F$10="10% (Medio Alto)",ROUND('[1]Tabla de Amortizacion'!H98,8),IF([1]CALCULADORA!$F$10="14% (Alto)",ROUND('[1]Tabla de Amortizacion'!#REF!,8),IF([1]CALCULADORA!$F$10=20%,ROUND('[1]Tabla de Amortizacion'!#REF!,8),ROUND('[1]Tabla de Amortizacion'!K98,8)))))) -> 0
A98: 2029-07-24 | B98: 0.00513295 | C98: =+VLOOKUP(A98,'Tabla de Amortizacion'!$D$2:$N$182,MATCH(Tablas!$B$1,'Tabla de Amortizacion'!$D$2:$N$2,0)) -> 0.00513295 | E98: =IF([1]CALCULADORA!$F$10="Contractual",ROUND('[1]Tabla de Amortizacion'!C99,8),IF([1]CALCULADORA!$F$10="6% (Medio)",ROUND('[1]Tabla de Amortizacion'!F99,8),IF([1]CALCULADORA!$F$10="10% (Medio Alto)",ROUND('[1]Tabla de Amortizacion'!H99,8),IF([1]CALCULADORA!$F$10="14% (Alto)",ROUND('[1]Tabla de Amortizacion'!#REF!,8),IF([1]CALCULADORA!$F$10=20%,ROUND('[1]Tabla de Amortizacion'!#REF!,8),ROUND('[1]Tabla de Amortizacion'!K99,8)))))) -> 0
A99: 2029-08-24 | B99: 0.00503369 | C99: =+VLOOKUP(A99,'Tabla de Amortizacion'!$D$2:$N$182,MATCH(Tablas!$B$1,'Tabla de Amortizacion'!$D$2:$N$2,0)) -> 0.00503369 | E99: =IF([1]CALCULADORA!$F$10="Contractual",ROUND('[1]Tabla de Amortizacion'!C100,8),IF([1]CALCULADORA!$F$10="6% (Medio)",ROUND('[1]Tabla de Amortizacion'!F100,8),IF([1]CALCULADORA!$F$10="10% (Medio Alto)",ROUND('[1]Tabla de Amortizacion'!H100,8),IF([1]CALCULADORA!$F$10="14% (Alto)",ROUND('[1]Tabla de Amortizacion'!#REF!,8),IF([1]CALCULADORA!$F$10=20%,ROUND('[1]Tabla de Amortizacion'!#REF!,8),ROUND('[1]Tabla de Amortizacion'!K100,8)))))) -> 0
A100: 2029-09-24 | B100: 0.0049107 | C100: =+VLOOKUP(A100,'Tabla de Amortizacion'!$D$2:$N$182,MATCH(Tablas!$B$1,'Tabla de Amortizacion'!$D$2:$N$2,0)) -> 0.0049107 | E100: =IF([1]CALCULADORA!$F$10="Contractual",ROUND('[1]Tabla de Amortizacion'!C101,8),IF([1]CALCULADORA!$F$10="6% (Medio)",ROUND('[1]Tabla de Amortizacion'!F101,8),IF([1]CALCULADORA!$F$10="10% (Medio Alto)",ROUND('[1]Tabla de Amortizacion'!H101,8),IF([1]CALCULADORA!$F$10="14% (Alto)",ROUND('[1]Tabla de Amortizacion'!#REF!,8),IF([1]CALCULADORA!$F$10=20%,ROUND('[1]Tabla de Amortizacion'!#REF!,8),ROUND('[1]Tabla de Amortizacion'!K101,8)))))) -> 0
A101: 2029-10-24 | B101: 0 | C101: =+VLOOKUP(A101,'Tabla de Amortizacion'!$D$2:$N$182,MATCH(Tablas!$B$1,'Tabla de Amortizacion'!$D$2:$N$2,0)) -> 0 | E101: =IF([1]CALCULADORA!$F$10="Contractual",ROUND('[1]Tabla de Amortizacion'!C102,8),IF([1]CALCULADORA!$F$10="6% (Medio)",ROUND('[1]Tabla de Amortizacion'!F102,8),IF([1]CALCULADORA!$F$10="10% (Medio Alto)",ROUND('[1]Tabla de Amortizacion'!H102,8),IF([1]CALCULADORA!$F$10="14% (Alto)",ROUND('[1]Tabla de Amortizacion'!#REF!,8),IF([1]CALCULADORA!$F$10=20%,ROUND('[1]Tabla de Amortizacion'!#REF!,8),ROUND('[1]Tabla de Amortizacion'!K102,8)))))) -> 0
A102: 2029-11-24 | B102: 0 | C102: =+VLOOKUP(A102,'Tabla de Amortizacion'!$D$2:$N$182,MATCH(Tablas!$B$1,'Tabla de Amortizacion'!$D$2:$N$2,0)) -> 0 | E102: =IF([1]CALCULADORA!$F$10="Contractual",ROUND('[1]Tabla de Amortizacion'!C103,8),IF([1]CALCULADORA!$F$10="6% (Medio)",ROUND('[1]Tabla de Amortizacion'!F103,8),IF([1]CALCULADORA!$F$10="10% (Medio Alto)",ROUND('[1]Tabla de Amortizacion'!H103,8),IF([1]CALCULADORA!$F$10="14% (Alto)",ROUND('[1]Tabla de Amortizacion'!#REF!,8),IF([1]CALCULADORA!$F$10=20%,ROUND('[1]Tabla de Amortizacion'!#REF!,8),ROUND('[1]Tabla de Amortizacion'!K103,8)))))) -> 0
A103: 2029-12-24 | B103: 0 | C103: =+VLOOKUP(A103,'Tabla de Amortizacion'!$D$2:$N$182,MATCH(Tablas!$B$1,'Tabla de Amortizacion'!$D$2:$N$2,0)) -> 0 | E103: =IF([1]CALCULADORA!$F$10="Contractual",ROUND('[1]Tabla de Amortizacion'!C104,8),IF([1]CALCULADORA!$F$10="6% (Medio)",ROUND('[1]Tabla de Amortizacion'!F104,8),IF([1]CALCULADORA!$F$10="10% (Medio Alto)",ROUND('[1]Tabla de Amortizacion'!H104,8),IF([1]CALCULADORA!$F$10="14% (Alto)",ROUND('[1]Tabla de Amortizacion'!#REF!,8),IF([1]CALCULADORA!$F$10=20%,ROUND('[1]Tabla de Amortizacion'!#REF!,8),ROUND('[1]Tabla de Amortizacion'!K104,8)))))) -> 0
A104: 2030-01-24 | B104: 0 | C104: =+VLOOKUP(A104,'Tabla de Amortizacion'!$D$2:$N$182,MATCH(Tablas!$B$1,'Tabla de Amortizacion'!$D$2:$N$2,0)) -> 0 | E104: =IF([1]CALCULADORA!$F$10="Contractual",ROUND('[1]Tabla de Amortizacion'!C105,8),IF([1]CALCULADORA!$F$10="6% (Medio)",ROUND('[1]Tabla de Amortizacion'!F105,8),IF([1]CALCULADORA!$F$10="10% (Medio Alto)",ROUND('[1]Tabla de Amortizacion'!H105,8),IF([1]CALCULADORA!$F$10="14% (Alto)",ROUND('[1]Tabla de Amortizacion'!#REF!,8),IF([1]CALCULADORA!$F$10=20%,ROUND('[1]Tabla de Amortizacion'!#REF!,8),ROUND('[1]Tabla de Amortizacion'!K105,8)))))) -> 0
A105: 2030-02-24 | B105: 0 | C105: =+VLOOKUP(A105,'Tabla de Amortizacion'!$D$2:$N$182,MATCH(Tablas!$B$1,'Tabla de Amortizacion'!$D$2:$N$2,0)) -> 0 | E105: =IF([1]CALCULADORA!$F$10="Contractual",ROUND('[1]Tabla de Amortizacion'!C106,8),IF([1]CALCULADORA!$F$10="6% (Medio)",ROUND('[1]Tabla de Amortizacion'!F106,8),IF([1]CALCULADORA!$F$10="10% (Medio Alto)",ROUND('[1]Tabla de Amortizacion'!H106,8),IF([1]CALCULADORA!$F$10="14% (Alto)",ROUND('[1]Tabla de Amortizacion'!#REF!,8),IF([1]CALCULADORA!$F$10=20%,ROUND('[1]Tabla de Amortizacion'!#REF!,8),ROUND('[1]Tabla de Amortizacion'!K106,8)))))) -> 0
A106: 2030-03-24 | B106: 0 | C106: =+VLOOKUP(A106,'Tabla de Amortizacion'!$D$2:$N$182,MATCH(Tablas!$B$1,'Tabla de Amortizacion'!$D$2:$N$2,0)) -> 0 | E106: =IF([1]CALCULADORA!$F$10="Contractual",ROUND('[1]Tabla de Amortizacion'!C107,8),IF([1]CALCULADORA!$F$10="6% (Medio)",ROUND('[1]Tabla de Amortizacion'!F107,8),IF([1]CALCULADORA!$F$10="10% (Medio Alto)",ROUND('[1]Tabla de Amortizacion'!H107,8),IF([1]CALCULADORA!$F$10="14% (Alto)",ROUND('[1]Tabla de Amortizacion'!#REF!,8),IF([1]CALCULADORA!$F$10=20%,ROUND('[1]Tabla de Amortizacion'!#REF!,8),ROUND('[1]Tabla de Amortizacion'!K107,8)))))) -> 0
A107: 2030-04-24 | B107: 0 | C107: =+VLOOKUP(A107,'Tabla de Amortizacion'!$D$2:$N$182,MATCH(Tablas!$B$1,'Tabla de Amortizacion'!$D$2:$N$2,0)) -> 0 | E107: =IF([1]CALCULADORA!$F$10="Contractual",ROUND('[1]Tabla de Amortizacion'!C108,8),IF([1]CALCULADORA!$F$10="6% (Medio)",ROUND('[1]Tabla de Amortizacion'!F108,8),IF([1]CALCULADORA!$F$10="10% (Medio Alto)",ROUND('[1]Tabla de Amortizacion'!H108,8),IF([1]CALCULADORA!$F$10="14% (Alto)",ROUND('[1]Tabla de Amortizacion'!#REF!,8),IF([1]CALCULADORA!$F$10=20%,ROUND('[1]Tabla de Amortizacion'!#REF!,8),ROUND('[1]Tabla de Amortizacion'!K108,8)))))) -> 0
A108: 2030-05-24 | B108: 0 | C108: =+VLOOKUP(A108,'Tabla de Amortizacion'!$D$2:$N$182,MATCH(Tablas!$B$1,'Tabla de Amortizacion'!$D$2:$N$2,0)) -> 0 | E108: =IF([1]CALCULADORA!$F$10="Contractual",ROUND('[1]Tabla de Amortizacion'!C109,8),IF([1]CALCULADORA!$F$10="6% (Medio)",ROUND('[1]Tabla de Amortizacion'!F109,8),IF([1]CALCULADORA!$F$10="10% (Medio Alto)",ROUND('[1]Tabla de Amortizacion'!H109,8),IF([1]CALCULADORA!$F$10="14% (Alto)",ROUND('[1]Tabla de Amortizacion'!#REF!,8),IF([1]CALCULADORA!$F$10=20%,ROUND('[1]Tabla de Amortizacion'!#REF!,8),ROUND('[1]Tabla de Amortizacion'!K109,8)))))) -> 0
A109: 2030-06-24 | B109: 0 | C109: =+VLOOKUP(A109,'Tabla de Amortizacion'!$D$2:$N$182,MATCH(Tablas!$B$1,'Tabla de Amortizacion'!$D$2:$N$2,0)) -> 0 | E109: =IF([1]CALCULADORA!$F$10="Contractual",ROUND('[1]Tabla de Amortizacion'!C110,8),IF([1]CALCULADORA!$F$10="6% (Medio)",ROUND('[1]Tabla de Amortizacion'!F110,8),IF([1]CALCULADORA!$F$10="10% (Medio Alto)",ROUND('[1]Tabla de Amortizacion'!H110,8),IF([1]CALCULADORA!$F$10="14% (Alto)",ROUND('[1]Tabla de Amortizacion'!#REF!,8),IF([1]CALCULADORA!$F$10=20%,ROUND('[1]Tabla de Amortizacion'!#REF!,8),ROUND('[1]Tabla de Amortizacion'!K110,8)))))) -> 0
A110: 2030-07-24 | B110: 0 | C110: =+VLOOKUP(A110,'Tabla de Amortizacion'!$D$2:$N$182,MATCH(Tablas!$B$1,'Tabla de Amortizacion'!$D$2:$N$2,0)) -> 0 | E110: =IF([1]CALCULADORA!$F$10="Contractual",ROUND('[1]Tabla de Amortizacion'!C111,8),IF([1]CALCULADORA!$F$10="6% (Medio)",ROUND('[1]Tabla de Amortizacion'!F111,8),IF([1]CALCULADORA!$F$10="10% (Medio Alto)",ROUND('[1]Tabla de Amortizacion'!H111,8),IF([1]CALCULADORA!$F$10="14% (Alto)",ROUND('[1]Tabla de Amortizacion'!#REF!,8),IF([1]CALCULADORA!$F$10=20%,ROUND('[1]Tabla de Amortizacion'!#REF!,8),ROUND('[1]Tabla de Amortizacion'!K111,8)))))) -> 0
A111: 2030-08-24 | B111: 0 | C111: =+VLOOKUP(A111,'Tabla de Amortizacion'!$D$2:$N$182,MATCH(Tablas!$B$1,'Tabla de Amortizacion'!$D$2:$N$2,0)) -> 0 | E111: =IF([1]CALCULADORA!$F$10="Contractual",ROUND('[1]Tabla de Amortizacion'!C112,8),IF([1]CALCULADORA!$F$10="6% (Medio)",ROUND('[1]Tabla de Amortizacion'!F112,8),IF([1]CALCULADORA!$F$10="10% (Medio Alto)",ROUND('[1]Tabla de Amortizacion'!H112,8),IF([1]CALCULADORA!$F$10="14% (Alto)",ROUND('[1]Tabla de Amortizacion'!#REF!,8),IF([1]CALCULADORA!$F$10=20%,ROUND('[1]Tabla de Amortizacion'!#REF!,8),ROUND('[1]Tabla de Amortizacion'!K112,8)))))) -> 0
A112: 2030-09-24 | B112: 0 | C112: =+VLOOKUP(A112,'Tabla de Amortizacion'!$D$2:$N$182,MATCH(Tablas!$B$1,'Tabla de Amortizacion'!$D$2:$N$2,0)) -> 0 | E112: =IF([1]CALCULADORA!$F$10="Contractual",ROUND('[1]Tabla de Amortizacion'!C113,8),IF([1]CALCULADORA!$F$10="6% (Medio)",ROUND('[1]Tabla de Amortizacion'!F113,8),IF([1]CALCULADORA!$F$10="10% (Medio Alto)",ROUND('[1]Tabla de Amortizacion'!H113,8),IF([1]CALCULADORA!$F$10="14% (Alto)",ROUND('[1]Tabla de Amortizacion'!#REF!,8),IF([1]CALCULADORA!$F$10=20%,ROUND('[1]Tabla de Amortizacion'!#REF!,8),ROUND('[1]Tabla de Amortizacion'!K113,8)))))) -> 0
A113: 2030-10-24 | B113: 0 | C113: =+VLOOKUP(A113,'Tabla de Amortizacion'!$D$2:$N$182,MATCH(Tablas!$B$1,'Tabla de Amortizacion'!$D$2:$N$2,0)) -> 0 | E113: =IF([1]CALCULADORA!$F$10="Contractual",ROUND('[1]Tabla de Amortizacion'!C114,8),IF([1]CALCULADORA!$F$10="6% (Medio)",ROUND('[1]Tabla de Amortizacion'!F114,8),IF([1]CALCULADORA!$F$10="10% (Medio Alto)",ROUND('[1]Tabla de Amortizacion'!H114,8),IF([1]CALCULADORA!$F$10="14% (Alto)",ROUND('[1]Tabla de Amortizacion'!#REF!,8),IF([1]CALCULADORA!$F$10=20%,ROUND('[1]Tabla de Amortizacion'!#REF!,8),ROUND('[1]Tabla de Amortizacion'!K114,8)))))) -> 0
A114: 2030-11-24 | B114: 0 | C114: =+VLOOKUP(A114,'Tabla de Amortizacion'!$D$2:$N$182,MATCH(Tablas!$B$1,'Tabla de Amortizacion'!$D$2:$N$2,0)) -> 0 | E114: =IF([1]CALCULADORA!$F$10="Contractual",ROUND('[1]Tabla de Amortizacion'!C115,8),IF([1]CALCULADORA!$F$10="6% (Medio)",ROUND('[1]Tabla de Amortizacion'!F115,8),IF([1]CALCULADORA!$F$10="10% (Medio Alto)",ROUND('[1]Tabla de Amortizacion'!H115,8),IF([1]CALCULADORA!$F$10="14% (Alto)",ROUND('[1]Tabla de Amortizacion'!#REF!,8),IF([1]CALCULADORA!$F$10=20%,ROUND('[1]Tabla de Amortizacion'!#REF!,8),ROUND('[1]Tabla de Amortizacion'!K115,8)))))) -> 0
A115: 2030-12-24 | B115: 0 | C115: =+VLOOKUP(A115,'Tabla de Amortizacion'!$D$2:$N$182,MATCH(Tablas!$B$1,'Tabla de Amortizacion'!$D$2:$N$2,0)) -> 0 | E115: =IF([1]CALCULADORA!$F$10="Contractual",ROUND('[1]Tabla de Amortizacion'!C116,8),IF([1]CALCULADORA!$F$10="6% (Medio)",ROUND('[1]Tabla de Amortizacion'!F116,8),IF([1]CALCULADORA!$F$10="10% (Medio Alto)",ROUND('[1]Tabla de Amortizacion'!H116,8),IF([1]CALCULADORA!$F$10="14% (Alto)",ROUND('[1]Tabla de Amortizacion'!#REF!,8),IF([1]CALCULADORA!$F$10=20%,ROUND('[1]Tabla de Amortizacion'!#REF!,8),ROUND('[1]Tabla de Amortizacion'!K116,8)))))) -> 0
A116: 2031-01-24 | B116: 0.00186655 | C116: =+VLOOKUP(A116,'Tabla de Amortizacion'!$D$2:$N$182,MATCH(Tablas!$B$1,'Tabla de Amortizacion'!$D$2:$N$2,0)) -> 0.00186655 | E116: =IF([1]CALCULADORA!$F$10="Contractual",ROUND('[1]Tabla de Amortizacion'!C117,8),IF([1]CALCULADORA!$F$10="6% (Medio)",ROUND('[1]Tabla de Amortizacion'!F117,8),IF([1]CALCULADORA!$F$10="10% (Medio Alto)",ROUND('[1]Tabla de Amortizacion'!H117,8),IF([1]CALCULADORA!$F$10="14% (Alto)",ROUND('[1]Tabla de Amortizacion'!#REF!,8),IF([1]CALCULADORA!$F$10=20%,ROUND('[1]Tabla de Amortizacion'!#REF!,8),ROUND('[1]Tabla de Amortizacion'!K117,8)))))) -> 0
A117: 2031-02-24 | B117: 0.00365345 | C117: =+VLOOKUP(A117,'Tabla de Amortizacion'!$D$2:$N$182,MATCH(Tablas!$B$1,'Tabla de Amortizacion'!$D$2:$N$2,0)) -> 0.00365345 | E117: =IF([1]CALCULADORA!$F$10="Contractual",ROUND('[1]Tabla de Amortizacion'!C118,8),IF([1]CALCULADORA!$F$10="6% (Medio)",ROUND('[1]Tabla de Amortizacion'!F118,8),IF([1]CALCULADORA!$F$10="10% (Medio Alto)",ROUND('[1]Tabla de Amortizacion'!H118,8),IF([1]CALCULADORA!$F$10="14% (Alto)",ROUND('[1]Tabla de Amortizacion'!#REF!,8),IF([1]CALCULADORA!$F$10=20%,ROUND('[1]Tabla de Amortizacion'!#REF!,8),ROUND('[1]Tabla de Amortizacion'!K118,8)))))) -> 0
A118: 2031-03-24 | B118: 0.00360748 | C118: =+VLOOKUP(A118,'Tabla de Amortizacion'!$D$2:$N$182,MATCH(Tablas!$B$1,'Tabla de Amortizacion'!$D$2:$N$2,0)) -> 0.00360748 | E118: =IF([1]CALCULADORA!$F$10="Contractual",ROUND('[1]Tabla de Amortizacion'!C119,8),IF([1]CALCULADORA!$F$10="6% (Medio)",ROUND('[1]Tabla de Amortizacion'!F119,8),IF([1]CALCULADORA!$F$10="10% (Medio Alto)",ROUND('[1]Tabla de Amortizacion'!H119,8),IF([1]CALCULADORA!$F$10="14% (Alto)",ROUND('[1]Tabla de Amortizacion'!#REF!,8),IF([1]CALCULADORA!$F$10=20%,ROUND('[1]Tabla de Amortizacion'!#REF!,8),ROUND('[1]Tabla de Amortizacion'!K119,8)))))) -> 0
A119: 2031-04-24 | B119: 0.00357049 | C119: =+VLOOKUP(A119,'Tabla de Amortizacion'!$D$2:$N$182,MATCH(Tablas!$B$1,'Tabla de Amortizacion'!$D$2:$N$2,0)) -> 0.00357049 | E119: =IF([1]CALCULADORA!$F$10="Contractual",ROUND('[1]Tabla de Amortizacion'!C120,8),IF([1]CALCULADORA!$F$10="6% (Medio)",ROUND('[1]Tabla de Amortizacion'!F120,8),IF([1]CALCULADORA!$F$10="10% (Medio Alto)",ROUND('[1]Tabla de Amortizacion'!H120,8),IF([1]CALCULADORA!$F$10="14% (Alto)",ROUND('[1]Tabla de Amortizacion'!#REF!,8),IF([1]CALCULADORA!$F$10=20%,ROUND('[1]Tabla de Amortizacion'!#REF!,8),ROUND('[1]Tabla de Amortizacion'!K120,8)))))) -> 0
A120: 2031-05-24 | B120: 0.00353664 | C120: =+VLOOKUP(A120,'Tabla de Amortizacion'!$D$2:$N$182,MATCH(Tablas!$B$1,'Tabla de Amortizacion'!$D$2:$N$2,0)) -> 0.00353664 | E120: =IF([1]CALCULADORA!$F$10="Contractual",ROUND('[1]Tabla de Amortizacion'!C121,8),IF([1]CALCULADORA!$F$10="6% (Medio)",ROUND('[1]Tabla de Amortizacion'!F121,8),IF([1]CALCULADORA!$F$10="10% (Medio Alto)",ROUND('[1]Tabla de Amortizacion'!H121,8),IF([1]CALCULADORA!$F$10="14% (Alto)",ROUND('[1]Tabla de Amortizacion'!#REF!,8),IF([1]CALCULADORA!$F$10=20%,ROUND('[1]Tabla de Amortizacion'!#REF!,8),ROUND('[1]Tabla de Amortizacion'!K121,8)))))) -> 0
A121: 2031-06-24 | B121: 0.00320361 | C121: =+VLOOKUP(A121,'Tabla de Amortizacion'!$D$2:$N$182,MATCH(Tablas!$B$1,'Tabla de Amortizacion'!$D$2:$N$2,0)) -> 0.00320361 | E121: =IF([1]CALCULADORA!$F$10="Contractual",ROUND('[1]Tabla de Amortizacion'!C122,8),IF([1]CALCULADORA!$F$10="6% (Medio)",ROUND('[1]Tabla de Amortizacion'!F122,8),IF([1]CALCULADORA!$F$10="10% (Medio Alto)",ROUND('[1]Tabla de Amortizacion'!H122,8),IF([1]CALCULADORA!$F$10="14% (Alto)",ROUND('[1]Tabla de Amortizacion'!#REF!,8),IF([1]CALCULADORA!$F$10=20%,ROUND('[1]Tabla de Amortizacion'!#REF!,8),ROUND('[1]Tabla de Amortizacion'!K122,8)))))) -> 0
A122: 2031-07-24 | B122: 0.00346204 | C122: =+VLOOKUP(A122,'Tabla de Amortizacion'!$D$2:$N$182,MATCH(Tablas!$B$1,'Tabla de Amortizacion'!$D$2:$N$2,0)) -> 0.00346204 | E122: =IF([1]CALCULADORA!$F$10="Contractual",ROUND('[1]Tabla de Amortizacion'!C123,8),IF([1]CALCULADORA!$F$10="6% (Medio)",ROUND('[1]Tabla de Amortizacion'!F123,8),IF([1]CALCULADORA!$F$10="10% (Medio Alto)",ROUND('[1]Tabla de Amortizacion'!H123,8),IF([1]CALCULADORA!$F$10="14% (Alto)",ROUND('[1]Tabla de Amortizacion'!#REF!,8),IF([1]CALCULADORA!$F$10=20%,ROUND('[1]Tabla de Amortizacion'!#REF!,8),ROUND('[1]Tabla de Amortizacion'!K123,8)))))) -> 0
A123: 2031-08-24 | B123: 0.00342967 | C123: =+VLOOKUP(A123,'Tabla de Amortizacion'!$D$2:$N$182,MATCH(Tablas!$B$1,'Tabla de Amortizacion'!$D$2:$N$2,0)) -> 0.00342967 | E123: =IF([1]CALCULADORA!$F$10="Contractual",ROUND('[1]Tabla de Amortizacion'!C124,8),IF([1]CALCULADORA!$F$10="6% (Medio)",ROUND('[1]Tabla de Amortizacion'!F124,8),IF([1]CALCULADORA!$F$10="10% (Medio Alto)",ROUND('[1]Tabla de Amortizacion'!H124,8),IF([1]CALCULADORA!$F$10="14% (Alto)",ROUND('[1]Tabla de Amortizacion'!#REF!,8),IF([1]CALCULADORA!$F$10=20%,ROUND('[1]Tabla de Amortizacion'!#REF!,8),ROUND('[1]Tabla de Amortizacion'!K124,8)))))) -> 0
A124: 2031-09-24 | B124: 0.00339635 | C124: =+VLOOKUP(A124,'Tabla de Amortizacion'!$D$2:$N$182,MATCH(Tablas!$B$1,'Tabla de Amortizacion'!$D$2:$N$2,0)) -> 0.00339635 | E124: =IF([1]CALCULADORA!$F$10="Contractual",ROUND('[1]Tabla de Amortizacion'!C125,8),IF([1]CALCULADORA!$F$10="6% (Medio)",ROUND('[1]Tabla de Amortizacion'!F125,8),IF([1]CALCULADORA!$F$10="10% (Medio Alto)",ROUND('[1]Tabla de Amortizacion'!H125,8),IF([1]CALCULADORA!$F$10="14% (Alto)",ROUND('[1]Tabla de Amortizacion'!#REF!,8),IF([1]CALCULADORA!$F$10=20%,ROUND('[1]Tabla de Amortizacion'!#REF!,8),ROUND('[1]Tabla de Amortizacion'!K125,8)))))) -> 0
A125: 2031-10-24 | B125: 0.00336165 | C125: =+VLOOKUP(A125,'Tabla de Amortizacion'!$D$2:$N$182,MATCH(Tablas!$B$1,'Tabla de Amortizacion'!$D$2:$N$2,0)) -> 0.00336165 | E125: =IF([1]CALCULADORA!$F$10="Contractual",ROUND('[1]Tabla de Amortizacion'!C126,8),IF([1]CALCULADORA!$F$10="6% (Medio)",ROUND('[1]Tabla de Amortizacion'!F126,8),IF([1]CALCULADORA!$F$10="10% (Medio Alto)",ROUND('[1]Tabla de Amortizacion'!H126,8),IF([1]CALCULADORA!$F$10="14% (Alto)",ROUND('[1]Tabla de Amortizacion'!#REF!,8),IF([1]CALCULADORA!$F$10=20%,ROUND('[1]Tabla de Amortizacion'!#REF!,8),ROUND('[1]Tabla de Amortizacion'!K126,8)))))) -> 0
A126: 2031-11-24 | B126: 0.00332276 | C126: =+VLOOKUP(A126,'Tabla de Amortizacion'!$D$2:$N$182,MATCH(Tablas!$B$1,'Tabla de Amortizacion'!$D$2:$N$2,0)) -> 0.00332276 | E126: =IF([1]CALCULADORA!$F$10="Contractual",ROUND('[1]Tabla de Amortizacion'!C127,8),IF([1]CALCULADORA!$F$10="6% (Medio)",ROUND('[1]Tabla de Amortizacion'!F127,8),IF([1]CALCULADORA!$F$10="10% (Medio Alto)",ROUND('[1]Tabla de Amortizacion'!H127,8),IF([1]CALCULADORA!$F$10="14% (Alto)",ROUND('[1]Tabla de Amortizacion'!#REF!,8),IF([1]CALCULADORA!$F$10=20%,ROUND('[1]Tabla de Amortizacion'!#REF!,8),ROUND('[1]Tabla de Amortizacion'!K127,8)))))) -> 0
A127: 2031-12-24 | B127: 0.00328996 | C127: =+VLOOKUP(A127,'Tabla de Amortizacion'!$D$2:$N$182,MATCH(Tablas!$B$1,'Tabla de Amortizacion'!$D$2:$N$2,0)) -> 0.00328996 | E127: =IF([1]CALCULADORA!$F$10="Contractual",ROUND('[1]Tabla de Amortizacion'!C128,8),IF([1]CALCULADORA!$F$10="6% (Medio)",ROUND('[1]Tabla de Amortizacion'!F128,8),IF([1]CALCULADORA!$F$10="10% (Medio Alto)",ROUND('[1]Tabla de Amortizacion'!H128,8),IF([1]CALCULADORA!$F$10="14% (Alto)",ROUND('[1]Tabla de Amortizacion'!#REF!,8),IF([1]CALCULADORA!$F$10=20%,ROUND('[1]Tabla de Amortizacion'!#REF!,8),ROUND('[1]Tabla de Amortizacion'!K128,8)))))) -> 0
A128: 2032-01-24 | B128: 0.00325271 | C128: =+VLOOKUP(A128,'Tabla de Amortizacion'!$D$2:$N$182,MATCH(Tablas!$B$1,'Tabla de Amortizacion'!$D$2:$N$2,0)) -> 0.00325271 | E128: =IF([1]CALCULADORA!$F$10="Contractual",ROUND('[1]Tabla de Amortizacion'!C129,8),IF([1]CALCULADORA!$F$10="6% (Medio)",ROUND('[1]Tabla de Amortizacion'!F129,8),IF([1]CALCULADORA!$F$10="10% (Medio Alto)",ROUND('[1]Tabla de Amortizacion'!H129,8),IF([1]CALCULADORA!$F$10="14% (Alto)",ROUND('[1]Tabla de Amortizacion'!#REF!,8),IF([1]CALCULADORA!$F$10=20%,ROUND('[1]Tabla de Amortizacion'!#REF!,8),ROUND('[1]Tabla de Amortizacion'!K129,8)))))) -> 0
A129: 2032-02-24 | B129: 0.00280976 | C129: =+VLOOKUP(A129,'Tabla de Amortizacion'!$D$2:$N$182,MATCH(Tablas!$B$1,'Tabla de Amortizacion'!$D$2:$N$2,0)) -> 0.00280976 | E129: =IF([1]CALCULADORA!$F$10="Contractual",ROUND('[1]Tabla de Amortizacion'!C130,8),IF([1]CALCULADORA!$F$10="6% (Medio)",ROUND('[1]Tabla de Amortizacion'!F130,8),IF([1]CALCULADORA!$F$10="10% (Medio Alto)",ROUND('[1]Tabla de Amortizacion'!H130,8),IF([1]CALCULADORA!$F$10="14% (Alto)",ROUND('[1]Tabla de Amortizacion'!#REF!,8),IF([1]CALCULADORA!$F$10=20%,ROUND('[1]Tabla de Amortizacion'!#REF!,8),ROUND('[1]Tabla de Amortizacion'!K130,8)))))) -> 0
A130: 2032-03-24 | B130: 0 | C130: =+VLOOKUP(A130,'Tabla de Amortizacion'!$D$2:$N$182,MATCH(Tablas!$B$1,'Tabla de Amortizacion'!$D$2:$N$2,0)) -> 0 | E130: =IF([1]CALCULADORA!$F$10="Contractual",ROUND('[1]Tabla de Amortizacion'!C131,8),IF([1]CALCULADORA!$F$10="6% (Medio)",ROUND('[1]Tabla de Amortizacion'!F131,8),IF([1]CALCULADORA!$F$10="10% (Medio Alto)",ROUND('[1]Tabla de Amortizacion'!H131,8),IF([1]CALCULADORA!$F$10="14% (Alto)",ROUND('[1]Tabla de Amortizacion'!#REF!,8),IF([1]CALCULADORA!$F$10=20%,ROUND('[1]Tabla de Amortizacion'!#REF!,8),ROUND('[1]Tabla de Amortizacion'!K131,8)))))) -> 0
A131: =EDATE(A130,1) -> 2032-04-24 | B131: =+ROUND(C131,8) -> 0 | C131: =+VLOOKUP(A131,'Tabla de Amortizacion'!$D$2:$N$182,MATCH(Tablas!$B$1,'Tabla de Amortizacion'!$D$2:$N$2,0)) -> 0 | E131: =IF([1]CALCULADORA!$F$10="Contractual",ROUND('[1]Tabla de Amortizacion'!C132,8),IF([1]CALCULADORA!$F$10="6% (Medio)",ROUND('[1]Tabla de Amortizacion'!F132,8),IF([1]CALCULADORA!$F$10="10% (Medio Alto)",ROUND('[1]Tabla de Amortizacion'!H132,8),IF([1]CALCULADORA!$F$10="14% (Alto)",ROUND('[1]Tabla de Amortizacion'!#REF!,8),IF([1]CALCULADORA!$F$10=20%,ROUND('[1]Tabla de Amortizacion'!#REF!,8),ROUND('[1]Tabla de Amortizacion'!K132,8)))))) -> 0
A132: 2032-05-24 | B132: 0 | C132: =+VLOOKUP(A132,'Tabla de Amortizacion'!$D$2:$N$182,MATCH(Tablas!$B$1,'Tabla de Amortizacion'!$D$2:$N$2,0)) -> 0 | E132: =IF([1]CALCULADORA!$F$10="Contractual",ROUND('[1]Tabla de Amortizacion'!C133,8),IF([1]CALCULADORA!$F$10="6% (Medio)",ROUND('[1]Tabla de Amortizacion'!F133,8),IF([1]CALCULADORA!$F$10="10% (Medio Alto)",ROUND('[1]Tabla de Amortizacion'!H133,8),IF([1]CALCULADORA!$F$10="14% (Alto)",ROUND('[1]Tabla de Amortizacion'!#REF!,8),IF([1]CALCULADORA!$F$10=20%,ROUND('[1]Tabla de Amortizacion'!#REF!,8),ROUND('[1]Tabla de Amortizacion'!K133,8)))))) -> 0
A133: 2032-06-24 | B133: 0 | C133: =+VLOOKUP(A133,'Tabla de Amortizacion'!$D$2:$N$182,MATCH(Tablas!$B$1,'Tabla de Amortizacion'!$D$2:$N$2,0)) -> 0 | E133: =IF([1]CALCULADORA!$F$10="Contractual",ROUND('[1]Tabla de Amortizacion'!C134,8),IF([1]CALCULADORA!$F$10="6% (Medio)",ROUND('[1]Tabla de Amortizacion'!F134,8),IF([1]CALCULADORA!$F$10="10% (Medio Alto)",ROUND('[1]Tabla de Amortizacion'!H134,8),IF([1]CALCULADORA!$F$10="14% (Alto)",ROUND('[1]Tabla de Amortizacion'!#REF!,8),IF([1]CALCULADORA!$F$10=20%,ROUND('[1]Tabla de Amortizacion'!#REF!,8),ROUND('[1]Tabla de Amortizacion'!K134,8)))))) -> 0
A134: 2032-07-24 | B134: 0 | C134: =+VLOOKUP(A134,'Tabla de Amortizacion'!$D$2:$N$182,MATCH(Tablas!$B$1,'Tabla de Amortizacion'!$D$2:$N$2,0)) -> 0 | E134: =IF([1]CALCULADORA!$F$10="Contractual",ROUND('[1]Tabla de Amortizacion'!C135,8),IF([1]CALCULADORA!$F$10="6% (Medio)",ROUND('[1]Tabla de Amortizacion'!F135,8),IF([1]CALCULADORA!$F$10="10% (Medio Alto)",ROUND('[1]Tabla de Amortizacion'!H135,8),IF([1]CALCULADORA!$F$10="14% (Alto)",ROUND('[1]Tabla de Amortizacion'!#REF!,8),IF([1]CALCULADORA!$F$10=20%,ROUND('[1]Tabla de Amortizacion'!#REF!,8),ROUND('[1]Tabla de Amortizacion'!K135,8)))))) -> 0
A135: 2032-08-24 | B135: 0 | C135: =+VLOOKUP(A135,'Tabla de Amortizacion'!$D$2:$N$182,MATCH(Tablas!$B$1,'Tabla de Amortizacion'!$D$2:$N$2,0)) -> 0 | E135: =IF([1]CALCULADORA!$F$10="Contractual",ROUND('[1]Tabla de Amortizacion'!C136,8),IF([1]CALCULADORA!$F$10="6% (Medio)",ROUND('[1]Tabla de Amortizacion'!F136,8),IF([1]CALCULADORA!$F$10="10% (Medio Alto)",ROUND('[1]Tabla de Amortizacion'!H136,8),IF([1]CALCULADORA!$F$10="14% (Alto)",ROUND('[1]Tabla de Amortizacion'!#REF!,8),IF([1]CALCULADORA!$F$10=20%,ROUND('[1]Tabla de Amortizacion'!#REF!,8),ROUND('[1]Tabla de Amortizacion'!K136,8)))))) -> 0
A136: 2032-09-24 | B136: 0 | C136: =+VLOOKUP(A136,'Tabla de Amortizacion'!$D$2:$N$182,MATCH(Tablas!$B$1,'Tabla de Amortizacion'!$D$2:$N$2,0)) -> 0 | E136: =IF([1]CALCULADORA!$F$10="Contractual",ROUND('[1]Tabla de Amortizacion'!C137,8),IF([1]CALCULADORA!$F$10="6% (Medio)",ROUND('[1]Tabla de Amortizacion'!F137,8),IF([1]CALCULADORA!$F$10="10% (Medio Alto)",ROUND('[1]Tabla de Amortizacion'!H137,8),IF([1]CALCULADORA!$F$10="14% (Alto)",ROUND('[1]Tabla de Amortizacion'!#REF!,8),IF([1]CALCULADORA!$F$10=20%,ROUND('[1]Tabla de Amortizacion'!#REF!,8),ROUND('[1]Tabla de Amortizacion'!K137,8)))))) -> 0
A137: 2032-10-24 | B137: 0 | C137: =+VLOOKUP(A137,'Tabla de Amortizacion'!$D$2:$N$182,MATCH(Tablas!$B$1,'Tabla de Amortizacion'!$D$2:$N$2,0)) -> 0 | E137: =IF([1]CALCULADORA!$F$10="Contractual",ROUND('[1]Tabla de Amortizacion'!C138,8),IF([1]CALCULADORA!$F$10="6% (Medio)",ROUND('[1]Tabla de Amortizacion'!F138,8),IF([1]CALCULADORA!$F$10="10% (Medio Alto)",ROUND('[1]Tabla de Amortizacion'!H138,8),IF([1]CALCULADORA!$F$10="14% (Alto)",ROUND('[1]Tabla de Amortizacion'!#REF!,8),IF([1]CALCULADORA!$F$10=20%,ROUND('[1]Tabla de Amortizacion'!#REF!,8),ROUND('[1]Tabla de Amortizacion'!K138,8)))))) -> 0
A138: 2032-11-24 | B138: 0 | C138: =+VLOOKUP(A138,'Tabla de Amortizacion'!$D$2:$N$182,MATCH(Tablas!$B$1,'Tabla de Amortizacion'!$D$2:$N$2,0)) -> 0 | E138: =IF([1]CALCULADORA!$F$10="Contractual",ROUND('[1]Tabla de Amortizacion'!C139,8),IF([1]CALCULADORA!$F$10="6% (Medio)",ROUND('[1]Tabla de Amortizacion'!F139,8),IF([1]CALCULADORA!$F$10="10% (Medio Alto)",ROUND('[1]Tabla de Amortizacion'!H139,8),IF([1]CALCULADORA!$F$10="14% (Alto)",ROUND('[1]Tabla de Amortizacion'!#REF!,8),IF([1]CALCULADORA!$F$10=20%,ROUND('[1]Tabla de Amortizacion'!#REF!,8),ROUND('[1]Tabla de Amortizacion'!K139,8)))))) -> 0
A139: 2032-12-24 | B139: 0 | C139: =+VLOOKUP(A139,'Tabla de Amortizacion'!$D$2:$N$182,MATCH(Tablas!$B$1,'Tabla de Amortizacion'!$D$2:$N$2,0)) -> 0 | E139: =IF([1]CALCULADORA!$F$10="Contractual",ROUND('[1]Tabla de Amortizacion'!C140,8),IF([1]CALCULADORA!$F$10="6% (Medio)",ROUND('[1]Tabla de Amortizacion'!F140,8),IF([1]CALCULADORA!$F$10="10% (Medio Alto)",ROUND('[1]Tabla de Amortizacion'!H140,8),IF([1]CALCULADORA!$F$10="14% (Alto)",ROUND('[1]Tabla de Amortizacion'!#REF!,8),IF([1]CALCULADORA!$F$10=20%,ROUND('[1]Tabla de Amortizacion'!#REF!,8),ROUND('[1]Tabla de Amortizacion'!K140,8)))))) -> 0
A140: 2033-01-24 | B140: 0 | C140: =+VLOOKUP(A140,'Tabla de Amortizacion'!$D$2:$N$182,MATCH(Tablas!$B$1,'Tabla de Amortizacion'!$D$2:$N$2,0)) -> 0 | E140: =IF([1]CALCULADORA!$F$10="Contractual",ROUND('[1]Tabla de Amortizacion'!C141,8),IF([1]CALCULADORA!$F$10="6% (Medio)",ROUND('[1]Tabla de Amortizacion'!F141,8),IF([1]CALCULADORA!$F$10="10% (Medio Alto)",ROUND('[1]Tabla de Amortizacion'!H141,8),IF([1]CALCULADORA!$F$10="14% (Alto)",ROUND('[1]Tabla de Amortizacion'!#REF!,8),IF([1]CALCULADORA!$F$10=20%,ROUND('[1]Tabla de Amortizacion'!#REF!,8),ROUND('[1]Tabla de Amortizacion'!K141,8)))))) -> 0
A141: 2033-02-24 | B141: 0 | C141: =+VLOOKUP(A141,'Tabla de Amortizacion'!$D$2:$N$182,MATCH(Tablas!$B$1,'Tabla de Amortizacion'!$D$2:$N$2,0)) -> 0 | E141: =IF([1]CALCULADORA!$F$10="Contractual",ROUND('[1]Tabla de Amortizacion'!C142,8),IF([1]CALCULADORA!$F$10="6% (Medio)",ROUND('[1]Tabla de Amortizacion'!F142,8),IF([1]CALCULADORA!$F$10="10% (Medio Alto)",ROUND('[1]Tabla de Amortizacion'!H142,8),IF([1]CALCULADORA!$F$10="14% (Alto)",ROUND('[1]Tabla de Amortizacion'!#REF!,8),IF([1]CALCULADORA!$F$10=20%,ROUND('[1]Tabla de Amortizacion'!#REF!,8),ROUND('[1]Tabla de Amortizacion'!K142,8)))))) -> 0
A142: 2033-03-24 | B142: 0 | C142: =+VLOOKUP(A142,'Tabla de Amortizacion'!$D$2:$N$182,MATCH(Tablas!$B$1,'Tabla de Amortizacion'!$D$2:$N$2,0)) -> 0 | E142: =IF([1]CALCULADORA!$F$10="Contractual",ROUND('[1]Tabla de Amortizacion'!C143,8),IF([1]CALCULADORA!$F$10="6% (Medio)",ROUND('[1]Tabla de Amortizacion'!F143,8),IF([1]CALCULADORA!$F$10="10% (Medio Alto)",ROUND('[1]Tabla de Amortizacion'!H143,8),IF([1]CALCULADORA!$F$10="14% (Alto)",ROUND('[1]Tabla de Amortizacion'!#REF!,8),IF([1]CALCULADORA!$F$10=20%,ROUND('[1]Tabla de Amortizacion'!#REF!,8),ROUND('[1]Tabla de Amortizacion'!K143,8)))))) -> 0
A143: 2033-04-24 | B143: 0 | C143: =+VLOOKUP(A143,'Tabla de Amortizacion'!$D$2:$N$182,MATCH(Tablas!$B$1,'Tabla de Amortizacion'!$D$2:$N$2,0)) -> 0 | E143: =IF([1]CALCULADORA!$F$10="Contractual",ROUND('[1]Tabla de Amortizacion'!C144,8),IF([1]CALCULADORA!$F$10="6% (Medio)",ROUND('[1]Tabla de Amortizacion'!F144,8),IF([1]CALCULADORA!$F$10="10% (Medio Alto)",ROUND('[1]Tabla de Amortizacion'!H144,8),IF([1]CALCULADORA!$F$10="14% (Alto)",ROUND('[1]Tabla de Amortizacion'!#REF!,8),IF([1]CALCULADORA!$F$10=20%,ROUND('[1]Tabla de Amortizacion'!#REF!,8),ROUND('[1]Tabla de Amortizacion'!K144,8)))))) -> 0
A144: 2033-05-24 | B144: 0 | C144: =+VLOOKUP(A144,'Tabla de Amortizacion'!$D$2:$N$182,MATCH(Tablas!$B$1,'Tabla de Amortizacion'!$D$2:$N$2,0)) -> 0 | E144: =IF([1]CALCULADORA!$F$10="Contractual",ROUND('[1]Tabla de Amortizacion'!C145,8),IF([1]CALCULADORA!$F$10="6% (Medio)",ROUND('[1]Tabla de Amortizacion'!F145,8),IF([1]CALCULADORA!$F$10="10% (Medio Alto)",ROUND('[1]Tabla de Amortizacion'!H145,8),IF([1]CALCULADORA!$F$10="14% (Alto)",ROUND('[1]Tabla de Amortizacion'!#REF!,8),IF([1]CALCULADORA!$F$10=20%,ROUND('[1]Tabla de Amortizacion'!#REF!,8),ROUND('[1]Tabla de Amortizacion'!K145,8)))))) -> 0
A145: 2033-06-24 | B145: 0 | C145: =+VLOOKUP(A145,'Tabla de Amortizacion'!$D$2:$N$182,MATCH(Tablas!$B$1,'Tabla de Amortizacion'!$D$2:$N$2,0)) -> 0 | E145: =IF([1]CALCULADORA!$F$10="Contractual",ROUND('[1]Tabla de Amortizacion'!C146,8),IF([1]CALCULADORA!$F$10="6% (Medio)",ROUND('[1]Tabla de Amortizacion'!F146,8),IF([1]CALCULADORA!$F$10="10% (Medio Alto)",ROUND('[1]Tabla de Amortizacion'!H146,8),IF([1]CALCULADORA!$F$10="14% (Alto)",ROUND('[1]Tabla de Amortizacion'!#REF!,8),IF([1]CALCULADORA!$F$10=20%,ROUND('[1]Tabla de Amortizacion'!#REF!,8),ROUND('[1]Tabla de Amortizacion'!K146,8)))))) -> 0
A146: 2033-07-24 | B146: 0 | C146: =+VLOOKUP(A146,'Tabla de Amortizacion'!$D$2:$N$182,MATCH(Tablas!$B$1,'Tabla de Amortizacion'!$D$2:$N$2,0)) -> 0 | E146: =IF([1]CALCULADORA!$F$10="Contractual",ROUND('[1]Tabla de Amortizacion'!C147,8),IF([1]CALCULADORA!$F$10="6% (Medio)",ROUND('[1]Tabla de Amortizacion'!F147,8),IF([1]CALCULADORA!$F$10="10% (Medio Alto)",ROUND('[1]Tabla de Amortizacion'!H147,8),IF([1]CALCULADORA!$F$10="14% (Alto)",ROUND('[1]Tabla de Amortizacion'!#REF!,8),IF([1]CALCULADORA!$F$10=20%,ROUND('[1]Tabla de Amortizacion'!#REF!,8),ROUND('[1]Tabla de Amortizacion'!K147,8)))))) -> 0
A147: 2033-08-24 | B147: 0 | C147: =+VLOOKUP(A147,'Tabla de Amortizacion'!$D$2:$N$182,MATCH(Tablas!$B$1,'Tabla de Amortizacion'!$D$2:$N$2,0)) -> 0 | E147: =IF([1]CALCULADORA!$F$10="Contractual",ROUND('[1]Tabla de Amortizacion'!C148,8),IF([1]CALCULADORA!$F$10="6% (Medio)",ROUND('[1]Tabla de Amortizacion'!F148,8),IF([1]CALCULADORA!$F$10="10% (Medio Alto)",ROUND('[1]Tabla de Amortizacion'!H148,8),IF([1]CALCULADORA!$F$10="14% (Alto)",ROUND('[1]Tabla de Amortizacion'!#REF!,8),IF([1]CALCULADORA!$F$10=20%,ROUND('[1]Tabla de Amortizacion'!#REF!,8),ROUND('[1]Tabla de Amortizacion'!K148,8)))))) -> 0
A148: 2033-09-24 | B148: 0 | C148: =+VLOOKUP(A148,'Tabla de Amortizacion'!$D$2:$N$182,MATCH(Tablas!$B$1,'Tabla de Amortizacion'!$D$2:$N$2,0)) -> 0 | E148: =IF([1]CALCULADORA!$F$10="Contractual",ROUND('[1]Tabla de Amortizacion'!C149,8),IF([1]CALCULADORA!$F$10="6% (Medio)",ROUND('[1]Tabla de Amortizacion'!F149,8),IF([1]CALCULADORA!$F$10="10% (Medio Alto)",ROUND('[1]Tabla de Amortizacion'!H149,8),IF([1]CALCULADORA!$F$10="14% (Alto)",ROUND('[1]Tabla de Amortizacion'!#REF!,8),IF([1]CALCULADORA!$F$10=20%,ROUND('[1]Tabla de Amortizacion'!#REF!,8),ROUND('[1]Tabla de Amortizacion'!K149,8)))))) -> 0
A149: 2033-10-24 | B149: 0 | C149: =+VLOOKUP(A149,'Tabla de Amortizacion'!$D$2:$N$182,MATCH(Tablas!$B$1,'Tabla de Amortizacion'!$D$2:$N$2,0)) -> 0 | E149: =IF([1]CALCULADORA!$F$10="Contractual",ROUND('[1]Tabla de Amortizacion'!C150,8),IF([1]CALCULADORA!$F$10="6% (Medio)",ROUND('[1]Tabla de Amortizacion'!F150,8),IF([1]CALCULADORA!$F$10="10% (Medio Alto)",ROUND('[1]Tabla de Amortizacion'!H150,8),IF([1]CALCULADORA!$F$10="14% (Alto)",ROUND('[1]Tabla de Amortizacion'!#REF!,8),IF([1]CALCULADORA!$F$10=20%,ROUND('[1]Tabla de Amortizacion'!#REF!,8),ROUND('[1]Tabla de Amortizacion'!K150,8)))))) -> 0
A150: 2033-11-24 | B150: 0 | C150: =+VLOOKUP(A150,'Tabla de Amortizacion'!$D$2:$N$182,MATCH(Tablas!$B$1,'Tabla de Amortizacion'!$D$2:$N$2,0)) -> 0 | E150: =IF([1]CALCULADORA!$F$10="Contractual",ROUND('[1]Tabla de Amortizacion'!C151,8),IF([1]CALCULADORA!$F$10="6% (Medio)",ROUND('[1]Tabla de Amortizacion'!F151,8),IF([1]CALCULADORA!$F$10="10% (Medio Alto)",ROUND('[1]Tabla de Amortizacion'!H151,8),IF([1]CALCULADORA!$F$10="14% (Alto)",ROUND('[1]Tabla de Amortizacion'!#REF!,8),IF([1]CALCULADORA!$F$10=20%,ROUND('[1]Tabla de Amortizacion'!#REF!,8),ROUND('[1]Tabla de Amortizacion'!K151,8)))))) -> 0
A151: 2033-12-24 | B151: 0 | C151: =+VLOOKUP(A151,'Tabla de Amortizacion'!$D$2:$N$182,MATCH(Tablas!$B$1,'Tabla de Amortizacion'!$D$2:$N$2,0)) -> 0 | E151: =IF([1]CALCULADORA!$F$10="Contractual",ROUND('[1]Tabla de Amortizacion'!C152,8),IF([1]CALCULADORA!$F$10="6% (Medio)",ROUND('[1]Tabla de Amortizacion'!F152,8),IF([1]CALCULADORA!$F$10="10% (Medio Alto)",ROUND('[1]Tabla de Amortizacion'!H152,8),IF([1]CALCULADORA!$F$10="14% (Alto)",ROUND('[1]Tabla de Amortizacion'!#REF!,8),IF([1]CALCULADORA!$F$10=20%,ROUND('[1]Tabla de Amortizacion'!#REF!,8),ROUND('[1]Tabla de Amortizacion'!K152,8)))))) -> 0
A152: 2034-01-24 | B152: 0 | C152: =+VLOOKUP(A152,'Tabla de Amortizacion'!$D$2:$N$182,MATCH(Tablas!$B$1,'Tabla de Amortizacion'!$D$2:$N$2,0)) -> 0 | E152: =IF([1]CALCULADORA!$F$10="Contractual",ROUND('[1]Tabla de Amortizacion'!C153,8),IF([1]CALCULADORA!$F$10="6% (Medio)",ROUND('[1]Tabla de Amortizacion'!F153,8),IF([1]CALCULADORA!$F$10="10% (Medio Alto)",ROUND('[1]Tabla de Amortizacion'!H153,8),IF([1]CALCULADORA!$F$10="14% (Alto)",ROUND('[1]Tabla de Amortizacion'!#REF!,8),IF([1]CALCULADORA!$F$10=20%,ROUND('[1]Tabla de Amortizacion'!#REF!,8),ROUND('[1]Tabla de Amortizacion'!K153,8)))))) -> 0
A153: 2034-02-24 | B153: 0 | C153: =+VLOOKUP(A153,'Tabla de Amortizacion'!$D$2:$N$182,MATCH(Tablas!$B$1,'Tabla de Amortizacion'!$D$2:$N$2,0)) -> 0 | E153: =IF([1]CALCULADORA!$F$10="Contractual",ROUND('[1]Tabla de Amortizacion'!C154,8),IF([1]CALCULADORA!$F$10="6% (Medio)",ROUND('[1]Tabla de Amortizacion'!F154,8),IF([1]CALCULADORA!$F$10="10% (Medio Alto)",ROUND('[1]Tabla de Amortizacion'!H154,8),IF([1]CALCULADORA!$F$10="14% (Alto)",ROUND('[1]Tabla de Amortizacion'!#REF!,8),IF([1]CALCULADORA!$F$10=20%,ROUND('[1]Tabla de Amortizacion'!#REF!,8),ROUND('[1]Tabla de Amortizacion'!K154,8)))))) -> 0
A154: 2034-03-24 | B154: 0 | C154: =+VLOOKUP(A154,'Tabla de Amortizacion'!$D$2:$N$182,MATCH(Tablas!$B$1,'Tabla de Amortizacion'!$D$2:$N$2,0)) -> 0 | E154: =IF([1]CALCULADORA!$F$10="Contractual",ROUND('[1]Tabla de Amortizacion'!C155,8),IF([1]CALCULADORA!$F$10="6% (Medio)",ROUND('[1]Tabla de Amortizacion'!F155,8),IF([1]CALCULADORA!$F$10="10% (Medio Alto)",ROUND('[1]Tabla de Amortizacion'!H155,8),IF([1]CALCULADORA!$F$10="14% (Alto)",ROUND('[1]Tabla de Amortizacion'!#REF!,8),IF([1]CALCULADORA!$F$10=20%,ROUND('[1]Tabla de Amortizacion'!#REF!,8),ROUND('[1]Tabla de Amortizacion'!K155,8)))))) -> 0
A155: 2034-04-24 | B155: 0 | C155: =+VLOOKUP(A155,'Tabla de Amortizacion'!$D$2:$N$182,MATCH(Tablas!$B$1,'Tabla de Amortizacion'!$D$2:$N$2,0)) -> 0 | E155: =IF([1]CALCULADORA!$F$10="Contractual",ROUND('[1]Tabla de Amortizacion'!C156,8),IF([1]CALCULADORA!$F$10="6% (Medio)",ROUND('[1]Tabla de Amortizacion'!F156,8),IF([1]CALCULADORA!$F$10="10% (Medio Alto)",ROUND('[1]Tabla de Amortizacion'!H156,8),IF([1]CALCULADORA!$F$10="14% (Alto)",ROUND('[1]Tabla de Amortizacion'!#REF!,8),IF([1]CALCULADORA!$F$10=20%,ROUND('[1]Tabla de Amortizacion'!#REF!,8),ROUND('[1]Tabla de Amortizacion'!K156,8)))))) -> 0
A156: 2034-05-24 | B156: 0 | C156: =+VLOOKUP(A156,'Tabla de Amortizacion'!$D$2:$N$182,MATCH(Tablas!$B$1,'Tabla de Amortizacion'!$D$2:$N$2,0)) -> 0 | E156: =IF([1]CALCULADORA!$F$10="Contractual",ROUND('[1]Tabla de Amortizacion'!C157,8),IF([1]CALCULADORA!$F$10="6% (Medio)",ROUND('[1]Tabla de Amortizacion'!F157,8),IF([1]CALCULADORA!$F$10="10% (Medio Alto)",ROUND('[1]Tabla de Amortizacion'!H157,8),IF([1]CALCULADORA!$F$10="14% (Alto)",ROUND('[1]Tabla de Amortizacion'!#REF!,8),IF([1]CALCULADORA!$F$10=20%,ROUND('[1]Tabla de Amortizacion'!#REF!,8),ROUND('[1]Tabla de Amortizacion'!K157,8)))))) -> 0
A157: 2034-06-24 | B157: 0 | C157: =+VLOOKUP(A157,'Tabla de Amortizacion'!$D$2:$N$182,MATCH(Tablas!$B$1,'Tabla de Amortizacion'!$D$2:$N$2,0)) -> 0 | E157: =IF([1]CALCULADORA!$F$10="Contractual",ROUND('[1]Tabla de Amortizacion'!C158,8),IF([1]CALCULADORA!$F$10="6% (Medio)",ROUND('[1]Tabla de Amortizacion'!F158,8),IF([1]CALCULADORA!$F$10="10% (Medio Alto)",ROUND('[1]Tabla de Amortizacion'!H158,8),IF([1]CALCULADORA!$F$10="14% (Alto)",ROUND('[1]Tabla de Amortizacion'!#REF!,8),IF([1]CALCULADORA!$F$10=20%,ROUND('[1]Tabla de Amortizacion'!#REF!,8),ROUND('[1]Tabla de Amortizacion'!K158,8)))))) -> 0
